Workbook

Sheet Title
B2: Distributed Hydrogen Production - Project Information
B5: Title:
B6: Authors:
B7: Contact:
B8: Contact phone:
B9: Contact e-mail:
B10: Organization:
B11: Date:
B12: Web Site:
B14: Plant Design Capacity (kg/day):
B15: Start-up Year:
B16: Primary Product Feedstock Source:
B17: Secondary Feedstock Source:
B18: Process Energy Source:
B19: Conversion Technology:
B20: Primary By-Product:
B21: Secondary By-Product:
B22: Based on Number of Plants Installed per Year (per manufacturer):
B23: H2 Onsite Storage Type
B24: Assumed plant location:
B26: Reporting Spreadsheet Change History:
B27: Date spreadsheet created / modified | C27: Name | D27: Comments

Sheet Description
B2: Distributed Hydrogen Production - Description
B6: Purpose:
B10: System Description:
B14: Analysis Methodology Summary:
B18: Plant Ownership and Entity Type Assumptions:
B21: References:

Sheet ProcessFlow
B2: Distributed Hydrogen Production - Process Flow Diagram
B6: Process Flow Diagram
B45: Stream Summaries

Sheet Input_Sheet_Template
B2: H2A Hydrogen Production Cash Flow Analysis Tool v3.2018
A3: title | B3: Distributed Hydrogen Production from Natural Gas - Current Timeframe
B5: Table of Contents
B6: View and edit project information
B8: H2A cell color coding
B10: Use H2A default values
B12: Technical Operating Parameters and Specifications | H12: Cash Flow NPV (Error if not 0) | I12: Cash Flow NPV (Error if not 0)
B13: Financial Input Values | H13: =+NPV ->  | I13: =+'Refueling Cash Flow Analysis'!NPV -> 2.115642093e-10
B14: Capital Costs
B15: Fixed Operating Costs
B16: Variable Operating Costs - Energy Feedstocks, Utilities, and Byproducts
B17: Variable Operating Costs - Other Materials and Byproducts
B18: Variable Operating Costs - Other Variable Operating Costs
B20: Technical Operating Parameters and Specifications | E20: Notes
B21: Hydrogen Production Facility Design Capacity (kg of H2/day) | C21: =1500*sensitivity_02 -> 1500
B22: =IF('Refueling Station - GH2'!B119="no","","Summer Surge: % Above the System Average Demand") -> Summer Surge: % Above the System Average Demand | C22: 0.1
B23: Friday Average above Weekly Average (%) | C23: 0.08
B24: Hours per unplanned outage (enter whole numbers only) | C24: 14
B25: Number of outages per year | C25: 10
B26: Days per planned outage (enter as whole numbers only) | C26: 5
B27: Number of planned outages per year | C27: 1
B28: Maximum Daily Dispensing Rate (kg/day summer Friday) | C28: =YearlyDispensing*(1+Summer_surge)*(1+Friday_peak) -> 1578.788928
B29: Production equipment availability (%) | C29: =(8760-Outage_hrs*Outages_p_Year-C26*C27*24)/8760 -> 0.9703196347
B30: Average period without outage (days) | C30: =(365*24-Outages_p_Year*Outage_hrs-C26*C27*24)/Outages_p_Year/24 -> 35.41666667
B31: Storage Size For Daily Variation Profile (kg) | C31: ='Refueling Station - GH2'!Daily_Storage -> 489.6201065
B32: Storage required for weekly demand variation - summer (kg H2) | C32: =WeeklyStorage -> 191.5012496
B33: Storage required for supply of hydrogen during outages (kg) | C33: =(VLOOKUP(MOD(Outage_hrs,24),Outage_dispensing,2,FALSE)+TRUNC(Outage_hrs/24)*Daily_demand) -> 1351.443323
B34: Yearly average system demand (kg/day) | C34: 1328.946909
B35: Summer weekly average system demand (kg/day) | C35: =YearlyDispensing*(1+Summer_surge) -> 1461.8416
A36: cap_factor | B36: Plant Usage Factor (%) | C36: =output_kgyear/(design_cap*365) -> 0.8596688531
A37: Soutput_kgyear | B37: Plant Output (kg/year) | C37: =YearlyDispensing*365*C29 -> 470668.6971
B38: Financial Input Values | E38: Notes
A39: ref_year | B39: Reference year | C39: 2016
B40: Basis Year for production system costs | C40: 2005
A41: startup_year | B41: Assumed start-up year | C41: 2015
B42: Current year for costs | C42: 2010
A43: construct | B43: Length of Construction Period (years) | C43: 1
A44: percent_cap1 | B44: % of Capital Spent in 1st Year of Construction | C44: 1
A45: percent_cap2 | B45: % of Capital Spent in 2nd Year of Construction
A46: start_time | B46: Start-up Time (years) | C46: 0.5
A47: plant_life | B47: Plant life (years) | C47: 20
A48: anal_period | B48: Analysis period (years) | C48: 20
A49: depr_length | B49: Depreciation Schedule Length (years) | C49: 7
A50: depr_type | B50: Depreciation Type | C50: MACRS
A51: equity | B51: % Equity Financing | C51: 0.4
A52: debt_interest | B52: Interest rate on debt, if applicable (%) | C52: 0.037
A53: debt_period | B53: Debt Period (years) | C53: 0 | E53: Enter 0 to enable constant outstanding debt.
A54: percnt_fixed | B54: % of Fixed Operating Costs During Start-up (%) | C54: 0.75
A55: percnt_revs | B55: % of Revenues During Start-up (%) | C55: 0.5
A56: percnt_var | B56: % of Variable Operating Costs During Start-up (%) | C56: 0.5
A57: decom_percent | B57: Decommissioning costs (% of depreciable capital investment) | C57: 0.1
A58: salvage_perct | B58: Salvage value (% of total capital investment) | C58: 0.1
A59: inflation_rate | B59: Inflation rate (%) | C59: 0.019
A60: real_irr | B60: After-tax Real IRR (%) | C60: =0.08*sensitivity_03 -> 0.08
A61: state_tax_rate | B61: State Taxes (%) | C61: 0.06
A62: fed_tax_rate | B62: Federal Taxes (%) | C62: 0.21
A63: Stotal_tax_rate | B63: Total Tax Rate (%) | C63: =fed_tax_rate+state_tax_rate*(1-fed_tax_rate) -> 0.2574
A64: WorkingCap | B64: WORKING CAPITAL (% of yearly change in operating costs) | C64: 0.15
B66: Capital Costs - Hydrogen Production Facility | E66: Notes
A68: direct_cap | B68: H2A Production Process Total Direct Capital Cost | C68: =Det_scaled_cap -> 0 | E68: Click to enter details on the Cost Detail Sheet
B69: Indirect Depreciable Capital Costs | C69: ="Enter values in basis year (" &BasisYear_production& ") dollars" -> Enter values in basis year (2005) dollars | D69: Combined Plant Scaling and Escalation Factor | E69: ="Reference Year ("& ref_year & ") Dollars" -> Reference Year (2016) Dollars
A70: Site_prep | B70: Site Preparation ($) | C70: =0.1885*direct_cap/(CPIinflator_production*CEPCInflator_production) -> 0 | D70: =Site_prep_multiplier ->  | E70: =C70*D70 -> 
A71: Engin | B71: Engineering & design ($) | C71: =50000 -> 50000 | D71: =Engin_multiplier -> 
A72: Process_cont | B72: Process contingency ($) | C72: 0 | D72: =Process_cont_multiplier -> 
A73: Project_cont | B73: Project contingency ($) | C73: =0.15*direct_cap/(CPIinflator_production*CEPCInflator_production) -> 0 | D73: =Project_cont_multiplier -> 1.294914314 | E73: 0
A74: Other_indirect | B74: Other (Depreciable) capital ($) | C74: 0 | D74: =Other_indirect_multiplier -> 
A75: Fees | B75: One-time Licensing Fees ($) | C75: 0 | D75: =Fees_multiplier -> 
A76: Permitting | B76: Up-Front Permitting Costs ($) | C76: 30000 | D76: =Permitting_multiplier -> 
A77: Sdepr_cap | B77: Total Depreciable Capital Costs | E77: =direct_cap+ SUM(E70:E76) -> 
B79: Non-Depreciable Capital Costs | C79: ="Enter values in basis year (" & BasisYear_production& ") dollars" -> Enter values in basis year (2005) dollars | D79: Combined Plant Scaling and Escalation Factor | E79: ="Reference Year (" & ref_year&") Dollars" -> Reference Year (2016) Dollars
A80: acre_cost | B80: Cost of land ($/acre) | C80: 0 | D80: =acre_cost_multiplier -> 1.100724187 | E80: =C80*D80 -> 0
A81: acres | B81: Land required (acres) | D81: =acres_multiplier ->  | E81: =C81*D81 -> 
A82: Sland_cost | B82: Land Cost ($) | E82: =acre_cost*acres -> 
B83: Other non depreciable capital costs | D83: =Other_non_depr_multiplier ->  | E83: =C83*D83 -> 
A84: Snon_dep_cap | B84: Total Non-Depreciable Capital Costs | E84: =land_cost+Other_non_depr -> 
A86: Stotal_cap | B86: Total Capital Costs | E86: =(depr_cap+non_dep_cap)*sensitivity_06 -> 
B88: H2A Compression, Storage, and Dispensing Capital Cost | E88: Click to enter or view details on the Refueling Station calculation sheet.
B90: Fixed Operating Costs - Hydrogen Production Facility | C90: ="Enter values in basis year (" & BasisYear_production& ") dollars" -> Enter values in basis year (2005) dollars | D90: Combined Plant Scaling and Escalation Factor | E90: ="Reference Year (" & ref_year&") Dollars" -> Reference Year (2016) Dollars
A91: FTEs | B91: Production facility plant staff (number of FTEs) | C91: 0 | D91: =FTEs_multiplier -> 1 | E91: =C91*D91 -> 0
A92: FTE_cost | B92: Burdened labor cost, including overhead ($/man-hr) | C92: 50 | D92: =FTE_cost_multiplier -> 1.15480427 | E92: =C92*D92 -> 57.74021352
A93: Slabor_cost | B93: Production Facility Labor cost, $/year | E93: =FTEs*FTE_cost*2080 -> 0
A94: overhead_rate | B94: G&A rate (% of labor cost) | C94: 0.2
A95: Soverhead_GA | B95: G&A ($/year) | E95: =(labor_cost)*overhead_rate -> 0
A96: licensing | B96: Licensing, Permits and Fees ($/year) | C96: 1000 | D96: =licensing_multiplier ->  | E96: =1000*106.22/100*Scale_Factor -> 
A97: tax_ins_rate | B97: Property tax and insurance rate (% of total capital investment/year) | C97: 0.02
A98: Stax_insurance | B98: Property taxes and insurance ($/year) | E98: =tax_ins_rate*total_cap -> 
A99: rent | B99: Rent ($/year) | C99: 3370 | D99: =rent_multiplier -> 1.100724187 | E99: =C99*D99 -> 3709.440509
A100: material | B100: Material costs for maintenance and repairs ($/year) | D100: =material_multiplier -> 1.294914314 | E100: =C100*D100 -> 0
A101: prod_maint | B101: Production Maintenance and Repairs ($/year) | C101: =0.05*direct_cap/(CPIinflator_production*CEPCInflator_production) -> 0 | D101: =prod_maint_multiplier -> 1.294914314 | E101: =C101*D101 -> 0
A102: other_fees | B102: Other Fees ($/year) | D102: =other_fees_multiplier -> 1.294914314 | E102: =C102*D102 -> 0
A103: other_fixed | B103: Other Fixed O&M Costs ($/year) | D103: =other_fixed_multiplier ->  | E103: =C103*D103 -> 
A104: Sfixed | B104: Total Fixed Operating Costs | E104: =(labor_cost+overhead_GA+tax_insurance+licensing+rent+material+prod_maint+other_fees+other_fixed)*sensitivity_07 -> 
B106: Variable Operating Costs
B107: Energy Feedstocks, Utilities, and Byproducts
B108: Select the Price Table to Use
B109: AEO_2017_Reference_Case
B110: Select the Use
B111: feedstock | C111: =IF(OR(TMP_FeedType="Feedstock",TMP_FeedType = "Utility")," Enter usage in","Enter production in") -> Enter usage in | D111: =VLOOKUP(TMP_FeedName,INDIRECT(TMP_PriceTable),4,FALSE) -> mmBtu
B112: Select the Feed Type
B113: Industrial Natural Gas
B115: =SELECTED_FEED -> feedstock | C115: =B113 -> Industrial Natural Gas
B116: ="Price Conversion Factor (GJ/"&TMP_Units&")" -> Price Conversion Factor (GJ/mmBtu) | C116: =VLOOKUP(TMP_FeedName,MASTER_PROPERTY_TABLE,9,FALSE) -> 1.055
B117: ="Price in Startup Year ($" & ref_year & ")/" & TMP_Units -> Price in Startup Year ($2016)/mmBtu | C117: =HLOOKUP(startup_year,INDIRECT(TMP_PriceTable),MATCH(TMP_FeedName,INDIRECT(Energy_Feed_List),0),FALSE)*TMP_Conversion -> 3.733674814
B118: =IF(OR(TMP_FeedType="Feedstock",TMP_FeedType = "Utility"),"Usage ("&TMP_Units&"/kg H2)","Production ("&TMP_Units&"/kg H2)") -> Usage (mmBtu/kg H2) | C118: 0.1557970124
B119: =IF(OR(TMP_FeedType = "Feedstock",TMP_FeedType = "Utility"), "Cost in Startup Year","Income in Startup Year") -> Cost in Startup Year | C119: =output_kgyear*TMP_Usage*TMP_StartPrice -> 273785.8072
B120: Lookup Prices | C120: yes
B122: Energy feedstocks, utilities, and byproducts currently in use
A123: START_TOP
A124: START_FEED
A125: START_UTILITY
A126: START_BYPROD
F127: Total
A128: Total_Energy_Feed_Cost | B128: Total Energy Feedstock Cost ($/year) | F128: =SUM(Dynamic_Feed_Total) -> 0
A129: Total_Energy_Utilities_Cost | B129: Total Energy Utilities Cost ($/year) | F129: =SUM(Dynamic_Utilities_Total) -> 0
A130: Total_Energy_Byproduct_Credit | B130: Total Energy Byproduct Credit ($/year) | F130: =SUM(Dynamic_Byproduct_Total) -> 0
B131: Other Materials and Byproducts
B133: Select the Material
B134: Process Water
B135: Feed or utility | C135: =B134 -> Process Water
B136: =VLOOKUP(TMP_NonE_Feed,MASTER_OTHER_PRICES,2,FALSE) -> $(2016)/gal | C136: =HLOOKUP(startup_year,Tbl_Other_Inputs_and_Byproducts,MATCH(TMP_NonE_Feed,Other_Inputs_List,0),FALSE) -> 0.002374951095
B137: =IF(TMP_NonE_Type="Feed or utility","Usage per kg H2","Production per kg H2")&" (" &RIGHT(TMP_NonE_Usage_txt,RIGHT(LEN(TMP_NonE_Usage_txt)-SEARCH("/",TMP_NonE_Usage_txt)))& ")" -> Usage per kg H2 (gal)
B138: =IF(TMP_NonE_Type = "Feed or utility", "Cost in Startup Year","Income in Startup Year") -> Cost in Startup Year | C138: =design_cap*365*cap_factor*TMP_NonE_Usage*TMP_NonE_StartPrice -> 0
B139: Lookup Prices | C139: Yes
A140: START_NONE_TOP
A141: START_NONE_FEED
A142: START_NONE_BYPROD
B143: Total Non Energy Utility and Material Costs ($/year) | C143: =SUM(Dynamic_NonE_Feed_Total) -> 0
A144: total_non_energy_byproduct_credit | B144: Total Non Energy Byproduct Credits ($/year) | C144: =SUM(Dynamic_NonE_Byprod_Total) -> 0
A146: Stotal_feedstock | B146: Total Feedstock Costs ($/year) | C146: =Total_Energy_Feed_Cost -> 0
A147: Stotal_utilities | B147: Total Utility Costs ($/year) | C147: =Total_Energy_Utilities_Cost+Total_Non_Energy_Feed_Cost -> 0
A148: Stotal_byproducts | B148: Total Byproduct Credits ($/year) | C148: =Total_Energy_Byproduct_Credit+total_non_energy_byproduct_credit -> 0
B149: Other Variable Operating Costs | C149: ="Enter values in basis year (" & BasisYear_production& ") dollars" -> Enter values in basis year (2005) dollars | D149: Combined Plant Scaling and Escalation Factor | E149: ="Reference Year (" & ref_year&") Dollars" -> Reference Year (2016) Dollars
A150: var_misc | B150: Other variable operating costs (e.g. environmental surcharges) ($/year) | D150: =var_misc_multiplier -> 1.426054458 | E150: =1800*106.22/100*Scale_Ratio -> 1911.96
A151: total_other_raw | B151: Other Material Costs ($/year) | D151: =total_other_raw_multiplier -> 1.426054458 | E151: =C151*D151 -> 0
A152: waste_treat | B152: Waste treatment costs ($/year) | D152: =waste_treat_multiplier -> 1.426054458 | E152: =C152*D152 -> 0
A153: solidwaste_treat | B153: Solid waste disposal costs ($/year) | D153: =solidwaste_treat_multiplier -> 1.426054458 | E153: =C153*D153 -> 0
A154: replace_factor | B154: Total Unplanned Replacement Capital Cost Factor (% of total direct depreciable costs/year) | C154: 0 | E154: Click to enter data for specific years on Replacement Costs Sheet
A155: royalties | B155: Royalties ($/year) | D155: =royalties_multiplier -> 1.100724187 | E155: 0
A156: operator_profit | B156: Operator Profit ($/year) | D156: =operator_profit_multiplier -> 1.100724187 | E156: 0
A157: tax_credit | B157: Subsidies, Tax Incentives ($/year) | D157: =tax_credit_multiplier -> 1.100724187 | E157: 0 | G157: Enter as a positive number
A158: Stotal_var | B158: Total Variable Operating Costs ($/year) | E158: =total_feedstock+total_utilities+total_other_raw-total_byproducts+var_misc+waste_treat+solidwaste_treat+royalties+operator_profit-tax_credit -> 1911.96

Sheet Replacement Costs
A2: Replacement Costs
C5: Color Key
A8: ="NOTE: Enter costs in year "&TEXT(BasisYear_production,"0")&" $ - Do not inflate" -> NOTE: Enter costs in year 2005 $ - Do not inflate
A9: NOTE: All replacement costs are assumed to be equity financed.
A12: Unplanned Yearly Replacement Capital (Depreciable)
C13: Notes
A14: Total Unplanned Replacement Capital Cost Factor (% of total depreciable capital costs/year) | B14: =replace_factor -> 0 | C14: The yearly replacement percentage is entered on the Input Sheet Template
A15: Actual Year | B15: Analysis Year | C15: Operations Year | D15: Specified Yearly Replacement Costs | E15: Specified Yearly Replacement Costs | F15: Unplanned Replacement Costs | G15: Total Yearly Replacement Costs | H15: Notes
D16: Percent of Production System Direct Capital Cost | E16: ="Year "&TEXT(ref_year,"0")&" $" -> Year 2016 $ | F16: ="Year "&TEXT(ref_year,"0")&" $" -> Year 2016 $ | G16: Inflated to Start-up Year
A17: =IF(C17<>"",'Production Cash Flow Analysis'!A65,"") -> 2014 | B17: =construct+1 -> 2 | C17: 1 | E17: =direct_cap*D17 -> 0 | F17: =IF(C17>anal_period,0,IF(replace_factor<>"",replace_factor*depr_cap,0)) ->  | G17: =(E17+F17)*((1+inflation_rate)^(startup_year-ref_year)) -> 
A18: =IF(C18<>"",'Production Cash Flow Analysis'!A66,"") -> 2015 | B18: =IF(B17<anal_period+construct,B17+1,"") -> 3 | C18: =IF(B18="","",C17+1) -> 2 | E18: 0
A19: =IF(C19<>"",'Production Cash Flow Analysis'!A67,"") -> 2016 | B19: 4 | C19: 3 | E19: 0
A20: =IF(C20<>"",'Production Cash Flow Analysis'!A68,"") -> 2017 | B20: 5 | C20: 4 | E20: 0
A21: =IF(C21<>"",'Production Cash Flow Analysis'!A69,"") -> 2018 | B21: 6 | C21: 5 | E21: 0
A22: =IF(C22<>"",'Production Cash Flow Analysis'!A70,"") -> 2019 | B22: 7 | C22: 6 | E22: 0
A23: =IF(C23<>"",'Production Cash Flow Analysis'!A71,"") -> 2020 | B23: 8 | C23: 7 | E23: 0
A24: =IF(C24<>"",'Production Cash Flow Analysis'!A72,"") -> 2021 | B24: 9 | C24: 8 | E24: 0
A25: =IF(C25<>"",'Production Cash Flow Analysis'!A73,"") -> 2022 | B25: 10 | C25: 9 | E25: 0
A26: =IF(C26<>"",'Production Cash Flow Analysis'!A74,"") -> 2023 | B26: 11 | C26: 10 | E26: 0
A27: =IF(C27<>"",'Production Cash Flow Analysis'!A75,"") -> 2024 | B27: 12 | C27: 11 | E27: 0
A28: =IF(C28<>"",'Production Cash Flow Analysis'!A76,"") -> 2025 | B28: 13 | C28: 12 | E28: 0
A29: =IF(C29<>"",'Production Cash Flow Analysis'!A77,"") -> 2026 | B29: 14 | C29: 13 | E29: 0
A30: =IF(C30<>"",'Production Cash Flow Analysis'!A78,"") -> 2027 | B30: 15 | C30: 14 | E30: 0
A31: =IF(C31<>"",'Production Cash Flow Analysis'!A79,"") -> 2028 | B31: 16 | C31: 15 | E31: 0
A32: =IF(C32<>"",'Production Cash Flow Analysis'!A80,"") -> 2029 | B32: 17 | C32: 16 | E32: 0
A33: =IF(C33<>"",'Production Cash Flow Analysis'!A81,"") -> 2030 | B33: 18 | C33: 17 | E33: 0
A34: =IF(C34<>"",'Production Cash Flow Analysis'!A82,"") -> 2031 | B34: 19 | C34: 18 | E34: 0
A35: =IF(C35<>"",'Production Cash Flow Analysis'!A83,"") -> 2032 | B35: 20 | C35: 19 | E35: 0
A36: =IF(C36<>"",'Production Cash Flow Analysis'!A84,"") -> 2033 | B36: 21 | C36: 20 | E36: 0
A37: =IF(C37<>"",'Production Cash Flow Analysis'!A85,"") ->  | E37: 0 | F37: 0 | G37: 0
A38: =IF(C38<>"",'Production Cash Flow Analysis'!A86,"") ->  | E38: 0 | F38: 0 | G38: 0
A39: =IF(C39<>"",'Production Cash Flow Analysis'!A87,"") ->  | E39: 0 | F39: 0 | G39: 0
A40: =IF(C40<>"",'Production Cash Flow Analysis'!A88,"") ->  | E40: 0 | F40: 0 | G40: 0
A41: =IF(C41<>"",'Production Cash Flow Analysis'!A89,"") ->  | E41: 0 | F41: 0 | G41: 0
A42: =IF(C42<>"",'Production Cash Flow Analysis'!A90,"") ->  | E42: 0 | F42: 0 | G42: 0
A43: =IF(C43<>"",'Production Cash Flow Analysis'!A91,"") ->  | E43: 0 | F43: 0 | G43: 0
A44: =IF(C44<>"",'Production Cash Flow Analysis'!A92,"") ->  | E44: 0 | F44: 0 | G44: 0
A45: =IF(C45<>"",'Production Cash Flow Analysis'!A93,"") ->  | E45: 0 | F45: 0 | G45: 0
A46: =IF(C46<>"",'Production Cash Flow Analysis'!A94,"") ->  | E46: 0 | F46: 0 | G46: 0
A47: =IF(C47<>"",'Production Cash Flow Analysis'!A95,"") ->  | E47: 0 | F47: 0 | G47: 0
A48: =IF(C48<>"",'Production Cash Flow Analysis'!A96,"") ->  | E48: 0 | F48: 0 | G48: 0
A49: =IF(C49<>"",'Production Cash Flow Analysis'!A97,"") ->  | E49: 0 | F49: 0 | G49: 0
A50: =IF(C50<>"",'Production Cash Flow Analysis'!A98,"") ->  | E50: 0 | F50: 0 | G50: 0
A51: =IF(C51<>"",'Production Cash Flow Analysis'!A99,"") ->  | E51: 0 | F51: 0 | G51: 0
A52: =IF(C52<>"",'Production Cash Flow Analysis'!A100,"") ->  | E52: 0 | F52: 0 | G52: 0
A53: =IF(C53<>"",'Production Cash Flow Analysis'!A101,"") ->  | E53: 0 | F53: 0 | G53: 0
A54: =IF(C54<>"",'Production Cash Flow Analysis'!A102,"") ->  | E54: 0 | F54: 0 | G54: 0
A55: =IF(C55<>"",'Production Cash Flow Analysis'!A103,"") ->  | E55: 0 | F55: 0 | G55: 0
A56: =IF(C56<>"",'Production Cash Flow Analysis'!A104,"") ->  | E56: 0 | F56: 0 | G56: 0

Sheet Capital Costs
B2: Capital Costs
C4: Color Key
B8: Note: Capital and operating costs for compression, storage, and dispensing can be entered on the "Input Sheet Template" or click the link button to automatically calculate optimized storage and dispensing values on the "Refueling Station" sheet.
B9: Basis year for capital costs | C9: =BasisYear_production -> 2005
B10: Current year for capital costs | C10: =CurrentYear -> 2010
B11: ="CEPCI Inflator (" & BasisYear_production & " to " & CurrentYear & ")" -> CEPCI Inflator (2005 to 2010) | C11: =VLOOKUP(CurrentYear,Tbl_PlantCostIndexes,2,FALSE)/VLOOKUP(BasisYear_production,Tbl_PlantCostIndexes,2,FALSE) -> 1.176420333
B12: ="Consumer Price Inflator (" & CurrentYear & " to " & ref_year & ")" -> Consumer Price Inflator (2010 to 2016) | C12: =VLOOKUP(ref_year,DeflatorTable,2,FALSE)/VLOOKUP(CurrentYear,DeflatorTable,2,FALSE) -> 1.100724187
B15: ="PRODUCTION UNIT CAPITAL INVESTMENT (Inputs REQUIRED in basis year, (" & BasisYear_production & ") $)" -> PRODUCTION UNIT CAPITAL INVESTMENT (Inputs REQUIRED in basis year, (2005) $)
B16: Major pieces/systems of equipment | C16: ="Baseline Uninstalled Costs $" & BasisYear_production & " Dollars" -> Baseline Uninstalled Costs $2005 Dollars | D16: ="Baseline Uninstalled Costs $"&ref_year&" Dollars" -> Baseline Uninstalled Costs $2016 Dollars | E16: Installation Cost Factor | F16: Baseline Installed Costs | G16: Comments | H16: Data Source
D17: =CEPCInflator_production*CPIinflator_production*C17 -> 0 | F17: =$D17*$E17 -> 0 | G17: used CPI indexes to escalate from 2005 to 2007 dollars | H17: Using AACE* cost categories for a “>150psi, >400F Gas Process”: Installation Costs (% of total direct uninstalled capital) Sales tax: 5% Typical state sales tax Shipping: 1% Based on actual low-rider coast-to-coast transport of single large load Insurance: 1% Shipping insurance estimate Setting: 10% One half of AACE generic recommended value due to Nth plant considerations. Total Installation: 17% of total direct uninstalled capital
D18: 0 | F18: =$D18*$E18 -> 0
D19: 0 | F19: 0
D20: 0 | F20: 0
D21: 0 | F21: 0
D22: 0 | F22: 0
D23: 0 | F23: 0
D24: 0 | F24: 0
D25: 0 | F25: 0
D26: 0 | F26: 0
D27: 0 | F27: 0
D28: 0 | F28: 0
D29: 0 | F29: 0
D30: 0 | F30: 0
D31: 0 | F31: 0
D32: 0 | F32: 0
D33: 0 | F33: 0
D34: 0 | F34: 0
D35: 0 | F35: 0
D36: 0 | F36: 0
D37: 0 | F37: 0
D38: 0 | F38: 0
B39: TOTALS | C39: =SUM(C17:C38) -> 0 | D39: =SUM(D17:D38) -> 0 | F39: =SUM(F17:F38) -> 0
B61: X = design capacity/115 (kg/day) | C61: =design_cap/115 -> 13.04347826
B62: N (see above) = | C62: 6.644
B63: PSA uninstalled cost (Q100) = | C63: =2*20212*C61^0.4569*0.96^C62+2*1813*C61*0.92^C62+2*14000*C61^0.4*0.96^C62+2*12000*C61^0.4*0.96^C62 -> 237584.4501
B64: bed volume (L) | C64: =C61*623 -> 8126.086957

Sheet Plant Scaling
B1: leave this sheet as is for scaled costs
B2: Plant Scaling Factors
B3: Baseline Design Capacity (kg H2/day) | C3: 1500 | D3: Design capacity for original H2A case. Imported from capital cost input sheet
B4: Scale Ratio | C4: =design_cap/Baseline_Design_Capacity -> 1 | D4: Ratio of new design capacity (enter on Input Sheet) to the Baseline Design Capacity. Used for linear scaling
B5: Scale Factor | C5: =$G$35/Det_direct_cap ->  | D5: Ratio of total scaled installed capital capital cost to total baseline installed capital costs. Used for exponential scaling.
B6: Default Scaling Factor Exponent | C6: 0.6 | D6: Scaling factor exponent used for scaling all capital equipment where an individual factor has not been entered below.
B7: Lower Limit for Scaling Capacity (kg H2/day) | C7: 500
B8: Upper Limit for Scaling Capacity (kg H2/day) | C8: 6000
B11: ="CAPITAL INVESTMENT (Inputs REQUIRED in Reference Year, (" & ref_year & ") $)" -> CAPITAL INVESTMENT (Inputs REQUIRED in Reference Year, (2016) $)
B12: Major pieces/systems of equipment | C12: Baseline Uninstalled Costs | D12: Scaling Factor Exponent | E12: Scaled Uninstalled Costs | F12: Installation Cost Factor | G12: Installed Cost (scaled) | H12: Installed Cost (baseline) | I12: Comments | J12: Data Source
B13: ='Capital Costs'!B17 -> 0 | C13: ='Capital Costs'!D17 -> 0 | E13: =IF($D13="",$C13*Scale_Ratio^Scaling_Factor_Exponent,$C13*Scale_Ratio^$D13) -> 0 | F13: ='Capital Costs'!E17 -> 0 | G13: =$E13*$F13 -> 0 | H13: =C13*F13 -> 0
B14: ='Capital Costs'!B18 -> 0 | C14: ='Capital Costs'!D18 -> 0 | E14: 0 | F14: ='Capital Costs'!E18 -> 0 | G14: =$E14*$F14 -> 0 | H14: =C14*F14 -> 0
B15: ='Capital Costs'!B19 -> 0 | C15: ='Capital Costs'!D19 -> 0 | E15: 0 | F15: ='Capital Costs'!E19 -> 0 | G15: 0 | H15: 0
B16: ='Capital Costs'!B20 -> 0 | C16: ='Capital Costs'!D20 -> 0 | E16: 0 | F16: ='Capital Costs'!E20 -> 0 | G16: 0 | H16: 0
B17: ='Capital Costs'!B21 -> 0 | C17: ='Capital Costs'!D21 -> 0 | E17: 0 | F17: ='Capital Costs'!E21 -> 0 | G17: 0 | H17: 0
B18: ='Capital Costs'!B22 -> 0 | C18: ='Capital Costs'!D22 -> 0 | E18: 0 | F18: ='Capital Costs'!E22 -> 0 | G18: 0 | H18: 0
B19: ='Capital Costs'!B23 -> 0 | C19: ='Capital Costs'!D23 -> 0 | E19: 0 | F19: ='Capital Costs'!E23 -> 0 | G19: 0 | H19: 0
B20: ='Capital Costs'!B24 -> 0 | C20: ='Capital Costs'!D24 -> 0 | E20: 0 | F20: ='Capital Costs'!E24 -> 0 | G20: 0 | H20: 0
B21: ='Capital Costs'!B25 -> 0 | C21: ='Capital Costs'!D25 -> 0 | E21: 0 | F21: ='Capital Costs'!E25 -> 0 | G21: 0 | H21: 0
B22: ='Capital Costs'!B26 -> 0 | C22: ='Capital Costs'!D26 -> 0 | E22: 0 | F22: ='Capital Costs'!E26 -> 0 | G22: 0 | H22: 0
B23: ='Capital Costs'!B27 -> 0 | C23: ='Capital Costs'!D27 -> 0 | E23: 0 | F23: ='Capital Costs'!E27 -> 0 | G23: 0 | H23: 0
B24: ='Capital Costs'!B28 -> 0 | C24: ='Capital Costs'!D28 -> 0 | E24: 0 | F24: ='Capital Costs'!E28 -> 0 | G24: 0 | H24: 0
B25: ='Capital Costs'!B29 -> 0 | C25: ='Capital Costs'!D29 -> 0 | E25: 0 | F25: ='Capital Costs'!E29 -> 0 | G25: 0 | H25: 0
B26: ='Capital Costs'!B30 -> 0 | C26: ='Capital Costs'!D30 -> 0 | E26: 0 | F26: ='Capital Costs'!E30 -> 0 | G26: 0 | H26: 0
B27: ='Capital Costs'!B31 -> 0 | C27: ='Capital Costs'!D31 -> 0 | E27: 0 | F27: ='Capital Costs'!E31 -> 0 | G27: 0 | H27: 0
B28: ='Capital Costs'!B32 -> 0 | C28: ='Capital Costs'!D32 -> 0 | E28: 0 | F28: ='Capital Costs'!E32 -> 0 | G28: 0 | H28: 0
B29: ='Capital Costs'!B33 -> 0 | C29: ='Capital Costs'!D33 -> 0 | E29: 0 | F29: ='Capital Costs'!E33 -> 0 | G29: 0 | H29: 0
B30: ='Capital Costs'!B34 -> 0 | C30: ='Capital Costs'!D34 -> 0 | E30: 0 | F30: ='Capital Costs'!E34 -> 0 | G30: 0 | H30: 0
B31: ='Capital Costs'!B35 -> 0 | C31: ='Capital Costs'!D35 -> 0 | E31: 0 | F31: ='Capital Costs'!E35 -> 0 | G31: 0 | H31: 0
B32: ='Capital Costs'!B36 -> 0 | C32: ='Capital Costs'!D36 -> 0 | E32: 0 | F32: ='Capital Costs'!E36 -> 0 | G32: 0 | H32: 0
B33: ='Capital Costs'!B37 -> 0 | C33: ='Capital Costs'!D37 -> 0 | E33: 0 | F33: ='Capital Costs'!E37 -> 0 | G33: 0 | H33: 0
B34: ='Capital Costs'!B38 -> 0 | C34: ='Capital Costs'!D38 -> 0 | E34: 0 | F34: ='Capital Costs'!E38 -> 0 | G34: 0 | H34: 0
B35: TOTALS (including scaling) | C35: =SUM(C13:C34) -> 0 | E35: =SUM(E13:E34) -> 0 | G35: =SUM(G13:G34) -> 0 | H35: =SUM(H13:H34) -> 0
B38: Plant Scaling Method | C38: Variable Name | D38: Select Method | E38: Scaling Value | F38: ="Reference Year (" & ref_year & ") Escalation" -> Reference Year (2016) Escalation | G38: Combined Multiplier | H38: Notes
B39: Engineering & design ($) | C39: Engin | D39: Use Scale Factor | E39: =VLOOKUP(D39,Scaling_validation_Lookup,2,FALSE) ->  | F39: =CPIinflator_production*CEPCInflator_production -> 1.294914314 | G39: =E39*F39 ->  | H39: =C39&"_multiplier" -> Engin_multiplier
B40: Site Preparation ($) | C40: Site_prep | D40: Use Scale Factor | F40: 1.294914314 | G40: =E40*F40 ->  | H40: =C40&"_multiplier" -> Site_prep_multiplier
B41: Process contingency ($) | C41: Process_cont | D41: Use Scale Factor | F41: 1.294914314 | H41: Process_cont_multiplier
B42: Project contingency ($) | C42: Project_cont | D42: Skip | E42: 1 | F42: 1.294914314 | G42: 1.294914314 | H42: Project_cont_multiplier
B43: One-time Licensing Fees ($) | C43: Fees | D43: Use Scale Factor | F43: 1.294914314 | H43: Fees_multiplier
B44: Other (Depreciable) capital ($) | C44: Other_indirect | D44: Use Scale Factor | F44: 1.294914314 | H44: Other_indirect_multiplier
B45: Up-Front Permitting Costs ($) | C45: Permitting | D45: Use Scale Factor | F45: 1.294914314 | H45: Permitting_multiplier
B46: Cost of Land ($/acre) | C46: acre_cost | D46: Use Baseline Value | E46: 1 | F46: =CPIinflator_production -> 1.100724187 | G46: 1.100724187 | H46: acre_cost_multiplier
B47: Land required (acres) | C47: acres | D47: Use Scale Factor | F47: 1 | H47: acres_multiplier
B48: Other non-depreciable costs ($) | C48: Other_non_depr | D48: Use Scale Factor | F48: 1 | G48: =E48*F48 ->  | H48: Other_non_depr_multiplier
B49: Total plant staff (number of FTEs employed by plant) | C49: FTEs | D49: 0.25 | E49: 1 | F49: 1 | G49: 1 | H49: FTEs_multiplier
B50: Burdened labor cost, including overhead ($/man-hr) | C50: FTE_cost | D50: Use Baseline Value | E50: 1 | F50: =VLOOKUP(ref_year,Tbl_labor_indexes,2,FALSE)/VLOOKUP(BasisYear_production,Tbl_labor_indexes,2,FALSE) -> 1.15480427 | G50: 1.15480427 | H50: FTE_cost_multiplier
B51: Licensing, Permits and Fees ($/year) | C51: licensing | D51: Use Scale Factor | F51: =CPIinflator_production*CEPCInflator_production -> 1.294914314 | H51: licensing_multiplier
B52: Rent ($/year) | C52: rent | D52: Use Scale Ratio | E52: 1 | F52: =CPIinflator_production -> 1.100724187 | G52: 1.100724187 | H52: rent_multiplier
B53: Material costs for maintenance and repairs ($/year) | C53: material | D53: Skip | E53: 1 | F53: =CEPCInflator_production*CPIinflator_production -> 1.294914314 | G53: 1.294914314 | H53: material_multiplier
B54: Production Maintenance and Repairs ($/year) | C54: prod_maint | D54: Skip | E54: 1 | F54: =CEPCInflator_production*CPIinflator_production -> 1.294914314 | G54: 1.294914314 | H54: prod_maint_multiplier
B55: Other Fees ($/year) | C55: other_fees | D55: Use Scale Ratio | E55: 1 | F55: =CEPCInflator_production*CPIinflator_production -> 1.294914314 | G55: 1.294914314 | H55: other_fees_multiplier
B56: Other Fixed O&M Costs ($/year) | C56: other_fixed | D56: Use Scale Factor | F56: =CEPCInflator_production*CPIinflator_production -> 1.294914314 | H56: other_fixed_multiplier
B57: Other variable operating costs ($/year) | C57: var_misc | D57: Use Scale Ratio | E57: 1 | F57: =VLOOKUP(ref_year,Chemical_price_indexes,2,FALSE)/VLOOKUP(BasisYear_production,Chemical_price_indexes,2,FALSE) -> 1.426054458 | G57: 1.426054458 | H57: var_misc_multiplier
B58: Other Material Costs ($/year) | C58: total_other_raw | D58: Use Scale Ratio | E58: 1 | F58: =VLOOKUP(ref_year,Chemical_price_indexes,2,FALSE)/VLOOKUP(BasisYear_production,Chemical_price_indexes,2,FALSE) -> 1.426054458 | G58: =E58*F58 -> 1.426054458 | H58: total_other_raw_multiplier
B59: Waste treatment costs ($/year) | C59: waste_treat | D59: Use Scale Ratio | E59: 1 | F59: =VLOOKUP(ref_year,Chemical_price_indexes,2,FALSE)/VLOOKUP(BasisYear_production,Chemical_price_indexes,2,FALSE) -> 1.426054458 | G59: 1.426054458 | H59: waste_treat_multiplier
B60: Solid waste disposal costs ($/year) | C60: solidwaste_treat | D60: Use Scale Ratio | E60: 1 | F60: =VLOOKUP(ref_year,Chemical_price_indexes,2,FALSE)/VLOOKUP(BasisYear_production,Chemical_price_indexes,2,FALSE) -> 1.426054458 | G60: 1.426054458 | H60: solidwaste_treat_multiplier
B61: Royalties ($/year) | C61: royalties | D61: Use Scale Ratio | E61: 1 | F61: =CPIinflator_production -> 1.100724187 | G61: 1.100724187 | H61: royalties_multiplier
B62: Operator Profit ($/year) | C62: operator_profit | D62: Use Scale Ratio | E62: 1 | F62: =CPIinflator_production -> 1.100724187 | G62: 1.100724187 | H62: operator_profit_multiplier
B63: Subsidies, Tax Incentives ($/year) | C63: tax_credit | D63: Use Scale Ratio | E63: 1 | F63: =CPIinflator_production -> 1.100724187 | G63: 1.100724187 | H63: tax_credit_multiplier

Sheet Refueling Station - GH2
A2: The refueling station in this tab takes gaseous H2 from either a gaseous-truck or a pipeline. The average capacity can be varied up to 6000 kg/day, and the capital, fixed and operating costs will be varied accordingly. This tab includes storage, dispensing and compression. | F2: COLOR CODING
G3: = Calculated Cells (do not change formulas)
G4: = Input Required; Input Used in Revenue Calculation
G5: = Input Required via Pull-Down Menu
G6: = Optional Input; Input NOT Used in Revenue Calculation
G7: = Information Cells
A9: Unless noted otherwise, data sources can be found in the report: "H2A Hydrogen Delivery Infrastructure Analysis Models and Conventional Pathway Options Analysis Results" http://www.hydrogen.energy.gov/systems_analysis.html
A11: Calculation Outputs (Be sure ALL data is entered before checking) | I11: GH2 Refueling Station Energy Use | L11: GH2 Refueling Station Emissions
B12: Components | I12: On-Site Energy Use [MJ / MJ H2 out] | J12: Upstream Energy Use [MJ / MJ H2 out] | K12: Total Energy Use [MJ / MJ H2 out] | L12: Onsite Emissions [g / MJ H2 out] | M12: Upstream Emissions [g / MJ H2 out] | N12: Total Emissions [g / MJ H2 out]
A13: Results | B13: Compressor | C13: Storage | D13: Dispenser | E13: Refrigeration | F13: Remainder of Station | G13: Total | I13: =G19/(('HyARC Physical Property Data'!C7*'Constants and Conversions'!B29/(1000*ncf_to_Nm3))*1000/('HyARC Physical Property Data'!K7/ncf_to_Nm3)) -> 0.1287419627 | J13: =IF($B$126=2005,IF($B$124="U.S. Average Mix",I13*'HyARC Physical Property Data'!C139/1000000,"N/A"),IF($B$126=2020,IF($B$124="U.S. Average Mix",I13*'HyARC Physical Property Data'!#REF!/1000000,"N/A"),"N/A")) -> 0.1406634684 | K13: =I13+J13 -> 0.2694054311 | L13: 0 | M13: =IF($B$126=2005,IF($B$124="U.S. Average Mix",$I$13*'HyARC Physical Property Data'!F139,"N/A"),IF($B$126=2020,IF($B$124="U.S. Average Mix",$I$13*'HyARC Physical Property Data'!#REF!,"N/A"))) -> 0.74435513 | N13: =L13+M13 -> 0.74435513 | O13: CO2
A14: ="Gaseous Refueling Station Portion of the Delivered Real Levelized Hydrogen Cost ($("&TEXT(ref_year,"0")&")/kg of Hydrogen)" -> Gaseous Refueling Station Portion of the Delivered Real Levelized Hydrogen Cost ($(2016)/kg of Hydrogen) | B14: =B420 -> 1.004551812 | C14: =B427 -> 0.9767460907 | D14: =B434 -> 0.1636136737 | E14: =B441 -> 0.09752176896 | F14: =B448 -> 0.2181890765 | G14: =SUM(B14:F14) -> 2.460622422 | L14: 0 | M14: =IF($B$126=2005,IF($B$124="U.S. Average Mix",$I$13*'HyARC Physical Property Data'!G139,"N/A"),IF($B$126=2020,IF($B$124="U.S. Average Mix",$I$13*'HyARC Physical Property Data'!#REF!,"N/A"))) -> 0.02377104473 | N14: =L14+M14 -> 0.02377104473 | O14: CH4
A15: ="Capital Cost Contribution to the Gaseous Refueling Station Portion of the Delivered Real Levelized Hydrogen Cost ($("&TEXT(ref_year,"0")&")/kg of Hydrogen)" -> Capital Cost Contribution to the Gaseous Refueling Station Portion of the Delivered Real Levelized Hydrogen Cost ($(2016)/kg of Hydrogen) | B15: =B415*B396/B193 -> 0.4217032972 | C15: =B422*B400/B193 -> 0.7492856764 | D15: =B429*B404/B193 -> 0.1404500463 | E15: =B436*B408/NetH_ForeC -> 0.05840997725 | F15: =B443*B412/B193 -> 0.03499556335 | G15: =SUM(B15:F15) -> 1.404844561 | L15: 0 | M15: =IF($B$126=2005,IF($B$124="U.S. Average Mix",$I$13*'HyARC Physical Property Data'!H139,"N/A"),IF($B$126=2020,IF($B$124="U.S. Average Mix",$I$13*'HyARC Physical Property Data'!#REF!,"N/A"))) -> 0.0001109446737 | N15: =L15+M15 -> 0.0001109446737 | O15: N2O
A16: ="Energy/Fuel Contribution to the Gaseous Refueling Station Portion of the Delivered Real Levelized Hydrogen Cost ($("&TEXT(ref_year,"0")&")/kg of Hydrogen)" -> Energy/Fuel Contribution to the Gaseous Refueling Station Portion of the Delivered Real Levelized Hydrogen Cost ($(2016)/kg of Hydrogen) | B16: =B416/B193 -> 0.4632201896 | C16: 0 | D16: 0 | E16: =B437/B193 -> 0.02499766141 | F16: =B444/B193 -> 0 | G16: =SUM(B16:F16) -> 0.488217851 | L16: =L13+23*L14+296*L15 -> 0 | M16: =M13+23*M14+296*M15 -> 1.323928782 | N16: =L16+M16 -> 1.323928782 | O16: GHGs
A17: ="Other Cost Contribution to the Gaseous Refueling Station Portion of the Delivered Real Levelized Hydrogen Cost ($("&TEXT(ref_year,"0")&")/kg of Hydrogen)" -> Other Cost Contribution to the Gaseous Refueling Station Portion of the Delivered Real Levelized Hydrogen Cost ($(2016)/kg of Hydrogen) | B17: =SUM(B417:B418)/B193 -> 0.1196283249 | C17: =SUM(B424:B425)/B193 -> 0.2274604142 | D17: =SUM(B431:B432)/B193 -> 0.02316362741 | E17: =(B438+B439)/B193 -> 0.01411413031 | F17: =SUM(B445:B446)/B193 -> 0.1831935132 | G17: =SUM(B17:F17) -> 0.56756001
A18: Mass Efficiency (H2 out/H2 in) | B18: =1-B122 -> 0.9999982924 | C18: - | D18: - | E18: - | F18: - | G18: =B18 -> 0.9999982924
A19: System Energy Use (MJ/kg of H2 out) | B19: =B360/8760/(1000*(B193/8760/60/60)) -> 15.47564179 | C19: - | D19: - | E19: =(B359)/8760/(1000*(B193/8760/60/60)) -> 0.8351424703 | F19: - | G19: =B19 -> 15.47564179
A20: System Energy Efficiency, LHV (%, H2 out/(H2 in + Energy/Fuel Use)) | B20: - | C20: - | D20: - | E20: - | F20: - | G20: =(B193*('HyARC Physical Property Data'!C7*'Constants and Conversions'!B29/(1000*ncf_to_Nm3))/0.08988)/(((B193/(1-B122)*('HyARC Physical Property Data'!C7*'Constants and Conversions'!B29/(1000*ncf_to_Nm3))/0.08988))+(G19*B193)) -> 0.8859434391
A21: Real After-Tax IRR (%) | B21: - | C21: - | D21: - | E21: - | F21: - | G21: =B267 -> 0.08
A22: Land Area (m2) | B22: - | C22: - | D22: - | E22: - | F22: - | G22: =B329 -> 747.794482
A23: =IF(AND(A24="",A25="",A26="",A27="",A28="",A29="",A30=""),"THERE ARE NO ERRORS PRESENT ON THIS SHEET","") -> THERE ARE NO ERRORS PRESENT ON THIS SHEET
A24: =IF(OR(D37<>""),"Please see the error message to the right of the Refueling Station Definition table, and make appropriate changes","") -> 
A25: =IF(OR(G51<>"",G52<>"",G53<>"",G54<>"",G55<>"",G56<>"",G57<>"",G58<>"",G59<>"",G61<>"",G62<>"",G65<>"",G66<>"",G69<>"",G70<>"",G72<>"",G73<>"",G76<>""),"ERROR: Please check the error messages to the right of the top half of the Refueling Station Design Inputs table and fix the appropriate row.","") -> 
A26: =IF(OR(G76<>"",G77<>"",G78<>"",G81<>"",G83<>"",G84<>"",G85<>"",G86<>"",G89<>"",G90<>"",G91<>"",G115<>"",G114<>"",G118<>"",G117<>"",G120<>"",G121<>"",G122<>"",G123<>""),"ERROR: Please check the error messages to the right of the bottom half of the Refueling Station Design Inputs table and fix the appropriate row.","") -> 
A27: =IF(OR(G125<>"",G135<>"",G137<>"",G138<>"",G139<>"",G140<>"",G141<>"",G142<>"",G144<>"",G145<>"",G146<>"",G147<>"",G148<>"",G149<>"",G150<>"",G151<>"",G152<>"",G153<>"",G154<>"",G155<>""),"ERROR: Please check the error messages to the right of the Refueling Station Scenario Inputs table and fix the appropriate row.","") -> 
A28: =IF(OR(G267<>"",G268<>"",G271<>"",G273<>"",G274<>"",G278<>"",G279<>"",G280<>"",G281<>"",G282<>"",G283<>"",G286<>""),"ERROR: Please check the error messages to the right of the Economic Assumptions table and fix the appropriate row.","") -> 
A29: =IF(OR(F332<>"",F334<>"",F336<>"",F338<>"",F340<>""),"ERROR: Please check the error messages to the right of the table located below the Capital Investments table.","") -> 
A30: =IF(OR(G353<>"",G363<>"",G365<>"",G367<>"",G369<>"",G371<>"",G372<>"",G375<>"",G378<>""),"ERROR: Please check the error messages to the right of the Fixed O&M Costs table and fix the appropriate row.","") -> 
A32: Refueling Station Definition
A33: Description | B33: Value | C33: Information
A34: Select Mechanism of Delivery for the Gaseous Hydrogen | B34: onsite production | C34: Please use the pull-down menu to select gaseous - truck or onsite production.
A35: Vehicle Maximum Pressure (bar) | B35: 700
A36: Dispensing Components | B36: Booster Compressor
A37: Average Daily Capacity of Hydrogen Refueling Station (kg/day) | B37: =ROUNDUP(YearlyDispensing,0) -> 1329 | C37: Value input on main input sheet | D37: =IF(B37="","ERROR: Input required","") -> 
A38: Precooling Technology | B38: Thermal Buffering
A39: Utilization of H2 stations full capacity (% of total number of H2 stations) | B39: 1
A41: Basis year for capital costs | B41: 2007
A42: Current year for capital costs | B42: =CurrentYear -> 2010
A43: ="CEPCI Inflator (" & BasisYear_refueling & " to " & CurrentYear & ")" -> CEPCI Inflator (2007 to 2010) | B43: =VLOOKUP(CurrentYear,Tbl_PlantCostIndexes,2,FALSE)/VLOOKUP(BasisYear_refueling,Tbl_PlantCostIndexes,2,FALSE) -> 1.048344119
A44: ="Consumer Price Inflator (" & CurrentYear & " to " & ref_year &")" -> Consumer Price Inflator (2010 to 2016) | B44: =VLOOKUP(ref_year,DeflatorTable,2,FALSE)/VLOOKUP(CurrentYear,DeflatorTable,2,FALSE) -> 1.100724187
A45: Basis year conversion for calculated values | B45: =VLOOKUP(BasisYear_refueling,DeflatorTable,2,FALSE)/VLOOKUP(2007,DeflatorTable,2,FALSE) -> 1
A48: Refueling Station Design Inputs | H48: Leak Rate Allowance Estimate Table
A49: Design Input | B49: Value | C49: Comments | E49: Data Source | F49: Information | H49: Design Input | I49: Value | J49: Units | K49: Data Source
A50: =IF(B34="gaseous - truck","Determine GH2 Truck Capacity Based on Tube Water Volume and Pressures?","") ->  | B50: no | F50: =IF(B34="gaseous - truck","Please use the pull-down menu to the right of the value cell to enter yes or no. If 'no' is selected, input is required in " & CELL("address", B56) & ".","Entry only required if " & CELL("address", B34) & " = gaseous - truck") -> Entry only required if $B$34 = gaseous - truck | H50: Per-fitting limit | I50: 0.17 | J50: cc/min | K50: NFPA 2
A51: =IF(B34="gaseous - truck","Maximum Pressure in the Tube Trailer (atm)","") ->  | B51: 250 | F51: =IF(B34="gaseous - truck","","No input required") -> No input required | G51: =IF(AND($B$34="gaseous - truck",B51=""),"ERROR: Input required","") ->  | H51: Number of fittings | I51: 100
A52: =IF(B34="gaseous - truck","Minimum Pressure in the Tube Trailer (atm)","") ->  | B52: 50 | F52: =IF(B34="gaseous - truck","","No input required") -> No input required | G52: =IF(AND($B$34="gaseous - truck",B52=""),"ERROR: Input required","") ->  | H52: Volumetric flow | I52: =+I50*I51 -> 17 | J52: cc/min
A53: =IF(AND(B50="yes",B34="gaseous - truck"),"Number of Tubes","") ->  | B53: 9 | F53: =IF(B34="gaseous - truck","","No input required") -> No input required | G53: =IF(AND($B$34="gaseous - truck",B51="",$B$50="yes"),"ERROR: Input required","") -> 
A54: =IF(AND(B50="yes",B34="gaseous - truck"),"Tube Water Volume (m3)","") ->  | B54: =IF(B51=540, 36.222/B53,IF(B51=350,40.982/B53,43.872/B53)) -> 4.874666667 | F54: =IF(B34="gaseous - truck","","No input required") -> No input required | G54: =IF(AND($B$34="gaseous - truck",B52="",$B$50="yes"),"ERROR: Input required","") ->  | H54: STP temperature | I54: 273.14 | J54: K
A55: =IF(AND(B50="yes",B34="gaseous - truck"),"Tube Operating Temperature (degrees C)","") ->  | B55: 25 | F55: =IF(B34="gaseous - truck","","No input required") -> No input required | G55: =IF(AND($B$34="gaseous - truck",B53="",$B$50="yes"),"ERROR: Input required","") ->  | H55: STP pressure | I55: 101325 | J55: P
A56: =IF(AND(B50="no",B34="gaseous - truck"),"Enter Hydrogen Tube Trailer Capacity (kg)","") ->  | B56: 500 | F56: =IF(AND(B34="gaseous - truck",B50="no"),"","No input required") -> No input required | G56: =IF(AND($B$34="gaseous - truck",B54="",$B$50="no"),"ERROR: Input required","") ->  | H56: H2 MW | I56: =1.00794*2/1000 -> 0.00201588 | J56: kg/mol
A57: =IF(B34="onsite production","Pressure of Hydrogen Delivered to Refueling Station (atm)","") -> Pressure of Hydrogen Delivered to Refueling Station (atm) | B57: 20 | C57: =IF(B34="onsite production","Assumed to be 300 psig for the pipeline","") -> Assumed to be 300 psig for the pipeline | F57: ="Entry only required if " & CELL("address", B34) & " = onsite production" -> Entry only required if $B$34 = onsite production | G57: =IF(AND($B$34="onsite production",B57=""),"ERROR: Input required","") -> 
A58: Dispensing Pressure (atm) | B58: =B92 -> 499.7125058 | G58: =IF(B58="","ERROR: Input required","") ->  | H58: Mass density | I58: =I55/8.314/I54/(100)^3*I56 -> 8.994685096e-08 | J58: kg/cc
A59: Hydrogen Temperature at the Station (degrees C) | B59: 25 | C59: Approximately ambient temperature | G59: =IF(B59="","ERROR: Input required","") ->  | H59: Mole density | I59: =I55/8.314/I54/(100)^3 -> 4.461914944e-05 | J59: mol/cc
A60: High Pressure Cascade Storage Vessel
A61: Maximum Pressure (psia) | B61: =IF(B36="Cascade",B35*14.5*1.25+1000,350*14.5*1.25+1000) -> 7343.75 | G61: =IF(B61="","ERROR: Input required","") ->  | H61: Heat of combustion | I61: 286000 | J61: J/mol, HHV
A62: Minimum Pressure (psia) | B62: =IF(OR(B36="Booster Compressor",B35=350),B61*0.85,B61*0.85) -> 6242.1875 | G62: =IF(B62="","ERROR: Input required","") -> 
A63: Number of vessels in high-pressure bank | B63: 1
A64: Medium Pressure Cascade Storage Vessel | H64: Leak enthalpy flow | I64: =I52*I59*I61/60 -> 3.615638409 | J64: W HHV
A65: Maximum Pressure (psia) | B65: =IF(B36="Cascade",B35*14.5*1.25+1000,350*14.5*1.25+1000) -> 7343.75 | G65: =IF(B65="","ERROR: Input required","") ->  | H65: Leak rate | I65: =I52*I58*60*24 -> 0.002201898912 | J65: kg/day
A66: Minimum Pressure (psia) | B66: =IF(OR(B36="Booster Compressor",B35=350),0.65*B65,0.65*B65) -> 4773.4375 | G66: =IF(B66="","ERROR: Input required","") ->  | H66: Leak rate | I66: =+I65/(output_kgyear/365) -> 1.707555883e-06 | J66: % of production
A67: Number of vessels in med-pressure bank | B67: 2
A68: Low Pressure Cascade Storage Vessel
A69: Maximum Pressure (psia) | B69: =IF(B36="Cascade",B35*14.5*1.25+1000,350*14.5*1.25+1000) -> 7343.75 | G69: =IF(B69="","ERROR: Input required","") -> 
A70: Minimum Pressure (psia) | B70: =IF(OR(B36="Booster Compressor",B35=350),B69*0.35,B69*0.35) -> 2570.3125
A71: Number of vessels in low-pressure bank | B71: 2
A72: Vehicle Tank maximum pressure at end of cascade dispensing [psia] | B72: =IF(B36="Cascade",B35*14.5*1.25,350*14.5*1.25/2) -> 3171.875
A73: Vehicle fill time (min) | B73: 5
A74: =IF(B36="Cascade","Vehicle fill time through cascade (min)","") ->  | B74: =IF(B36="Cascade",B73,B73-B76) -> 3
A75: =IF(B36="Cascade","","Vehicle fill time through booster compressor (min)") -> Vehicle fill time through booster compressor (min) | B75: =IF(B36="Cascade","",2) -> 2
A76: Vehicle Lingering time (min) | B76: 2
A77: Hoses per dispenser | B77: 1
A78: Maximum Dispensed Amount per Vehicle (kg) | B78: 5
A79: Compressor Discharge Temperature Before Intercooling (C) | B79: 150
A80: Maximum vehicle tank temperature (C) | B80: 85
A81: Scaling daily demand profile as % of Chevron peak above average | B81: 1
A82: Average Hose Occupied Fraction (HOF) During Peak Hour | B82: 0.5
A83: Maximum Hose Occupied Fraction (HOF) During Peak Hour | B83: 1
A84: =IF(B34="onsite production","Maximum Low Pressure Storage Pressure (atm)","") -> Maximum Low Pressure Storage Pressure (atm) | B84: =IF(B34="onsite production",250,"N/A") -> 250 | C84: Approximately 2500 psia. Storage at this pressure was found to be more economical
A85: =IF(B34="onsite production","Minimum Low Pressure Storage Pressure (atm)","") -> Minimum Low Pressure Storage Pressure (atm) | B85: =IF(B34="onsite production",20,"N/A") -> 20 | C85: Assumption that tank can never be "completely" emptied. 15 atm corresponds to ~200 psia.
A86: Operating Storage Temperature at the Station (degrees C) | B86: 25
A87: Aluminum Specific Heat Cp (kJ/kg*K) | B87: 0.834 | C87: Average value of Aluminum Cp at -40C
A88: Hydrogen Specific Heat Cp (kJ/kg*K) | B88: 14.7 | C88: Average value of Cp at 35C and -40C between 20 bar to 850 bar
A89: Cp/Cv ratio | B89: 1.42 | C89: Value for hydrogen
A90: Enter Number of Installed Compressors | B90: 2 | F90: Often times, an extra compressor is purchased and installed so that the system can operate at a higher availability. For example, if two compressors, each designed at 50% of the design flowrate, were installed, and one of those compressors went down, then the system would only be able to operate at 50% capacity.
A91: Enter Number of Compressors in Operation at Any Time | B91: 2 | C91: 2 compressors are in operation at any one time. | F91: Enter the number of required compressors, entered in the row above, that are operating at any given time.
A92: Main Compressor Discharge Pressure (atm) | B92: =B61/14.69595 -> 499.7125058 | C92: Corresponds to a dispensing pressure | H92: ="Steady State COP at " & B95 &"C" -> Steady State COP at -40C | I92: =(B95-10+273)/((B93+10+273)-(B95-10+273)) -> 2.534090909
A93: Temperature used for COP calculation(degrees C) | B93: 28 | H93: Steady State COP at 4C | I93: =(4-10+273)/((B93+10+273)-(4-10+273)) -> 6.068181818
A94: Maximum hydrogen temperature at the station (degrees C) | B94: 40 | H94: Transient degradation coef. | I94: 0.9 | J94: =I92*I94/I93 -> 0.3758426966 | K94: COP at -40C as a % of COP at 4C (actual COP at 4C is about 3.0)
A95: Max dispensing Temperature (degree C) | B95: =IF(B35=350,-20,-40) -> -40
A96: Number of Booster Compressors | B96: =IF(OR(B36="Cascade",B35=350),0,B173*2) -> 6
A97: Booster Compressor Discharge Pressure (atm) | B97: =B35*14.5/14.69595*1.25+25 -> 888.3330952
A98: Booster Compressor Flow rate (kg/min) | B98: =IF(OR(B36="Cascade",B35=350),0,0.7) -> 0.7
A99: Number of Refrigeration Units | B99: =IF(B35=350,0,1) -> 1
A100: Max H2 Flow Rate in Refrigeration Unit (kg/min) | B100: 2
A101: Refrigeration Unit Design Temperature (degree C) | B101: 35
A102: Capacity of Refrigeration Unit (ton) | B102: =IF(B38="Thermal Buffering",(MAX((B78*B88*(B101-B95)*B111-B177*B87*B110)/((B111*(B76+B74))*60),B177*B110*B87/((60-B111*(B74+B76))*60))+50/24)*3412/12000,B175) -> 5.236472222
A103: Refrigeration Unit COP | B103: =3*J94 -> 1.12752809
A104: Booster Compressor Average Inlet Pressure (atm) | B104: 350
A105: Booster compressor throughput [kg/min] | B105: 0.7
A106: Booster Compressor Shaft Specific Power (kWh/kg) | B106: =B166*B155/2.0158*(B86+273.15)*(B89/(B89-1))*((B97/B104)^((B89-1)/B89)-1)/(IF(B116="yes",B117,B118))/3600 -> 0.3745131376
A107: Booster Compressor Shaft Power (kW) | B107: =B106*B78/B73*60 -> 22.47078825
A108: Refrigeration Specific Electricity Use (kWh/kg) | B108: =B89/(B89-1)*(8.315/2)*(B86-B95)/3600/B103 -> 0.2250892725
A109: Overhead precooling energy per day (kWh/kg) | B109: =50*(1.1*B300)/B37/B103 -> 0.03670374157
A110: Allowed temperature rise of cooling block above -40C (C) | B110: 5
A111: Maximum number of back-to-back fills per hose | B111: =ROUNDUP(B172/B173,0) -> 9
A112: Additional Backup Compressors | B112: 0
A113: Design Refueling Station Compressor Based on Compression Ratio per Stage? | B113: no | F113: ="Please select yes or no from the pull-down to the right of the value cell. If yes entered, number of compression stages are calculated using the compression ratio. Otherwise, the number of stages is a required entry in " & CELL("address", B115) & "." -> Please select yes or no from the pull-down to the right of the value cell. If yes entered, number of compression stages are calculated using the compression ratio. Otherwise, the number of stages is a required entry in $B$115.
A114: =IF(B113="yes", "Enter Compression Ratio Per Stage for Refueling Station Compressor","") ->  | F114: The compression ratio is defined as the outlet pressure from a stage divided by the inlet pressure to the same stage. If a multi stage compressor is used, the compression ratio per stage is defined calculated by the following: 10^((log(Outlet P)-log(inlet P))/number of stages). An unreasonable high pressure ratio per stage will cause the interstage temperature to exceed material specifications. | G114: =IF(AND($B$113="yes",B114=""),"ERROR: Input required","") -> 
A115: =IF(B113="no","Number of Compressor Stages for Refueling Station Compressor","") -> Number of Compressor Stages for Refueling Station Compressor | B115: =IF(AND(B35=700,B36="Cascade"),3,2) -> 2 | C115: Number of stages required in a piston compressor specified | F115: ="Entry is only required if " & CELL("address", B113) & " is no." -> Entry is only required if $B$113 is no. | G115: =IF(AND($B$113="no",B115=""),"ERROR: Input required","") -> 
A116: Isentropic Compressor Efficiency Available for Refueling Station Compressor? | B116: yes | F116: ="If the isentropic compressor efficiency is available, the power requirement for the compressor is calculated using first principles. If 'No' is entered, then the user must enter data in " & CELL("address", B118) & "." -> If the isentropic compressor efficiency is available, the power requirement for the compressor is calculated using first principles. If 'No' is entered, then the user must enter data in $B$118.
A117: =IF(B116="yes", "Isentropic Compressor Efficiency for Refueling Station Compressor (%)", "") -> Isentropic Compressor Efficiency for Refueling Station Compressor (%) | B117: 0.75 | F117: Only enter a value in this cell if the Isentropic compressor efficiency is available. | G117: =IF(AND($B$116="yes",B117=""),"ERROR: Input required","") -> 
A118: =IF(B116="yes","","Refueling Station Compressor Efficiency (%)") ->  | F118: ="Entry is only required if " & CELL("address", B116) & " is no." -> Entry is only required if $B$116 is no. | G118: =IF(AND($B$116="no",B118=""),"ERROR: Input required","") -> 
A119: Use Isentropic Compressor Efficiency to Calculate Refueling Station Compressor Power Requirement? | B119: yes | F119: ="Please select yes or no from the pull-down menu. If No is selected, entry is required in " & CELL("address", B120) & "." -> Please select yes or no from the pull-down menu. If No is selected, entry is required in $B$120.
A120: =IF(OR(B119="no",B116="no"), "Please Enter Refueling Station Compressor Power Requirement (kW/(kg of H2/hr))","") ->  | F120: ="Entry is only required if " & CELL("address", B119) & " is no." -> Entry is only required if $B$119 is no. | G120: =IF(AND(B119="no",B120=""),"ERROR: Input required","") -> 
A121: Compressor Motor Sizing Factor+ | B121: 1.1 | C121: Base case value is 110% based on typical industrial practices | F121: =IF(B48="pipeline","No entry is required","Enter the factor, in percentage form, that is required to size the compressor motor.") -> Enter the factor, in percentage form, that is required to size the compressor motor. | G121: =IF(B121="","ERROR: Input required",IF(AND(B121<>"",B121<=1),"ERROR: Motor sizing factor cannot be less than 100%","")) -> 
A122: Hydrogen Lost During Compression (%) | B122: =+I66 -> 1.707555883e-06 | G122: =IF(B122="","ERROR: Input required","") -> 
A123: Percentage of Energy Use from On-site Fuel Combustion | B123: 0
A124: Electricity Generation Technology | B124: U.S. Average Mix
A125: Distance from Refueling Station to Nearest Electrical Substation (mi) | B125: 1 | F125: It is possible that the amount of power required by the refueling station compressors will necessitate the construction of a trench to bring higher voltage power to the compressor(s). The number entered here is used if and only if the compressor size means higher voltage power is required. | G125: =IF(B125="","ERROR: Input required","") -> 
A126: Technology Year for Energy Use and Emissions Calculations | B126: 2005
A132: Refueling Station Scenario Inputs
A133: Delivery Scenario Input | B133: Value | C133: Comments | E133: Data Source | F133: Information
A134: Low Pressure Storage Vessel Capacity For Outage (kg) | B134: =Outage_storagekg -> 1351.443323 | C134: =Outage_storagekg
A135: Cascade Vessel Outer Diameter (m) | B135: 0.4064 | G135: =IF(B135="","ERROR: Input required","") -> 
A136: Cascade Vessel Wall Thickness (m) | B136: =IF(B35=350,0.03,0.03*2) -> 0.06 | G136: =IF(B136="","ERROR: Input required","") -> 
A137: Cascade Vessel Length (m) | B137: 4.572 | G137: =IF(B137="","ERROR: Input required","") -> 
A138: Cascade Vessel Stacking | B138: 6 | C138: H2A Base Case value is 6 which allows cascades to be stacked vertically to save space | G138: =IF(B138="","ERROR: Input required","") -> 
A139: =IF(B34="gaseous - truck","","Low Pressure Storage Vessel Outer Diameter (m)") -> Low Pressure Storage Vessel Outer Diameter (m) | B139: 1.249 | F139: =IF(B34="gaseous - truck","No input is required. LP storage not need for gaseous truck case","") ->  | G139: =IF(AND($B$34="onsite production",B139=""),"ERROR: Input required","") -> 
A140: =IF(B34="gaseous - truck","","Low Pressure Storage Vessel Wall Thickness (m)") -> Low Pressure Storage Vessel Wall Thickness (m) | B140: 0.0635 | F140: =IF(B34="gaseous - truck","No input is required. LP storage not need for gaseous truck case","") ->  | G140: =IF(AND($B$34="onsite production",B140=""),"ERROR: Input required","") -> 
A141: =IF(B34="gaseous - truck","","Low Pressure Storage Vessel Length (m)") -> Low Pressure Storage Vessel Length (m) | B141: 7.589 | F141: =IF(B34="gaseous - truck","No input is required. LP storage not need for gaseous truck case","") ->  | G141: =IF(AND($B$34="onsite production",B141=""),"ERROR: Input required","") -> 
A142: =IF(B34="gaseous - truck","","Low Pressure Storage Stacking") -> Low Pressure Storage Stacking | B142: 2 | F142: =IF(B34="gaseous - truck","No input is required. LP storage not need for gaseous truck case","") ->  | G142: =IF(AND($B$34="onsite production",B142=""),"ERROR: Input required","") -> 
A143: Clearance Around Vessel Cylinders (m) | B143: 0.05
A144: Baseline Station Length (m) | B144: 39.62 | G144: =IF(B144="","ERROR: Input required","") -> 
A145: Baseline Station Width (m) | B145: 33.53
A146: Number of Dispensers for Baseline Station Dimensions | B146: 6
A147: Convenience Store Length (m) | B147: 15.24
A148: Convenience Store Width (m) | B148: 9.14
A149: Baseline Storage Length (m) | B149: 6.1 | C149: Baseline Station is a 6-dispenser Gasoline Station
A150: Baseline Storage Width (m) | B150: 13.72 | C150: Baseline Station is a 6-dispenser Gasoline Station
A151: Setback from Wall Opening (m) | B151: 7.62 | C151: Assumption based on safety requirements
A152: Lot Line Setback (m) | B152: 1.52 | C152: Assumption based on safety requirements
A153: Parked Vehicle Setback (m) | B153: 4.57 | C153: Assumption based on safety requirements
A154: Area per Additional Dispenser Island (m2) | B154: =IF(B174>6,(ROUNDUP((B174-6)/2,0))*20*(B145+B207+B208),0) -> 0 | C154: Dispenser island contains two additional dispensers
A155: =IF(B34="gaseous - truck","Tube Trailer Width (m)","") ->  | B155: 4.572 | F155: =IF(B34="gaseous - truck","","No entry required") -> No entry required | G155: =IF(AND(B34="gaseous - truck",B155=""),"ERROR: Input required","") -> 
A159: Refueling Station Calculations
A160: Item | B160: Value
A161: Hydrogen Delivered Per Tube (kg) | B161: =IF(B34="onsite production","N/A",IF(B50="yes",2/1000*((B51*B54/((B55+273.16)*0.00008205*(H2_ZFactor(B55,B51))))-(B52*B54/((B55+273.16)*0.00008205*(H2_ZFactor(B55,B52))))),B56/B53)) -> N/A
A162: Number of Tubes | B162: =IF(B34="onsite production","N/A",B53) -> N/A
A163: Tube Trailer Delivered Hydrogen Capacity (kg) | B163: =IF(B34="onsite production",0,IF(B50="yes",B162*B161,B56)) -> 0
A164: Tube Trailer Useable Capacity | B164: =IF(B50="yes",B163/(2/1000*(B51*B54*B162/((B55+273.16)*0.00008205*(H2_ZFactor(B55,B51))))),"100%") -> 100%
A165: Gas Constant (kJ/K.kg-mol) | B165: 8.3144
A166: Booster Compressor Compressibility Factor | B166: =(H2_ZFactor(B86,B97)-H2_ZFactor(B86,B104))/LN(H2_ZFactor(B86,B97)/H2_ZFactor(B86,B104)) -> 1.394442417
A167: Mean Compressibility Factor for Main Compressor | B167: =IF(B34="onsite production",(H2_ZFactor(B86,B92)-H2_ZFactor(B86,B57))/LN(H2_ZFactor(B86,B92)/H2_ZFactor(B86,B57)),(H2_ZFactor(B86,B92)-H2_ZFactor(B86,(B51-B52)/LN(B51/B52)))/LN(H2_ZFactor(B86,B92)/H2_ZFactor(B86,(B51-B52)/LN(B51/B52)))) -> 1.160914367
A168: Compressibility Factor for Cascade Storage Tanks at Maximum Pressure | B168: =H2_ZFactor(B59,B61/14.7) -> 1.322801574
A169: Compressibility Factor for Low Pressure Storage Tanks at Maximum Pressure | B169: =IF(B34="onsite production",H2_ZFactor(B86,B84),"N/A") -> 1.160444446
A170: Total Cascade Capacity (kg) | B170: =B255 -> 87.3541741
A171: Low Pressure Storage Required at Refueling Station (kg) | B171: =WeeklyStorage + MAX(Outage_storagekg,Daily_Storage) -> 1542.944572
A172: Maximum Number of Fills During Peak Hour | B172: =MAX(Hourly_Demand_ForeC)/B78 -> 24.62910728
A173: Hoses Required | B173: =ROUNDUP(B172*(B73+B76)/60/B83,0) -> 3
A174: Dispensers Required | B174: =ROUNDUP(B173/B77,0) -> 3
A175: Maximum Capacity of Refrigeration Unit (ton) | B175: =(B100*B88*(B101-(B95))/60)*3412/12000 -> 10.44925
A176: Minimum Capacity of Refrigeration Unit (ton) | B176: =(B78*(B101-(B95))*B88*B111/3600)*3412/12000 -> 3.91846875
A177: Mass of Aluminum Cooling Block (kg) | B177: =IF(B38="Thermal Buffering",B78*B88*(B101-(B95))/B110/B87,"N/A") -> 1321.942446
A178: Volume of Aluminum Cooling Block (m3) | B178: =IF(B38="Thermal Buffering",B177/2700,"N/A") -> 0.4896083133
A179: C, Compressor Capacity to Meet Demand Requirements (kg/hr) | B179: =B227*B261 -> 112.9200991
A180: Design flowrate to each compressor (kg/hr) | B180: =B179/num_op_comp_ForeC -> 56.46004954
A181: =IF(B180>250, "Recommended Number of Compressors","") ->  | B181: =IF(B180>250,ROUNDUP(B91*B180/250,0),"") ->  | C181: Values only show up in this cell if the Design Compressor Capacity is greater than 250 kg/hr.
A182: =IF(B180>250, "Recommended Number of Compressors Installed","") ->  | B182: =IF(B180>250,B181+(B90-B91),"") ->  | C182: Values only show up in this cell if the Design Compressor Capacity is greater than 250 kg/hr.
A183: =IF(B180>250, "Recommended Flowrate to Each Compressor (kg/day)","") ->  | B183: =IF(B180>250,B180*B91/B181,"") ->  | C183: Values only show up in this cell if the Design Compressor Capacity is greater than 250 kg/hr.
A184: Pressure Ratio | B184: =IF(B113="yes",B114,IF(AND(B113="no",B34="onsite production"),10^((LOG(B58)-LOG(B57))/B115),10^((LOG(B58)-LOG(B52))/B115))) -> 4.998562322
A185: Number of Stages | B185: =IF(B113="no",B115,ROUNDUP(((LOG(B58)-LOG(B57))/LOG(B114)),0)) -> 2
A186: Theoretical Power Requirement for each Compressor (kW) | B186: =IF(OR(B116="no",B119="no"), "N/A",IF(B34="onsite production",B167*1/B91*(B179/60/60/2.0158)*B165*(B86+273.15)*B185*(B89/(B89-1))*((B92/B57)^((B89-1)/(B185*B89))-1),B167*1/B91*(B179/60/60/2.0158)*B165*(B86+273.15)*B185*(B89/(B89-1))*((B92/B52)^((B89-1)/(B185*B89))-1))) -> 92.28381995 | C186: ASSUMES EQUAL WORK BY ALL STAGES, AND INTERCOOLING BACK TO ORIGINAL FEED TEMPERATURE
A187: Actual Shaft Power Required per Compressor (kW) | B187: =IF(AND(B119="no",B120<>""),B120*B37,IF(B186="N/A","",B186/B117)) -> 123.0450933
A188: Motor Efficiency | B188: =IF(AND(B187<>0,B187<>""),0.00008*(LN(B187)^4)-0.0015*(LN(B187)^3)+0.0061*(LN(B187)^2)+0.0311*LN(B187)+0.7617,1) -> 0.9283708342
A189: Motor Rating per Compressor (kW) | B189: =IF(OR(B187="N/A",B187=""),B187,B187*B121/B188) -> 145.7926053
A190: Motor Efficiency for Booster Compressor | B190: =IF(AND(B107<>"N/A",B107<>0,B107<>""),0.00008*(LN(B107))^4-0.0015*(LN(B107))^3+0.0061*(LN(B107))^2+0.0311*(LN(B107))+0.7617,1) -> 0.8798622922
A191: Motor Rating Per Booster Compressor (kW) | B191: =IF(OR(B107="N/A",B107=""),B107,B107/B190*B121) -> 28.09288146
A192: Electrical Voltage Supply Requirement (Volts) | B192: =IF(OR(B187=0,B187=""),"",IF(B189*B91/0.7456999>600,4160,480)) -> 480
A193: Net Hydrogen Delivered (kg/year) | B193: =output_kgyear -> 470668.6971
A194: Cascade Vessel Capacity (kg) | B194: =((PI()/4)*(B135-2*B136)^2*(B137-2*B136)-(0.083*PI()*(B135-2*B136)^3))/B168*(B61/14.7)*101325/8314*2/(B86+273.16) -> 8.665788201
A195: Cascade Vessel Volume (ft3) | B195: =((PI()/4)*(B135-2*B136)^2*(B137-2*B136)-(0.083*PI()*(B135-2*B136)^3))*35.3147 -> 9.912210974
A196: Cascade Vessel Groups | B196: =num_Cascade -> 2
A197: Total Cascade Vessels | B197: =B196*3 -> 6 | C197: Three cascade levels per group
A198: Number of Cascade Vessel Stacks | B198: =ROUNDUP(B197/B138,0) -> 1
A199: =IF(B34="gaseous - truck","","Low Pressure Storage Vessel Capacity (kg)") -> Low Pressure Storage Vessel Capacity (kg) | B199: =IF(B34="Onsite Production",((PI()/4*(B139-2*B140)^2*(B141-2*B140))-(0.083*PI()*(B139-2*B140)^3))/B169*B84*101325/8314*2/(B86+273.16),"N/A") -> 123.4507747
A200: =IF(B34="gaseous - truck","","Calculated storage useable tank capacity (% of design useable capacity)") -> Calculated storage useable tank capacity (% of design useable capacity) | B200: =IF(B34="onsite production",((B84/(H2_ZFactor(B86,B84)))-B85)/(B84/(H2_ZFactor(B86,B84))),"N/A") -> 0.9071644443 | C200: =IF(B34="onsite production","","Calculation not required for gaseous truck delivery") -> 
A201: =IF(B34="gaseous - truck","","Low Pressure Storage Vessel Useable Capacity (kg)") -> Low Pressure Storage Vessel Useable Capacity (kg) | B201: =IF(B34="gaseous - truck","N/A",B199*B200) -> 111.9901534
A202: =IF(B34="gaseous - truck","","Low Pressure Storage Vessels Required") -> Low Pressure Storage Vessels Required | B202: =IF(B34="onsite production",ROUNDUP(B171/B201,0),"N/A") -> 14
A203: =IF(B34="gaseous - truck","","Number of Low Pressure Storage Vessel Stacks") -> Number of Low Pressure Storage Vessel Stacks | B203: =IF(B34="onsite production",ROUNDUP(B202/B142,0),"N/A") -> 7 | C203: =IF(B34="onsite production","","Calculation not required for gaseous truck delivery") -> 
A204: Total Storage Length, Without Setbacks (m) | B204: =IF(B34="onsite production",B198*(B135)+B203*B139,B198*B135) -> 9.1494 | C204: Vessel and storage length and width are swapped to be consistent with the orientation of the vessels on the station layout - see schematics
A205: Total Storage Width, Without Setbacks (m) | B205: =IF(B34="Gaseous - Truck",B137,IF(B202=0,B137,MAX(B141,B137))) -> 7.589 | C205: Vessel and storage length and width are swapped to be consistent with the orientation of the vessels on the station layout - see schematics
A206: Total Storage Area, Without Setbacks (m2) | B206: =B204*B205 -> 69.4347966
A207: Additional Setback Length between the Lot Line and Storage (m) | B207: =IF(B34="Gaseous - Truck",IF(B152+2*B155+B204>B149,B152+2*B155+B204-B149,B149),IF(B151<B147,0,B151-B147)) -> 0
A208: Additional Setback Width between Lot Line and Storage | B208: =IF(B34="Gaseous - Truck",IF(B150>B205,0,B205-B150),IF(B205+B152>B150,B205+B152-B150,0)) -> 0
A209: Total Storage Length, Including Setbacks (m) | B209: =IF(B34="Gaseous - Truck",B152+2*B155+B204,IF(B149>=B152+B204,B149,B152+B204)) -> 10.6694
A210: Total Storage Width, Including Setbacks (m) | B210: =IF(B34="Gaseous - Truck",B208+B150,MAX(B205+B152,B150)) -> 13.72
A211: Overall Station Length (m) | B211: =IF(B34="Gaseous - Truck",B207+B144,B144+B209-B149) -> 44.1894
A212: Overall Station Width (m) | B212: =B145+B208 -> 33.53
A213: Overall Station Area (m2) | B213: =B211*B212 -> 1481.670582
A214: Baseline Station Area With 6 Dispensers (m2) | B214: =B144*B145 -> 1328.4586
A215: Baseline Station Area With No Convenience Store (m2) | B215: =B214-B147*B148 -> 1189.165
... 403 more rows

Sheet Results
B2: Table of Contents
B3: Specific Item Cost Calculation
B4: Energy Data
B5: Production Process Energy Efficiency
B6: Upstream Energy Usage
B7: Emissions Summary
B17: COST RESULTS
B20: Specific Item Cost Calculation | D20: Total Cost of Delivered Hydrogen | F20: =Result_price+D29 -> 
B21: Cost Component | C21: Hydrogen Production Cost Contribution ($/kg) | D21: Compression, Storage, and Dispensing Cost Contribution ($/kg)* | F21: Percentage of H2 Cost
B22: Capital Costs | C22: ='Production Cash Flow Analysis'!D119 ->  | D22: =+'Tornado Charts'!AT64+'Tornado Charts'!AW64+'Tornado Charts'!BC64+'Tornado Charts'!BE64 -> 0.8563806836 | F22: =IF(D22="",result_cap_contr/H2_TotalPrice_real,(result_cap_contr+D22)/H2_TotalPrice_real) -> 
B23: Decommissioning Costs | C23: ='Production Cash Flow Analysis'!D120 ->  | D23: =-'Tornado Charts'!AS64+'Tornado Charts'!AX64 -> 0 | F23: =IF(D23="",result_decom_contr/H2_TotalPrice_real,(result_decom_contr+D23)/H2_TotalPrice_real) -> 
B24: Fixed O&M | C24: ='Production Cash Flow Analysis'!D121 ->  | D24: =+'Tornado Charts'!AU64++'Tornado Charts'!AY64 -> 0.5364674539 | F24: =IF(D24="",result_Fixed_O_M_contr/H2_TotalPrice_real,(result_Fixed_O_M_contr+D24)/H2_TotalPrice_real) -> 
B25: Feedstock Costs | C25: ='Production Cash Flow Analysis'!D122 ->  | D25: =+'Tornado Charts'!AZ64 -> 0 | F25: =IF(D25="",result_feed_contr/H2_TotalPrice_real,(result_feed_contr+D25)/H2_TotalPrice_real) -> 
B26: Other Raw Material Costs | C26: ='Production Cash Flow Analysis'!D123 ->  | D26: =+'Tornado Charts'!BA64 -> 0 | F26: =IF(D26="",result_Other_Mat_contr/H2_TotalPrice_real,(result_Other_Mat_contr+D26)/H2_TotalPrice_real) -> 
B27: Byproduct Credits | C27: ='Production Cash Flow Analysis'!D124 ->  | D27: =-'Tornado Charts'!AR64 -> 0 | F27: =IF(D27="",result_byprod_contr/H2_TotalPrice_real,(result_byprod_contr+D27)/H2_TotalPrice_real) -> 
B28: Other Variable Costs (including utilities) | C28: ='Production Cash Flow Analysis'!D125 ->  | D28: =+'Tornado Charts'!AV64+'Tornado Charts'!BB64+'Tornado Charts'!BD64 -> 0.3973103274 | F28: =IF(D28="",result_other_var_contr/H2_TotalPrice_real,(result_other_var_contr+D28)/H2_TotalPrice_real) -> 
B29: Total | C29: =SUM(C22:C28) ->  | D29: =SUM(D22:D28) -> 1.790158465
B30: * Results will be shown in this column only if the detail Refueling Station calculation sheet is used.
B32: SUMMARY ENERGY RESULTS
B33: Energy Usage (kWh/y)
C34: Total Including Production of Fuel | D34: Onsite | F34: Facility Energy Efficiency | I34: =SUM(H38:H39)/SUM(H35:H37) -> 7.767486335
B35: Production Process Total | C35: =C36+C41 -> 0 | D35: =D36+D41 -> 0 | F35: Feedstock energy input (kWh/yr) | H35: =D36 -> 0 | I35: =H38/(H35+H36) -> 
B36: Total Production Feedstocks | C36: =SUM(C37:C40) -> 0 | D36: =SUM(D37:D40) -> 0 | F36: Utility energy input (kWh/yr) | H36: =D41 -> 0
B37: =B89 ->  | C37: =IF(C70=0,"",(C70*(1+VLOOKUP(B89,Tbl_Emissions,3,FALSE)/1000000))) ->  | D37: =IF(C70=0,"",C70) ->  | F37: Refueling Station energy input (kWh/yr) | H37: =D46 -> 2023386.429
B38: =B90 ->  | C38: =IF(C71=0,"",(C71*(1+VLOOKUP(B90,Tbl_Emissions,3,FALSE)/1000000))) ->  | D38: =IF(C71=0,"",C71) ->  | F38: Hydrogen energy output (kWh/yr) | H38: =L79 -> 15716626.44
B39: =B91 ->  | C39: =IF(C72=0,"",(C72*(1+VLOOKUP(B91,Tbl_Emissions,3,FALSE)/1000000))) ->  | D39: =IF(C72=0,"",C72) ->  | F39: Byproduct energy output (kWh/yr) | H39: =output_kgyear*MJ_to_kWh*1000*(('Production Cash Flow Analysis'!K132*'Production Cash Flow Analysis'!K133)+('Production Cash Flow Analysis'!L132*'Production Cash Flow Analysis'!L133)+('Production Cash Flow Analysis'!M132*'Production Cash Flow Analysis'!M133)+('Production Cash Flow Analysis'!N132*'Production Cash Flow Analysis'!N133)) -> 0
B40: =B92 ->  | C40: =IF(C73=0,"",(C73*(1+VLOOKUP(B92,Tbl_Emissions,3,FALSE)/1000000))) ->  | D40: =IF(C73=0,"",C73) -> 
B41: Total Production Utilities | C41: =SUM(C42:C45) -> 0 | D41: =SUM(D42:D45) -> 0
B42: =B94 ->  | C42: =IF(C75=0,"",(C75*(1+VLOOKUP(B94,Tbl_Emissions,3,FALSE)/1000000))) ->  | D42: =IF(C75=0,"",C75) -> 
B43: =B95 ->  | C43: =IF(C76=0,"",(C76*(1+VLOOKUP(B95,Tbl_Emissions,3,FALSE)/1000000))) ->  | D43: =IF(C76=0,"",C76) -> 
B44: =B96 ->  | C44: =IF(C77=0,"",(C77*(1+VLOOKUP(B96,Tbl_Emissions,3,FALSE)/1000000))) ->  | D44: =IF(C77=0,"",C77) -> 
B45: =B97 ->  | C45: =IF(C78=0,"",(C78*(1+VLOOKUP(B97,Tbl_Emissions,3,FALSE)/1000000))) ->  | D45: =IF(C78=0,"",C78) -> 
B46: Refueling Station Total | C46: =IF(C47=0,"",C47) -> 5740347.298 | D46: =IF(D47=0,"",D47) -> 2023386.429
B47: =B99 -> Commercial Electricity | C47: =IF(C81=0,"",(C81*(1+VLOOKUP(B99,Tbl_Emissions,3,FALSE)/1000000))) -> 5740347.298 | D47: =IF(C81=0,"",C81) -> 2023386.429
B49: SUMMARY EMISSIONS RESULTS
B50: GHG Emissions (kg CO2eq/y) | C50: Upstream | G50: Onsite
C51: CO2 | D51: CH4 | E51: N2O | F51: Total GHG (CO2 eq) | G51: CO2 | H51: CH4 | I51: N2O | J51: Total GHG (CO2 eq)
B52: Production Process Total | C52: =C53+C58 -> 0 | D52: 0 | E52: 0 | F52: 0 | G52: 0 | H52: 0 | I52: 0 | J52: 0
B53: Total Production Feedstocks | C53: =SUM(C54:C57) -> 0 | D53: 0 | E53: 0 | F53: 0 | G53: 0 | H53: 0 | I53: 0 | J53: 0
B54: =B89 ->  | C54: =IF($C70=0,"",($C70*I89)) ->  | D54: =IF($C70=0,"",($C70*J89)) ->  | G54: =IF($C70=0,"",($C70*E89)) ->  | H54: =IF($C70=0,"",($C70*F89)) -> 
B55: =B90 ->  | C55: =IF($C71=0,"",($C71*I90)) ->  | G55: =IF($C71=0,"",($C71*E90)) -> 
B56: =B91 ->  | C56: =IF($C72=0,"",($C72*I91)) ->  | G56: =IF($C72=0,"",($C72*E91)) -> 
B57: =B92 ->  | C57: =IF($C73=0,"",($C73*I92)) ->  | G57: =IF($C73=0,"",($C73*E92)) -> 
B58: Total Production Utilities | C58: =SUM(C59:C62) -> 0 | D58: 0 | E58: 0 | F58: 0 | G58: 0 | H58: 0 | I58: 0 | J58: 0
B59: =B94 ->  | C59: =IF($C75=0,"",($C75*I94)) ->  | D59: =IF($C75=0,"",($C75*J94)) ->  | G59: =IF($C75=0,"",($C75*E94)) ->  | H59: =IF($C75=0,"",($C75*F94)) -> 
B60: =B95 ->  | C60: =IF($C76=0,"",($C76*I95)) ->  | G60: =IF($C76=0,"",($C76*E95)) -> 
B61: =B96 ->  | C61: =IF($C77=0,"",($C77*I96)) ->  | G61: =IF($C77=0,"",($C77*E96)) -> 
B62: =B97 ->  | C62: =IF($C78=0,"",($C78*I97)) ->  | G62: =IF($C78=0,"",($C78*E97)) -> 
B63: Refueling Station Total | C63: =C64 -> 1099767.179 | D63: 1596.602918 | E63: 16.31950184 | F63: 1144545.463 | G63: 0 | H63: 0 | I63: 0 | J63: 0
B64: =B99 -> Commercial Electricity | C64: =IF($C81=0,0,($C81*I99)) -> 1099767.179 | D64: =IF($C81=0,0,($C81*J99)) -> 1596.602918 | E64: =IF($C81=0,0,($C81*K99)) -> 16.31950184 | F64: =IF($C81=0,0,($C81*L99)) -> 1144545.463 | H64: =IF($C81=0,0,($C81*E99)) -> 0 | I64: =IF($C81=0,0,($C81*F99)) -> 0 | J64: =IF($C81=0,0,($C81*G99)) -> 0
C66: Energy use kWh/y
C67: GHG Emissions (kg CO2 eq/year)
B68: System Inputs | E68: Upstream Energy and Emissions | H68: Onsite Energy and Emissions
B69: =B88 -> Production Feedstocks | C69: Energy (kWh/year) | E69: =B88 -> Production Feedstocks
C70: =('Production Cash Flow Analysis'!B133*'Production Cash Flow Analysis'!B132)*output_kgyear*MJ_to_kWh*1000 -> 0 | E70: Energy (kWh/year) | F70: GHG Emissions (kg CO2eq/year)
C71: =('Production Cash Flow Analysis'!C133*'Production Cash Flow Analysis'!C132)*output_kgyear*MJ_to_kWh*1000 -> 0 | E71: =IF(C70=0,0,(C70*(1+VLOOKUP($B$89,Tbl_Emissions,3,FALSE)/1000000)))+IF(C71=0,0,(C71*(1+VLOOKUP($B$90,Tbl_Emissions,3,FALSE)/1000000)))+IF(C72=0,0,(C72*(1+VLOOKUP($B$91,Tbl_Emissions,3,FALSE)/1000000)))+IF(C73=0,0,(C73*(1+VLOOKUP($B$92,Tbl_Emissions,3,FALSE)/1000000))) -> 0 | F71: =IF(C70=0,0,(C70*L89))+IF(C71=0,0,(C71*L90))+IF(C72=0,0,(C72*L91))+IF(C73=0,0,(C73*L92)) -> 0
C72: =('Production Cash Flow Analysis'!D133*'Production Cash Flow Analysis'!D132)*output_kgyear*MJ_to_kWh*1000 -> 0 | E72: =B93 -> Production Utility | H72: Hydrogen Production
C73: =('Production Cash Flow Analysis'!E133*'Production Cash Flow Analysis'!E132)*output_kgyear*MJ_to_kWh*1000 -> 0 | E73: Energy (kWh/year) | F73: GHG Emissions (kg CO2eq/year) | H73: Energy (kWh/year) | I73: GHG Emissions (kg CO2eq/year)
B74: Production Utility | C74: Energy (kWh/year) | E74: =IF(C75=0,0,(C75*(1+VLOOKUP(B94,Tbl_Emissions,3,FALSE)/1000000)))+IF(C76=0,0,(C76*(1+VLOOKUP($B$95,Tbl_Emissions,3,FALSE)/1000000)))+IF(C77=0,0,(C77*(1+VLOOKUP($B$96,Tbl_Emissions,3,FALSE)/1000000)))+IF(C78=0,0,(C78*(1+VLOOKUP($B$97,Tbl_Emissions,3,FALSE)/1000000))) -> 0 | F74: =IF(C75=0,0,(C75*L94))+IF(C76=0,0,(C76*L95))+IF(C77=0,0,(C77*L96))+IF(C78=0,0,(C78*L97)) -> 0 | H74: =SUM(C70:C73,C75:C78) -> 0 | I74: =IF(C70=0,0,(C70*H89))+IF(C71=0,0,(C71*H90))+IF(C72=0,0,(C72*H91))+IF(C73=0,0,(C73*H92))+IF(C75=0,0,(C75*H94))+IF(C76=0,0,(C76*H95))+IF(C77=0,0,(C77*H96))+IF(C78=0,0,(C78*H97)) -> 0
C75: =('Production Cash Flow Analysis'!F133*'Production Cash Flow Analysis'!F132)*output_kgyear*MJ_to_kWh*1000 -> 0
C76: =('Production Cash Flow Analysis'!G133*'Production Cash Flow Analysis'!G132)*output_kgyear*MJ_to_kWh*1000 -> 0
C77: =('Production Cash Flow Analysis'!H133*'Production Cash Flow Analysis'!H132)*output_kgyear*MJ_to_kWh*1000 -> 0 | E77: =B98 -> Refueling Station Utility | H77: Refueling Station
C78: =('Production Cash Flow Analysis'!I133*'Production Cash Flow Analysis'!I132)*output_kgyear*MJ_to_kWh*1000 -> 0 | E78: Energy (kWh/year) | F78: GHG Emissions (kg CO2eq/year) | H78: Energy (kWh/year) | I78: GHG Emissions (kg CO2eq/year) | K78: Hydrogen Delivered (kg/year) | L78: Hydrogen Delivered (kWh/year)
E79: =IF(C81=0,0,(C81*(1+VLOOKUP(B99,Tbl_Emissions,3,FALSE)/1000000))) -> 5740347.298 | F79: =IF(C81=0,0,(C81*L99)) -> 1144545.463 | H79: =C81 -> 2023386.429 | I79: =IF(C81=0,0,(C81*H99)) -> 0 | K79: =output_kgyear -> 470668.6971 | L79: =output_kgyear*kgH2_to_kWh -> 15716626.44
B80: =B98 -> Refueling Station Utility | C80: Energy (kWh/year)
B81: =B99 -> Commercial Electricity | C81: =('Production Cash Flow Analysis'!J133*'Production Cash Flow Analysis'!J132)*output_kgyear*MJ_to_kWh*1000*avg_daily_demand_GH2/YearlyDispensing -> 2023386.429
B85: Energy and Emissions Results
B87: Energy Data | E87: Process Emissions Factors | I87: Upstream Emissions Factors
B88: Production Feedstocks | C88: Unit | D88: Unit System Conversion Factor | E88: CO2 (kg/kWh feed) | F88: CH4 (kg/kWh feed) | G88: N2O (kg/kWh feed) | H88: Total (kg CO2 eq/kWh feed) | I88: CO2 (kg/kWh feed) | J88: CH4 (kg/kWh feed) | K88: N2O (kg/kWh feed) | L88: Total (kg CO2 eq/kWh feed) | M88: Real levelized cost
B89: =IF('Production Cash Flow Analysis'!B$131=0,"",'Production Cash Flow Analysis'!$B$131) ->  | C89: =IF($B$89<>"",VLOOKUP($B$89,MASTER_PROPERTY_TABLE,MATCH("H2A Usage Input Unit/ kg H2",key_MPTable,0),FALSE),"") ->  | D89: =IF($B89="","",IF(VLOOKUP($B89,MASTER_PROPERTY_TABLE,MATCH("Unit System",key_MPTable,0),FALSE)="English",mmBTU_to_GJ,1)) ->  | E89: =IF($B89="","",VLOOKUP($B89,MASTER_PROPERTY_TABLE,MATCH("CO2 Emissions Factor (kg CO2 produced/GJ feed)",key_MPTable,0),FALSE)/$D89/MJ_to_kWh/1000) ->  | F89: =IF($B89="","",VLOOKUP($B89,MASTER_PROPERTY_TABLE,MATCH("CH4 Emissions Factor (kg CH4 produced/GJ feed)",key_MPTable,0),FALSE)/$D89/MJ_to_kWh/1000) ->  | G89: =IF($B89="","",VLOOKUP($B89,MASTER_PROPERTY_TABLE,MATCH("N2O Emissions Factor (kg N2O produced/GJ feed)",key_MPTable,0),FALSE)/$D89/MJ_to_kWh/1000) ->  | H89: =IF($B89="","",$E89*GHG_CO2_factor+$F89*GHG_CH4_factor+$G89*GHG_N2O_factor) ->  | I89: =IF($B89="","",VLOOKUP($B89,Tbl_Emissions,6,FALSE)/1000/MJ_to_kWh) ->  | J89: =IF($B89="","",VLOOKUP($B89,Tbl_Emissions,7,FALSE)/1000/MJ_to_kWh) ->  | K89: =IF($B89="","",VLOOKUP($B89,Tbl_Emissions,8,FALSE)/1000/MJ_to_kWh) ->  | L89: =IF($B89="","",$I89*GHG_CO2_factor+$J89*GHG_CH4_factor+$K89*GHG_N2O_factor) ->  | M89: =+'Production Cash Flow Analysis'!$B$233 -> 
B90: =IF('Production Cash Flow Analysis'!$C$131=0,"",'Production Cash Flow Analysis'!$C$131) ->  | C90: =IF($B$90<>"",VLOOKUP($B$90,MASTER_PROPERTY_TABLE,MATCH("H2A Usage Input Unit/ kg H2",key_MPTable,0),FALSE),"") ->  | D90: =IF($B90="","",IF(VLOOKUP($B90,MASTER_PROPERTY_TABLE,MATCH("Unit System",key_MPTable,0),FALSE)="English",mmBTU_to_GJ,1)) ->  | E90: =IF($B90="","",VLOOKUP($B90,MASTER_PROPERTY_TABLE,MATCH("CO2 Emissions Factor (kg CO2 produced/GJ feed)",key_MPTable,0),FALSE)/$D90/MJ_to_kWh/1000) ->  | F90: =IF($B90="","",VLOOKUP($B90,MASTER_PROPERTY_TABLE,MATCH("CH4 Emissions Factor (kg CH4 produced/GJ feed)",key_MPTable,0),FALSE)/$D90/MJ_to_kWh/1000) ->  | G90: =IF($B90="","",VLOOKUP($B90,MASTER_PROPERTY_TABLE,MATCH("N2O Emissions Factor (kg N2O produced/GJ feed)",key_MPTable,0),FALSE)/$D90/MJ_to_kWh/1000) ->  | H90: =IF($B90="","",$E90*GHG_CO2_factor+$F90*GHG_CH4_factor+$G90*GHG_N2O_factor) ->  | I90: =IF($B90="","",VLOOKUP($B90,Tbl_Emissions,6,FALSE)/1000/MJ_to_kWh) ->  | J90: =IF($B90="","",VLOOKUP($B90,Tbl_Emissions,7,FALSE)/1000/MJ_to_kWh) ->  | K90: =IF($B90="","",VLOOKUP($B90,Tbl_Emissions,8,FALSE)/1000/MJ_to_kWh) ->  | L90: =IF($B90="","",$I90*GHG_CO2_factor+$J90*GHG_CH4_factor+$K90*GHG_N2O_factor) ->  | M90: =+'Production Cash Flow Analysis'!$C$233 -> 
B91: =IF('Production Cash Flow Analysis'!D$131=0,"",'Production Cash Flow Analysis'!$D$131) ->  | C91: =IF($B$91<>"",VLOOKUP($B$91,MASTER_PROPERTY_TABLE,MATCH("H2A Usage Input Unit/ kg H2",key_MPTable,0),FALSE),"") ->  | D91: =IF($B91="","",IF(VLOOKUP($B91,MASTER_PROPERTY_TABLE,MATCH("Unit System",key_MPTable,0),FALSE)="English",mmBTU_to_GJ,1)) ->  | E91: =IF($B91="","",VLOOKUP($B91,MASTER_PROPERTY_TABLE,MATCH("CO2 Emissions Factor (kg CO2 produced/GJ feed)",key_MPTable,0),FALSE)/$D91/MJ_to_kWh/1000) ->  | F91: =IF($B91="","",VLOOKUP($B91,MASTER_PROPERTY_TABLE,MATCH("CH4 Emissions Factor (kg CH4 produced/GJ feed)",key_MPTable,0),FALSE)/$D91/MJ_to_kWh/1000) ->  | G91: =IF($B91="","",VLOOKUP($B91,MASTER_PROPERTY_TABLE,MATCH("N2O Emissions Factor (kg N2O produced/GJ feed)",key_MPTable,0),FALSE)/$D91/MJ_to_kWh/1000) ->  | H91: =IF($B91="","",$E91*GHG_CO2_factor+$F91*GHG_CH4_factor+$G91*GHG_N2O_factor) ->  | I91: =IF($B91="","",VLOOKUP($B91,Tbl_Emissions,6,FALSE)/1000/MJ_to_kWh) ->  | J91: =IF($B91="","",VLOOKUP($B91,Tbl_Emissions,7,FALSE)/1000/MJ_to_kWh) ->  | K91: =IF($B91="","",VLOOKUP($B91,Tbl_Emissions,8,FALSE)/1000/MJ_to_kWh) ->  | L91: =IF($B91="","",$I91*GHG_CO2_factor+$J91*GHG_CH4_factor+$K91*GHG_N2O_factor) ->  | M91: =+'Production Cash Flow Analysis'!$D$233 -> 
B92: =IF('Production Cash Flow Analysis'!E$131=0,"",'Production Cash Flow Analysis'!$E$131) ->  | C92: =IF($B$92<>"",VLOOKUP($B$92,MASTER_PROPERTY_TABLE,MATCH("H2A Usage Input Unit/ kg H2",key_MPTable,0),FALSE),"") ->  | D92: =IF($B92="","",IF(VLOOKUP($B92,MASTER_PROPERTY_TABLE,MATCH("Unit System",key_MPTable,0),FALSE)="English",mmBTU_to_GJ,1)) ->  | E92: =IF($B92="","",VLOOKUP($B92,MASTER_PROPERTY_TABLE,MATCH("CO2 Emissions Factor (kg CO2 produced/GJ feed)",key_MPTable,0),FALSE)/$D92/MJ_to_kWh/1000) ->  | F92: =IF($B92="","",VLOOKUP($B92,MASTER_PROPERTY_TABLE,MATCH("CH4 Emissions Factor (kg CH4 produced/GJ feed)",key_MPTable,0),FALSE)/$D92/MJ_to_kWh/1000) ->  | G92: =IF($B92="","",VLOOKUP($B92,MASTER_PROPERTY_TABLE,MATCH("N2O Emissions Factor (kg N2O produced/GJ feed)",key_MPTable,0),FALSE)/$D92/MJ_to_kWh/1000) ->  | H92: =IF($B92="","",$E92*GHG_CO2_factor+$F92*GHG_CH4_factor+$G92*GHG_N2O_factor) ->  | I92: =IF($B92="","",VLOOKUP($B92,Tbl_Emissions,6,FALSE)/1000/MJ_to_kWh) ->  | J92: =IF($B92="","",VLOOKUP($B92,Tbl_Emissions,7,FALSE)/1000/MJ_to_kWh) ->  | K92: =IF($B92="","",VLOOKUP($B92,Tbl_Emissions,8,FALSE)/1000/MJ_to_kWh) ->  | L92: =IF($B92="","",$I92*GHG_CO2_factor+$J92*GHG_CH4_factor+$K92*GHG_N2O_factor) ->  | M92: =+'Production Cash Flow Analysis'!$E$233 -> 
B93: Production Utility
B94: =IF('Production Cash Flow Analysis'!F$131=0,"",'Production Cash Flow Analysis'!$F$131) ->  | C94: =IF($B$94<>"",VLOOKUP($B$94,MASTER_PROPERTY_TABLE,MATCH("H2A Usage Input Unit/ kg H2",key_MPTable,0),FALSE),"") ->  | D94: =IF($B94="","",IF(VLOOKUP($B94,MASTER_PROPERTY_TABLE,MATCH("Unit System",key_MPTable,0),FALSE)="English",mmBTU_to_GJ,1)) ->  | E94: =IF($B94="","",VLOOKUP($B94,MASTER_PROPERTY_TABLE,MATCH("CO2 Emissions Factor (kg CO2 produced/GJ feed)",key_MPTable,0),FALSE)/$D94/MJ_to_kWh/1000) ->  | F94: =IF($B94="","",VLOOKUP($B94,MASTER_PROPERTY_TABLE,MATCH("CH4 Emissions Factor (kg CH4 produced/GJ feed)",key_MPTable,0),FALSE)/$D94/MJ_to_kWh/1000) ->  | G94: =IF($B94="","",VLOOKUP($B94,MASTER_PROPERTY_TABLE,MATCH("N2O Emissions Factor (kg N2O produced/GJ feed)",key_MPTable,0),FALSE)/$D94/MJ_to_kWh/1000) ->  | H94: =IF($B94="","",$E94*GHG_CO2_factor+$F94*GHG_CH4_factor+$G94*GHG_N2O_factor) ->  | I94: =IF($B94="","",VLOOKUP($B94,Tbl_Emissions,6,FALSE)/1000/MJ_to_kWh) ->  | J94: =IF($B94="","",VLOOKUP($B94,Tbl_Emissions,7,FALSE)/1000/MJ_to_kWh) ->  | K94: =IF($B94="","",VLOOKUP($B94,Tbl_Emissions,8,FALSE)/1000/MJ_to_kWh) ->  | L94: =IF($B94="","",$I94*GHG_CO2_factor+$J94*GHG_CH4_factor+$K94*GHG_N2O_factor) ->  | M94: =+'Production Cash Flow Analysis'!$F$233 -> 
B95: =IF('Production Cash Flow Analysis'!G$131=0,"",'Production Cash Flow Analysis'!$G$131) ->  | C95: =IF($B$95<>"",VLOOKUP($B$95,MASTER_PROPERTY_TABLE,MATCH("H2A Usage Input Unit/ kg H2",key_MPTable,0),FALSE),"") ->  | D95: =IF($B95="","",IF(VLOOKUP($B95,MASTER_PROPERTY_TABLE,MATCH("Unit System",key_MPTable,0),FALSE)="English",mmBTU_to_GJ,1)) ->  | E95: =IF($B95="","",VLOOKUP($B95,MASTER_PROPERTY_TABLE,MATCH("CO2 Emissions Factor (kg CO2 produced/GJ feed)",key_MPTable,0),FALSE)/$D95/MJ_to_kWh/1000) ->  | F95: =IF($B95="","",VLOOKUP($B95,MASTER_PROPERTY_TABLE,MATCH("CH4 Emissions Factor (kg CH4 produced/GJ feed)",key_MPTable,0),FALSE)/$D95/MJ_to_kWh/1000) ->  | G95: =IF($B95="","",VLOOKUP($B95,MASTER_PROPERTY_TABLE,MATCH("N2O Emissions Factor (kg N2O produced/GJ feed)",key_MPTable,0),FALSE)/$D95/MJ_to_kWh/1000) ->  | H95: =IF($B95="","",$E95*GHG_CO2_factor+$F95*GHG_CH4_factor+$G95*GHG_N2O_factor) ->  | I95: =IF($B95="","",VLOOKUP($B95,Tbl_Emissions,6,FALSE)/1000/MJ_to_kWh) ->  | J95: =IF($B95="","",VLOOKUP($B95,Tbl_Emissions,7,FALSE)/1000/MJ_to_kWh) ->  | K95: =IF($B95="","",VLOOKUP($B95,Tbl_Emissions,8,FALSE)/1000/MJ_to_kWh) ->  | L95: =IF($B95="","",$I95*GHG_CO2_factor+$J95*GHG_CH4_factor+$K95*GHG_N2O_factor) ->  | M95: =+'Production Cash Flow Analysis'!$G$233 -> 
B96: =IF('Production Cash Flow Analysis'!H$131=0,"",'Production Cash Flow Analysis'!$H$131) ->  | C96: =IF($B$96<>"",VLOOKUP($B$96,MASTER_PROPERTY_TABLE,MATCH("H2A Usage Input Unit/ kg H2",key_MPTable,0),FALSE),"") ->  | D96: =IF($B96="","",IF(VLOOKUP($B96,MASTER_PROPERTY_TABLE,MATCH("Unit System",key_MPTable,0),FALSE)="English",mmBTU_to_GJ,1)) ->  | E96: =IF($B96="","",VLOOKUP($B96,MASTER_PROPERTY_TABLE,MATCH("CO2 Emissions Factor (kg CO2 produced/GJ feed)",key_MPTable,0),FALSE)/$D96/MJ_to_kWh/1000) ->  | F96: =IF($B96="","",VLOOKUP($B96,MASTER_PROPERTY_TABLE,MATCH("CH4 Emissions Factor (kg CH4 produced/GJ feed)",key_MPTable,0),FALSE)/$D96/MJ_to_kWh/1000) ->  | G96: =IF($B96="","",VLOOKUP($B96,MASTER_PROPERTY_TABLE,MATCH("N2O Emissions Factor (kg N2O produced/GJ feed)",key_MPTable,0),FALSE)/$D96/MJ_to_kWh/1000) ->  | H96: =IF($B96="","",$E96*GHG_CO2_factor+$F96*GHG_CH4_factor+$G96*GHG_N2O_factor) ->  | I96: =IF($B96="","",VLOOKUP($B96,Tbl_Emissions,6,FALSE)/1000/MJ_to_kWh) ->  | J96: =IF($B96="","",VLOOKUP($B96,Tbl_Emissions,7,FALSE)/1000/MJ_to_kWh) ->  | K96: =IF($B96="","",VLOOKUP($B96,Tbl_Emissions,8,FALSE)/1000/MJ_to_kWh) ->  | L96: =IF($B96="","",$I96*GHG_CO2_factor+$J96*GHG_CH4_factor+$K96*GHG_N2O_factor) ->  | M96: =+'Production Cash Flow Analysis'!$H$233 -> 
B97: =IF('Production Cash Flow Analysis'!I$131=0,"",'Production Cash Flow Analysis'!$I$131) ->  | C97: =IF($B$97<>"",VLOOKUP($B$97,MASTER_PROPERTY_TABLE,MATCH("H2A Usage Input Unit/ kg H2",key_MPTable,0),FALSE),"") ->  | D97: =IF($B97="","",IF(VLOOKUP($B97,MASTER_PROPERTY_TABLE,MATCH("Unit System",key_MPTable,0),FALSE)="English",mmBTU_to_GJ,1)) ->  | E97: =IF($B97="","",VLOOKUP($B97,MASTER_PROPERTY_TABLE,MATCH("CO2 Emissions Factor (kg CO2 produced/GJ feed)",key_MPTable,0),FALSE)/$D97/MJ_to_kWh/1000) ->  | F97: =IF($B97="","",VLOOKUP($B97,MASTER_PROPERTY_TABLE,MATCH("CH4 Emissions Factor (kg CH4 produced/GJ feed)",key_MPTable,0),FALSE)/$D97/MJ_to_kWh/1000) ->  | G97: =IF($B97="","",VLOOKUP($B97,MASTER_PROPERTY_TABLE,MATCH("N2O Emissions Factor (kg N2O produced/GJ feed)",key_MPTable,0),FALSE)/$D97/MJ_to_kWh/1000) ->  | H97: =IF($B97="","",$E97*GHG_CO2_factor+$F97*GHG_CH4_factor+$G97*GHG_N2O_factor) ->  | I97: =IF($B97="","",VLOOKUP($B97,Tbl_Emissions,6,FALSE)/1000/MJ_to_kWh) ->  | J97: =IF($B97="","",VLOOKUP($B97,Tbl_Emissions,7,FALSE)/1000/MJ_to_kWh) ->  | K97: =IF($B97="","",VLOOKUP($B97,Tbl_Emissions,8,FALSE)/1000/MJ_to_kWh) ->  | L97: =IF($B97="","",$I97*GHG_CO2_factor+$J97*GHG_CH4_factor+$K97*GHG_N2O_factor) ->  | M97: =+'Production Cash Flow Analysis'!$I$233 -> 
B98: Refueling Station Utility
B99: =IF('Production Cash Flow Analysis'!J$131=0,"",'Production Cash Flow Analysis'!$J$131) -> Commercial Electricity | C99: =IF($B$99<>"",VLOOKUP($B$99,MASTER_PROPERTY_TABLE,MATCH("H2A Usage Input Unit/ kg H2",key_MPTable,0),FALSE),"") -> kWh | D99: =IF($B99="","",IF(VLOOKUP($B99,MASTER_PROPERTY_TABLE,MATCH("Unit System",key_MPTable,0),FALSE)="English",mmBTU_to_GJ,1)) -> 1 | E99: =IF($B99="","",VLOOKUP($B99,MASTER_PROPERTY_TABLE,MATCH("CO2 Emissions Factor (kg CO2 produced/GJ feed)",key_MPTable,0),FALSE)/$D99/MJ_to_kWh/1000) -> 0 | F99: =IF($B99="","",VLOOKUP($B99,MASTER_PROPERTY_TABLE,MATCH("CH4 Emissions Factor (kg CH4 produced/GJ feed)",key_MPTable,0),FALSE)/$D99/MJ_to_kWh/1000) -> 0 | G99: =IF($B99="","",VLOOKUP($B99,MASTER_PROPERTY_TABLE,MATCH("N2O Emissions Factor (kg N2O produced/GJ feed)",key_MPTable,0),FALSE)/$D99/MJ_to_kWh/1000) -> 0 | H99: =IF($B99="","",$E99*GHG_CO2_factor+$F99*GHG_CH4_factor+$G99*GHG_N2O_factor) -> 0 | I99: =IF($B99="","",VLOOKUP($B99,Tbl_Emissions,6,FALSE)/1000/MJ_to_kWh) -> 0.543528 | J99: =IF($B99="","",VLOOKUP($B99,Tbl_Emissions,7,FALSE)/1000/MJ_to_kWh) -> 0.00078907464 | K99: =IF($B99="","",VLOOKUP($B99,Tbl_Emissions,8,FALSE)/1000/MJ_to_kWh) -> 8.06544e-06 | L99: =IF($B99="","",$I99*GHG_CO2_factor+$J99*GHG_CH4_factor+$K99*GHG_N2O_factor) -> 0.5656583671 | M99: =+'Refueling Cash Flow Analysis'!$J$233 -> 0.1102210552

Sheet Tornado Charts
B2: Parameter | C2: Nominal | D2: Enter deviation % for lowering H2 cost | E2: Enter deviation % for increasing H2 cost | F2: Price-decreasing factor | G2: Price-increasing factor | H2: Price-decreasing value | I2: Price-increasing value
B3: Realized fraction of design capacity | C3: 1 | D3: 0.05 | E3: 0.05 | F3: =1+D3 -> 1.05 | G3: =1-E3 -> 0.95 | H3: =+C3*F3 -> 1.05 | I3: =+C3*G3 -> 0.95
B4: Plant design capacity (kg of H2/day) | C4: =+design_cap -> 1500 | D4: 0.05 | E4: 0.05 | F4: =1+D4 -> 1.05 | G4: =1-E4 -> 0.95 | H4: 1575 | I4: 1425
B5: After-tax real IRR | C5: =+real_irr -> 0.08 | D5: 0.05 | E5: 0.05 | F5: =1-D5 -> 0.95 | G5: =1+E5 -> 1.05 | H5: 0.076 | I5: 0.084
B6: Feedstock consumption (% of baseline) | C6: 1 | D6: 0.05 | E6: 0.05 | F6: =1-D6 -> 0.95 | G6: =1+E6 -> 1.05 | H6: 0.95 | I6: 1.05
B7: Utilities consumption (% of baseline) | C7: 1 | D7: 0.05 | E7: 0.05 | F7: =1-D7 -> 0.95 | G7: 1.05 | H7: 0.95 | I7: 1.05
B8: Total capital investment | C8: =+total_cap+'Refueling Station - GH2'!B345 ->  | D8: 0.05 | E8: 0.05 | F8: =1-D8 -> 0.95 | G8: 1.05
B9: Total fixed operating cost | C9: =+fixed+'Refueling Station - GH2'!B381 ->  | D9: 0.05 | E9: 0.05 | F9: =1-D9 -> 0.95 | G9: 1.05
C14: Include in tornado: | D14: Production | E14: <-- Choose one from drop-down menu
B61: Visuals data formatting below
B63: Displayed case | C63: 1 | D63: 2 | E63: 3 | F63: 4 | G63: 5 | H63: 6 | I63: 7 | K63: =+D14 -> Production | AA63: Production | AQ63: Refueling | BG63: Both
B64: 1 | C64: =+OFFSET(C66,$B$64,0) -> 1 | D64: 1 | E64: 1 | F64: 1 | G64: =+OFFSET(G66,$B$64,0) -> 1 | H64: =+OFFSET(H66,$B$64,0) -> 1 | I64: =+OFFSET(I66,$B$64,0) -> 1 | K64: =($D$14="Production")*AA64+($D$14="Refueling")*AQ64+($D$14="Both")*(AA64+AQ64) ->  | L64: 0 | T64: 0 | U64: 0 | V64: 0.004062220436 | AA64: =+'Production Cash Flow Analysis'!F118 ->  | AB64: =+'Production Cash Flow Analysis'!Q118 -> 0 | AC64: =+'Production Cash Flow Analysis'!L118 ->  | AD64: =+'Production Cash Flow Analysis'!H117 ->  | AE64: =+'Production Cash Flow Analysis'!I117 ->  | AF64: =+'Production Cash Flow Analysis'!J117 ->  | AG64: =+'Production Cash Flow Analysis'!K117 ->  | AH64: =+'Production Cash Flow Analysis'!M117 ->  | AI64: =+'Production Cash Flow Analysis'!N117 ->  | AJ64: =+'Production Cash Flow Analysis'!O117 -> 0 | AK64: =+'Production Cash Flow Analysis'!P117 -> 0 | AL64: =+'Production Cash Flow Analysis'!R117 -> 0.004062220436 | AM64: =+'Production Cash Flow Analysis'!S117 ->  | AN64: =+'Production Cash Flow Analysis'!X117 ->  | AO64: =+'Production Cash Flow Analysis'!Z117 ->  | AQ64: =+'Refueling Cash Flow Analysis'!F118 -> 1.790158465 | AR64: =+'Refueling Cash Flow Analysis'!Q118 -> 0 | AS64: =+'Refueling Cash Flow Analysis'!L118 -> 0.02628993635 | AT64: =+'Refueling Cash Flow Analysis'!H117 -> 0.4901450665 | AU64: =+'Refueling Cash Flow Analysis'!I117 -> 0.06576497158 | AV64: =+'Refueling Cash Flow Analysis'!J117 -> 0.01264976556 | AW64: =+'Refueling Cash Flow Analysis'!K117 -> 0 | AX64: =+'Refueling Cash Flow Analysis'!M117 -> 0.02628993635 | AY64: =+'Refueling Cash Flow Analysis'!N117 -> 0.4707024823 | AZ64: =+'Refueling Cash Flow Analysis'!O117 -> 0 | BA64: =+'Refueling Cash Flow Analysis'!P117 -> 0 | BB64: =+'Refueling Cash Flow Analysis'!R117 -> 0.4741186318 | BC64: =+'Refueling Cash Flow Analysis'!S117 -> 0.2579783386 | BD64: =+'Refueling Cash Flow Analysis'!X117 -> -0.08945806991 | BE64: =+'Refueling Cash Flow Analysis'!Z117 -> 0.1082572784 | BG64: =+AA64+AQ64 ->  | BH64: 0 | BP64: 0 | BQ64: 0 | BR64: 0.4781808522
B66: Case | C66: Realized fraction of design capacity | D66: Plant Design Capacity (kg of H2/day) | E66: After-tax Real IRR (%) | F66: Feedstock consumption | G66: Utilities consumption | H66: Total Capital Investment | I66: Total Fixed Operating Cost | K66: Revenue from Hydrogen Sales | L66: Revenue from Byproduct Sales | M66: Salvage Value | N66: Initial Equity Depreciable Capital | O66: Yearly Replacement Costs | P66: Cash from Working Capital Reserve | Q66: Other Non-Depreciable Capital Costs | R66: Decommissioning Costs | S66: Fixed Operating Cost | T66: Feedstock Cost | U66: Other Raw Material Cost | V66: Other Variable Operating Costs | W66: Debt Interest | X66: Taxes | Y66: Principal Payment | AA66: Revenue from Hydrogen Sales | AB66: Revenue from Byproduct Sales | AC66: Salvage Value | AD66: Initial Equity Depreciable Capital | AE66: Yearly Replacement Costs | AF66: Cash from Working Capital Reserve | AG66: Other Non-Depreciable Capital Costs | AH66: Decommissioning Costs | AI66: Fixed Operating Cost | AJ66: Feedstock Cost | AK66: Other Raw Material Cost | AL66: Other Variable Operating Costs | AM66: Debt Interest | AN66: Taxes | AO66: Principal Payment | AQ66: Revenue from Hydrogen Sales | AR66: Revenue from Byproduct Sales | AS66: Salvage Value | AT66: Initial Equity Depreciable Capital | AU66: Yearly Replacement Costs | AV66: Cash from Working Capital Reserve | AW66: Other Non-Depreciable Capital Costs | AX66: Decommissioning Costs | AY66: Fixed Operating Cost | AZ66: Feedstock Cost | BA66: Other Raw Material Cost | BB66: Other Variable Operating Costs | BC66: Debt Interest | BD66: Taxes | BE66: Principal Payment | BG66: Revenue from Hydrogen Sales | BH66: Revenue from Byproduct Sales | BI66: Salvage Value | BJ66: Initial Equity Depreciable Capital | BK66: Yearly Replacement Costs | BL66: Cash from Working Capital Reserve | BM66: Other Non-Depreciable Capital Costs | BN66: Decommissioning Costs | BO66: Fixed Operating Cost | BP66: Feedstock Cost | BQ66: Other Raw Material Cost | BR66: Other Variable Operating Costs | BS66: Debt Interest | BT66: Taxes | BU66: Principal Payment
B67: 1 | C67: 1 | D67: 1 | E67: 1 | F67: 1 | G67: 1 | H67: 1 | I67: 1 | K67: =($D$14="Production")*AA67+($D$14="Refueling")*AQ67+($D$14="Both")*BG67 -> 0 | L67: =($D$14="Production")*AB67+($D$14="Refueling")*AR67+($D$14="Both")*BH67 -> 0 | M67: =($D$14="Production")*AC67+($D$14="Refueling")*AS67+($D$14="Both")*BI67 -> 0 | N67: =($D$14="Production")*AD67+($D$14="Refueling")*AT67+($D$14="Both")*BJ67 -> 0 | O67: =($D$14="Production")*AE67+($D$14="Refueling")*AU67+($D$14="Both")*BK67 -> 0 | P67: =($D$14="Production")*AF67+($D$14="Refueling")*AV67+($D$14="Both")*BL67 -> 0 | Q67: =($D$14="Production")*AG67+($D$14="Refueling")*AW67+($D$14="Both")*BM67 -> 0 | R67: =($D$14="Production")*AH67+($D$14="Refueling")*AX67+($D$14="Both")*BN67 -> 0 | S67: =($D$14="Production")*AI67+($D$14="Refueling")*AY67+($D$14="Both")*BO67 -> 0 | T67: =($D$14="Production")*AJ67+($D$14="Refueling")*AZ67+($D$14="Both")*BP67 -> 0 | U67: =($D$14="Production")*AK67+($D$14="Refueling")*BA67+($D$14="Both")*BQ67 -> 0 | V67: =($D$14="Production")*AL67+($D$14="Refueling")*BB67+($D$14="Both")*BR67 -> 0 | W67: =($D$14="Production")*AM67+($D$14="Refueling")*BC67+($D$14="Both")*BS67 -> 0 | X67: =($D$14="Production")*AN67+($D$14="Refueling")*BD67+($D$14="Both")*BT67 -> 0 | Y67: =($D$14="Production")*AO67+($D$14="Refueling")*BE67+($D$14="Both")*BU67 -> 0 | BG67: 3.291941961 | BH67: 0 | BI67: 0.03466797411 | BJ67: 0.6463437664 | BK67: 0.1626265292 | BL67: 0.02782466264 | BM67: 0 | BN67: 0.03466797411 | BO67: 0.6899469829 | BP67: 0.7766865827 | BQ67: 0 | BR67: 0.6143075499 | BS67: 0.3401904913 | BT67: -0.1087411509 | BU67: 0.1427565467
B68: =+B67+1 -> 2 | C68: =+F3 -> 1.05 | D68: 1 | E68: 1 | F68: 1 | G68: 1 | H68: 1 | I68: 1 | K68: 0 | L68: 0 | M68: 0 | N68: 0 | O68: 0 | P68: 0 | Q68: 0 | R68: 0 | S68: 0 | T68: 0 | U68: 0 | V68: 0 | W68: 0 | X68: 0 | Y68: 0 | BG68: 3.201750886 | BH68: 0 | BI68: 0.0330171182 | BJ68: 0.6155654918 | BK68: 0.1548824088 | BL68: 0.02737315072 | BM68: 0 | BN68: 0.0330171182 | BO68: 0.6570923647 | BP68: 0.7766865827 | BQ68: 0 | BR68: 0.6134615648 | BS68: 0.3239909441 | BT68: -0.103260238 | BU68: 0.1359586159
B69: =+B68+1 -> 3 | C69: =+G3 -> 0.95 | D69: 1 | E69: 1 | F69: 1 | G69: 1 | H69: 1 | I69: 1 | K69: 0 | L69: 0 | M69: 0 | N69: 0 | O69: 0 | P69: 0 | Q69: 0 | R69: 0 | S69: 0 | T69: 0 | U69: 0 | V69: 0 | W69: 0 | X69: 0 | Y69: 0 | BG69: 3.391626834 | BH69: 0 | BI69: 0.03649260433 | BJ69: 0.6803618593 | BK69: 0.1711858202 | BL69: 0.02832370214 | BM69: 0 | BN69: 0.03649260433 | BO69: 0.726259982 | BP69: 0.7766865827 | BQ69: 0 | BR69: 0.6152425862 | BS69: 0.358095254 | BT69: -0.114799002 | BU69: 0.1502700492
B70: 4 | C70: 1 | D70: =+F4 -> 1.05 | E70: 1 | F70: 1 | G70: 1 | H70: 1 | I70: 1 | K70: 0 | L70: 0 | M70: 0 | N70: 0 | O70: 0 | P70: 0 | Q70: 0 | R70: 0 | S70: 0 | T70: 0 | U70: 0 | V70: 0 | W70: 0 | X70: 0 | Y70: 0 | BG70: 3.323218175 | BH70: 0 | BI70: 0.03512589458 | BJ70: 0.6548811571 | BK70: 0.1632899407 | BL70: 0.02805315032 | BM70: 0 | BN70: 0.03512589458 | BO70: 0.7071457966 | BP70: 0.7766865827 | BQ70: 0 | BR70: 0.6141626146 | BS70: 0.3446839812 | BT70: -0.1103272296 | BU70: 0.1446421817
B71: 5 | C71: 1 | D71: =+G4 -> 0.95 | E71: 1 | F71: 1 | G71: 1 | H71: 1 | I71: 1 | K71: 0 | L71: 0 | M71: 0 | N71: 0 | O71: 0 | P71: 0 | Q71: 0 | R71: 0 | S71: 0 | T71: 0 | U71: 0 | V71: 0 | W71: 0 | X71: 0 | Y71: 0 | BG71: 3.3170885 | BH71: 0 | BI71: 0.03490374732 | BJ71: 0.6507394816 | BK71: 0.1675836498 | BL71: 0.02799627069 | BM71: 0 | BN71: 0.03490374732 | BO71: 0.7023164709 | BP71: 0.7766865827 | BQ71: 0 | BR71: 0.6147473138 | BS71: 0.3425040907 | BT71: -0.1092127789 | BU71: 0.1437274188
B72: 6 | C72: 1 | D72: 1 | E72: =+F5 -> 0.95 | F72: 1 | G72: 1 | H72: 1 | I72: 1 | K72: 0 | L72: 0 | M72: 0 | N72: 0 | O72: 0 | P72: 0 | Q72: 0 | R72: 0 | S72: 0 | T72: 0 | U72: 0 | V72: 0 | W72: 0 | X72: 0 | Y72: 0 | BG72: 3.284832311 | BH72: 0 | BI72: 0.0362114163 | BJ72: 0.626831668 | BK72: 0.1666825982 | BL72: 0.02679887111 | BM72: 0 | BN72: 0.0362114163 | BO72: 0.6897281919 | BP72: 0.7789040942 | BQ72: 0 | BR72: 0.614782546 | BS72: 0.3383021537 | BT72: -0.1063099789 | BU72: 0.1491121669
B73: 7 | C73: 1 | D73: 1 | E73: =+G5 -> 1.05 | F73: 1 | G73: 1 | H73: 1 | I73: 1 | K73: 0 | L73: 0 | M73: 0 | N73: 0 | O73: 0 | P73: 0 | Q73: 0 | R73: 0 | S73: 0 | T73: 0 | U73: 0 | V73: 0 | W73: 0 | X73: 0 | Y73: 0 | BG73: 3.299896732 | BH73: 0 | BI73: 0.03318242349 | BJ73: 0.6661219382 | BK73: 0.1587029428 | BL73: 0.02884171114 | BM73: 0 | BN73: 0.03318242349 | BO73: 0.6901675348 | BP73: 0.7744821998 | BQ73: 0 | BR73: 0.6138377936 | BS73: 0.3420876781 | BT73: -0.1109843797 | BU73: 0.1366393137
B74: 8 | C74: 1 | D74: 1 | E74: 1 | F74: =+F6 -> 0.95 | G74: 1 | H74: 1 | I74: 1 | K74: 0 | L74: 0 | M74: 0 | N74: 0 | O74: 0 | P74: 0 | Q74: 0 | R74: 0 | S74: 0 | T74: 0 | U74: 0 | V74: 0 | W74: 0 | X74: 0 | Y74: 0 | BG74: 3.252409975 | BH74: 0 | BI74: 0.03466797411 | BJ74: 0.6463437664 | BK74: 0.1626265292 | BL74: 0.0273065825 | BM74: 0 | BN74: 0.03466797411 | BO74: 0.6899469829 | BP74: 0.7378522536 | BQ74: 0 | BR74: 0.6143075499 | BS74: 0.3401904913 | BT74: -0.1089207278 | BU74: 0.1427565467
B75: 9 | C75: 1 | D75: 1 | E75: 1 | F75: =+G6 -> 1.05 | G75: 1 | H75: 1 | I75: 1 | K75: 0 | L75: 0 | M75: 0 | N75: 0 | O75: 0 | P75: 0 | Q75: 0 | R75: 0 | S75: 0 | T75: 0 | U75: 0 | V75: 0 | W75: 0 | X75: 0 | Y75: 0 | BG75: 3.331473947 | BH75: 0 | BI75: 0.03466797411 | BJ75: 0.6463437664 | BK75: 0.1626265292 | BL75: 0.02834274279 | BM75: 0 | BN75: 0.03466797411 | BO75: 0.6899469829 | BP75: 0.8155209119 | BQ75: 0 | BR75: 0.6143075499 | BS75: 0.3401904913 | BT75: -0.1085615739 | BU75: 0.1427565467
B76: 10 | C76: 1 | D76: 1 | E76: 1 | F76: 1 | G76: =+F7 -> 0.95 | H76: 1 | I76: 1 | K76: 0 | L76: 0 | M76: 0 | N76: 0 | O76: 0 | P76: 0 | Q76: 0 | R76: 0 | S76: 0 | T76: 0 | U76: 0 | V76: 0 | W76: 0 | X76: 0 | Y76: 0 | BG76: 3.261577478 | BH76: 0 | BI76: 0.03466797411 | BJ76: 0.6463437664 | BK76: 0.1626265292 | BL76: 0.02742559718 | BM76: 0 | BN76: 0.03466797411 | BO76: 0.6899469829 | BP76: 0.7766865827 | BQ76: 0 | BR76: 0.5844804569 | BS76: 0.3401904913 | BT76: -0.1088794749 | BU76: 0.1427565467
B77: 11 | C77: 1 | D77: 1 | E77: 1 | F77: 1 | G77: =+G6 -> 1.05 | H77: 1 | I77: 1 | K77: 0 | L77: 0 | M77: 0 | N77: 0 | O77: 0 | P77: 0 | Q77: 0 | R77: 0 | S77: 0 | T77: 0 | U77: 0 | V77: 0 | W77: 0 | X77: 0 | Y77: 0 | BG77: 3.322306444 | BH77: 0 | BI77: 0.03466797411 | BJ77: 0.6463437664 | BK77: 0.1626265292 | BL77: 0.02822372811 | BM77: 0 | BN77: 0.03466797411 | BO77: 0.6899469829 | BP77: 0.7766865827 | BQ77: 0 | BR77: 0.644134643 | BS77: 0.3401904913 | BT77: -0.1086028268 | BU77: 0.1427565467
B78: 12 | C78: 1 | D78: 1 | E78: 1 | F78: 1 | G78: 1 | H78: =+F8 -> 0.95 | I78: 1 | K78: 0 | L78: 0 | M78: 0 | N78: 0 | O78: 0 | P78: 0 | Q78: 0 | R78: 0 | S78: 0 | T78: 0 | U78: 0 | V78: 0 | W78: 0 | X78: 0 | Y78: 0 | BG78: 3.238117323 | BH78: 0 | BI78: 0.0329345754 | BJ78: 0.6140265781 | BK78: 0.1626265292 | BL78: 0.0277739015 | BM78: 0 | BN78: 0.0329345754 | BO78: 0.6861582246 | BP78: 0.7766865827 | BQ78: 0 | BR78: 0.6143075499 | BS78: 0.3231809668 | BT78: -0.1022617292 | BU78: 0.1356187194
B79: 13 | C79: 1 | D79: 1 | E79: 1 | F79: 1 | G79: 1 | H79: =+G8 -> 1.05 | I79: 1 | K79: 0 | L79: 0 | M79: 0 | N79: 0 | O79: 0 | P79: 0 | Q79: 0 | R79: 0 | S79: 0 | T79: 0 | U79: 0 | V79: 0 | W79: 0 | X79: 0 | Y79: 0 | BG79: 3.345766599 | BH79: 0 | BI79: 0.03640137282 | BJ79: 0.6786609547 | BK79: 0.1626265292 | BL79: 0.02787542379 | BM79: 0 | BN79: 0.03640137282 | BO79: 0.6937357412 | BP79: 0.7766865827 | BQ79: 0 | BR79: 0.6143075499 | BS79: 0.3572000159 | BT79: -0.1152205725 | BU79: 0.1498943741
B80: 14 | C80: 1 | D80: 1 | E80: 1 | F80: 1 | G80: 1 | H80: 1 | I80: =+F9 -> 0.95 | K80: 0 | L80: 0 | M80: 0 | N80: 0 | O80: 0 | P80: 0 | Q80: 0 | R80: 0 | S80: 0 | T80: 0 | U80: 0 | V80: 0 | W80: 0 | X80: 0 | Y80: 0 | BG80: 3.256822218 | BH80: 0 | BI80: 0.03466797411 | BJ80: 0.6463437664 | BK80: 0.1626265292 | BL80: 0.02736247296 | BM80: 0 | BN80: 0.03466797411 | BO80: 0.6554496337 | BP80: 0.7766865827 | BQ80: 0 | BR80: 0.6143075499 | BS80: 0.3401904913 | BT80: -0.108901355 | BU80: 0.1427565467
B81: 15 | C81: 1 | D81: 1 | E81: 1 | F81: 1 | G81: 1 | H81: 1 | I81: =+G9 -> 1.05 | K81: 0 | L81: 0 | M81: 0 | N81: 0 | O81: 0 | P81: 0 | Q81: 0 | R81: 0 | S81: 0 | T81: 0 | U81: 0 | V81: 0 | W81: 0 | X81: 0 | Y81: 0 | BG81: 3.327061704 | BH81: 0 | BI81: 0.03466797411 | BJ81: 0.6463437664 | BK81: 0.1626265292 | BL81: 0.02828685233 | BM81: 0 | BN81: 0.03466797411 | BO81: 0.724444332 | BP81: 0.7766865827 | BQ81: 0 | BR81: 0.6143075499 | BS81: 0.3401904913 | BT81: -0.1085809467 | BU81: 0.1427565467
A82: Production | B82: =+B81+1 -> 16 | C82: =(C$98=1)*$F$3 +(C$98=2) +(C$98=3) +(C$98=4) +(C$98=5) -> 1 | D82: 1 | E82: 1 | F82: =(F$98=1)*$F$6 +(F$98=2) +(F$98=3) +(F$98=4) +(F$98=5) -> 1 | G82: =(G$98=1)*$F$7 +(G$98=2) +(G$98=3) +(G$98=4) +(G$98=5) -> 1 | H82: =(H$98=1)*$F$8 +(H$98=2) +(H$98=3) +(H$98=4) +(H$98=5) -> 1 | I82: =(I$98=1)*$F$9 +(I$98=2) +(I$98=3) +(I$98=4) +(I$98=5) -> 0.95 | BG82: 3.252409975 | BH82: 0 | BI82: 0.03466797411 | BJ82: 0.6463437664 | BK82: 0.1626265292 | BL82: 0.0273065825 | BM82: 0 | BN82: 0.03466797411 | BO82: 0.6899469829 | BP82: 0.7378522536 | BQ82: 0 | BR82: 0.6143075499 | BS82: 0.3401904913 | BT82: -0.1089207278 | BU82: 0.1427565467
B83: =+B82+1 -> 17 | C83: =(C$98=1)*$F$3 +(C$98=2)*$F$3 +(C$98=3) +(C$98=4) +(C$98=5) -> 1 | D83: 1 | E83: 1 | F83: =(F$98=1)*$F$6 +(F$98=2)*$F$6 +(F$98=3) +(F$98=4) +(F$98=5) -> 1 | G83: =(G$98=1)*$F$7 +(G$98=2)*$F$7 +(G$98=3) +(G$98=4) +(G$98=5) -> 1 | H83: =(H$98=1)*$F$8 +(H$98=2)*$F$8 +(H$98=3) +(H$98=4) +(H$98=5) -> 0.95 | I83: =(I$98=1)*$F$9 +(I$98=2)*$F$9 +(I$98=3) +(I$98=4) +(I$98=5) -> 0.95 | BG83: 3.162218899 | BH83: 0 | BI83: 0.0330171182 | BJ83: 0.6155654918 | BK83: 0.1548824088 | BL83: 0.02685507057 | BM83: 0 | BN83: 0.0330171182 | BO83: 0.6570923647 | BP83: 0.7378522536 | BQ83: 0 | BR83: 0.6134615648 | BS83: 0.3239909441 | BT83: -0.1034398149 | BU83: 0.1359586159
B84: 18 | C84: =(C$98=1)*$F$3 +(C$98=2)*$F$3 +(C$98=3)*$F$3 +(C$98=4) +(C$98=5) -> 1 | D84: 1 | E84: 1 | F84: =(F$98=1)*$F$6 +(F$98=2)*$F$6 +(F$98=3)*$F$6 +(F$98=4) +(F$98=5) -> 1 | G84: =(G$98=1)*$F$7 +(G$98=2)*$F$7 +(G$98=3)*$F$7 +(G$98=4) +(G$98=5) -> 0.95 | H84: =(H$98=1)*$F$8 +(H$98=2)*$F$8 +(H$98=3)*$F$8 +(H$98=4) +(H$98=5) -> 0.95 | I84: =(I$98=1)*$F$9 +(I$98=2)*$F$9 +(I$98=3)*$F$9 +(I$98=4) +(I$98=5) -> 0.95 | BG84: 3.110957339 | BH84: 0 | BI84: 0.03136626229 | BJ84: 0.5847872172 | BK84: 0.1548824088 | BL84: 0.02680672662 | BM84: 0 | BN84: 0.03136626229 | BO84: 0.6534840234 | BP84: 0.7378522536 | BQ84: 0 | BR84: 0.6134615648 | BS84: 0.3077913969 | BT84: -0.09726893715 | BU84: 0.1291606851
B85: 19 | C85: =(C$98=1)*$F$3 +(C$98=2)*$F$3 +(C$98=3)*$F$3 +(C$98=4)*$F$3 +(C$98=5) -> 1 | D85: 1 | E85: 1 | F85: =(F$98=1)*$F$6 +(F$98=2)*$F$6 +(F$98=3)*$F$6 +(F$98=4)*$F$6 +(F$98=5) -> 0.95 | G85: =(G$98=1)*$F$7 +(G$98=2)*$F$7 +(G$98=3)*$F$7 +(G$98=4)*$F$7 +(G$98=5) -> 0.95 | H85: =(H$98=1)*$F$8 +(H$98=2)*$F$8 +(H$98=3)*$F$8 +(H$98=4)*$F$8 +(H$98=5) -> 0.95 | I85: =(I$98=1)*$F$9 +(I$98=2)*$F$9 +(I$98=3)*$F$9 +(I$98=4)*$F$9 +(I$98=5) -> 0.95 | BG85: 3.077693637 | BH85: 0 | BI85: 0.03136626229 | BJ85: 0.5847872172 | BK85: 0.1548824088 | BL85: 0.02636896317 | BM85: 0 | BN85: 0.03136626229 | BO85: 0.6208098223 | BP85: 0.7378522536 | BQ85: 0 | BR85: 0.6134615648 | BS85: 0.3077913969 | BT85: -0.09742067471 | BU85: 0.1291606851
B86: 20 | C86: =(C$98=1)*$F$3 +(C$98=2)*$F$3 +(C$98=3)*$F$3 +(C$98=4)*$F$3 +(C$98=5)*$F$3 -> 1.05 | D86: 1 | E86: 1 | F86: =(F$98=1)*$F$6 +(F$98=2)*$F$6 +(F$98=3)*$F$6 +(F$98=4)*$F$6 +(F$98=5)*$F$6 -> 0.95 | G86: =(G$98=1)*$F$7 +(G$98=2)*$F$7 +(G$98=3)*$F$7 +(G$98=4)*$F$7 +(G$98=5)*$F$7 -> 0.95 | H86: =(H$98=1)*$F$8 +(H$98=2)*$F$8 +(H$98=3)*$F$8 +(H$98=4)*$F$8 +(H$98=5)*$F$8 -> 0.95 | I86: =(I$98=1)*$F$9 +(I$98=2)*$F$9 +(I$98=3)*$F$9 +(I$98=4)*$F$9 +(I$98=5)*$F$9 -> 0.95 | BG86: 3.047329155 | BH86: 0 | BI86: 0.03136626229 | BJ86: 0.5847872172 | BK86: 0.1548824088 | BL86: 0.0259698977 | BM86: 0 | BN86: 0.03136626229 | BO86: 0.6208098223 | BP86: 0.7378522536 | BQ86: 0 | BR86: 0.5836344717 | BS86: 0.3077913969 | BT86: -0.09755899878 | BU86: 0.1291606851
A87: Refueling | B87: 21 | C87: =(C$99=1)*$F$3 +(C$99=2) +(C$99=3) +(C$99=4) +(C$99=5) -> 1 | D87: 1 | E87: 1 | F87: =(F$99=1)*$F$6 +(F$99=2) +(F$99=3) +(F$99=4) +(F$99=5) -> 1 | G87: =(G$99=1)*$F$7 +(G$99=2) +(G$99=3) +(G$99=4) +(G$99=5) -> 1 | H87: =(H$99=1)*$F$8 +(H$99=2) +(H$99=3) +(H$99=4) +(H$99=5) -> 1 | I87: =(I$99=1)*$F$9 +(I$99=2) +(I$99=3) +(I$99=4) +(I$99=5) -> 0.95 | BG87: 3.201750886 | BH87: 0 | BI87: 0.0330171182 | BJ87: 0.6155654918 | BK87: 0.1548824088 | BL87: 0.02737315072 | BM87: 0 | BN87: 0.0330171182 | BO87: 0.6570923647 | BP87: 0.7766865827 | BQ87: 0 | BR87: 0.6134615648 | BS87: 0.3239909441 | BT87: -0.103260238 | BU87: 0.1359586159
B88: 22 | C88: =(C$99=1)*$F$3 +(C$99=2)*$F$3 +(C$99=3) +(C$99=4) +(C$99=5) -> 1 | D88: 1 | E88: 1 | F88: =(F$99=1)*$F$6 +(F$99=2)*$F$6 +(F$99=3) +(F$99=4) +(F$99=5) -> 1 | G88: =(G$99=1)*$F$7 +(G$99=2)*$F$7 +(G$99=3) +(G$99=4) +(G$99=5) -> 1 | H88: =(H$99=1)*$F$8 +(H$99=2)*$F$8 +(H$99=3) +(H$99=4) +(H$99=5) -> 0.95 | I88: =(I$99=1)*$F$9 +(I$99=2)*$F$9 +(I$99=3) +(I$99=4) +(I$99=5) -> 0.95 | BG88: 3.150489326 | BH88: 0 | BI88: 0.03136626229 | BJ88: 0.5847872172 | BK88: 0.1548824088 | BL88: 0.02732480677 | BM88: 0 | BN88: 0.03136626229 | BO88: 0.6534840234 | BP88: 0.7766865827 | BQ88: 0 | BR88: 0.6134615648 | BS88: 0.3077913969 | BT88: -0.09708936022 | BU88: 0.1291606851
B89: 23 | C89: =(C$99=1)*$F$3 +(C$99=2)*$F$3 +(C$99=3)*$F$3 +(C$99=4) +(C$99=5) -> 1 | D89: 1 | E89: 1 | F89: =(F$99=1)*$F$6 +(F$99=2)*$F$6 +(F$99=3)*$F$6 +(F$99=4) +(F$99=5) -> 1 | G89: =(G$99=1)*$F$7 +(G$99=2)*$F$7 +(G$99=3)*$F$7 +(G$99=4) +(G$99=5) -> 0.95 | H89: =(H$99=1)*$F$8 +(H$99=2)*$F$8 +(H$99=3)*$F$8 +(H$99=4) +(H$99=5) -> 0.95 | I89: =(I$99=1)*$F$9 +(I$99=2)*$F$9 +(I$99=3)*$F$9 +(I$99=4) +(I$99=5) -> 0.95 | BG89: 3.120124843 | BH89: 0 | BI89: 0.03136626229 | BJ89: 0.5847872172 | BK89: 0.1548824088 | BL89: 0.02692574131 | BM89: 0 | BN89: 0.03136626229 | BO89: 0.6534840234 | BP89: 0.7766865827 | BQ89: 0 | BR89: 0.5836344717 | BS89: 0.3077913969 | BT89: -0.09722768429 | BU89: 0.1291606851
B90: 24 | C90: =(C$99=1)*$F$3 +(C$99=2)*$F$3 +(C$99=3)*$F$3 +(C$99=4)*$F$3 +(C$99=5) -> 1 | D90: 1 | E90: 1 | F90: =(F$99=1)*$F$6 +(F$99=2)*$F$6 +(F$99=3)*$F$6 +(F$99=4)*$F$6 +(F$99=5) -> 0.95 | G90: =(G$99=1)*$F$7 +(G$99=2)*$F$7 +(G$99=3)*$F$7 +(G$99=4)*$F$7 +(G$99=5) -> 0.95 | H90: =(H$99=1)*$F$8 +(H$99=2)*$F$8 +(H$99=3)*$F$8 +(H$99=4)*$F$8 +(H$99=5) -> 0.95 | I90: =(I$99=1)*$F$9 +(I$99=2)*$F$9 +(I$99=3)*$F$9 +(I$99=4)*$F$9 +(I$99=5) -> 0.95 | BG90: 3.086861141 | BH90: 0 | BI90: 0.03136626229 | BJ90: 0.5847872172 | BK90: 0.1548824088 | BL90: 0.02648797785 | BM90: 0 | BN90: 0.03136626229 | BO90: 0.6208098223 | BP90: 0.7766865827 | BQ90: 0 | BR90: 0.5836344717 | BS90: 0.3077913969 | BT90: -0.09737942185 | BU90: 0.1291606851
A91: Both | B91: 25 | C91: =(C$99=1)*$F$3 +(C$99=2)*$F$3 +(C$99=3)*$F$3 +(C$99=4)*$F$3 +(C$99=5)*$F$3 -> 1.05 | D91: 1 | E91: 1 | F91: =(F$99=1)*$F$6 +(F$99=2)*$F$6 +(F$99=3)*$F$6 +(F$99=4)*$F$6 +(F$99=5)*$F$6 -> 0.95 | G91: =(G$99=1)*$F$7 +(G$99=2)*$F$7 +(G$99=3)*$F$7 +(G$99=4)*$F$7 +(G$99=5)*$F$7 -> 0.95 | H91: =(H$99=1)*$F$8 +(H$99=2)*$F$8 +(H$99=3)*$F$8 +(H$99=4)*$F$8 +(H$99=5)*$F$8 -> 0.95 | I91: =(I$99=1)*$F$9 +(I$99=2)*$F$9 +(I$99=3)*$F$9 +(I$99=4)*$F$9 +(I$99=5)*$F$9 -> 0.95 | BG91: 3.047329155 | BH91: 0 | BI91: 0.03136626229 | BJ91: 0.5847872172 | BK91: 0.1548824088 | BL91: 0.0259698977 | BM91: 0 | BN91: 0.03136626229 | BO91: 0.6208098223 | BP91: 0.7378522536 | BQ91: 0 | BR91: 0.5836344717 | BS91: 0.3077913969 | BT91: -0.09755899878 | BU91: 0.1291606851
B92: 26 | C92: =(C$100=1)*$F$3 +(C$100=2) +(C$100=3) +(C$100=4) +(C$100=5) -> 1.05 | D92: 1 | E92: 1 | F92: =(F$100=1)*$F$6 +(F$100=2) +(F$100=3) +(F$100=4) +(F$100=5) -> 1 | G92: =(G$100=1)*$F$7 +(G$100=2) +(G$100=3) +(G$100=4) +(G$100=5) -> 1 | H92: =(H$100=1)*$F$8 +(H$100=2) +(H$100=3) +(H$100=4) +(H$100=5) -> 1 | I92: =(I$100=1)*$F$9 +(I$100=2) +(I$100=3) +(I$100=4) +(I$100=5) -> 1 | BG92: 3.201750886 | BH92: 0 | BI92: 0.0330171182 | BJ92: 0.6155654918 | BK92: 0.1548824088 | BL92: 0.02737315072 | BM92: 0 | BN92: 0.0330171182 | BO92: 0.6570923647 | BP92: 0.7766865827 | BQ92: 0 | BR92: 0.6134615648 | BS92: 0.3239909441 | BT92: -0.103260238 | BU92: 0.1359586159
B93: 27 | C93: =(C$100=1)*$F$3 +(C$100=2)*$F$3 +(C$100=3) +(C$100=4) +(C$100=5) -> 1.05 | D93: 1 | E93: 1 | F93: =(F$100=1)*$F$6 +(F$100=2)*$F$6 +(F$100=3) +(F$100=4) +(F$100=5) -> 1 | G93: =(G$100=1)*$F$7 +(G$100=2)*$F$7 +(G$100=3) +(G$100=4) +(G$100=5) -> 1 | H93: =(H$100=1)*$F$8 +(H$100=2)*$F$8 +(H$100=3) +(H$100=4) +(H$100=5) -> 0.95 | I93: =(I$100=1)*$F$9 +(I$100=2)*$F$9 +(I$100=3) +(I$100=4) +(I$100=5) -> 1 | BG93: 3.150489326 | BH93: 0 | BI93: 0.03136626229 | BJ93: 0.5847872172 | BK93: 0.1548824088 | BL93: 0.02732480677 | BM93: 0 | BN93: 0.03136626229 | BO93: 0.6534840234 | BP93: 0.7766865827 | BQ93: 0 | BR93: 0.6134615648 | BS93: 0.3077913969 | BT93: -0.09708936022 | BU93: 0.1291606851
B94: 28 | C94: =(C$100=1)*$F$3 +(C$100=2)*$F$3 +(C$100=3)*$F$3 +(C$100=4) +(C$100=5) -> 1.05 | D94: 1 | E94: 1 | F94: =(F$100=1)*$F$6 +(F$100=2)*$F$6 +(F$100=3)*$F$6 +(F$100=4) +(F$100=5) -> 0.95 | G94: =(G$100=1)*$F$7 +(G$100=2)*$F$7 +(G$100=3)*$F$7 +(G$100=4) +(G$100=5) -> 1 | H94: =(H$100=1)*$F$8 +(H$100=2)*$F$8 +(H$100=3)*$F$8 +(H$100=4) +(H$100=5) -> 0.95 | I94: =(I$100=1)*$F$9 +(I$100=2)*$F$9 +(I$100=3)*$F$9 +(I$100=4) +(I$100=5) -> 1 | BG94: 3.110957339 | BH94: 0 | BI94: 0.03136626229 | BJ94: 0.5847872172 | BK94: 0.1548824088 | BL94: 0.02680672662 | BM94: 0 | BN94: 0.03136626229 | BO94: 0.6534840234 | BP94: 0.7378522536 | BQ94: 0 | BR94: 0.6134615648 | BS94: 0.3077913969 | BT94: -0.09726893715 | BU94: 0.1291606851
B95: 29 | C95: =(C$100=1)*$F$3 +(C$100=2)*$F$3 +(C$100=3)*$F$3 +(C$100=4)*$F$3 +(C$100=5) -> 1.05 | D95: 1 | E95: 1 | F95: =(F$100=1)*$F$6 +(F$100=2)*$F$6 +(F$100=3)*$F$6 +(F$100=4)*$F$6 +(F$100=5) -> 0.95 | G95: =(G$100=1)*$F$7 +(G$100=2)*$F$7 +(G$100=3)*$F$7 +(G$100=4)*$F$7 +(G$100=5) -> 1 | H95: =(H$100=1)*$F$8 +(H$100=2)*$F$8 +(H$100=3)*$F$8 +(H$100=4)*$F$8 +(H$100=5) -> 0.95 | I95: =(I$100=1)*$F$9 +(I$100=2)*$F$9 +(I$100=3)*$F$9 +(I$100=4)*$F$9 +(I$100=5) -> 0.95 | BG95: 3.077693637 | BH95: 0 | BI95: 0.03136626229 | BJ95: 0.5847872172 | BK95: 0.1548824088 | BL95: 0.02636896317 | BM95: 0 | BN95: 0.03136626229 | BO95: 0.6208098223 | BP95: 0.7378522536 | BQ95: 0 | BR95: 0.6134615648 | BS95: 0.3077913969 | BT95: -0.09742067471 | BU95: 0.1291606851
B96: 30 | C96: =(C$100=1)*$F$3 +(C$100=2)*$F$3 +(C$100=3)*$F$3 +(C$100=4)*$F$3 +(C$100=5)*$F$3 -> 1.05 | D96: 1 | E96: 1 | F96: =(F$100=1)*$F$6 +(F$100=2)*$F$6 +(F$100=3)*$F$6 +(F$100=4)*$F$6 +(F$100=5)*$F$6 -> 0.95 | G96: =(G$100=1)*$F$7 +(G$100=2)*$F$7 +(G$100=3)*$F$7 +(G$100=4)*$F$7 +(G$100=5)*$F$7 -> 0.95 | H96: =(H$100=1)*$F$8 +(H$100=2)*$F$8 +(H$100=3)*$F$8 +(H$100=4)*$F$8 +(H$100=5)*$F$8 -> 0.95 | I96: =(I$100=1)*$F$9 +(I$100=2)*$F$9 +(I$100=3)*$F$9 +(I$100=4)*$F$9 +(I$100=5)*$F$9 -> 0.95 | BG96: 3.047329155 | BH96: 0 | BI96: 0.03136626229 | BJ96: 0.5847872172 | BK96: 0.1548824088 | BL96: 0.0259698977 | BM96: 0 | BN96: 0.03136626229 | BO96: 0.6208098223 | BP96: 0.7378522536 | BQ96: 0 | BR96: 0.5836344717 | BS96: 0.3077913969 | BT96: -0.09755899878 | BU96: 0.1291606851
B98: Production waterfall priority | C98: =6-RANK($S$130,($S$130,$S$133:$S$136)) -> 5 | F98: =6-RANK($S$133,($S$130,$S$133:$S$136)) -> 4 | G98: =6-RANK($S$134,($S$130,$S$133:$S$136)) -> 3 | H98: =6-RANK($S$135,($S$130,$S$133:$S$136)) -> 2 | I98: =6-RANK($S$136,($S$130,$S$133:$S$136)) -> 1
B99: Refueling waterfall priority | C99: =6-RANK($T$130,($T$130,$T$133:$T$136)) -> 5 | F99: =6-RANK($T$133,($T$130,$T$133:$T$136)) -> 4 | G99: =6-RANK($T$134,($T$130,$T$133:$T$136)) -> 3 | H99: =6-RANK($T$135,($T$130,$T$133:$T$136)) -> 2 | I99: =6-RANK($T$136,($T$130,$T$133:$T$136)) -> 1
B100: Both waterfall priority | C100: =6-RANK($U$130,($U$130,$U$133:$U$136)) -> 1 | F100: =6-RANK($U$133,($U$130,$U$133:$U$136)) -> 3 | G100: =6-RANK($U$134,($U$130,$U$133:$U$136)) -> 5 | H100: =6-RANK($U$135,($U$130,$U$133:$U$136)) -> 2 | I100: =6-RANK($U$136,($U$130,$U$133:$U$136)) -> 4
B104: Visualization data formatting
B106: parameter | C106: level | D106: Chart titles | E106: Revenue from Hydrogen Sales | F106: Revenue from Byproduct Sales | G106: Salvage Value | H106: Initial Equity Depreciable Capital | I106: Yearly Replacement Costs | J106: Cash for Working Capital Reserve | K106: Other Non-Depreciable Capital Costs | L106: Decommissioning Costs | M106: Fixed Operating Cost | N106: Feedstock Cost | O106: Other Raw Material Cost | P106: Other Variable Operating Costs | Q106: Debt Interest | R106: Taxes | S106: Principal Payment
B107: =+$B$3 -> Realized fraction of design capacity | C107: =+H3 -> 1.05 | D107: =+B107&" = "&C107*100&"%" -> Realized fraction of design capacity = 105% | E107: =+K68 -> 0 | F107: =+L68 -> 0 | G107: =+M68 -> 0 | H107: 0 | I107: 0 | J107: 0 | K107: 0 | L107: 0 | M107: 0 | N107: 0 | O107: 0 | P107: 0 | Q107: 0 | R107: 0 | S107: 0
B108: =+$B$3 -> Realized fraction of design capacity | C108: =+C3 -> 1 | D108: =+B108&" = "&C108*100&"%" -> Realized fraction of design capacity = 100% | E108: =+K$67 -> 0 | F108: 0 | G108: 0 | H108: 0 | I108: 0 | J108: 0 | K108: 0 | L108: 0 | M108: 0 | N108: 0 | O108: 0 | P108: 0 | Q108: 0 | R108: 0 | S108: 0
B109: Realized fraction of design capacity | C109: =+I3 -> 0.95 | D109: Realized fraction of design capacity = 95% | E109: =+K69 -> 0 | F109: 0 | G109: 0 | H109: 0 | I109: 0 | J109: 0 | K109: 0 | L109: 0 | M109: 0 | N109: 0 | O109: 0 | P109: 0 | Q109: 0 | R109: 0 | S109: 0
B110: =+$B$4 -> Plant design capacity (kg of H2/day) | C110: =ROUND(H4,0) -> 1575 | D110: =+B110&" = "&TEXT(C110,"0,000") -> Plant design capacity (kg of H2/day) = 1,575 | E110: 0 | F110: 0 | G110: 0 | H110: 0 | I110: 0 | J110: 0 | K110: 0 | L110: 0 | M110: 0 | N110: 0 | O110: 0 | P110: 0 | Q110: 0 | R110: 0 | S110: 0
B111: =+$B$4 -> Plant design capacity (kg of H2/day) | C111: =+ROUND(C4,0) -> 1500 | D111: =+B111&" = "&TEXT(C111,"0,000") -> Plant design capacity (kg of H2/day) = 1,500 | E111: =+K$67 -> 0 | F111: 0 | G111: 0 | H111: 0 | I111: 0 | J111: 0 | K111: 0 | L111: 0 | M111: 0 | N111: 0 | O111: 0 | P111: 0 | Q111: 0 | R111: 0 | S111: 0
B112: Plant design capacity (kg of H2/day) | C112: =ROUND(I4,0) -> 1425 | D112: Plant design capacity (kg of H2/day) = 1,425 | E112: =+K71 -> 0 | F112: 0 | G112: 0 | H112: 0 | I112: 0 | J112: 0 | K112: 0 | L112: 0 | M112: 0 | N112: 0 | O112: 0 | P112: 0 | Q112: 0 | R112: 0 | S112: 0
B113: =+$B$5 -> After-tax real IRR | C113: =+ROUND(H5,2) -> 0.08 | D113: =+B113&" = "&C113*100&"%" -> After-tax real IRR = 8% | E113: 0 | F113: 0 | G113: 0 | H113: 0 | I113: 0 | J113: 0 | K113: 0 | L113: 0 | M113: 0 | N113: 0 | O113: 0 | P113: 0 | Q113: 0 | R113: 0 | S113: 0
B114: =+$B$5 -> After-tax real IRR | C114: =ROUND(C5,2) -> 0.08 | D114: After-tax real IRR = 8% | E114: =+K$67 -> 0 | F114: 0 | G114: 0 | H114: 0 | I114: 0 | J114: 0 | K114: 0 | L114: 0 | M114: 0 | N114: 0 | O114: 0 | P114: 0 | Q114: 0 | R114: 0 | S114: 0
B115: After-tax real IRR | C115: =ROUND(I5,2) -> 0.08 | D115: After-tax real IRR = 8% | E115: =+K73 -> 0 | F115: 0 | G115: 0 | H115: 0 | I115: 0 | J115: 0 | K115: 0 | L115: 0 | M115: 0 | N115: 0 | O115: 0 | P115: 0 | Q115: 0 | R115: 0 | S115: 0
B116: =+$B$6 -> Feedstock consumption (% of baseline) | C116: =+ROUND(H6,3) -> 0.95 | D116: =+B116&" = "&C116*100&"%" -> Feedstock consumption (% of baseline) = 95% | E116: 0 | F116: 0 | G116: 0 | H116: 0 | I116: 0 | J116: 0 | K116: 0 | L116: 0 | M116: 0 | N116: 0 | O116: 0 | P116: 0 | Q116: 0 | R116: 0 | S116: 0
B117: =+$B$6 -> Feedstock consumption (% of baseline) | C117: =+ROUND(C6,3) -> 1 | D117: =+B117&" = "&C117*100&"%" -> Feedstock consumption (% of baseline) = 100% | E117: =+K$67 -> 0 | F117: 0 | G117: 0 | H117: 0 | I117: 0 | J117: 0 | K117: 0 | L117: 0 | M117: 0 | N117: 0 | O117: 0 | P117: 0 | Q117: 0 | R117: 0 | S117: 0
B118: Feedstock consumption (% of baseline) | C118: =+ROUND(I6,3) -> 1.05 | D118: =+B118&" = "&C118*100&"%" -> Feedstock consumption (% of baseline) = 105% | E118: =+K75 -> 0 | F118: 0 | G118: 0 | H118: 0 | I118: 0 | J118: 0 | K118: 0 | L118: 0 | M118: 0 | N118: 0 | O118: 0 | P118: 0 | Q118: 0 | R118: 0 | S118: 0
B119: =+$B$7 -> Utilities consumption (% of baseline) | C119: =+ROUND(H7,3) -> 0.95 | D119: =+B119&" = "&C119*100&"%" -> Utilities consumption (% of baseline) = 95% | E119: 0 | F119: 0 | G119: 0 | H119: 0 | I119: 0 | J119: 0 | K119: 0 | L119: 0 | M119: 0 | N119: 0 | O119: 0 | P119: 0 | Q119: 0 | R119: 0 | S119: 0
B120: =+$B$7 -> Utilities consumption (% of baseline) | C120: =+ROUND(C7,3) -> 1 | D120: Utilities consumption (% of baseline) = 100% | E120: =+K$67 -> 0 | F120: =+L$67 -> 0 | G120: 0 | H120: 0 | I120: 0 | J120: 0 | K120: 0 | L120: 0 | M120: 0 | N120: 0 | O120: 0 | P120: 0 | Q120: 0 | R120: 0 | S120: 0
B121: Utilities consumption (% of baseline) | C121: =+ROUND(I7,3) -> 1.05 | D121: Utilities consumption (% of baseline) = 105% | E121: =+K77 -> 0 | F121: 0 | G121: 0 | H121: 0 | I121: 0 | J121: 0 | K121: 0 | L121: 0 | M121: 0 | N121: 0 | O121: 0 | P121: 0 | Q121: 0 | R121: 0 | S121: 0
B122: =+$B$8 -> Total capital investment | C122: =+ROUND(H8,0) ->  | D122: =+B122&" = "&TEXT(C122/1000,"$0,000K") ->  | E122: 0 | F122: 0 | G122: 0 | H122: 0 | I122: 0 | J122: 0 | K122: 0 | L122: 0 | M122: 0 | N122: 0 | O122: 0 | P122: 0 | Q122: 0 | R122: 0 | S122: 0
B123: =+$B$8 -> Total capital investment | C123: =+ROUND(C8,0) ->  | E123: =+K$67 -> 0 | F123: 0 | G123: 0 | H123: 0 | I123: 0 | J123: 0 | K123: 0 | L123: 0 | M123: 0 | N123: 0 | O123: 0 | P123: 0 | Q123: 0 | R123: 0 | S123: 0
B124: Total capital investment | C124: =+ROUND(I8,0) ->  | E124: =+K79 -> 0 | F124: 0 | G124: 0 | H124: 0 | I124: 0 | J124: 0 | K124: 0 | L124: 0 | M124: 0 | N124: 0 | O124: 0 | P124: 0 | Q124: 0 | R124: 0 | S124: 0
B125: =+$B$9 -> Total fixed operating cost | C125: =+ROUND(H9,0) ->  | E125: 0 | F125: 0 | G125: 0 | H125: 0 | I125: 0 | J125: 0 | K125: 0 | L125: 0 | M125: 0 | N125: 0 | O125: 0 | P125: 0 | Q125: 0 | R125: 0 | S125: 0
B126: =+$B$9 -> Total fixed operating cost | C126: =+ROUND(C9,0) ->  | E126: =+K$67 -> 0 | F126: 0 | G126: 0 | H126: 0 | I126: 0 | J126: 0 | K126: 0 | L126: 0 | M126: 0 | N126: 0 | O126: 0 | P126: 0 | Q126: 0 | R126: 0 | S126: 0
B127: Total fixed operating cost | C127: =+ROUND(I9,0) ->  | E127: =+K81 -> 0 | F127: =+L81 -> 0 | G127: =+M81 -> 0 | H127: 0 | I127: 0 | J127: 0 | K127: 0 | L127: 0 | M127: 0 | N127: 0 | O127: 0 | P127: 0 | Q127: 0 | R127: 0 | S127: 0
P128: aa | Q128: aq | R128: bg
B129: Standard Toranado | C129: Rank | D129: Titles | E129: Low cost price | F129: Default price | G129: High price | H129: dL0 | I129: dL1 | J129: dL2 | L129: Unsorted titles | M129: Results spread ($/kg) | N129: Importance ranking | P129: Production spread ($/kg) | Q129: Refueling spread ($/kg) | R129: Both spread ($/kg) | S129: Production ranking | T129: Refueling ranking | U129: Both ranking
C130: 1 | D130: =OFFSET(L$129,MATCH($C130,$N$130:$N$136,0),0) ->  | E130: =OFFSET(E$106,MATCH($C130,$N$130:$N$136,0)*3-2,0) -> 0 | F130: =+$K$67 -> 0 | G130: =OFFSET(E$106,MATCH($C130,$N$130:$N$136,0)*3,0) -> 0 | H130: =MIN(E130:G130) -> 0 | I130: =+MEDIAN(E130:G130)-H130 -> 0 | J130: =+MAX(E130:G130)-MEDIAN(E130:G130) -> 0 | L130: =+B3&" ("&TEXT(H3,"0%, ")&TEXT(C3,"0%, ")&TEXT(I3,"0%)") -> Realized fraction of design capacity (105%, 100%, 95%) | M130: =ABS(K68-K69)+0.000000001 -> 1e-09 | N130: =+RANK(M130,$M$130:$M$136) -> 7 | P130: =ABS(AA68-AA69)+0.000000001 -> 1e-09 | Q130: =ABS(AQ68-AQ69)+0.000000001 -> 1e-09 | R130: =ABS(BG68-BG69)+0.000000001 -> 0.1898759493 | S130: =+RANK(P130,P$130:P$136) -> 7 | T130: =+RANK(Q130,Q$130:Q$136) -> 7 | U130: 1
C131: 2 | E131: 0 | F131: 0 | G131: 0 | H131: 0 | I131: 0 | J131: 0 | L131: =+B4&" ("&TEXT(C209,"0,000")&", "&TEXT(D209,"0,000")&", "&TEXT(E209,"0,000")&") " -> Plant design capacity (kg of H2/day) (1,575, 1,500, 1,425) | M131: =+ABS(K70-K71)+0.000000002 -> 2e-09 | N131: 6 | P131: =+ABS(AA70-AA71)+0.000000002 -> 2e-09 | Q131: =+ABS(AQ70-AQ71)+0.000000002 -> 2e-09 | R131: =+ABS(BG70-BG71)+0.000000002 -> 0.006129677174 | S131: =+RANK(P131,P$130:P$136) -> 6 | T131: 6 | U131: 7
C132: 3 | D132: Utilities consumption (% of baseline) (95%, 100%, 105%) | E132: 0 | F132: 0 | G132: 0 | H132: 0 | I132: 0 | J132: 0 | L132: =+B5&" ("&TEXT(H5,"0%, ")&TEXT(C5,"0%, ")&TEXT(I5,"0%)") -> After-tax real IRR (8%, 8%, 8%) | M132: =+ABS(K72-K73)+0.000000003 -> 3e-09 | N132: 5 | P132: =+ABS(AA72-AA73)+0.000000003 -> 3e-09 | Q132: =+ABS(AQ72-AQ73)+0.000000003 -> 3e-09 | R132: =+ABS(BG72-BG73)+0.000000003 -> 0.01506442406 | S132: 5 | T132: 5 | U132: 6
C133: 4 | D133: Feedstock consumption (% of baseline) (95%, 100%, 105%) | E133: 0 | F133: 0 | G133: 0 | H133: 0 | I133: 0 | J133: 0 | L133: =+B6&" ("&TEXT(H6,"0%, ")&TEXT(C6,"0%, ")&TEXT(I6,"0%)") -> Feedstock consumption (% of baseline) (95%, 100%, 105%) | M133: =+ABS(K74-K75)+0.000000004 -> 4e-09 | N133: 4 | P133: =+ABS(AA74-AA75)+0.000000004 -> 4e-09 | Q133: =+ABS(AQ74-AQ75)+0.000000004 -> 4e-09 | R133: =+ABS(BG74-BG75)+0.000000004 -> 0.07906397643 | S133: 4 | T133: 4 | U133: 3
C134: 5 | D134: After-tax real IRR (8%, 8%, 8%) | E134: 0 | F134: 0 | G134: 0 | H134: 0 | I134: 0 | J134: 0 | L134: =+B7&" ("&TEXT(H7,"0%, ")&TEXT(C7,"0%, ")&TEXT(I7,"0%)") -> Utilities consumption (% of baseline) (95%, 100%, 105%) | M134: =+ABS(K76-K77)+0.000000005 -> 5e-09 | N134: 3 | P134: =+ABS(AA76-AA77)+0.000000005 -> 5e-09 | Q134: =+ABS(AQ76-AQ77)+0.000000005 -> 5e-09 | R134: =+ABS(BG76-BG77)+0.000000005 -> 0.06072897023 | S134: 3 | T134: 3 | U134: 5
C135: 6 | D135: Plant design capacity (kg of H2/day) (1,575, 1,500, 1,425) | E135: 0 | F135: 0 | G135: 0 | H135: 0 | I135: 0 | J135: 0 | L135: =+B8&" ("&TEXT(H8/1000,"$0,000K")&", "&TEXT(C8/1000,"$0,000K")&", "&TEXT(I8/1000,"$0,000K")&") " ->  | M135: =+ABS(K78-K79)+0.000000006 -> 6e-09 | N135: 2 | P135: =+ABS(AA78-AA79)+0.000000006 -> 6e-09 | Q135: =+ABS(AQ78-AQ79)+0.000000006 -> 6e-09 | R135: =+ABS(BG78-BG79)+0.000000006 -> 0.107649282 | S135: 2 | T135: 2 | U135: 2
C136: 7 | D136: Realized fraction of design capacity (105%, 100%, 95%) | E136: 0 | F136: 0 | G136: 0 | H136: 0 | I136: 0 | J136: 0 | L136: =+B9&" ("&TEXT(H9/1000,"$0,000K")&", "&TEXT(C9/1000,"$0,000K")&", "&TEXT(I9/1000,"$0,000K")&") " ->  | M136: =+ABS(K80-K81)+0.00000007 -> 7e-08 | N136: 1 | P136: =+ABS(AA80-AA81)+0.00000007 -> 7e-08 | Q136: =+ABS(AQ80-AQ81)+0.00000007 -> 7e-08 | R136: =+ABS(BG80-BG81)+0.00000007 -> 0.07023955602 | S136: 1 | T136: 1 | U136: 4
B139: Simple bar chart | C139: Rank | D139: Chart titles | E139: Hydrogen Sales | F139: Byproduct Sales | G139: Salvage Value | H139: Initial Equity Depreciable Capital | I139: Yearly Replacement Costs | J139: Cash for Working Capital Reserve | K139: Other Non-Depreciable Capital Costs | L139: Decommissioning Costs | M139: Fixed Operating Cost | N139: Feedstock Cost | O139: Other Raw Material Cost | P139: Other Variable Operating Costs | Q139: Debt Interest | R139: Taxes | S139: Principal Payment
C140: 1 | D140: Base case | E140: =OFFSET(E$106,MATCH($C140,$N$130:$N$136,0)*3-1,0) -> 0 | F140: =OFFSET(F$106,MATCH($C140,$N$130:$N$136,0)*3-1,0) -> 0 | G140: =OFFSET(G$106,MATCH($C140,$N$130:$N$136,0)*3-1,0) -> 0
H141: =OFFSET(H$106,MATCH($C140,$N$130:$N$136,0)*3-1,0) -> 0 | I141: 0 | J141: 0 | K141: 0 | L141: 0 | M141: 0 | N141: 0 | O141: 0 | P141: 0 | Q141: 0 | R141: 0 | S141: 0
C144: 1 | D144: =OFFSET(D$106,MATCH($C144,$N$130:$N$136,0)*3-2,0) ->  | E144: =OFFSET(E$106,MATCH($C144,$N$130:$N$136,0)*3-2,0) -> 0 | F144: =OFFSET(F$106,MATCH($C144,$N$130:$N$136,0)*3-2,0) -> 0 | G144: =OFFSET(G$106,MATCH($C144,$N$130:$N$136,0)*3-2,0) -> 0
H145: =OFFSET(H$106,MATCH($C144,$N$130:$N$136,0)*3-2,0) -> 0 | I145: 0 | J145: 0 | K145: 0 | L145: 0 | M145: 0 | N145: 0 | O145: 0 | P145: 0 | Q145: 0 | R145: 0 | S145: 0
C146: 1 | D146: =OFFSET(D$106,MATCH($C146,$N$130:$N$136,0)*3,0) ->  | E146: =OFFSET(E$106,MATCH($C146,$N$130:$N$136,0)*3,0) -> 0 | F146: =OFFSET(F$106,MATCH($C146,$N$130:$N$136,0)*3,0) -> 0 | G146: =OFFSET(G$106,MATCH($C146,$N$130:$N$136,0)*3,0) -> 0
H147: =OFFSET(H$106,MATCH($C146,$N$130:$N$136,0)*3,0) -> 0 | I147: 0 | J147: 0 | K147: 0 | L147: 0 | M147: 0 | N147: 0 | O147: 0 | P147: 0 | Q147: 0 | R147: 0 | S147: 0
C149: 2 | D149: =OFFSET(D$106,MATCH($C149,$N$130:$N$136,0)*3-2,0) ->  | E149: =OFFSET(E$106,MATCH($C149,$N$130:$N$136,0)*3-2,0) -> 0 | F149: =OFFSET(F$106,MATCH($C149,$N$130:$N$136,0)*3-2,0) -> 0 | G149: =OFFSET(G$106,MATCH($C149,$N$130:$N$136,0)*3-2,0) -> 0
H150: =OFFSET(H$106,MATCH($C149,$N$130:$N$136,0)*3-2,0) -> 0 | I150: 0 | J150: 0 | K150: 0 | L150: 0 | M150: 0 | N150: 0 | O150: 0 | P150: 0 | Q150: 0 | R150: 0 | S150: 0
C151: 2 | D151: =OFFSET(D$106,MATCH($C151,$N$130:$N$136,0)*3,0) ->  | E151: =OFFSET(E$106,MATCH($C151,$N$130:$N$136,0)*3,0) -> 0 | F151: =OFFSET(F$106,MATCH($C151,$N$130:$N$136,0)*3,0) -> 0 | G151: =OFFSET(G$106,MATCH($C151,$N$130:$N$136,0)*3,0) -> 0
H152: =OFFSET(H$106,MATCH($C151,$N$130:$N$136,0)*3,0) -> 0 | I152: 0 | J152: 0 | K152: 0 | L152: 0 | M152: 0 | N152: 0 | O152: 0 | P152: 0 | Q152: 0 | R152: 0 | S152: 0
C154: 3 | D154: =OFFSET(D$106,MATCH($C154,$N$130:$N$136,0)*3-2,0) -> Utilities consumption (% of baseline) = 95% | E154: =OFFSET(E$106,MATCH($C154,$N$130:$N$136,0)*3-2,0) -> 0 | F154: =OFFSET(F$106,MATCH($C154,$N$130:$N$136,0)*3-2,0) -> 0 | G154: =OFFSET(G$106,MATCH($C154,$N$130:$N$136,0)*3-2,0) -> 0
H155: =OFFSET(H$106,MATCH($C154,$N$130:$N$136,0)*3-2,0) -> 0 | I155: 0 | J155: 0 | K155: 0 | L155: 0 | M155: 0 | N155: 0 | O155: 0 | P155: 0 | Q155: 0 | R155: 0 | S155: 0
C156: 3 | D156: =OFFSET(D$106,MATCH($C156,$N$130:$N$136,0)*3,0) -> Utilities consumption (% of baseline) = 105% | E156: =OFFSET(E$106,MATCH($C156,$N$130:$N$136,0)*3,0) -> 0 | F156: =OFFSET(F$106,MATCH($C156,$N$130:$N$136,0)*3,0) -> 0 | G156: =OFFSET(G$106,MATCH($C156,$N$130:$N$136,0)*3,0) -> 0
H157: =OFFSET(H$106,MATCH($C156,$N$130:$N$136,0)*3,0) -> 0 | I157: 0 | J157: 0 | K157: 0 | L157: 0 | M157: 0 | N157: 0 | O157: 0 | P157: 0 | Q157: 0 | R157: 0 | S157: 0
C159: 4 | D159: =OFFSET(D$106,MATCH($C159,$N$130:$N$136,0)*3-2,0) -> Feedstock consumption (% of baseline) = 95% | E159: =OFFSET(E$106,MATCH($C159,$N$130:$N$136,0)*3-2,0) -> 0 | F159: =OFFSET(F$106,MATCH($C159,$N$130:$N$136,0)*3-2,0) -> 0 | G159: =OFFSET(G$106,MATCH($C159,$N$130:$N$136,0)*3-2,0) -> 0
H160: =OFFSET(H$106,MATCH($C159,$N$130:$N$136,0)*3-2,0) -> 0 | I160: 0 | J160: 0 | K160: 0 | L160: 0 | M160: 0 | N160: 0 | O160: 0 | P160: 0 | Q160: 0 | R160: 0 | S160: 0
C161: 4 | D161: =OFFSET(D$106,MATCH($C161,$N$130:$N$136,0)*3,0) -> Feedstock consumption (% of baseline) = 105% | E161: =OFFSET(E$106,MATCH($C161,$N$130:$N$136,0)*3,0) -> 0 | F161: =OFFSET(F$106,MATCH($C161,$N$130:$N$136,0)*3,0) -> 0 | G161: =OFFSET(G$106,MATCH($C161,$N$130:$N$136,0)*3,0) -> 0
H162: =OFFSET(H$106,MATCH($C161,$N$130:$N$136,0)*3,0) -> 0 | I162: 0 | J162: 0 | K162: 0 | L162: 0 | M162: 0 | N162: 0 | O162: 0 | P162: 0 | Q162: 0 | R162: 0 | S162: 0
C164: 5 | D164: =OFFSET(D$106,MATCH($C164,$N$130:$N$136,0)*3-2,0) -> After-tax real IRR = 8% | E164: =OFFSET(E$106,MATCH($C164,$N$130:$N$136,0)*3-2,0) -> 0 | F164: =OFFSET(F$106,MATCH($C164,$N$130:$N$136,0)*3-2,0) -> 0 | G164: =OFFSET(G$106,MATCH($C164,$N$130:$N$136,0)*3-2,0) -> 0
H165: =OFFSET(H$106,MATCH($C164,$N$130:$N$136,0)*3-2,0) -> 0 | I165: 0 | J165: 0 | K165: 0 | L165: 0 | M165: 0 | N165: 0 | O165: 0 | P165: 0 | Q165: 0 | R165: 0 | S165: 0
C166: 5 | D166: =OFFSET(D$106,MATCH($C166,$N$130:$N$136,0)*3,0) -> After-tax real IRR = 8% | E166: =OFFSET(E$106,MATCH($C166,$N$130:$N$136,0)*3,0) -> 0 | F166: =OFFSET(F$106,MATCH($C166,$N$130:$N$136,0)*3,0) -> 0 | G166: =OFFSET(G$106,MATCH($C166,$N$130:$N$136,0)*3,0) -> 0
H167: =OFFSET(H$106,MATCH($C166,$N$130:$N$136,0)*3,0) -> 0 | I167: 0 | J167: 0 | K167: 0 | L167: 0 | M167: 0 | N167: 0 | O167: 0 | P167: 0 | Q167: 0 | R167: 0 | S167: 0
C169: 6 | D169: =OFFSET(D$106,MATCH($C169,$N$130:$N$136,0)*3-2,0) -> Plant design capacity (kg of H2/day) = 1,575 | E169: =OFFSET(E$106,MATCH($C169,$N$130:$N$136,0)*3-2,0) -> 0 | F169: =OFFSET(F$106,MATCH($C169,$N$130:$N$136,0)*3-2,0) -> 0 | G169: =OFFSET(G$106,MATCH($C169,$N$130:$N$136,0)*3-2,0) -> 0
H170: =OFFSET(H$106,MATCH($C169,$N$130:$N$136,0)*3-2,0) -> 0 | I170: 0 | J170: 0 | K170: 0 | L170: 0 | M170: 0 | N170: 0 | O170: 0 | P170: 0 | Q170: 0 | R170: 0 | S170: 0
C171: 6 | D171: =OFFSET(D$106,MATCH($C171,$N$130:$N$136,0)*3,0) -> Plant design capacity (kg of H2/day) = 1,425 | E171: =OFFSET(E$106,MATCH($C171,$N$130:$N$136,0)*3,0) -> 0 | F171: =OFFSET(F$106,MATCH($C171,$N$130:$N$136,0)*3,0) -> 0 | G171: =OFFSET(G$106,MATCH($C171,$N$130:$N$136,0)*3,0) -> 0
H172: =OFFSET(H$106,MATCH($C171,$N$130:$N$136,0)*3,0) -> 0 | I172: 0 | J172: 0 | K172: 0 | L172: 0 | M172: 0 | N172: 0 | O172: 0 | P172: 0 | Q172: 0 | R172: 0 | S172: 0
C174: 7 | D174: =OFFSET(D$106,MATCH($C174,$N$130:$N$136,0)*3-2,0) -> Realized fraction of design capacity = 105% | E174: =OFFSET(E$106,MATCH($C174,$N$130:$N$136,0)*3-2,0) -> 0 | F174: =OFFSET(F$106,MATCH($C174,$N$130:$N$136,0)*3-2,0) -> 0 | G174: =OFFSET(G$106,MATCH($C174,$N$130:$N$136,0)*3-2,0) -> 0
H175: =OFFSET(H$106,MATCH($C174,$N$130:$N$136,0)*3-2,0) -> 0 | I175: 0 | J175: 0 | K175: 0 | L175: 0 | M175: 0 | N175: 0 | O175: 0 | P175: 0 | Q175: 0 | R175: 0 | S175: 0
C176: 7 | D176: =OFFSET(D$106,MATCH($C176,$N$130:$N$136,0)*3,0) -> Realized fraction of design capacity = 95% | E176: =OFFSET(E$106,MATCH($C176,$N$130:$N$136,0)*3,0) -> 0 | F176: =OFFSET(F$106,MATCH($C176,$N$130:$N$136,0)*3,0) -> 0 | G176: =OFFSET(G$106,MATCH($C176,$N$130:$N$136,0)*3,0) -> 0
H177: =OFFSET(H$106,MATCH($C176,$N$130:$N$136,0)*3,0) -> 0 | I177: 0 | J177: 0 | K177: 0 | L177: 0 | M177: 0 | N177: 0 | O177: 0 | P177: 0 | Q177: 0 | R177: 0 | S177: 0
B181: Parado chart
D182: Unsorted
D183: Title | E183: Unsorted production values | F183: Unsorted refueling values | G183: Unsorted total | I183: Y value | J183: Unsorted Ranking | K183: Sorted ranking | L183: Sorted titles | M183: Sorted production values | N183: Sorted refueling values | O183: Sorted total value | R183: Grayed Titles | S183: Colored titles | T183: Revenues $/kg H2 | U183: Expenses $/kg H2 | W183: Revenues $/kg H2 | X183: Expenses $/kg H2
B184: Revenues | C184: 1 | D184: Cost of Hydrogen | E184: =+AA64+C184/10000000000 ->  | F184: =+AQ64+C184/10000000000 -> 1.790158465 | G184: =+F184+E184 ->  | I184: 16 | J184: =+RANK(G184,$G$184:$G$186) ->  | K184: 1 | L184: =OFFSET($D$183,MATCH($K184,$J$184:$J$186,0),0) ->  | M184: =OFFSET($E$183,MATCH($K184,$J$184:$J$186,0),0)-OFFSET($C$183,MATCH($K184,$J$184:$J$186,0),0)/10000000000 ->  | N184: =OFFSET($F$183,MATCH($K184,$J$184:$J$186,0),0)-OFFSET($C$183,MATCH($K184,$J$184:$J$186,0),0)/10000000000 ->  | O184: =+SUM(M184:N184) ->  | R184: =+L184 ->  | S184: =+IF(O184>0,R184,"") ->  | T184: =+M184 ->  | W184: =+N184 -> 
C185: 2 | D185: =+F139 -> Byproduct Sales | E185: =+AB64+C185/10000000000 -> 2e-10 | F185: =+AR64+C185/10000000000 -> 2e-10 | G185: =+F185+E185 -> 4e-10 | I185: =+I184-1 -> 15 | J185: =+RANK(G185,$G$184:$G$186) ->  | K185: 2 | L185: =OFFSET($D$183,MATCH($K185,$J$184:$J$186,0),0) ->  | M185: =OFFSET($E$183,MATCH($K185,$J$184:$J$186,0),0)-OFFSET($C$183,MATCH($K185,$J$184:$J$186,0),0)/10000000000 ->  | N185: =OFFSET($F$183,MATCH($K185,$J$184:$J$186,0),0)-OFFSET($C$183,MATCH($K185,$J$184:$J$186,0),0)/10000000000 ->  | O185: =+SUM(M185:N185) ->  | R185: =+L185 ->  | S185: =+IF(O185>0,R185,"") ->  | T185: =+M185 ->  | W185: =+N185 -> 
C186: 3 | D186: =+G139 -> Salvage Value | E186: =+AC64+C186/10000000000 ->  | F186: =+AS64+C186/10000000000 -> 0.02628993665 | G186: =+F186+E186 ->  | I186: =+I185-1 -> 14 | K186: 3 | L186: =OFFSET($D$183,MATCH($K186,$J$184:$J$186,0),0) ->  | M186: =OFFSET($E$183,MATCH($K186,$J$184:$J$186,0),0)-OFFSET($C$183,MATCH($K186,$J$184:$J$186,0),0)/10000000000 ->  | N186: =OFFSET($F$183,MATCH($K186,$J$184:$J$186,0),0)-OFFSET($C$183,MATCH($K186,$J$184:$J$186,0),0)/10000000000 -> 
I187: 13 | S187: =+IF(T187>0.01,R187,"") -> 
B188: Expenses | C188: 1 | D188: =+H139 -> Initial Equity Depreciable Capital | E188: =+AD64+C188/10000000000 ->  | F188: =+AT64+C188/10000000000 -> 0.4901450666 | G188: =+F188+E188 ->  | I188: 12 | J188: =+RANK(G188,$G$188:$G$199) ->  | K188: 1 | L188: =OFFSET($D$187,MATCH($K188,$J$188:$J$199,0),0) ->  | M188: =OFFSET($E$187,MATCH($K188,$J$188:$J$199,0),0)-OFFSET($C$187,MATCH($K188,$J$188:$J$199,0),0)/10000000000 ->  | N188: =OFFSET($F$187,MATCH($K188,$J$188:$J$199,0),0)-OFFSET($C$187,MATCH($K188,$J$188:$J$199,0),0)/10000000000 ->  | O188: =+SUM(M188:N188) ->  | S188: =+IF(O188>0,R188,"") ->  | U188: =+M188 ->  | X188: =+N188 -> 
C189: =+C188+1 -> 2 | D189: =+I139 -> Yearly Replacement Costs | E189: =+AE64+C189/10000000000 ->  | F189: =+AU64+C189/10000000000 -> 0.06576497178 | I189: 11 | J189: =+RANK(G189,$G$188:$G$199) ->  | K189: 2 | S189: =+IF(O189>0,R189,"") ->  | U189: =+M189 ->  | X189: =+N189 -> 
C190: =+C189+1 -> 3 | D190: =+J139 -> Cash for Working Capital Reserve | E190: =+AF64+C190/10000000000 ->  | F190: =+AV64+C190/10000000000 -> 0.01264976586 | I190: 10 | K190: 3
C191: 4 | D191: =+K139 -> Other Non-Depreciable Capital Costs | E191: =+AG64+C191/10000000000 ->  | F191: =+AW64+C191/10000000000 -> 4e-10 | I191: 9 | K191: 4
C192: 5 | D192: =+L139 -> Decommissioning Costs | E192: =+AH64+C192/10000000000 ->  | F192: =+AX64+C192/10000000000 -> 0.02628993685 | I192: 8 | K192: 5
C193: 6 | D193: =+M139 -> Fixed Operating Cost | E193: =+AI64+C193/10000000000 ->  | F193: =+AY64+C193/10000000000 -> 0.4707024829 | I193: 7 | K193: 6
C194: 7 | D194: =+N139 -> Feedstock Cost | E194: =+AJ64+C194/10000000000 -> 7e-10 | F194: =+AZ64+C194/10000000000 -> 7e-10 | G194: 1.4e-09 | I194: 6 | K194: 7
C195: 8 | D195: =+O139 -> Other Raw Material Cost | E195: =+AK64+C195/10000000000 -> 8e-10 | F195: =+BA64+C195/10000000000 -> 8e-10 | G195: 1.6e-09 | I195: 5 | K195: 8
C196: 9 | D196: =+P139 -> Other Variable Operating Costs | E196: =+AL64+C196/10000000000 -> 0.004062221336 | F196: =+BB64+C196/10000000000 -> 0.4741186327 | G196: 0.478180854 | I196: 4 | K196: 9
C197: 10 | D197: =+Q139 -> Debt Interest | E197: =+AM64+C197/10000000000 ->  | F197: =+BC64+C197/10000000000 -> 0.2579783396 | I197: 3 | K197: 10
C198: 11 | D198: =+R139 -> Taxes | E198: =+AN64+C198/10000000000 ->  | F198: =+BD64+C198/10000000000 -> -0.08945806881 | I198: 2 | K198: 11
C199: 12 | D199: =+S139 -> Principal Payment | E199: =+AO64+C199/10000000000 ->  | F199: =+BE64+C199/10000000000 -> 0.1082572796 | I199: 1 | K199: 12
R200: Total | T200: =+SUM(T184:T199) ->  | U200: =+SUM(U184:U199) ->  | W200: =+SUM(W184:W199) ->  | X200: =+SUM(X184:X199) -> 
B203: Fix for plant capacity tornado chart (sizes are not always monotonous vs. capacity)
B204: Size | C204: =+H4 -> 1575 | D204: =+C4 -> 1500 | E204: =+I4 -> 1425
B205: Hydrogen cost | C205: =+K70+0.000000001 -> 1e-09 | D205: =+K67+0.000000002 -> 2e-09 | E205: =+K71+0.000000003 -> 3e-09
B206: Rank | C206: =4-RANK(C205,$C$205:$E$205) -> 1 | D206: =4-RANK(D205,$C$205:$E$205) -> 2 | E206: 3
B208: Sorted
B209: Size | C209: =+OFFSET($B$204,0,MATCH(1,$C206:$E206,0)) -> 1575 | D209: =+OFFSET($B$204,0,MATCH(2,$C206:$E206,0)) -> 1500 | E209: =+OFFSET($B$204,0,MATCH(3,$C206:$E206,0)) -> 1425
B212: Data for visuals in Results sheet
D213: =+'Production Cash Flow Analysis'!F64 -> Revenue | E213: =+'Production Cash Flow Analysis'!G64 -> Portion of Initial Depreciable Capital Investment Financed with Debt (value ONLY used in debt financing calculations) | F213: =+'Production Cash Flow Analysis'!H64 -> Initial Equity Depreciable Capital | G213: =+'Production Cash Flow Analysis'!I64 -> Yearly Replacement Costs | H213: =+'Production Cash Flow Analysis'!J64 -> Working Capital | I213: =+'Production Cash Flow Analysis'!K64 -> Other Non-Depreciable Capital Costs | J213: =+'Production Cash Flow Analysis'!L64 -> Salvage Value | K213: =+'Production Cash Flow Analysis'!M64 -> Decommissioning Costs | L213: =+'Production Cash Flow Analysis'!N64 -> Fixed Operating Cost | M213: =+'Production Cash Flow Analysis'!O64 -> Feed Cost | N213: =+'Production Cash Flow Analysis'!P64 -> Other Raw Material Cost | O213: =+'Production Cash Flow Analysis'!Q64 -> Byproduct Credit | P213: =+'Production Cash Flow Analysis'!R64 -> Other Variable Operating Costs | Q213: =+'Production Cash Flow Analysis'!S64 -> Debt Interest | R213: =+'Production Cash Flow Analysis'!T64 -> Pre-Depreciation Income | S213: =+'Production Cash Flow Analysis'!U64 -> Depreciation Charge | T213: =+'Production Cash Flow Analysis'!V64 -> Taxable Income | U213: =+'Production Cash Flow Analysis'!W64 -> Tax Rate | V213: =+'Production Cash Flow Analysis'!X64 -> Total Taxes | W213: =+'Production Cash Flow Analysis'!Y64 -> After-Tax Income | X213: =+'Production Cash Flow Analysis'!Z64 -> Principal Payment | Y213: =+'Production Cash Flow Analysis'!AA64 -> After-Tax Post-Depreciation Cash Flow | Z213: =+'Production Cash Flow Analysis'!AB64 -> Cumulative Cash Flow | AA213: =+'Production Cash Flow Analysis'!AC64 -> Pre-Tax Cash Flow | AB213: =+'Production Cash Flow Analysis'!AD64 -> 0 | AC213: =+'Production Cash Flow Analysis'!AE64 -> H2 sales (kg/year) | AD213: =+'Production Cash Flow Analysis'!AF64 -> Tax Credit | AE213: =+'Production Cash Flow Analysis'!AG64 -> output_kgyear
C214: =+'Production Cash Flow Analysis'!E117 -> Expenses $/kg H2 | D214: =+'Refueling Cash Flow Analysis'!F117 -> 0 | E214: =+'Refueling Cash Flow Analysis'!G117 -> 0 | F214: =+'Refueling Cash Flow Analysis'!H117 -> 0.4901450665 | G214: =+'Refueling Cash Flow Analysis'!I117 -> 0.06576497158 | H214: =+'Refueling Cash Flow Analysis'!J117 -> 0.01264976556 | I214: =+'Refueling Cash Flow Analysis'!K117 -> 0 | J214: =+'Refueling Cash Flow Analysis'!L117 -> 0 | K214: =+'Refueling Cash Flow Analysis'!M117 -> 0.02628993635 | L214: =+'Refueling Cash Flow Analysis'!N117 -> 0.4707024823 | M214: =+'Refueling Cash Flow Analysis'!O117 -> 0 | N214: =+'Refueling Cash Flow Analysis'!P117 -> 0 | O214: =+'Refueling Cash Flow Analysis'!Q117 -> 0 | P214: =+'Refueling Cash Flow Analysis'!R117 -> 0.4741186318 | Q214: =+'Refueling Cash Flow Analysis'!S117 -> 0.2579783386 | R214: =+'Refueling Cash Flow Analysis'!T117 -> 0 | S214: =+'Refueling Cash Flow Analysis'!U117 -> 0 | T214: =+'Refueling Cash Flow Analysis'!V117 -> 0 | U214: =+'Refueling Cash Flow Analysis'!W117 -> 0 | V214: =+'Refueling Cash Flow Analysis'!X117 -> -0.08945806991 | W214: =+'Refueling Cash Flow Analysis'!Y117 -> 0 | X214: =+'Refueling Cash Flow Analysis'!Z117 -> 0.1082572784 | Y214: =+'Refueling Cash Flow Analysis'!AA117 -> 0 | Z214: =+'Refueling Cash Flow Analysis'!AB117 -> 0 | AA214: =+'Refueling Cash Flow Analysis'!AC117 -> 0 | AB214: =+'Refueling Cash Flow Analysis'!AD117 -> 0 | AC214: =+'Refueling Cash Flow Analysis'!AE117 -> 0 | AD214: =+'Refueling Cash Flow Analysis'!AF117 -> 0 | AE214: =+'Refueling Cash Flow Analysis'!AG117 -> 1.816448401
C215: =+'Production Cash Flow Analysis'!E118 -> Revenues $/kg H2 | D215: =+'Refueling Cash Flow Analysis'!F118 -> 1.790158465 | E215: =+'Refueling Cash Flow Analysis'!G118 -> 0 | F215: =+'Refueling Cash Flow Analysis'!H118 -> 0 | G215: =+'Refueling Cash Flow Analysis'!I118 -> 0 | H215: =+'Refueling Cash Flow Analysis'!J118 -> 0 | I215: =+'Refueling Cash Flow Analysis'!K118 -> 0 | J215: =+'Refueling Cash Flow Analysis'!L118 -> 0.02628993635 | K215: =+'Refueling Cash Flow Analysis'!M118 -> 0 | L215: =+'Refueling Cash Flow Analysis'!N118 -> 0 | M215: =+'Refueling Cash Flow Analysis'!O118 -> 0 | N215: =+'Refueling Cash Flow Analysis'!P118 -> 0 | O215: =+'Refueling Cash Flow Analysis'!Q118 -> 0 | P215: =+'Refueling Cash Flow Analysis'!R118 -> 0 | Q215: =+'Refueling Cash Flow Analysis'!S118 -> 0 | R215: =+'Refueling Cash Flow Analysis'!T118 -> 0 | S215: =+'Refueling Cash Flow Analysis'!U118 -> 0 | T215: =+'Refueling Cash Flow Analysis'!V118 -> 0 | U215: =+'Refueling Cash Flow Analysis'!W118 -> 0 | V215: =+'Refueling Cash Flow Analysis'!X118 -> 0 | W215: =+'Refueling Cash Flow Analysis'!Y118 -> 0 | X215: =+'Refueling Cash Flow Analysis'!Z118 -> 0 | Y215: =+'Refueling Cash Flow Analysis'!AA118 -> 0 | Z215: =+'Refueling Cash Flow Analysis'!AB118 -> 0 | AA215: =+'Refueling Cash Flow Analysis'!AC118 -> 0 | AB215: =+'Refueling Cash Flow Analysis'!AD118 -> 0 | AC215: =+'Refueling Cash Flow Analysis'!AE118 -> 0 | AD215: =+'Refueling Cash Flow Analysis'!AF118 -> 0 | AE215: =+'Refueling Cash Flow Analysis'!AG118 -> 1.816448401
C217: =+C214 -> Expenses $/kg H2 | D217: =+'Production Cash Flow Analysis'!F117 -> 0 | E217: =+'Production Cash Flow Analysis'!G117 -> 0 | F217: =+'Production Cash Flow Analysis'!H117 ->  | G217: =+'Production Cash Flow Analysis'!I117 ->  | H217: =+'Production Cash Flow Analysis'!J117 ->  | I217: =+'Production Cash Flow Analysis'!K117 ->  | J217: =+'Production Cash Flow Analysis'!L117 -> 0 | K217: =+'Production Cash Flow Analysis'!M117 ->  | L217: =+'Production Cash Flow Analysis'!N117 ->  | M217: =+'Production Cash Flow Analysis'!O117 -> 0 | N217: =+'Production Cash Flow Analysis'!P117 -> 0 | O217: =+'Production Cash Flow Analysis'!Q117 -> 0 | P217: =+'Production Cash Flow Analysis'!R117 -> 0.004062220436 | Q217: =+'Production Cash Flow Analysis'!S117 ->  | R217: =+'Production Cash Flow Analysis'!T117 -> 0 | S217: =+'Production Cash Flow Analysis'!U117 -> 0 | T217: =+'Production Cash Flow Analysis'!V117 -> 0 | U217: =+'Production Cash Flow Analysis'!W117 -> 0 | V217: =+'Production Cash Flow Analysis'!X117 ->  | W217: =+'Production Cash Flow Analysis'!Y117 -> 0 | X217: =+'Production Cash Flow Analysis'!Z117 ->  | Y217: =+'Production Cash Flow Analysis'!AA117 -> 0 | Z217: =+'Production Cash Flow Analysis'!AB117 -> 0 | AA217: =+'Production Cash Flow Analysis'!AC117 -> 0 | AB217: =+'Production Cash Flow Analysis'!AD117 -> 0 | AC217: =+'Production Cash Flow Analysis'!AE117 -> 0 | AD217: =+'Production Cash Flow Analysis'!AF117 -> 0 | AE217: =+'Production Cash Flow Analysis'!AG117 -> 
C218: =+C215 -> Revenues $/kg H2 | D218: =+'Production Cash Flow Analysis'!F118 ->  | E218: =+'Production Cash Flow Analysis'!G118 -> 0 | F218: =+'Production Cash Flow Analysis'!H118 -> 0 | G218: =+'Production Cash Flow Analysis'!I118 -> 0 | H218: =+'Production Cash Flow Analysis'!J118 -> 0 | I218: =+'Production Cash Flow Analysis'!K118 -> 0 | J218: =+'Production Cash Flow Analysis'!L118 ->  | K218: =+'Production Cash Flow Analysis'!M118 -> 0 | L218: =+'Production Cash Flow Analysis'!N118 -> 0 | M218: =+'Production Cash Flow Analysis'!O118 -> 0 | N218: =+'Production Cash Flow Analysis'!P118 -> 0 | O218: =+'Production Cash Flow Analysis'!Q118 -> 0 | P218: =+'Production Cash Flow Analysis'!R118 -> 0 | Q218: =+'Production Cash Flow Analysis'!S118 -> 0 | R218: =+'Production Cash Flow Analysis'!T118 -> 0 | S218: =+'Production Cash Flow Analysis'!U118 -> 0 | T218: =+'Production Cash Flow Analysis'!V118 -> 0 | U218: =+'Production Cash Flow Analysis'!W118 -> 0 | V218: =+'Production Cash Flow Analysis'!X118 -> 0 | W218: =+'Production Cash Flow Analysis'!Y118 -> 0 | X218: =+'Production Cash Flow Analysis'!Z118 -> 0 | Y218: =+'Production Cash Flow Analysis'!AA118 -> 0 | Z218: =+'Production Cash Flow Analysis'!AB118 -> 0 | AA218: =+'Production Cash Flow Analysis'!AC118 -> 0 | AB218: =+'Production Cash Flow Analysis'!AD118 -> 0 | AC218: =+'Production Cash Flow Analysis'!AE118 -> 0 | AD218: =+'Production Cash Flow Analysis'!AF118 -> 0 | AE218: =+'Production Cash Flow Analysis'!AG118 -> 
B220: Waterfall Chart | D220: Value | E220: Base | F220: Decrease | G220: Increase
B221: 0 | C221: Baseline | D221: =($D$14="Production")*$AA$67+ ($D$14="Refueling")*$AQ$67+ ($D$14="Both")*$BG$67 -> 0 | E221: =+D221 -> 0
B222: 1 | C222: =OFFSET($B$66,0,MATCH($B222, IF($D$14="Production",$C$98:$I$98, IF($D$14="Refueling",$C$99:$I$99, $C$100:$I$100)),0))& IF(OFFSET($F$2,MATCH($B222,IF($D$14="Production",$C$98:$I$98, IF($D$14="Refueling",$C$99:$I$99, $C$100:$I$100)),0),0)<1, " = "&OFFSET($F$2,MATCH($B222,IF($D$14="Production",$C$98:$I$98, IF($D$14="Refueling",$C$99:$I$99, $C$100:$I$100)),0),0)*100-100, " = +"&OFFSET($F$2,MATCH($B222,IF($D$14="Production",$C$98:$I$98, IF($D$14="Refueling",$C$99:$I$99, $C$100:$I$100)),0),0)*100-100) &"%" -> Total Fixed Operating Cost = -5% | D222: =($D$14="Production")*$AA$82+ ($D$14="Refueling")*$AQ$87+ ($D$14="Both")*$BG$92 -> 0 | E222: =+E221+G221-F222 -> 0 | F222: =+MAX(D221-D222,0) -> 0 | G222: =+MAX(D222-D221,0) -> 0
B223: 2 | C223: =OFFSET($B$66,0,MATCH($B223, IF($D$14="Production",$C$98:$I$98, IF($D$14="Refueling",$C$99:$I$99, $C$100:$I$100)),0))& IF(OFFSET($F$2,MATCH($B223,IF($D$14="Production",$C$98:$I$98, IF($D$14="Refueling",$C$99:$I$99, $C$100:$I$100)),0),0)<1, " = "&OFFSET($F$2,MATCH($B223,IF($D$14="Production",$C$98:$I$98, IF($D$14="Refueling",$C$99:$I$99, $C$100:$I$100)),0),0)*100-100, " = +"&OFFSET($F$2,MATCH($B223,IF($D$14="Production",$C$98:$I$98, IF($D$14="Refueling",$C$99:$I$99, $C$100:$I$100)),0),0)*100-100) &"%" -> Total Capital Investment = -5% | D223: =($D$14="Production")*$AA$83+ ($D$14="Refueling")*$AQ$88+ ($D$14="Both")*$BG$93 -> 0 | E223: 0 | F223: =+MAX(D222-D223,0) -> 0 | G223: =+MAX(D223-D222,0) -> 0
B224: 3 | C224: =OFFSET($B$66,0,MATCH($B224, IF($D$14="Production",$C$98:$I$98, IF($D$14="Refueling",$C$99:$I$99, $C$100:$I$100)),0))& IF(OFFSET($F$2,MATCH($B224,IF($D$14="Production",$C$98:$I$98, IF($D$14="Refueling",$C$99:$I$99, $C$100:$I$100)),0),0)<1, " = "&OFFSET($F$2,MATCH($B224,IF($D$14="Production",$C$98:$I$98, IF($D$14="Refueling",$C$99:$I$99, $C$100:$I$100)),0),0)*100-100, " = +"&OFFSET($F$2,MATCH($B224,IF($D$14="Production",$C$98:$I$98, IF($D$14="Refueling",$C$99:$I$99, $C$100:$I$100)),0),0)*100-100) &"%" -> Utilities consumption = -5% | D224: =($D$14="Production")*$AA$84+ ($D$14="Refueling")*$AQ$89+ ($D$14="Both")*$BG$94 -> 0 | E224: 0 | F224: =+MAX(D223-D224,0) -> 0 | G224: =+MAX(D224-D223,0) -> 0
B225: 4 | C225: =OFFSET($B$66,0,MATCH($B225, IF($D$14="Production",$C$98:$I$98, IF($D$14="Refueling",$C$99:$I$99, $C$100:$I$100)),0))& IF(OFFSET($F$2,MATCH($B225,IF($D$14="Production",$C$98:$I$98, IF($D$14="Refueling",$C$99:$I$99, $C$100:$I$100)),0),0)<1, " = "&OFFSET($F$2,MATCH($B225,IF($D$14="Production",$C$98:$I$98, IF($D$14="Refueling",$C$99:$I$99, $C$100:$I$100)),0),0)*100-100, " = +"&OFFSET($F$2,MATCH($B225,IF($D$14="Production",$C$98:$I$98, IF($D$14="Refueling",$C$99:$I$99, $C$100:$I$100)),0),0)*100-100) &"%" -> Feedstock consumption = -5% | D225: =($D$14="Production")*$AA$85+ ($D$14="Refueling")*$AQ$90+ ($D$14="Both")*$BG$95 -> 0 | E225: 0 | F225: =+MAX(D224-D225,0) -> 0 | G225: =+MAX(D225-D224,0) -> 0
B226: 5 | C226: =OFFSET($B$66,0,MATCH($B226, IF($D$14="Production",$C$98:$I$98, IF($D$14="Refueling",$C$99:$I$99, $C$100:$I$100)),0))& IF(OFFSET($F$2,MATCH($B226,IF($D$14="Production",$C$98:$I$98, IF($D$14="Refueling",$C$99:$I$99, $C$100:$I$100)),0),0)<1, " = "&OFFSET($F$2,MATCH($B226,IF($D$14="Production",$C$98:$I$98, IF($D$14="Refueling",$C$99:$I$99, $C$100:$I$100)),0),0)*100-100, " = +"&OFFSET($F$2,MATCH($B226,IF($D$14="Production",$C$98:$I$98, IF($D$14="Refueling",$C$99:$I$99, $C$100:$I$100)),0),0)*100-100) &"%" -> Realized fraction of design capacity = +5% | D226: =($D$14="Production")*$AA$86+ ($D$14="Refueling")*$AQ$91+ ($D$14="Both")*$BG$96 -> 0 | E226: 0 | F226: =+MAX(D225-D226,0) -> 0 | G226: =+MAX(D226-D225,0) -> 0
B227: 6 | C227: Adjusted | D227: =($D$14="Production")*$AA$86+ ($D$14="Refueling")*$AQ$91+ ($D$14="Both")*$BG$96 -> 0 | E227: 0
B231: Sensivity Chart
C232: Y-value | I232: Arrows data
C233: =+C234+1 -> 22 | D233: =+D140 -> Base case | E233: =+E140 -> 0 | I233: 22 | J233: =+$E$233 -> 0
C234: 21 | I234: =+I233-1 -> 21
C235: 20 | D235: =+D144 ->  | E235: =+E144 -> 0 | I235: =+I234-1 -> 20 | J235: =+E235 -> 0
C236: 19 | D236: =+D146 ->  | E236: =+E146 -> 0 | I236: =+I235-0.5 -> 19.5 | J236: =+$E$233 -> 0
C237: 18 | I237: =+I236-0.5 -> 19 | J237: =+E236 -> 0
C238: 17 | D238: =+D149 ->  | E238: =+E149 -> 0 | I238: 18
C239: 16 | D239: =+D151 ->  | E239: =+E151 -> 0 | I239: 17 | J239: =+E238 -> 0
C240: 15 | I240: =+I239-0.5 -> 16.5 | J240: =+$E$233 -> 0
C241: 14 | D241: =+D154 -> Utilities consumption (% of baseline) = 95% | E241: =+E154 -> 0 | I241: =+I240-0.5 -> 16 | J241: =+E239 -> 0
C242: 13 | D242: =+D156 -> Utilities consumption (% of baseline) = 105% | E242: =+E156 -> 0 | I242: 15
C243: 12 | I243: 14 | J243: =+E241 -> 0
C244: 11 | D244: =+D159 -> Feedstock consumption (% of baseline) = 95% | E244: =+E159 -> 0 | I244: =+I243-0.5 -> 13.5 | J244: =+$E$233 -> 0
C245: 10 | D245: =+D161 -> Feedstock consumption (% of baseline) = 105% | E245: =+E161 -> 0 | I245: =+I244-0.5 -> 13 | J245: =+E242 -> 0
C246: 9 | I246: 12
C247: 8 | D247: =+D164 -> After-tax real IRR = 8% | E247: =+E164 -> 0 | I247: 11 | J247: =+E244 -> 0
C248: 7 | D248: =+D166 -> After-tax real IRR = 8% | E248: =+E166 -> 0 | I248: =+I247-0.5 -> 10.5 | J248: =+$E$233 -> 0
C249: 6 | I249: =+I248-0.5 -> 10 | J249: =+E245 -> 0
C250: 5 | D250: =+D169 -> Plant design capacity (kg of H2/day) = 1,575 | E250: =+E169 -> 0 | I250: 9
C251: 4 | D251: =+D171 -> Plant design capacity (kg of H2/day) = 1,425 | E251: =+E171 -> 0 | I251: 8 | J251: =+E247 -> 0
C252: 3 | I252: =+I251-0.5 -> 7.5 | J252: =+$E$233 -> 0
C253: =+C254+1 -> 2 | D253: =+D174 -> Realized fraction of design capacity = 105% | E253: =+E174 -> 0 | I253: =+I252-0.5 -> 7 | J253: =+E248 -> 0
C254: 1 | D254: =+D176 -> Realized fraction of design capacity = 95% | E254: =+E176 -> 0 | I254: 6
I255: 5 | J255: =+E250 -> 0
I256: =+I255-0.5 -> 4.5 | J256: =+$E$233 -> 0
I257: =+I256-0.5 -> 4 | J257: =+E251 -> 0
I258: 3
I259: 2 | J259: =+E253 -> 0
I260: =+I259-0.5 -> 1.5 | J260: =+$E$233 -> 0
I261: =+I260-0.5 -> 1 | J261: =+E254 -> 0

Sheet Production Cash Flow Analysis
A2: TABLE OF CONTENTS
A3: DCF Calculations
A4: Yearly Cash Flow Calculations
A5: Specific Item Cost Calculation
A6: Feedstock, Utility, and Byproduct Cost Information
A15: DCF CALCULATION INPUTS: | D15: DCF CALCULATION OUTPUTS:
A16: Process | D16: ="Hydrogen Cost (Year "&TEXT(ref_year,"0")&" Real $/kg)" -> Hydrogen Cost (Year 2016 Real $/kg) | E16: =H2_price_nominal/INFLATION_FACTOR -> 
A17: Actual Hydrogen Produced (kg/yr) | B17: =output_kgyear*sensitivity_01 -> 470668.6971 | D17: Hydrogen Cost (Start-up Year Nominal $/kg) | E17: =+SUM(X57:AB57)/AC57*(1+inflation_rate)^construct -> 
A18: Actual Hydrogen Energy Produced (MMBtu(LHV)/yr) | B18: =B17*H2_LHV_MJ_p_kg/1000/mmBTU_to_GJ -> 53630.19447 | D18: After Tax Real IRR | E18: =((E20+1)/(1+B30))-1 -> 
A19: Actual Hydrogen Energy Produced (MJ(LHV)/yr) | B19: =B17*H2_LHV_MJ_p_kg -> 56579855.17 | D19: Pre Tax Real IRR | E19: =((E21+1)/(1+B30))-1 -> 
A20: Design Capacity (kg/day) | B20: =design_cap -> 1500 | D20: After Tax Nominal IRR | E20: =IRR(AA65:AA113) -> 
A21: Design Capacity (kg/yr) | B21: =B20*365 -> 547500 | D21: Pre Tax Nominal IRR | E21: =IRR(AC65:AC113) -> 
A22: Capacity Factor | B22: =cap_factor -> 0.8596688531 | D22: After Tax Real Capital Recovery Factor | E22: =(real_irr*(1+real_irr)^anal_period)/(((1+real_irr)^anal_period)-1) -> 0.1018522088
D23: After Tax Nominal Capital Recovery Factor | E23: =(nominal_irr*(1+nominal_irr)^anal_period)/(((1+nominal_irr)^anal_period)-1) -> 0.1178767948
A24: Financial | D24: Total Real Fixed Charge Rate | E24: =(E22*(1-total_tax_rate*INDEX(Depreciation!B12:H37,MATCH("NPV - Real IRR",Depreciation!B12:B37,0),MATCH(depr_length,recovery_period,0))))/(1-total_tax_rate) -> 0.1101093766
A25: Start-up Year | B25: =startup_year -> 2015 | D25: Total Nominal Fixed Charge Rate | E25: =(E23*(1-total_tax_rate*INDEX(Depreciation!B12:H37,MATCH("NPV - Nominal IRR",Depreciation!B12:B37,0),MATCH(depr_length,recovery_period,0))))/(1-total_tax_rate) -> 0.1293030043
A26: After-Tax Real IRR | B26: =real_irr -> 0.08 | D26: NPV | E26: =NPV(nominal_irr,AA65:AA113) -> 
A27: After-Tax Nominal IRR | B27: =((1+B26)*(1+B30))-1 -> 0.10052
A28: Analysis Period (yrs) | B28: =anal_period -> 20
A29: Plant Life (yrs) | B29: =plant_life -> 20
A30: Inflation Rate | B30: =inflation_rate -> 0.019
A31: Debt Financing | B31: =100%-B32 -> 0.6
A32: Equity Financing | B32: =equity -> 0.4
A33: Total Tax Rate | B33: =total_tax_rate -> 0.2574
A35: Cost of Debt Financing
A36: Debt Financing Period (yrs) | B36: =debt_period -> 0
A37: Interest Rate on Debt | B37: =debt_interest -> 0.037
A39: Construction/Start Up Information
A40: Construction Period (yrs) | B40: =construct -> 1
A41: Start-up Period (yrs) | B41: =start_time -> 0.5
A42: % Revenue During Start-up | B42: =percnt_revs -> 0.5
A43: % Variable Costs During Start-up | B43: =percnt_var -> 0.5
A44: % Fixed Costs During Start-up | B44: =percnt_fixed -> 0.75
A46: Depreciation Parameters
A47: Depreciation Type | B47: =depr_type -> MACRS
A48: Depreciation Period (yrs) | B48: =depr_length -> 7
A50: Plant Costs (Inflated to Start-up Year $)
A51: Total Depreciable Capital Costs | B51: =(total_cap-non_dep_cap)*INFLATION_FACTOR -> 
A52: Total Non-Depreciable Capital Costs | B52: =non_dep_cap*INFLATION_FACTOR -> 
A53: Total Capital Investment | B53: =SUM(B51:B52) ->  | W53: Closed form formulas for calculating price of hydrogen.
A54: Decommissioning | B54: =decom_percent*depr_cap_infl ->  | X54: Capital Costs | Y54: Depr | Z54: Principal | AA54: Op costs | AB54: Tax incentives | AC54: H2 sales (kg)
A55: Salvage Value | B55: =salvage_perct*B53 ->  | W55: Discounted values | X55: =-SUM(H116:K116) ->  | Y55: =-U116 ->  | Z55: =-Z116 ->  | AA55: =-SUM(L116:S116) ->  | AB55: =+AF116 -> 0 | AC55: =+AE116 -> 4512143.561
A56: Fixed Operating Costs ($/year) | B56: =fixed*INFLATION_FACTOR ->  | W56: Tax coefficient | X56: 1 | Y56: =-total_tax_rate -> -0.2574 | Z56: 1 | AA56: =1-total_tax_rate -> 0.7426 | AB56: -1 | AC56: =1-total_tax_rate -> 0.7426
A57: Other Raw Material ($/year) | B57: =total_other_raw*INFLATION_FACTOR*sensitivity_01 -> 0 | W57: LCOE cost contribution factors | X57: =+X55*X56 ->  | AA57: =+AA55*AA56 ->  | AB57: =+AB55*AB56 -> 0 | AC57: =+AC55*AC56 -> 3350717.808
A58: Other Variable O&M Costs (not including tax credits and incentives) | B58: =(var_misc+royalties+operator_profit+waste_treat+solidwaste_treat)*INFLATION_FACTOR -> 1876.310108
W59: Target after-tax nominal IRR | X59: =+(1+real_irr)*(1+inflation_rate)-1 -> 0.10052
W60: =+D16 -> Hydrogen Cost (Year 2016 Real $/kg) | X60: =+SUM(X57:AB57)/AC57*(1+inflation_rate)^construct/INFLATION_FACTOR -> 
O61: =+O66*2 -> 0
A63: CASH FLOW ANALYSIS
A64: Actual Year | B64: Analysis Year | C64: Operation Year | D64: Plant Life | E64: Inflation Price Increase Factor | F64: Revenue | G64: Portion of Initial Depreciable Capital Investment Financed with Debt (value ONLY used in debt financing calculations) | H64: Initial Equity Depreciable Capital | I64: Yearly Replacement Costs | J64: Working Capital | K64: Other Non-Depreciable Capital Costs | L64: Salvage Value | M64: Decommissioning Costs | N64: Fixed Operating Cost | O64: Feed Cost | P64: Other Raw Material Cost | Q64: Byproduct Credit | R64: Other Variable Operating Costs | S64: Debt Interest | T64: Pre-Depreciation Income | U64: Depreciation Charge | V64: Taxable Income | W64: Tax Rate | X64: Total Taxes | Y64: After-Tax Income | Z64: Principal Payment | AA64: After-Tax Post-Depreciation Cash Flow | AB64: Cumulative Cash Flow | AC64: Pre-Tax Cash Flow | AE64: H2 sales (kg/year) | AF64: Tax Credit | AG64: output_kgyear
A65: =startup_year-construct -> 2014 | B65: 1 | C65: =IF(construct=0,1,-construct) -> -1 | D65: =IF(C65="","",IF(C65<=plant_life,C65,IF(D64=plant_life,1,D64+1))) -> -1 | E65: =IF(C65="","",(1+inflation_rate)^(A65-$B$25)) -> 0.9813542689 | F65: =IF(C65="","",IF(C65<0,0,IF(AND(C65=1,start_time<1),E65*(H2_price_nominal*output_kgyear*sensitivity_01*start_time*percnt_revs+H2_price_nominal*output_kgyear*sensitivity_01*(1-start_time)),IF(C65<=start_time,H2_price_nominal*E65*output_kgyear*sensitivity_01*percnt_revs,H2_price_nominal*output_kgyear*sensitivity_01*E65)))) -> 0 | G65: =-$B$31*depr_cap_infl*E65 ->  | H65: =IF(C65<0,-E65*equity*depr_cap_infl*percent_cap1,IF(C65=1,-E65*equity*depr_cap_infl,0)) ->  | I65: =IF(OR(C65<0,C65=""),"",-E65*INDEX('Replacement Costs'!$A$15:$G$56,MATCH(C65,'Replacement Costs'!$C$15:$C$56,0),MATCH("Total Yearly Replacement Costs",'Replacement Costs'!$A$15:$G$15,0))) ->  | J65: =IF(AND(C65>=1,C65<anal_period),WorkingCap*SUM(N65:R65)-WorkingCap*SUM(N64:R64),0) -> 0 | K65: =IF(C65=-construct,-E65*non_dep_infl,"") ->  | L65: =IF(C65=anal_period,salvage*E65,"") ->  | M65: =IF(D65=plant_life,-E65*decom,"") ->  | N65: =IF(C65="","",IF(C65<0,0,IF(AND(C65=1,start_time<1),-(inflated_fixed*percnt_fixed*start_time+(inflated_fixed*(1-start_time))),IF(C65<=start_time,-inflated_fixed*percnt_fixed*E65,-inflated_fixed*E65)))) -> 0 | O65: =IF(C65="","",IF(C65<0,0,IF(AND(C65=1,start_time<1),-(SUM(B138:E138)*output_kgyear*E65*percnt_var*start_time+SUM(B138:E138)*output_kgyear*E65*(1-start_time)),IF(C65<=start_time,-SUM(B138:E138)*output_kgyear*E65*percnt_var,-SUM(B138:E138)*output_kgyear*E65)))) -> 0 | P65: =IF(C65="","",IF(C65<0,0,IF(AND(C65=1,start_time<1),-(inflated_otherraw*E65*percnt_var*start_time+inflated_otherraw*E65*(1-start_time)),IF(C65<=start_time,-inflated_otherraw*E65*percnt_var,-(inflated_otherraw*E65))))) -> 0 | Q65: =IF(C65="","",IF(C65<0,0,IF(AND(C65=1,start_time<1),SUM(K138:N138,T138:V138)*output_kgyear*E65*percnt_revs*start_time+SUM(K138:N138,T138:V138)*output_kgyear*E65*(1-start_time),IF(C65<=start_time,SUM(K138:N138,T138:V138)*output_kgyear*E65*percnt_revs,SUM(K138:N138,T138:V138)*output_kgyear*E65)))) -> 0 | R65: =IF(C65="","",IF(C65<0,0,IF(AND(C65=1,start_time<1),-((SUM(F138:I138,P138:R138)*output_kgyear+inflated_othervar)*E65*percnt_var*start_time+(SUM(F138:I138,P138:R138)*output_kgyear+inflated_othervar)*E65*(1-start_time)),IF(C65<=start_time,-(SUM(F138:I138,P138:R138)*output_kgyear+inflated_othervar)*E65*percnt_var,-E65*(SUM(F138:I138,P138:R138)*output_kgyear+inflated_othervar))))) -> 0 | S65: =IF(B65="","",IF($B$31=0,"",-'Debt Financing Calculations'!E14)) ->  | T65: =IF(C65="","",F65+SUM(L65:S65)) ->  | U65: =IF(C65="","",IF(C65<-1,0,IF(C65=anal_period,-LOOKUP(C65,depr_yr,depr_cost)-Depreciation!$C$141-Depreciation!$B$166,-LOOKUP(C65,depr_yr,depr_cost)))) -> 0 | V65: =IF(C65="","",SUM(T65:U65)) ->  | W65: =IF(C65="","",$B$33) -> 0.2574 | X65: =IF(C65="","",-V65*W65 + tax_credit) ->  | Y65: =IF(C65="","",SUM(T65,X65)) ->  | Z65: =IF(C65="","",IF($B$31=0,"",-'Debt Financing Calculations'!F14)) -> 0 | AA65: =IF(C65="","",SUM(H65,I65,J65,K65,T65,X65,Z65)) ->  | AB65: =AA65 ->  | AC65: =IF(C65="","",SUM(H65,I65,J65,K65,T65,Z65)) ->  | AE65: =IF(C65="","",IF(C65<0,0,IF(AND(C65=1,start_time<1),(output_kgyear*sensitivity_01*start_time*percnt_revs+output_kgyear*sensitivity_01*(1-start_time)),IF(C65<=start_time,output_kgyear*sensitivity_01*percnt_revs,output_kgyear*sensitivity_01)))) -> 0 | AF65: =IF(C65="","",tax_credit) -> 0
A66: =IF(B66<>"",A65+1,"") -> 2015 | B66: =IF(MAX($B$65:B65)<(construct+anal_period),B65+1,"") -> 2 | C66: =IF(B66="","",IF(C65=-1,1,C65+1)) -> 1 | D66: 1 | E66: 1 | H66: =IF(C66<0,-E66*equity*depr_cap_infl*percent_cap2,0) -> 0 | I66: =IF(OR(C66<0,C66=""),"",-E66*INDEX('Replacement Costs'!$A$15:$G$56,MATCH(C66,'Replacement Costs'!$C$15:$C$56,0),MATCH("Total Yearly Replacement Costs",'Replacement Costs'!$A$15:$G$15,0))) ->  | J66: =IF(AND(C66>=1,C66<anal_period),WorkingCap*SUM(N66:R66)-WorkingCap*SUM(N65:R65),IF(C66<0,0,IF(B66="","",-SUM(J$65:J65)))) ->  | O66: 0 | P66: 0 | Q66: 0 | R66: =IF(C66="","",IF(C66<0,0,IF(AND(C66=1,start_time<1),-((SUM(F139:I139,P139:R139)*output_kgyear+inflated_othervar)*E66*percnt_var*start_time+(SUM(F139:I139,P139:R139)*output_kgyear+inflated_othervar)*E66*(1-start_time)),IF(C66<=start_time,-(SUM(F139:I139,P139:R139)*output_kgyear+inflated_othervar)*E66*percnt_var,-E66*(SUM(F139:I139,P139:R139)*output_kgyear+inflated_othervar))))) -> -1407.232581 | S66: =IF(B66="","",IF($B$31=0,"",-'Debt Financing Calculations'!E15)) ->  | U66: =IF(C66="","",IF(C66<-1,0,IF(C66=anal_period,-LOOKUP(C66,depr_yr,depr_cost)-Depreciation!$C$141-Depreciation!$B$166,-LOOKUP(C66,depr_yr,depr_cost)))) ->  | W66: 0.2574 | X66: =IF(C66="","",-V66*W66+tax_credit) ->  | Z66: =IF(C66="","",IF($B$31=0,"",-'Debt Financing Calculations'!F15)) -> 0 | AB66: =IF(C66="","",AB65+AA66) ->  | AE66: 353001.5228 | AF66: 0
A67: 2016 | B67: =IF(MAX($B$65:B66)<(construct+anal_period),B66+1,"") -> 3 | C67: 2 | D67: 2 | E67: 1.019 | H67: =IF(C67="","",0) -> 0 | I67: =IF(OR(C67<0,C67=""),"",-E67*INDEX('Replacement Costs'!$A$15:$G$56,MATCH(C67,'Replacement Costs'!$C$15:$C$56,0),MATCH("Total Yearly Replacement Costs",'Replacement Costs'!$A$15:$G$15,0))) ->  | J67: =IF(AND(C67>=1,C67<anal_period),WorkingCap*SUM(N67:R67)-WorkingCap*SUM(N66:R66),IF(C67<0,0,IF(B67="","",-SUM(J$65:J66)))) ->  | O67: 0 | P67: 0 | Q67: 0 | R67: -1911.96 | S67: =IF(B67="","",IF($B$31=0,"",-'Debt Financing Calculations'!E16)) ->  | U67: =IF(C67="","",IF(C67<-1,0,IF(C67=anal_period,-LOOKUP(C67,depr_yr,depr_cost)-Depreciation!$C$141-Depreciation!$B$166,-LOOKUP(C67,depr_yr,depr_cost)))) ->  | W67: 0.2574 | Z67: =IF(C67="","",IF($B$31=0,"",-'Debt Financing Calculations'!F16)) -> 0 | AE67: 470668.6971 | AF67: 0
A68: 2017 | B68: =IF(MAX($B$65:B67)<(construct+anal_period),B67+1,"") -> 4 | C68: 3 | D68: 3 | E68: 1.038361 | H68: 0 | I68: =IF(OR(C68<0,C68=""),"",-E68*INDEX('Replacement Costs'!$A$15:$G$56,MATCH(C68,'Replacement Costs'!$C$15:$C$56,0),MATCH("Total Yearly Replacement Costs",'Replacement Costs'!$A$15:$G$15,0))) ->  | J68: =IF(AND(C68>=1,C68<anal_period),WorkingCap*SUM(N68:R68)-WorkingCap*SUM(N67:R67),IF(C68<0,0,IF(B68="","",-SUM(J$65:J67)))) ->  | O68: 0 | P68: 0 | Q68: 0 | R68: -1948.28724 | S68: =IF(B68="","",IF($B$31=0,"",-'Debt Financing Calculations'!E17)) ->  | U68: =IF(C68="","",IF(C68<-1,0,IF(C68=anal_period,-LOOKUP(C68,depr_yr,depr_cost)-Depreciation!$C$141-Depreciation!$B$166,-LOOKUP(C68,depr_yr,depr_cost)))) ->  | W68: 0.2574 | Z68: =IF(C68="","",IF($B$31=0,"",-'Debt Financing Calculations'!F17)) -> 0 | AE68: 470668.6971 | AF68: 0
A69: 2018 | B69: =IF(MAX($B$65:B68)<(construct+anal_period),B68+1,"") -> 5 | C69: 4 | D69: 4 | E69: 1.058089859 | H69: 0 | I69: =IF(OR(C69<0,C69=""),"",-E69*INDEX('Replacement Costs'!$A$15:$G$56,MATCH(C69,'Replacement Costs'!$C$15:$C$56,0),MATCH("Total Yearly Replacement Costs",'Replacement Costs'!$A$15:$G$15,0))) ->  | J69: =IF(AND(C69>=1,C69<anal_period),WorkingCap*SUM(N69:R69)-WorkingCap*SUM(N68:R68),IF(C69<0,0,IF(B69="","",-SUM(J$65:J68)))) ->  | O69: 0 | P69: 0 | Q69: 0 | R69: -1985.304698 | S69: =IF(B69="","",IF($B$31=0,"",-'Debt Financing Calculations'!E18)) ->  | U69: =IF(C69="","",IF(C69<-1,0,IF(C69=anal_period,-LOOKUP(C69,depr_yr,depr_cost)-Depreciation!$C$141-Depreciation!$B$166,-LOOKUP(C69,depr_yr,depr_cost)))) ->  | W69: 0.2574 | Z69: =IF(C69="","",IF($B$31=0,"",-'Debt Financing Calculations'!F18)) -> 0 | AE69: 470668.6971 | AF69: 0
A70: 2019 | B70: =IF(MAX($B$65:B69)<(construct+anal_period),B69+1,"") -> 6 | C70: 5 | D70: 5 | E70: 1.078193566 | H70: 0 | I70: =IF(OR(C70<0,C70=""),"",-E70*INDEX('Replacement Costs'!$A$15:$G$56,MATCH(C70,'Replacement Costs'!$C$15:$C$56,0),MATCH("Total Yearly Replacement Costs",'Replacement Costs'!$A$15:$G$15,0))) ->  | J70: =IF(AND(C70>=1,C70<anal_period),WorkingCap*SUM(N70:R70)-WorkingCap*SUM(N69:R69),IF(C70<0,0,IF(B70="","",-SUM(J$65:J69)))) ->  | O70: 0 | P70: 0 | Q70: 0 | R70: -2023.025487 | S70: =IF(B70="","",IF($B$31=0,"",-'Debt Financing Calculations'!E19)) ->  | U70: =IF(C70="","",IF(C70<-1,0,IF(C70=anal_period,-LOOKUP(C70,depr_yr,depr_cost)-Depreciation!$C$141-Depreciation!$B$166,-LOOKUP(C70,depr_yr,depr_cost)))) ->  | W70: 0.2574 | Z70: =IF(C70="","",IF($B$31=0,"",-'Debt Financing Calculations'!F19)) -> 0 | AE70: 470668.6971 | AF70: 0
A71: 2020 | B71: =IF(MAX($B$65:B70)<(construct+anal_period),B70+1,"") -> 7 | C71: 6 | D71: 6 | E71: 1.098679244 | H71: 0 | I71: =IF(OR(C71<0,C71=""),"",-E71*INDEX('Replacement Costs'!$A$15:$G$56,MATCH(C71,'Replacement Costs'!$C$15:$C$56,0),MATCH("Total Yearly Replacement Costs",'Replacement Costs'!$A$15:$G$15,0))) ->  | J71: =IF(AND(C71>=1,C71<anal_period),WorkingCap*SUM(N71:R71)-WorkingCap*SUM(N70:R70),IF(C71<0,0,IF(B71="","",-SUM(J$65:J70)))) ->  | O71: 0 | P71: 0 | Q71: 0 | R71: -2061.462971 | S71: =IF(B71="","",IF($B$31=0,"",-'Debt Financing Calculations'!E20)) ->  | U71: =IF(C71="","",IF(C71<-1,0,IF(C71=anal_period,-LOOKUP(C71,depr_yr,depr_cost)-Depreciation!$C$141-Depreciation!$B$166,-LOOKUP(C71,depr_yr,depr_cost)))) ->  | W71: 0.2574 | Z71: =IF(C71="","",IF($B$31=0,"",-'Debt Financing Calculations'!F20)) -> 0 | AE71: 470668.6971 | AF71: 0
A72: 2021 | B72: =IF(MAX($B$65:B71)<(construct+anal_period),B71+1,"") -> 8 | C72: 7 | D72: 7 | E72: 1.11955415 | H72: 0 | I72: =IF(OR(C72<0,C72=""),"",-E72*INDEX('Replacement Costs'!$A$15:$G$56,MATCH(C72,'Replacement Costs'!$C$15:$C$56,0),MATCH("Total Yearly Replacement Costs",'Replacement Costs'!$A$15:$G$15,0))) ->  | J72: =IF(AND(C72>=1,C72<anal_period),WorkingCap*SUM(N72:R72)-WorkingCap*SUM(N71:R71),IF(C72<0,0,IF(B72="","",-SUM(J$65:J71)))) ->  | O72: 0 | P72: 0 | Q72: 0 | R72: -2100.630768 | S72: =IF(B72="","",IF($B$31=0,"",-'Debt Financing Calculations'!E21)) ->  | U72: =IF(C72="","",IF(C72<-1,0,IF(C72=anal_period,-LOOKUP(C72,depr_yr,depr_cost)-Depreciation!$C$141-Depreciation!$B$166,-LOOKUP(C72,depr_yr,depr_cost)))) ->  | W72: 0.2574 | Z72: =IF(C72="","",IF($B$31=0,"",-'Debt Financing Calculations'!F21)) -> 0 | AE72: 470668.6971 | AF72: 0
A73: 2022 | B73: =IF(MAX($B$65:B72)<(construct+anal_period),B72+1,"") -> 9 | C73: 8 | D73: 8 | E73: 1.140825679 | H73: 0 | I73: =IF(OR(C73<0,C73=""),"",-E73*INDEX('Replacement Costs'!$A$15:$G$56,MATCH(C73,'Replacement Costs'!$C$15:$C$56,0),MATCH("Total Yearly Replacement Costs",'Replacement Costs'!$A$15:$G$15,0))) ->  | J73: =IF(AND(C73>=1,C73<anal_period),WorkingCap*SUM(N73:R73)-WorkingCap*SUM(N72:R72),IF(C73<0,0,IF(B73="","",-SUM(J$65:J72)))) ->  | O73: 0 | P73: 0 | Q73: 0 | R73: -2140.542752 | S73: =IF(B73="","",IF($B$31=0,"",-'Debt Financing Calculations'!E22)) ->  | U73: =IF(C73="","",IF(C73<-1,0,IF(C73=anal_period,-LOOKUP(C73,depr_yr,depr_cost)-Depreciation!$C$141-Depreciation!$B$166,-LOOKUP(C73,depr_yr,depr_cost)))) ->  | W73: 0.2574 | Z73: =IF(C73="","",IF($B$31=0,"",-'Debt Financing Calculations'!F22)) -> 0 | AE73: 470668.6971 | AF73: 0
A74: 2023 | B74: =IF(MAX($B$65:B73)<(construct+anal_period),B73+1,"") -> 10 | C74: 9 | D74: 9 | E74: 1.162501366 | H74: 0 | I74: =IF(OR(C74<0,C74=""),"",-E74*INDEX('Replacement Costs'!$A$15:$G$56,MATCH(C74,'Replacement Costs'!$C$15:$C$56,0),MATCH("Total Yearly Replacement Costs",'Replacement Costs'!$A$15:$G$15,0))) ->  | J74: =IF(AND(C74>=1,C74<anal_period),WorkingCap*SUM(N74:R74)-WorkingCap*SUM(N73:R73),IF(C74<0,0,IF(B74="","",-SUM(J$65:J73)))) ->  | O74: 0 | P74: 0 | Q74: 0 | R74: -2181.213064 | S74: =IF(B74="","",IF($B$31=0,"",-'Debt Financing Calculations'!E23)) ->  | U74: =IF(C74="","",IF(C74<-1,0,IF(C74=anal_period,-LOOKUP(C74,depr_yr,depr_cost)-Depreciation!$C$141-Depreciation!$B$166,-LOOKUP(C74,depr_yr,depr_cost)))) ->  | W74: 0.2574 | Z74: =IF(C74="","",IF($B$31=0,"",-'Debt Financing Calculations'!F23)) -> 0 | AE74: 470668.6971 | AF74: 0
A75: 2024 | B75: =IF(MAX($B$65:B74)<(construct+anal_period),B74+1,"") -> 11 | C75: 10 | D75: 10 | E75: 1.184588892 | H75: 0 | I75: =IF(OR(C75<0,C75=""),"",-E75*INDEX('Replacement Costs'!$A$15:$G$56,MATCH(C75,'Replacement Costs'!$C$15:$C$56,0),MATCH("Total Yearly Replacement Costs",'Replacement Costs'!$A$15:$G$15,0))) ->  | J75: =IF(AND(C75>=1,C75<anal_period),WorkingCap*SUM(N75:R75)-WorkingCap*SUM(N74:R74),IF(C75<0,0,IF(B75="","",-SUM(J$65:J74)))) ->  | O75: 0 | P75: 0 | Q75: 0 | R75: -2222.656113 | S75: =IF(B75="","",IF($B$31=0,"",-'Debt Financing Calculations'!E24)) ->  | U75: =IF(C75="","",IF(C75<-1,0,IF(C75=anal_period,-LOOKUP(C75,depr_yr,depr_cost)-Depreciation!$C$141-Depreciation!$B$166,-LOOKUP(C75,depr_yr,depr_cost)))) ->  | W75: 0.2574 | Z75: =IF(C75="","",IF($B$31=0,"",-'Debt Financing Calculations'!F24)) -> 0 | AE75: 470668.6971 | AF75: 0
A76: 2025 | B76: =IF(MAX($B$65:B75)<(construct+anal_period),B75+1,"") -> 12 | C76: 11 | D76: 11 | E76: 1.207096081 | H76: 0 | I76: =IF(OR(C76<0,C76=""),"",-E76*INDEX('Replacement Costs'!$A$15:$G$56,MATCH(C76,'Replacement Costs'!$C$15:$C$56,0),MATCH("Total Yearly Replacement Costs",'Replacement Costs'!$A$15:$G$15,0))) ->  | J76: =IF(AND(C76>=1,C76<anal_period),WorkingCap*SUM(N76:R76)-WorkingCap*SUM(N75:R75),IF(C76<0,0,IF(B76="","",-SUM(J$65:J75)))) ->  | O76: 0 | P76: 0 | Q76: 0 | R76: -2264.886579 | S76: =IF(B76="","",IF($B$31=0,"",-'Debt Financing Calculations'!E25)) ->  | U76: =IF(C76="","",IF(C76<-1,0,IF(C76=anal_period,-LOOKUP(C76,depr_yr,depr_cost)-Depreciation!$C$141-Depreciation!$B$166,-LOOKUP(C76,depr_yr,depr_cost)))) ->  | W76: 0.2574 | Z76: =IF(C76="","",IF($B$31=0,"",-'Debt Financing Calculations'!F25)) -> 0 | AE76: 470668.6971 | AF76: 0
A77: 2026 | B77: =IF(MAX($B$65:B76)<(construct+anal_period),B76+1,"") -> 13 | C77: 12 | D77: 12 | E77: 1.230030907 | H77: 0 | I77: =IF(OR(C77<0,C77=""),"",-E77*INDEX('Replacement Costs'!$A$15:$G$56,MATCH(C77,'Replacement Costs'!$C$15:$C$56,0),MATCH("Total Yearly Replacement Costs",'Replacement Costs'!$A$15:$G$15,0))) ->  | J77: =IF(AND(C77>=1,C77<anal_period),WorkingCap*SUM(N77:R77)-WorkingCap*SUM(N76:R76),IF(C77<0,0,IF(B77="","",-SUM(J$65:J76)))) ->  | O77: 0 | P77: 0 | Q77: 0 | R77: -2307.919424 | S77: =IF(B77="","",IF($B$31=0,"",-'Debt Financing Calculations'!E26)) ->  | U77: =IF(C77="","",IF(C77<-1,0,IF(C77=anal_period,-LOOKUP(C77,depr_yr,depr_cost)-Depreciation!$C$141-Depreciation!$B$166,-LOOKUP(C77,depr_yr,depr_cost)))) ->  | W77: 0.2574 | Z77: =IF(C77="","",IF($B$31=0,"",-'Debt Financing Calculations'!F26)) -> 0 | AE77: 470668.6971 | AF77: 0
A78: 2027 | B78: =IF(MAX($B$65:B77)<(construct+anal_period),B77+1,"") -> 14 | C78: 13 | D78: 13 | E78: 1.253401494 | H78: 0 | I78: =IF(OR(C78<0,C78=""),"",-E78*INDEX('Replacement Costs'!$A$15:$G$56,MATCH(C78,'Replacement Costs'!$C$15:$C$56,0),MATCH("Total Yearly Replacement Costs",'Replacement Costs'!$A$15:$G$15,0))) ->  | J78: =IF(AND(C78>=1,C78<anal_period),WorkingCap*SUM(N78:R78)-WorkingCap*SUM(N77:R77),IF(C78<0,0,IF(B78="","",-SUM(J$65:J77)))) ->  | O78: 0 | P78: 0 | Q78: 0 | R78: -2351.769893 | S78: =IF(B78="","",IF($B$31=0,"",-'Debt Financing Calculations'!E27)) ->  | U78: =IF(C78="","",IF(C78<-1,0,IF(C78=anal_period,-LOOKUP(C78,depr_yr,depr_cost)-Depreciation!$C$141-Depreciation!$B$166,-LOOKUP(C78,depr_yr,depr_cost)))) ->  | W78: 0.2574 | Z78: =IF(C78="","",IF($B$31=0,"",-'Debt Financing Calculations'!F27)) -> 0 | AE78: 470668.6971 | AF78: 0
A79: 2028 | B79: =IF(MAX($B$65:B78)<(construct+anal_period),B78+1,"") -> 15 | C79: 14 | D79: 14 | E79: 1.277216123 | H79: 0 | I79: =IF(OR(C79<0,C79=""),"",-E79*INDEX('Replacement Costs'!$A$15:$G$56,MATCH(C79,'Replacement Costs'!$C$15:$C$56,0),MATCH("Total Yearly Replacement Costs",'Replacement Costs'!$A$15:$G$15,0))) ->  | J79: =IF(AND(C79>=1,C79<anal_period),WorkingCap*SUM(N79:R79)-WorkingCap*SUM(N78:R78),IF(C79<0,0,IF(B79="","",-SUM(J$65:J78)))) ->  | O79: 0 | P79: 0 | Q79: 0 | R79: -2396.453521 | S79: =IF(B79="","",IF($B$31=0,"",-'Debt Financing Calculations'!E28)) ->  | U79: =IF(C79="","",IF(C79<-1,0,IF(C79=anal_period,-LOOKUP(C79,depr_yr,depr_cost)-Depreciation!$C$141-Depreciation!$B$166,-LOOKUP(C79,depr_yr,depr_cost)))) ->  | W79: 0.2574 | Z79: =IF(C79="","",IF($B$31=0,"",-'Debt Financing Calculations'!F28)) -> 0 | AE79: 470668.6971 | AF79: 0
A80: 2029 | B80: =IF(MAX($B$65:B79)<(construct+anal_period),B79+1,"") -> 16 | C80: 15 | D80: 15 | E80: 1.301483229 | H80: 0 | I80: =IF(OR(C80<0,C80=""),"",-E80*INDEX('Replacement Costs'!$A$15:$G$56,MATCH(C80,'Replacement Costs'!$C$15:$C$56,0),MATCH("Total Yearly Replacement Costs",'Replacement Costs'!$A$15:$G$15,0))) ->  | J80: =IF(AND(C80>=1,C80<anal_period),WorkingCap*SUM(N80:R80)-WorkingCap*SUM(N79:R79),IF(C80<0,0,IF(B80="","",-SUM(J$65:J79)))) ->  | O80: 0 | P80: 0 | Q80: 0 | R80: -2441.986138 | S80: =IF(B80="","",IF($B$31=0,"",-'Debt Financing Calculations'!E29)) ->  | U80: =IF(C80="","",IF(C80<-1,0,IF(C80=anal_period,-LOOKUP(C80,depr_yr,depr_cost)-Depreciation!$C$141-Depreciation!$B$166,-LOOKUP(C80,depr_yr,depr_cost)))) ->  | W80: 0.2574 | Z80: =IF(C80="","",IF($B$31=0,"",-'Debt Financing Calculations'!F29)) -> 0 | AE80: 470668.6971 | AF80: 0
A81: 2030 | B81: =IF(MAX($B$65:B80)<(construct+anal_period),B80+1,"") -> 17 | C81: 16 | D81: 16 | E81: 1.32621141 | H81: 0 | I81: =IF(OR(C81<0,C81=""),"",-E81*INDEX('Replacement Costs'!$A$15:$G$56,MATCH(C81,'Replacement Costs'!$C$15:$C$56,0),MATCH("Total Yearly Replacement Costs",'Replacement Costs'!$A$15:$G$15,0))) ->  | J81: =IF(AND(C81>=1,C81<anal_period),WorkingCap*SUM(N81:R81)-WorkingCap*SUM(N80:R80),IF(C81<0,0,IF(B81="","",-SUM(J$65:J80)))) ->  | O81: 0 | P81: 0 | Q81: 0 | R81: -2488.383874 | S81: =IF(B81="","",IF($B$31=0,"",-'Debt Financing Calculations'!E30)) ->  | U81: =IF(C81="","",IF(C81<-1,0,IF(C81=anal_period,-LOOKUP(C81,depr_yr,depr_cost)-Depreciation!$C$141-Depreciation!$B$166,-LOOKUP(C81,depr_yr,depr_cost)))) ->  | W81: 0.2574 | Z81: =IF(C81="","",IF($B$31=0,"",-'Debt Financing Calculations'!F30)) -> 0 | AE81: 470668.6971 | AF81: 0
A82: 2031 | B82: =IF(MAX($B$65:B81)<(construct+anal_period),B81+1,"") -> 18 | C82: 17 | D82: 17 | E82: 1.351409427 | H82: 0 | I82: =IF(OR(C82<0,C82=""),"",-E82*INDEX('Replacement Costs'!$A$15:$G$56,MATCH(C82,'Replacement Costs'!$C$15:$C$56,0),MATCH("Total Yearly Replacement Costs",'Replacement Costs'!$A$15:$G$15,0))) ->  | J82: =IF(AND(C82>=1,C82<anal_period),WorkingCap*SUM(N82:R82)-WorkingCap*SUM(N81:R81),IF(C82<0,0,IF(B82="","",-SUM(J$65:J81)))) ->  | O82: 0 | P82: 0 | Q82: 0 | R82: -2535.663168 | S82: =IF(B82="","",IF($B$31=0,"",-'Debt Financing Calculations'!E31)) ->  | U82: =IF(C82="","",IF(C82<-1,0,IF(C82=anal_period,-LOOKUP(C82,depr_yr,depr_cost)-Depreciation!$C$141-Depreciation!$B$166,-LOOKUP(C82,depr_yr,depr_cost)))) ->  | W82: 0.2574 | Z82: =IF(C82="","",IF($B$31=0,"",-'Debt Financing Calculations'!F31)) -> 0 | AE82: 470668.6971 | AF82: 0
A83: 2032 | B83: =IF(MAX($B$65:B82)<(construct+anal_period),B82+1,"") -> 19 | C83: 18 | D83: 18 | E83: 1.377086206 | H83: 0 | I83: =IF(OR(C83<0,C83=""),"",-E83*INDEX('Replacement Costs'!$A$15:$G$56,MATCH(C83,'Replacement Costs'!$C$15:$C$56,0),MATCH("Total Yearly Replacement Costs",'Replacement Costs'!$A$15:$G$15,0))) ->  | J83: =IF(AND(C83>=1,C83<anal_period),WorkingCap*SUM(N83:R83)-WorkingCap*SUM(N82:R82),IF(C83<0,0,IF(B83="","",-SUM(J$65:J82)))) ->  | O83: 0 | P83: 0 | Q83: 0 | R83: -2583.840768 | S83: =IF(B83="","",IF($B$31=0,"",-'Debt Financing Calculations'!E32)) ->  | U83: =IF(C83="","",IF(C83<-1,0,IF(C83=anal_period,-LOOKUP(C83,depr_yr,depr_cost)-Depreciation!$C$141-Depreciation!$B$166,-LOOKUP(C83,depr_yr,depr_cost)))) ->  | W83: 0.2574 | Z83: =IF(C83="","",IF($B$31=0,"",-'Debt Financing Calculations'!F32)) -> 0 | AE83: 470668.6971 | AF83: 0
A84: 2033 | B84: =IF(MAX($B$65:B83)<(construct+anal_period),B83+1,"") -> 20 | C84: 19 | D84: 19 | E84: 1.403250844 | H84: 0 | I84: =IF(OR(C84<0,C84=""),"",-E84*INDEX('Replacement Costs'!$A$15:$G$56,MATCH(C84,'Replacement Costs'!$C$15:$C$56,0),MATCH("Total Yearly Replacement Costs",'Replacement Costs'!$A$15:$G$15,0))) ->  | J84: =IF(AND(C84>=1,C84<anal_period),WorkingCap*SUM(N84:R84)-WorkingCap*SUM(N83:R83),IF(C84<0,0,IF(B84="","",-SUM(J$65:J83)))) ->  | O84: 0 | P84: 0 | Q84: 0 | R84: -2632.933743 | S84: =IF(B84="","",IF($B$31=0,"",-'Debt Financing Calculations'!E33)) ->  | U84: =IF(C84="","",IF(C84<-1,0,IF(C84=anal_period,-LOOKUP(C84,depr_yr,depr_cost)-Depreciation!$C$141-Depreciation!$B$166,-LOOKUP(C84,depr_yr,depr_cost)))) ->  | W84: 0.2574 | Z84: =IF(C84="","",IF($B$31=0,"",-'Debt Financing Calculations'!F33)) -> 0 | AE84: 470668.6971 | AF84: 0
A85: 2034 | B85: =IF(MAX($B$65:B84)<(construct+anal_period),B84+1,"") -> 21 | C85: 20 | D85: 20 | E85: 1.42991261 | H85: 0 | I85: =IF(OR(C85<0,C85=""),"",-E85*INDEX('Replacement Costs'!$A$15:$G$56,MATCH(C85,'Replacement Costs'!$C$15:$C$56,0),MATCH("Total Yearly Replacement Costs",'Replacement Costs'!$A$15:$G$15,0))) ->  | J85: =IF(AND(C85>=1,C85<anal_period),WorkingCap*SUM(N85:R85)-WorkingCap*SUM(N84:R84),IF(C85<0,0,IF(B85="","",-SUM(J$65:J84)))) ->  | O85: 0 | P85: 0 | Q85: 0 | R85: -2682.959484 | S85: =IF(B85="","",IF($B$31=0,"",-'Debt Financing Calculations'!E34)) ->  | U85: =IF(C85="","",IF(C85<-1,0,IF(C85=anal_period,-LOOKUP(C85,depr_yr,depr_cost)-Depreciation!$C$141-Depreciation!$B$166,-LOOKUP(C85,depr_yr,depr_cost)))) ->  | W85: 0.2574 | Z85: =IF(C85="","",IF($B$31=0,"",-'Debt Financing Calculations'!F34)) ->  | AE85: 470668.6971 | AF85: 0
B86: =IF(MAX($B$65:B85)<(construct+anal_period),B85+1,"") ->  | I86: =IF(OR(C86<0,C86=""),"",-E86*INDEX('Replacement Costs'!$A$15:$G$56,MATCH(C86,'Replacement Costs'!$C$15:$C$56,0),MATCH("Total Yearly Replacement Costs",'Replacement Costs'!$A$15:$G$15,0))) ->  | J86: =IF(AND(C86>=1,C86<anal_period),WorkingCap*SUM(N86:R86)-WorkingCap*SUM(N85:R85),IF(C86<0,0,IF(B86="","",-SUM(J$65:J85)))) ->  | S86: =IF(B86="","",IF($B$31=0,"",-'Debt Financing Calculations'!E35)) ->  | U86: =IF(C86="","",IF(C86<-1,0,IF(C86=anal_period,-LOOKUP(C86,depr_yr,depr_cost)-Depreciation!$C$141-Depreciation!$B$166,-LOOKUP(C86,depr_yr,depr_cost)))) ->  | Z86: =IF(C86="","",IF($B$31=0,"",-'Debt Financing Calculations'!F35)) -> 
B87: =IF(MAX($B$65:B86)<(construct+anal_period),B86+1,"") ->  | I87: =IF(OR(C87<0,C87=""),"",-E87*INDEX('Replacement Costs'!$A$15:$G$56,MATCH(C87,'Replacement Costs'!$C$15:$C$56,0),MATCH("Total Yearly Replacement Costs",'Replacement Costs'!$A$15:$G$15,0))) ->  | J87: =IF(AND(C87>=1,C87<anal_period),WorkingCap*SUM(N87:R87)-WorkingCap*SUM(N86:R86),IF(C87<0,0,IF(B87="","",-SUM(J$65:J86)))) ->  | S87: =IF(B87="","",IF($B$31=0,"",-'Debt Financing Calculations'!E36)) ->  | U87: =IF(C87="","",IF(C87<-1,0,IF(C87=anal_period,-LOOKUP(C87,depr_yr,depr_cost)-Depreciation!$C$141-Depreciation!$B$166,-LOOKUP(C87,depr_yr,depr_cost)))) ->  | Z87: =IF(C87="","",IF($B$31=0,"",-'Debt Financing Calculations'!F36)) -> 
B88: =IF(MAX($B$65:B87)<(construct+anal_period),B87+1,"") ->  | I88: =IF(OR(C88<0,C88=""),"",-E88*INDEX('Replacement Costs'!$A$15:$G$56,MATCH(C88,'Replacement Costs'!$C$15:$C$56,0),MATCH("Total Yearly Replacement Costs",'Replacement Costs'!$A$15:$G$15,0))) ->  | J88: =IF(AND(C88>=1,C88<anal_period),WorkingCap*SUM(N88:R88)-WorkingCap*SUM(N87:R87),IF(C88<0,0,IF(B88="","",-SUM(J$65:J87)))) ->  | S88: =IF(B88="","",IF($B$31=0,"",-'Debt Financing Calculations'!E37)) ->  | U88: =IF(C88="","",IF(C88<-1,0,IF(C88=anal_period,-LOOKUP(C88,depr_yr,depr_cost)-Depreciation!$C$141-Depreciation!$B$166,-LOOKUP(C88,depr_yr,depr_cost)))) ->  | Z88: =IF(C88="","",IF($B$31=0,"",-'Debt Financing Calculations'!F37)) -> 
B89: =IF(MAX($B$65:B88)<(construct+anal_period),B88+1,"") ->  | I89: =IF(OR(C89<0,C89=""),"",-E89*INDEX('Replacement Costs'!$A$15:$G$56,MATCH(C89,'Replacement Costs'!$C$15:$C$56,0),MATCH("Total Yearly Replacement Costs",'Replacement Costs'!$A$15:$G$15,0))) ->  | J89: =IF(AND(C89>=1,C89<anal_period),WorkingCap*SUM(N89:R89)-WorkingCap*SUM(N88:R88),IF(C89<0,0,IF(B89="","",-SUM(J$65:J88)))) ->  | S89: =IF(B89="","",IF($B$31=0,"",-'Debt Financing Calculations'!E38)) ->  | U89: =IF(C89="","",IF(C89<-1,0,IF(C89=anal_period,-LOOKUP(C89,depr_yr,depr_cost)-Depreciation!$C$141-Depreciation!$B$166,-LOOKUP(C89,depr_yr,depr_cost)))) ->  | Z89: =IF(C89="","",IF($B$31=0,"",-'Debt Financing Calculations'!F38)) -> 
B90: =IF(MAX($B$65:B89)<(construct+anal_period),B89+1,"") ->  | I90: =IF(OR(C90<0,C90=""),"",-E90*INDEX('Replacement Costs'!$A$15:$G$56,MATCH(C90,'Replacement Costs'!$C$15:$C$56,0),MATCH("Total Yearly Replacement Costs",'Replacement Costs'!$A$15:$G$15,0))) ->  | J90: =IF(AND(C90>=1,C90<anal_period),WorkingCap*SUM(N90:R90)-WorkingCap*SUM(N89:R89),IF(C90<0,0,IF(B90="","",-SUM(J$65:J89)))) ->  | S90: =IF(B90="","",IF($B$31=0,"",-'Debt Financing Calculations'!E39)) ->  | U90: =IF(C90="","",IF(C90<-1,0,IF(C90=anal_period,-LOOKUP(C90,depr_yr,depr_cost)-Depreciation!$C$141-Depreciation!$B$166,-LOOKUP(C90,depr_yr,depr_cost)))) ->  | Z90: =IF(C90="","",IF($B$31=0,"",-'Debt Financing Calculations'!F39)) -> 
B91: =IF(MAX($B$65:B90)<(construct+anal_period),B90+1,"") ->  | I91: =IF(OR(C91<0,C91=""),"",-E91*INDEX('Replacement Costs'!$A$15:$G$56,MATCH(C91,'Replacement Costs'!$C$15:$C$56,0),MATCH("Total Yearly Replacement Costs",'Replacement Costs'!$A$15:$G$15,0))) ->  | J91: =IF(AND(C91>=1,C91<anal_period),WorkingCap*SUM(N91:R91)-WorkingCap*SUM(N90:R90),IF(C91<0,0,IF(B91="","",-SUM(J$65:J90)))) ->  | S91: =IF(B91="","",IF($B$31=0,"",-'Debt Financing Calculations'!E40)) ->  | U91: =IF(C91="","",IF(C91<-1,0,IF(C91=anal_period,-LOOKUP(C91,depr_yr,depr_cost)-Depreciation!$C$141-Depreciation!$B$166,-LOOKUP(C91,depr_yr,depr_cost)))) ->  | Z91: =IF(C91="","",IF($B$31=0,"",-'Debt Financing Calculations'!F40)) -> 
B92: =IF(MAX($B$65:B91)<(construct+anal_period),B91+1,"") ->  | I92: =IF(OR(C92<0,C92=""),"",-E92*INDEX('Replacement Costs'!$A$15:$G$56,MATCH(C92,'Replacement Costs'!$C$15:$C$56,0),MATCH("Total Yearly Replacement Costs",'Replacement Costs'!$A$15:$G$15,0))) ->  | J92: =IF(AND(C92>=1,C92<anal_period),WorkingCap*SUM(N92:R92)-WorkingCap*SUM(N91:R91),IF(C92<0,0,IF(B92="","",-SUM(J$65:J91)))) ->  | S92: =IF(B92="","",IF($B$31=0,"",-'Debt Financing Calculations'!E41)) ->  | U92: =IF(C92="","",IF(C92<-1,0,IF(C92=anal_period,-LOOKUP(C92,depr_yr,depr_cost)-Depreciation!$C$141-Depreciation!$B$166,-LOOKUP(C92,depr_yr,depr_cost)))) ->  | Z92: =IF(C92="","",IF($B$31=0,"",-'Debt Financing Calculations'!F41)) -> 
B93: =IF(MAX($B$65:B92)<(construct+anal_period),B92+1,"") ->  | I93: =IF(OR(C93<0,C93=""),"",-E93*INDEX('Replacement Costs'!$A$15:$G$56,MATCH(C93,'Replacement Costs'!$C$15:$C$56,0),MATCH("Total Yearly Replacement Costs",'Replacement Costs'!$A$15:$G$15,0))) ->  | J93: =IF(AND(C93>=1,C93<anal_period),WorkingCap*SUM(N93:R93)-WorkingCap*SUM(N92:R92),IF(C93<0,0,IF(B93="","",-SUM(J$65:J92)))) ->  | S93: =IF(B93="","",IF($B$31=0,"",-'Debt Financing Calculations'!E42)) ->  | U93: =IF(C93="","",IF(C93<-1,0,IF(C93=anal_period,-LOOKUP(C93,depr_yr,depr_cost)-Depreciation!$C$141-Depreciation!$B$166,-LOOKUP(C93,depr_yr,depr_cost)))) ->  | Z93: =IF(C93="","",IF($B$31=0,"",-'Debt Financing Calculations'!F42)) -> 
B94: =IF(MAX($B$65:B93)<(construct+anal_period),B93+1,"") ->  | I94: =IF(OR(C94<0,C94=""),"",-E94*INDEX('Replacement Costs'!$A$15:$G$56,MATCH(C94,'Replacement Costs'!$C$15:$C$56,0),MATCH("Total Yearly Replacement Costs",'Replacement Costs'!$A$15:$G$15,0))) ->  | J94: =IF(AND(C94>=1,C94<anal_period),WorkingCap*SUM(N94:R94)-WorkingCap*SUM(N93:R93),IF(C94<0,0,IF(B94="","",-SUM(J$65:J93)))) ->  | S94: =IF(B94="","",IF($B$31=0,"",-'Debt Financing Calculations'!E43)) ->  | U94: =IF(C94="","",IF(C94<-1,0,IF(C94=anal_period,-LOOKUP(C94,depr_yr,depr_cost)-Depreciation!$C$141-Depreciation!$B$166,-LOOKUP(C94,depr_yr,depr_cost)))) ->  | Z94: =IF(C94="","",IF($B$31=0,"",-'Debt Financing Calculations'!F43)) -> 
B95: =IF(MAX($B$65:B94)<(construct+anal_period),B94+1,"") ->  | I95: =IF(OR(C95<0,C95=""),"",-E95*INDEX('Replacement Costs'!$A$15:$G$56,MATCH(C95,'Replacement Costs'!$C$15:$C$56,0),MATCH("Total Yearly Replacement Costs",'Replacement Costs'!$A$15:$G$15,0))) ->  | J95: =IF(AND(C95>=1,C95<anal_period),WorkingCap*SUM(N95:R95)-WorkingCap*SUM(N94:R94),IF(C95<0,0,IF(B95="","",-SUM(J$65:J94)))) ->  | S95: =IF(B95="","",IF($B$31=0,"",-'Debt Financing Calculations'!E44)) ->  | U95: =IF(C95="","",IF(C95<-1,0,IF(C95=anal_period,-LOOKUP(C95,depr_yr,depr_cost)-Depreciation!$C$141-Depreciation!$B$166,-LOOKUP(C95,depr_yr,depr_cost)))) ->  | Z95: =IF(C95="","",IF($B$31=0,"",-'Debt Financing Calculations'!F44)) -> 
B96: =IF(MAX($B$65:B95)<(construct+anal_period),B95+1,"") ->  | I96: =IF(OR(C96<0,C96=""),"",-E96*INDEX('Replacement Costs'!$A$15:$G$56,MATCH(C96,'Replacement Costs'!$C$15:$C$56,0),MATCH("Total Yearly Replacement Costs",'Replacement Costs'!$A$15:$G$15,0))) ->  | J96: =IF(AND(C96>=1,C96<anal_period),WorkingCap*SUM(N96:R96)-WorkingCap*SUM(N95:R95),IF(C96<0,0,IF(B96="","",-SUM(J$65:J95)))) ->  | S96: =IF(B96="","",IF($B$31=0,"",-'Debt Financing Calculations'!E45)) ->  | U96: =IF(C96="","",IF(C96<-1,0,IF(C96=anal_period,-LOOKUP(C96,depr_yr,depr_cost)-Depreciation!$C$141-Depreciation!$B$166,-LOOKUP(C96,depr_yr,depr_cost)))) ->  | Z96: =IF(C96="","",IF($B$31=0,"",-'Debt Financing Calculations'!F45)) -> 
B97: =IF(MAX($B$65:B96)<(construct+anal_period),B96+1,"") ->  | D97: =IF(C97="","",IF(C97<=plant_life,C97,IF(D96=plant_life,1,D96+1))) ->  | E97: =IF(C97="","",(1+inflation_rate)^(A97-$B$25)) ->  | F97: =IF(C97="","",IF(C97<0,0,IF(AND(C97=1,start_time<1),E97*(H2_price_nominal*output_kgyear*sensitivity_01*start_time*percnt_revs+H2_price_nominal*output_kgyear*sensitivity_01*(1-start_time)),IF(C97<=start_time,H2_price_nominal*E97*output_kgyear*sensitivity_01*percnt_revs,H2_price_nominal*output_kgyear*sensitivity_01*E97)))) ->  | I97: =IF(OR(C97<0,C97=""),"",-E97*INDEX('Replacement Costs'!$A$15:$G$56,MATCH(C97,'Replacement Costs'!$C$15:$C$56,0),MATCH("Total Yearly Replacement Costs",'Replacement Costs'!$A$15:$G$15,0))) ->  | J97: =IF(AND(C97>=1,C97<anal_period),WorkingCap*SUM(N97:R97)-WorkingCap*SUM(N96:R96),IF(C97<0,0,IF(B97="","",-SUM(J$65:J96)))) ->  | K97: =IF(C97=-construct,-E97*non_dep_infl,"") ->  | L97: =IF(C97=anal_period,salvage*E97,"") ->  | M97: =IF(D97=plant_life,-E97*decom,"") ->  | N97: =IF(C97="","",IF(C97<0,0,IF(AND(C97=1,start_time<1),-(inflated_fixed*percnt_fixed*start_time+(inflated_fixed*(1-start_time))),IF(C97<=start_time,-inflated_fixed*percnt_fixed*E97,-inflated_fixed*E97)))) ->  | P97: =IF(C97="","",IF(C97<0,0,IF(AND(C97=1,start_time<1),-(inflated_otherraw*E97*percnt_var*start_time+inflated_otherraw*E97*(1-start_time)),IF(C97<=start_time,-inflated_otherraw*E97*percnt_var,-(inflated_otherraw*E97))))) ->  | S97: =IF(B97="","",IF($B$31=0,"",-'Debt Financing Calculations'!E46)) ->  | T97: =IF(C97="","",F97+SUM(L97:S97)) ->  | U97: =IF(C97="","",IF(C97<-1,0,IF(C97=anal_period,-LOOKUP(C97,depr_yr,depr_cost)-Depreciation!$C$141-Depreciation!$B$166,-LOOKUP(C97,depr_yr,depr_cost)))) ->  | V97: =IF(C97="","",SUM(T97:U97)) ->  | W97: =IF(C97="","",$B$33) ->  | X97: =IF(C97="","",-V97*W97+tax_credit) ->  | Y97: =IF(C97="","",SUM(T97,X97)) ->  | Z97: =IF(C97="","",IF($B$31=0,"",-'Debt Financing Calculations'!F46)) ->  | AA97: =IF(C97="","",SUM(H97,I97,J97,K97,T97,X97,Z97)) ->  | AC97: =IF(C97="","",SUM(H97,I97,J97,K97,T97,Z97)) ->  | AF97: =IF(C97="","",tax_credit) -> 
B98: =IF(MAX($B$65:B97)<(construct+anal_period),B97+1,"") ->  | I98: =IF(OR(C98<0,C98=""),"",-E98*INDEX('Replacement Costs'!$A$15:$G$56,MATCH(C98,'Replacement Costs'!$C$15:$C$56,0),MATCH("Total Yearly Replacement Costs",'Replacement Costs'!$A$15:$G$15,0))) ->  | J98: =IF(AND(C98>=1,C98<anal_period),WorkingCap*SUM(N98:R98)-WorkingCap*SUM(N97:R97),IF(C98<0,0,IF(B98="","",-SUM(J$65:J97)))) ->  | S98: =IF(B98="","",IF($B$31=0,"",-'Debt Financing Calculations'!E47)) ->  | U98: =IF(C98="","",IF(C98<-1,0,IF(C98=anal_period,-LOOKUP(C98,depr_yr,depr_cost)-Depreciation!$C$141-Depreciation!$B$166,-LOOKUP(C98,depr_yr,depr_cost)))) ->  | Z98: =IF(C98="","",IF($B$31=0,"",-'Debt Financing Calculations'!F47)) -> 
B99: =IF(MAX($B$65:B98)<(construct+anal_period),B98+1,"") ->  | I99: =IF(OR(C99<0,C99=""),"",-E99*INDEX('Replacement Costs'!$A$15:$G$56,MATCH(C99,'Replacement Costs'!$C$15:$C$56,0),MATCH("Total Yearly Replacement Costs",'Replacement Costs'!$A$15:$G$15,0))) ->  | J99: =IF(AND(C99>=1,C99<anal_period),WorkingCap*SUM(N99:R99)-WorkingCap*SUM(N98:R98),IF(C99<0,0,IF(B99="","",-SUM(J$65:J98)))) ->  | S99: =IF(B99="","",IF($B$31=0,"",-'Debt Financing Calculations'!E48)) ->  | U99: =IF(C99="","",IF(C99<-1,0,IF(C99=anal_period,-LOOKUP(C99,depr_yr,depr_cost)-Depreciation!$C$141-Depreciation!$B$166,-LOOKUP(C99,depr_yr,depr_cost)))) ->  | Z99: =IF(C99="","",IF($B$31=0,"",-'Debt Financing Calculations'!F48)) -> 
B100: =IF(MAX($B$65:B99)<(construct+anal_period),B99+1,"") ->  | I100: =IF(OR(C100<0,C100=""),"",-E100*INDEX('Replacement Costs'!$A$15:$G$56,MATCH(C100,'Replacement Costs'!$C$15:$C$56,0),MATCH("Total Yearly Replacement Costs",'Replacement Costs'!$A$15:$G$15,0))) ->  | J100: =IF(AND(C100>=1,C100<anal_period),WorkingCap*SUM(N100:R100)-WorkingCap*SUM(N99:R99),IF(C100<0,0,IF(B100="","",-SUM(J$65:J99)))) ->  | S100: =IF(B100="","",IF($B$31=0,"",-'Debt Financing Calculations'!E49)) ->  | U100: =IF(C100="","",IF(C100<-1,0,IF(C100=anal_period,-LOOKUP(C100,depr_yr,depr_cost)-Depreciation!$C$141-Depreciation!$B$166,-LOOKUP(C100,depr_yr,depr_cost)))) ->  | Z100: =IF(C100="","",IF($B$31=0,"",-'Debt Financing Calculations'!F49)) -> 
B101: =IF(MAX($B$65:B100)<(construct+anal_period),B100+1,"") ->  | I101: =IF(OR(C101<0,C101=""),"",-E101*INDEX('Replacement Costs'!$A$15:$G$56,MATCH(C101,'Replacement Costs'!$C$15:$C$56,0),MATCH("Total Yearly Replacement Costs",'Replacement Costs'!$A$15:$G$15,0))) ->  | J101: =IF(AND(C101>=1,C101<anal_period),WorkingCap*SUM(N101:R101)-WorkingCap*SUM(N100:R100),IF(C101<0,0,IF(B101="","",-SUM(J$65:J100)))) ->  | S101: =IF(B101="","",IF($B$31=0,"",-'Debt Financing Calculations'!E50)) ->  | U101: =IF(C101="","",IF(C101<-1,0,IF(C101=anal_period,-LOOKUP(C101,depr_yr,depr_cost)-Depreciation!$C$141-Depreciation!$B$166,-LOOKUP(C101,depr_yr,depr_cost)))) ->  | Z101: =IF(C101="","",IF($B$31=0,"",-'Debt Financing Calculations'!F50)) -> 
B102: =IF(MAX($B$65:B101)<(construct+anal_period),B101+1,"") ->  | I102: =IF(OR(C102<0,C102=""),"",-E102*INDEX('Replacement Costs'!$A$15:$G$56,MATCH(C102,'Replacement Costs'!$C$15:$C$56,0),MATCH("Total Yearly Replacement Costs",'Replacement Costs'!$A$15:$G$15,0))) ->  | J102: =IF(AND(C102>=1,C102<anal_period),WorkingCap*SUM(N102:R102)-WorkingCap*SUM(N101:R101),IF(C102<0,0,IF(B102="","",-SUM(J$65:J101)))) ->  | S102: =IF(B102="","",IF($B$31=0,"",-'Debt Financing Calculations'!E51)) ->  | U102: =IF(C102="","",IF(C102<-1,0,IF(C102=anal_period,-LOOKUP(C102,depr_yr,depr_cost)-Depreciation!$C$141-Depreciation!$B$166,-LOOKUP(C102,depr_yr,depr_cost)))) ->  | Z102: =IF(C102="","",IF($B$31=0,"",-'Debt Financing Calculations'!F51)) -> 
B103: =IF(MAX($B$65:B102)<(construct+anal_period),B102+1,"") ->  | I103: =IF(OR(C103<0,C103=""),"",-E103*INDEX('Replacement Costs'!$A$15:$G$56,MATCH(C103,'Replacement Costs'!$C$15:$C$56,0),MATCH("Total Yearly Replacement Costs",'Replacement Costs'!$A$15:$G$15,0))) ->  | J103: =IF(AND(C103>=1,C103<anal_period),WorkingCap*SUM(N103:R103)-WorkingCap*SUM(N102:R102),IF(C103<0,0,IF(B103="","",-SUM(J$65:J102)))) ->  | S103: =IF(B103="","",IF($B$31=0,"",-'Debt Financing Calculations'!E52)) ->  | U103: =IF(C103="","",IF(C103<-1,0,IF(C103=anal_period,-LOOKUP(C103,depr_yr,depr_cost)-Depreciation!$C$141-Depreciation!$B$166,-LOOKUP(C103,depr_yr,depr_cost)))) ->  | Z103: =IF(C103="","",IF($B$31=0,"",-'Debt Financing Calculations'!F52)) -> 
B104: =IF(MAX($B$65:B103)<(construct+anal_period),B103+1,"") ->  | I104: =IF(OR(C104<0,C104=""),"",-E104*INDEX('Replacement Costs'!$A$15:$G$56,MATCH(C104,'Replacement Costs'!$C$15:$C$56,0),MATCH("Total Yearly Replacement Costs",'Replacement Costs'!$A$15:$G$15,0))) ->  | J104: =IF(AND(C104>=1,C104<anal_period),WorkingCap*SUM(N104:R104)-WorkingCap*SUM(N103:R103),IF(C104<0,0,IF(B104="","",-SUM(J$65:J103)))) ->  | S104: =IF(B104="","",IF($B$31=0,"",-'Debt Financing Calculations'!E53)) ->  | U104: =IF(C104="","",IF(C104<-1,0,IF(C104=anal_period,-LOOKUP(C104,depr_yr,depr_cost)-Depreciation!$C$141-Depreciation!$B$166,-LOOKUP(C104,depr_yr,depr_cost)))) ->  | Z104: =IF(C104="","",IF($B$31=0,"",-'Debt Financing Calculations'!F53)) -> 
B105: =IF(MAX($B$65:B104)<(construct+anal_period),B104+1,"") ->  | I105: =IF(OR(C105<0,C105=""),"",-E105*INDEX('Replacement Costs'!$A$15:$G$56,MATCH(C105,'Replacement Costs'!$C$15:$C$56,0),MATCH("Total Yearly Replacement Costs",'Replacement Costs'!$A$15:$G$15,0))) ->  | J105: =IF(AND(C105>=1,C105<anal_period),WorkingCap*SUM(N105:R105)-WorkingCap*SUM(N104:R104),IF(C105<0,0,IF(B105="","",-SUM(J$65:J104)))) ->  | S105: =IF(B105="","",IF($B$31=0,"",-'Debt Financing Calculations'!E54)) ->  | U105: =IF(C105="","",IF(C105<-1,0,IF(C105=anal_period,-LOOKUP(C105,depr_yr,depr_cost)-Depreciation!$C$141-Depreciation!$B$166,-LOOKUP(C105,depr_yr,depr_cost)))) ->  | Z105: =IF(C105="","",IF($B$31=0,"",-'Debt Financing Calculations'!F54)) -> 
B106: =IF(MAX($B$65:B105)<(construct+anal_period),B105+1,"") ->  | I106: =IF(OR(C106<0,C106=""),"",-E106*INDEX('Replacement Costs'!$A$15:$G$56,MATCH(C106,'Replacement Costs'!$C$15:$C$56,0),MATCH("Total Yearly Replacement Costs",'Replacement Costs'!$A$15:$G$15,0))) ->  | J106: =IF(AND(C106>=1,C106<anal_period),WorkingCap*SUM(N106:R106)-WorkingCap*SUM(N105:R105),IF(C106<0,0,IF(B106="","",-SUM(J$65:J105)))) ->  | S106: =IF(B106="","",IF($B$31=0,"",-'Debt Financing Calculations'!E55)) ->  | U106: =IF(C106="","",IF(C106<-1,0,IF(C106=anal_period,-LOOKUP(C106,depr_yr,depr_cost)-Depreciation!$C$141-Depreciation!$B$166,-LOOKUP(C106,depr_yr,depr_cost)))) ->  | Z106: =IF(C106="","",IF($B$31=0,"",-'Debt Financing Calculations'!F55)) -> 
B107: =IF(MAX($B$65:B106)<(construct+anal_period),B106+1,"") ->  | I107: =IF(OR(C107<0,C107=""),"",-E107*INDEX('Replacement Costs'!$A$15:$G$56,MATCH(C107,'Replacement Costs'!$C$15:$C$56,0),MATCH("Total Yearly Replacement Costs",'Replacement Costs'!$A$15:$G$15,0))) ->  | J107: =IF(AND(C107>=1,C107<anal_period),WorkingCap*SUM(N107:R107)-WorkingCap*SUM(N106:R106),IF(C107<0,0,IF(B107="","",-SUM(J$65:J106)))) ->  | S107: =IF(B107="","",IF($B$31=0,"",-'Debt Financing Calculations'!E56)) ->  | U107: =IF(C107="","",IF(C107<-1,0,IF(C107=anal_period,-LOOKUP(C107,depr_yr,depr_cost)-Depreciation!$C$141-Depreciation!$B$166,-LOOKUP(C107,depr_yr,depr_cost)))) ->  | Z107: =IF(C107="","",IF($B$31=0,"",-'Debt Financing Calculations'!F56)) -> 
B108: =IF(MAX($B$65:B107)<(construct+anal_period),B107+1,"") ->  | I108: =IF(OR(C108<0,C108=""),"",-E108*INDEX('Replacement Costs'!$A$15:$G$56,MATCH(C108,'Replacement Costs'!$C$15:$C$56,0),MATCH("Total Yearly Replacement Costs",'Replacement Costs'!$A$15:$G$15,0))) ->  | J108: =IF(AND(C108>=1,C108<anal_period),WorkingCap*SUM(N108:R108)-WorkingCap*SUM(N107:R107),IF(C108<0,0,IF(B108="","",-SUM(J$65:J107)))) ->  | S108: =IF(B108="","",IF($B$31=0,"",-'Debt Financing Calculations'!E57)) ->  | U108: =IF(C108="","",IF(C108<-1,0,IF(C108=anal_period,-LOOKUP(C108,depr_yr,depr_cost)-Depreciation!$C$141-Depreciation!$B$166,-LOOKUP(C108,depr_yr,depr_cost)))) ->  | Z108: =IF(C108="","",IF($B$31=0,"",-'Debt Financing Calculations'!F57)) -> 
B109: =IF(MAX($B$65:B108)<(construct+anal_period),B108+1,"") ->  | I109: =IF(OR(C109<0,C109=""),"",-E109*INDEX('Replacement Costs'!$A$15:$G$56,MATCH(C109,'Replacement Costs'!$C$15:$C$56,0),MATCH("Total Yearly Replacement Costs",'Replacement Costs'!$A$15:$G$15,0))) ->  | J109: =IF(AND(C109>=1,C109<anal_period),WorkingCap*SUM(N109:R109)-WorkingCap*SUM(N108:R108),IF(C109<0,0,IF(B109="","",-SUM(J$65:J108)))) ->  | S109: =IF(B109="","",IF($B$31=0,"",-'Debt Financing Calculations'!E58)) ->  | U109: =IF(C109="","",IF(C109<-1,0,IF(C109=anal_period,-LOOKUP(C109,depr_yr,depr_cost)-Depreciation!$C$141-Depreciation!$B$166,-LOOKUP(C109,depr_yr,depr_cost)))) ->  | Z109: =IF(C109="","",IF($B$31=0,"",-'Debt Financing Calculations'!F58)) -> 
B110: =IF(MAX($B$65:B109)<(construct+anal_period),B109+1,"") ->  | I110: =IF(OR(C110<0,C110=""),"",-E110*INDEX('Replacement Costs'!$A$15:$G$56,MATCH(C110,'Replacement Costs'!$C$15:$C$56,0),MATCH("Total Yearly Replacement Costs",'Replacement Costs'!$A$15:$G$15,0))) ->  | J110: =IF(AND(C110>=1,C110<anal_period),WorkingCap*SUM(N110:R110)-WorkingCap*SUM(N109:R109),IF(C110<0,0,IF(B110="","",-SUM(J$65:J109)))) ->  | S110: =IF(B110="","",IF($B$31=0,"",-'Debt Financing Calculations'!E59)) ->  | U110: =IF(C110="","",IF(C110<-1,0,IF(C110=anal_period,-LOOKUP(C110,depr_yr,depr_cost)-Depreciation!$C$141-Depreciation!$B$166,-LOOKUP(C110,depr_yr,depr_cost)))) ->  | Z110: =IF(C110="","",IF($B$31=0,"",-'Debt Financing Calculations'!F59)) -> 
B111: =IF(MAX($B$65:B110)<(construct+anal_period),B110+1,"") ->  | I111: =IF(OR(C111<0,C111=""),"",-E111*INDEX('Replacement Costs'!$A$15:$G$56,MATCH(C111,'Replacement Costs'!$C$15:$C$56,0),MATCH("Total Yearly Replacement Costs",'Replacement Costs'!$A$15:$G$15,0))) ->  | J111: =IF(AND(C111>=1,C111<anal_period),WorkingCap*SUM(N111:R111)-WorkingCap*SUM(N110:R110),IF(C111<0,0,IF(B111="","",-SUM(J$65:J110)))) ->  | S111: =IF(B111="","",IF($B$31=0,"",-'Debt Financing Calculations'!E60)) ->  | U111: =IF(C111="","",IF(C111<-1,0,IF(C111=anal_period,-LOOKUP(C111,depr_yr,depr_cost)-Depreciation!$C$141-Depreciation!$B$166,-LOOKUP(C111,depr_yr,depr_cost)))) ->  | Z111: =IF(C111="","",IF($B$31=0,"",-'Debt Financing Calculations'!F60)) -> 
B112: =IF(MAX($B$65:B111)<(construct+anal_period),B111+1,"") ->  | I112: =IF(OR(C112<0,C112=""),"",-E112*INDEX('Replacement Costs'!$A$15:$G$56,MATCH(C112,'Replacement Costs'!$C$15:$C$56,0),MATCH("Total Yearly Replacement Costs",'Replacement Costs'!$A$15:$G$15,0))) ->  | J112: =IF(AND(C112>=1,C112<anal_period),WorkingCap*SUM(N112:R112)-WorkingCap*SUM(N111:R111),IF(C112<0,0,IF(B112="","",-SUM(J$65:J111)))) ->  | O112: =IF(C112="","",IF(C112<0,0,IF(AND(C112=1,start_time<1),-(SUM(B279:E279)*output_kgyear*E112*percnt_var*start_time+SUM(B279:E279)*output_kgyear*E112*(1-start_time)),IF(C112<=start_time,-SUM(B279:E279)*output_kgyear*E112*percnt_var,-SUM(B279:E279)*output_kgyear*E112)))) ->  | Q112: =IF(C112="","",IF(C112<0,0,IF(AND(C112=1,start_time<1),SUM(K279:N279,T279:V279)*output_kgyear*E112*percnt_revs*start_time+SUM(K279:N279,T279:V279)*output_kgyear*E112*(1-start_time),IF(C112<=start_time,SUM(K279:N279,T279:V279)*output_kgyear*E112*percnt_revs,SUM(K279:N279,T279:V279)*output_kgyear*E112)))) ->  | R112: =IF(C112="","",IF(C112<0,0,IF(AND(C112=1,start_time<1),-((SUM(F279:I279,P279:R279)*output_kgyear+inflated_othervar)*E112*percnt_var*start_time+(SUM(F279:I279,P279:R279)*output_kgyear+inflated_othervar)*E112*(1-start_time)),IF(C112<=start_time,-(SUM(F279:I279,P279:R279)*output_kgyear+inflated_othervar)*E112*percnt_var,-E112*(SUM(F279:I279,P279:R279)*output_kgyear+inflated_othervar))))) ->  | S112: =IF(B112="","",IF($B$31=0,"",-'Debt Financing Calculations'!E61)) ->  | U112: =IF(C112="","",IF(C112<-1,0,IF(C112=anal_period,-LOOKUP(C112,depr_yr,depr_cost)-Depreciation!$C$141-Depreciation!$B$166,-LOOKUP(C112,depr_yr,depr_cost)))) ->  | Z112: =IF(C112="","",IF($B$31=0,"",-'Debt Financing Calculations'!F61)) -> 
B113: =IF(MAX($B$65:B112)<(construct+anal_period),B112+1,"") ->  | I113: =IF(OR(C113<0,C113=""),"",-E113*INDEX('Replacement Costs'!$A$15:$G$56,MATCH(C113,'Replacement Costs'!$C$15:$C$56,0),MATCH("Total Yearly Replacement Costs",'Replacement Costs'!$A$15:$G$15,0))) ->  | J113: =IF(AND(C113>=1,C113<anal_period),WorkingCap*SUM(N113:R113)-WorkingCap*SUM(N112:R112),IF(C113<0,0,IF(B113="","",-SUM(J$65:J112)))) ->  | O113: =IF(C113="","",IF(C113<0,0,IF(AND(C113=1,start_time<1),-(SUM(B280:D280)*output_kgyear*E113*percnt_var*start_time+SUM(B280:D280)*output_kgyear*E113*(1-start_time)),IF(C113<=start_time,-SUM(B280:D280)*output_kgyear*E113*percnt_var,-SUM(B280:D280)*output_kgyear*E113)))) ->  | Q113: =IF(C113="","",IF(C113<0,0,IF(AND(C113=1,start_time<1),SUM(J280:M280,S280:U280)*output_kgyear*E113*percnt_revs*start_time+SUM(J280:M280,S280:U280)*output_kgyear*E113*(1-start_time),IF(C113<=start_time,SUM(J280:M280,S280:U280)*output_kgyear*E113*percnt_revs,SUM(J280:M280,S280:U280)*output_kgyear*E113)))) ->  | R113: =IF(C113="","",IF(C113<0,0,IF(AND(C113=1,start_time<1),-((SUM(E280:H280,O280:Q280)*output_kgyear+inflated_othervar)*E113*percnt_var*start_time+(SUM(E280:H280,O280:Q280)*output_kgyear+inflated_othervar)*E113*(1-start_time)),IF(C113<=start_time,-(SUM(E280:H280,O280:Q280)*output_kgyear+inflated_othervar)*E113*percnt_var,-E113*(SUM(E280:H280,O280:Q280)*output_kgyear+inflated_othervar))))) ->  | S113: =IF(B113="","",IF($B$31=0,"",-'Debt Financing Calculations'!E62)) ->  | U113: =IF(C113="","",IF(C113<-1,0,IF(C113=anal_period,-LOOKUP(C113,depr_yr,depr_cost)-Depreciation!$C$141-Depreciation!$B$166,-LOOKUP(C113,depr_yr,depr_cost)))) ->  | Z113: =IF(C113="","",IF($B$31=0,"",-'Debt Financing Calculations'!F62)) ->  | AE113: =IF(C113="","",IF(C113<0,0,IF(AND(C113=1,start_time<1),(output_kgyear*start_time*percnt_revs+output_kgyear*(1-start_time)),IF(C113<=start_time,output_kgyear*percnt_revs,output_kgyear)))) -> 
E114: Cumulative Total | F114: =SUM(F65:F113) ->  | O114: 0 | P114: 0 | Q114: 0 | R114: -44669.11226 | W114: 5.4054
E115: PV of Cash Flow | F115: =NPV(nominal_irr,F65:F113) ->  | O115: =NPV(nominal_irr,$O$65:$O$113) -> 0 | P115: 0 | Q115: 0 | R115: -16039.84208 | W115: 2.218074994
E116: Discounted Values | F116: =+F65+NPV($X$59,F66:F113) ->  | O116: 0 | P116: 0 | Q116: 0 | R116: -17652.16701 | W116: 2.441035893 | AE116: =+AE65+NPV(real_irr,AE66:AE113) -> 4512143.561 | AF116: =+AF65+NPV($X$59,AF66:AF113) -> 0
A117: Specific Item Cost Calculation | E117: Expenses $/kg H2 | H117: =-H116/$AE$116*(1+inflation_rate)^construct/INFLATION_FACTOR ->  | I117: =-I116/$AE$116*(1+inflation_rate)^construct/INFLATION_FACTOR ->  | J117: =-J116/$AE$116*(1+inflation_rate)^construct/INFLATION_FACTOR ->  | K117: =-K116/$AE$116*(1+inflation_rate)^construct/INFLATION_FACTOR ->  | M117: =-M116/$AE$116*(1+inflation_rate)^construct/INFLATION_FACTOR ->  | N117: =-N116/$AE$116*(1+inflation_rate)^construct/INFLATION_FACTOR ->  | O117: =-O116/$AE$116*(1+inflation_rate)^construct/INFLATION_FACTOR -> 0 | P117: =-P116/$AE$116*(1+inflation_rate)^construct/INFLATION_FACTOR -> 0 | R117: =-R116/$AE$116*(1+inflation_rate)^construct/INFLATION_FACTOR -> 0.004062220436 | S117: =-S116/$AE$116*(1+inflation_rate)^construct/INFLATION_FACTOR ->  | X117: =-X116/$AE$116*(1+inflation_rate)^construct/INFLATION_FACTOR ->  | Z117: =-Z116/$AE$116*(1+inflation_rate)^construct/INFLATION_FACTOR ->  | AG117: =+SUM(F117:AC117) -> 
A118: Cost Component | B118: After Tax Present Value | C118: % of Total | D118: $/kg of H2 | E118: Revenues $/kg H2 | F118: =F116/$AE$116*(1+inflation_rate)^construct/INFLATION_FACTOR ->  | L118: =L116/$AE$116*(1+inflation_rate)^construct/INFLATION_FACTOR ->  | Q118: =Q116/$AE$116*(1+inflation_rate)^construct/INFLATION_FACTOR -> 0 | AG118: =+SUM(F118:AC118) -> 
A119: Capital-Related Costs | B119: =(SUM(H115:K115)+L115*(1-total_tax_rate)+S115*(1-total_tax_rate)+U115*(-total_tax_rate)+Z115)/(1-total_tax_rate) ->  | C119: =B119/SUM($B$118:$B$125) ->  | D119: =H2_price_real*C119 -> 
A120: Decommissioning Costs | B120: =M115 -> 
A121: Fixed O&M | B121: =N115 -> 
A122: Feedstock Costs | B122: =O115 -> 0
A123: Other Raw Material Costs | B123: =P115 -> 0
A124: Byproduct Credits | B124: =Q115 -> 0
A125: Other Variable Costs (including utilities) | B125: =R115 -> -16039.84208
A128: INFLATION FACTOR (1 + inflation rate)^(startup year - reference year) = | B128: =(1+inflation_rate)^(startup_year-ref_year) -> 0.9813542689
A129: Feedstock, Utility and Byproduct Cost Information (Start-Up Year $)
B130: Energy Feedstocks | F130: Energy Utilities | J130: Distributed Production Station Electricity Usage | K130: Energy Byproducts | O130: Other Material Inputs | S130: Other Material Byproducts
A131: Feedstock Name | J131: =IF(FC_CashFlow_euse>0,"Commercial Electricity","") -> Commercial Electricity | O131: Type | S131: Type
A132: Conversion to $/GJ | J132: =IF(J131="",0,VLOOKUP(J131,MASTER_PROPERTY_TABLE,9,FALSE)) -> 0.0036 | O132: Usage (/kg H2) | S132: Usage (/kg H2)
A133: Usage (/kg H2) | J133: =FC_eUse_kWhpkg -> 4.298789385 | O133: Cost (/usage unit) | S133: Price (/usage unit)
A134: Price ($/ usage unit) | J134: =IF(J131="",0,StartYr_comm_electricity) -> 0.1048616354 | O134: Lookup Price? | S134: Lookup Price?
A135: Lookup Price? | J135: =IF(J131="","","yes") -> yes
A136: CO2 Emissions (kg CO2/kg H2) | B136: =IF(B131="",0,VLOOKUP(B131,MASTER_PROPERTY_TABLE,11,FALSE)*B132*B133) -> 0 | C136: =IF(C131="",0,VLOOKUP(C131,MASTER_PROPERTY_TABLE,11,FALSE)*C132*C133) -> 0 | D136: =IF(D131="",0,VLOOKUP(D131,MASTER_PROPERTY_TABLE,11,FALSE)*D132*D133) -> 0 | E136: =IF(E131="",0,VLOOKUP(E131,MASTER_PROPERTY_TABLE,11,FALSE)*E132*E133) -> 0 | F136: =IF(F131="",,VLOOKUP(F131,MASTER_PROPERTY_TABLE,11,FALSE)*F132*F133) -> 0 | G136: =IF(G131="",,VLOOKUP(G131,MASTER_PROPERTY_TABLE,11,FALSE)*G132*G133) -> 0 | H136: =IF(H131="",,VLOOKUP(H131,MASTER_PROPERTY_TABLE,11,FALSE)*H132*H133) -> 0 | I136: =IF(I131="",,VLOOKUP(I131,MASTER_PROPERTY_TABLE,11,FALSE)*I132*I133) -> 0 | J136: =IF($J$131="",0,VLOOKUP($J$131,MASTER_PROPERTY_TABLE,12,FALSE)*$J$132*$J$133) -> 0
A137: Actual Year | B137: =IF(B$131="","",B$131&" ($/kg of H2)") ->  | P137: =IF(P$131="","",P$131&" ($/kg of H2)") ->  | Q137: =IF(Q$131="","",Q$131&" ($/kg of H2)") ->  | R137: =IF(R$131="","",R$131&" ($/kg of H2)") ->  | T137: =IF(T$131="","",T$131&" ($/kg of H2)") ->  | U137: =IF(U$131="","",U$131&" ($/kg of H2)") ->  | V137: =IF(V$131="","",V$131&" ($/kg of H2)") -> 
A138: =IF(A65="","",A65) -> 2014 | B138: =IF($A138="","",IF($B$131="","",IF($B$135="no",INFLATION_FACTOR*$B$133*$B$134,INFLATION_FACTOR*$B$133*$B$132*INDEX(FEEDPRICETABLE,MATCH($B$131,List_Energy_Feedstocks,0),MATCH($A138,Feedstock_Year,0))))) ->  | C138: =IF($A138="","",IF($C$131="","",IF($C$135="no",INFLATION_FACTOR*$C$133*$C$134,INFLATION_FACTOR*$C$133*$C$132*INDEX(FEEDPRICETABLE,MATCH($C$131,List_Energy_Feedstocks,0),MATCH($A138,Feedstock_Year,0))))) ->  | D138: =IF($A138="","",IF($D$131="","",IF($D$135="no",INFLATION_FACTOR*$D$133*$D$134,INFLATION_FACTOR*$D$133*$D$132*INDEX(FEEDPRICETABLE,MATCH($D$131,List_Energy_Feedstocks,0),MATCH($A138,Feedstock_Year,0))))) ->  | E138: =IF($A138="","",IF($E$131="","",IF($E$135="no",INFLATION_FACTOR*$E$133*$E$134,INFLATION_FACTOR*$E$133*$E$132*INDEX(FEEDPRICETABLE,MATCH($E$131,List_Energy_Feedstocks,0),MATCH($A138,Feedstock_Year,0))))) ->  | F138: =IF($A138="","",IF($F$131="","",IF($F$135="no",INFLATION_FACTOR*$F$133*$F$134,INFLATION_FACTOR*$F$133*$F$132*INDEX(FEEDPRICETABLE,MATCH($F$131,List_Energy_Feedstocks,0),MATCH($A138,Feedstock_Year,0))))) ->  | G138: =IF($A138="","",IF($G$131="","",IF($G$135="no",INFLATION_FACTOR*$G$133*$G$134,INFLATION_FACTOR*$G$133*$G$132*INDEX(FEEDPRICETABLE,MATCH($G$131,List_Energy_Feedstocks,0),MATCH($A138,Feedstock_Year,0))))) ->  | H138: =IF($A138="","",IF($H$131="","",IF($H$135="no",INFLATION_FACTOR*$H$133*$H$134,INFLATION_FACTOR*$H$133*$H$132*INDEX(FEEDPRICETABLE,MATCH(H$131,List_Energy_Feedstocks,0),MATCH($A138,Feedstock_Year,0))))) ->  | I138: =IF($A138="","",IF($I$131="","",IF($I$135="no",INFLATION_FACTOR*$I$133*$I$134,INFLATION_FACTOR*$I$133*$I$132*INDEX(FEEDPRICETABLE,MATCH($I$131,List_Energy_Feedstocks,0),MATCH($A138,Feedstock_Year,0))))) ->  | J138: =IF($A138="","",IF($J$131="","",IF($J$135="no",INFLATION_FACTOR*$J$133*$J$134,INFLATION_FACTOR*$J$133*$J$132*INDEX(FEEDPRICETABLE,MATCH($J$131,List_Energy_Feedstocks,0),MATCH($A138,Feedstock_Year,0))))) -> 0.4638434805 | K138: =IF($A138="","",IF($K$131="","",IF($K$135="no",INFLATION_FACTOR*$K$133*$K$134,INFLATION_FACTOR*$K$133*$K$132*INDEX(FEEDPRICETABLE,MATCH($K$131,List_Energy_Feedstocks,0),MATCH($A138,Feedstock_Year,0))))) ->  | L138: =IF($A138="","",IF($L$131="","",IF($L$135="no",INFLATION_FACTOR*$L$133*$L$134,INFLATION_FACTOR*$L$133*$L$132*INDEX(FEEDPRICETABLE,MATCH($L$131,List_Energy_Feedstocks,0),MATCH($A138,Feedstock_Year,0))))) ->  | M138: =IF($A138="","",IF(M$131="","",IF($M$135="no",INFLATION_FACTOR*$M$133*$M$134,INFLATION_FACTOR*$M$133*$M$132*INDEX(FEEDPRICETABLE,MATCH($M$131,List_Energy_Feedstocks,0),MATCH($A138,Feedstock_Year,0))))) ->  | N138: =IF($A138="","",IF($N$131="","",IF($N$135="no",INFLATION_FACTOR*$N$133*$N$134,INFLATION_FACTOR*$N$133*$N$132*INDEX(FEEDPRICETABLE,MATCH($N$131,List_Energy_Feedstocks,0),MATCH($A138,Feedstock_Year,0))))) ->  | P138: =IF(OR($A138="",$P$131=""),"",IF($P$134="No",INFLATION_FACTOR*$P$132*$P$133,INFLATION_FACTOR*$P$132*INDEX(Tbl_Other_Inputs_and_Byproducts,MATCH($P$131,Other_Inputs_List,0),MATCH($A138,Other_Inputs_years,0)))) ->  | Q138: =IF(OR($A138="",$Q$131=""),"",IF($Q$134="No",INFLATION_FACTOR*$Q$132*$Q$133,INFLATION_FACTOR*$Q$132*INDEX(Tbl_Other_Inputs_and_Byproducts,MATCH($Q$131,Other_Inputs_List,0),MATCH($A138,Other_Inputs_years,0)))) ->  | R138: =IF(OR($A138="",$R$131=""),"",IF($R$134="No",INFLATION_FACTOR*$R$132*$R$133,INFLATION_FACTOR*$R$132*INDEX(Tbl_Other_Inputs_and_Byproducts,MATCH($R$131,Other_Inputs_List,0),MATCH($A138,Other_Inputs_years,0)))) ->  | T138: =IF(OR($A138="",$T$131=""),"",IF($T$134="No",INFLATION_FACTOR*$T$132*$T$133,INFLATION_FACTOR*$T$132*INDEX(Tbl_Other_Inputs_and_Byproducts,MATCH($T$131,Other_Inputs_List,0),MATCH($A138,Other_Inputs_years,0)))) ->  | U138: =IF(OR($A138="",$U$131=""),"",IF($U$134="No",INFLATION_FACTOR*$U$132*$U$133,INFLATION_FACTOR*$U$132*INDEX(Tbl_Other_Inputs_and_Byproducts,MATCH($U$131,Other_Inputs_List,0),MATCH($A138,Other_Inputs_years,0)))) ->  | V138: =IF(OR($A138="",$V$131=""),"",IF($V$134="No",INFLATION_FACTOR*$V$132*$V$133,INFLATION_FACTOR*$V$132*INDEX(Tbl_Other_Inputs_and_Byproducts,MATCH($V$131,Other_Inputs_List,0),MATCH($A138,Other_Inputs_years,0)))) -> 
A139: 2015 | B139: =IF($A139="","",IF($B$131="","",IF($B$135="no",INFLATION_FACTOR*$B$133*$B$134,INFLATION_FACTOR*$B$133*$B$132*INDEX(FEEDPRICETABLE,MATCH($B$131,List_Energy_Feedstocks,0),MATCH($A139,Feedstock_Year,0))))) ->  | F139: =IF($A139="","",IF($F$131="","",IF($F$135="no",INFLATION_FACTOR*$F$133*$F$134,INFLATION_FACTOR*$F$133*$F$132*INDEX(FEEDPRICETABLE,MATCH($F$131,List_Energy_Feedstocks,0),MATCH($A139,Feedstock_Year,0))))) ->  | J139: 0.4545831105
A140: 2016 | J140: 0.4400035401
A141: 2017 | J141: 0.4423729982
A142: 2018 | B142: =IF($A142="","",IF($B$131="","",IF($B$135="no",INFLATION_FACTOR*$B$133*$B$134,INFLATION_FACTOR*$B$133*$B$132*INDEX(FEEDPRICETABLE,MATCH($B$131,List_Energy_Feedstocks,0),MATCH($A142,Feedstock_Year,0))))) ->  | J142: 0.4403600459
A143: 2019 | J143: 0.4464206531
A144: 2020 | J144: 0.4538807445
A145: 2021 | J145: 0.4569653445
A146: 2022 | J146: 0.4720403267
A147: 2023 | J147: 0.4768782584
A148: 2024 | J148: 0.4759325777
A149: 2025 | J149: 0.4837780408
A150: 2026 | J150: 0.4888717929
A151: 2027 | J151: 0.4901580925
A152: 2028 | J152: 0.4912574641
A153: 2029 | J153: 0.4920354336
A154: 2030 | J154: 0.4931752827
A155: 2031 | J155: 0.4924334869
A156: 2032 | J156: 0.4911056877
A157: 2033 | J157: 0.4892305922
A158: 2034 | J158: 0.4878570471
A184: Tables to calculate equivalent price in startup year
A185: Actual Year | B185: =IF(B$131="","",B$131&" ($/year)") ->  | C185: =IF(C$131="","",C$131&" ($/year)") ->  | J185: Commercial Electricity ($/year)
A186: =+A139 -> 2015 | B186: =IF($C65="","",IF($C65<0,0,IF(AND($C65=1,start_time<1),-(SUM(B139)*output_kgyear*$E65*percnt_var*start_time+SUM(B139)*output_kgyear*$E65*(1-start_time)),IF($C65<=start_time,-SUM(B139)*output_kgyear*$E65*percnt_var,-SUM(B139)*output_kgyear*$E65)))) -> 0 | C186: 0 | D186: 0 | E186: 0 | F186: 0 | G186: 0 | H186: 0 | I186: 0 | J186: 0 | K186: 0 | L186: 0 | M186: 0 | N186: 0
A187: =+A140 -> 2016 | B187: =IF($C66="","",IF($C66<0,0,IF(AND($C66=1,start_time<1),-(SUM(B140)*output_kgyear*$E66*percnt_var*start_time+SUM(B140)*output_kgyear*$E66*(1-start_time)),IF($C66<=start_time,-SUM(B140)*output_kgyear*$E66*percnt_var,-SUM(B140)*output_kgyear*$E66)))) -> 0 | C187: 0 | D187: 0 | E187: 0 | F187: 0 | G187: 0 | H187: 0 | I187: 0 | J187: -155321.9197 | K187: 0 | L187: 0 | M187: 0 | N187: 0
A188: 2017 | B188: =IF($C67="","",IF($C67<0,0,IF(AND($C67=1,start_time<1),-(SUM(B141)*output_kgyear*$E67*percnt_var*start_time+SUM(B141)*output_kgyear*$E67*(1-start_time)),IF($C67<=start_time,-SUM(B141)*output_kgyear*$E67*percnt_var,-SUM(B141)*output_kgyear*$E67)))) -> 0 | C188: 0 | D188: 0 | E188: 0 | F188: 0 | G188: 0 | H188: 0 | I188: 0 | J188: -212167.134 | K188: 0 | L188: 0 | M188: 0 | N188: 0
A189: 2018 | B189: =IF($C68="","",IF($C68<0,0,IF(AND($C68=1,start_time<1),-(SUM(B142)*output_kgyear*$E68*percnt_var*start_time+SUM(B142)*output_kgyear*$E68*(1-start_time)),IF($C68<=start_time,-SUM(B142)*output_kgyear*$E68*percnt_var,-SUM(B142)*output_kgyear*$E68)))) -> 0 | C189: 0 | D189: 0 | E189: 0 | F189: 0 | G189: 0 | H189: 0 | I189: 0 | J189: -215214.5314 | K189: 0 | L189: 0 | M189: 0 | N189: 0
A190: 2019 | B190: =IF($C69="","",IF($C69<0,0,IF(AND($C69=1,start_time<1),-(SUM(B143)*output_kgyear*$E69*percnt_var*start_time+SUM(B143)*output_kgyear*$E69*(1-start_time)),IF($C69<=start_time,-SUM(B143)*output_kgyear*$E69*percnt_var,-SUM(B143)*output_kgyear*$E69)))) -> 0 | C190: 0 | D190: 0 | E190: 0 | F190: 0 | G190: 0 | H190: 0 | I190: 0 | J190: -222321.8492 | K190: 0 | L190: 0 | M190: 0 | N190: 0
A191: 2020 | B191: =IF($C70="","",IF($C70<0,0,IF(AND($C70=1,start_time<1),-(SUM(B144)*output_kgyear*$E70*percnt_var*start_time+SUM(B144)*output_kgyear*$E70*(1-start_time)),IF($C70<=start_time,-SUM(B144)*output_kgyear*$E70*percnt_var,-SUM(B144)*output_kgyear*$E70)))) -> 0 | C191: 0 | D191: 0 | E191: 0 | F191: 0 | G191: 0 | H191: 0 | I191: 0 | J191: -230331.7515 | K191: 0 | L191: 0 | M191: 0 | N191: 0
A192: 2021 | B192: =IF($C71="","",IF($C71<0,0,IF(AND($C71=1,start_time<1),-(SUM(B145)*output_kgyear*$E71*percnt_var*start_time+SUM(B145)*output_kgyear*$E71*(1-start_time)),IF($C71<=start_time,-SUM(B145)*output_kgyear*$E71*percnt_var,-SUM(B145)*output_kgyear*$E71)))) -> 0 | C192: 0 | D192: 0 | E192: 0 | F192: 0 | G192: 0 | H192: 0 | I192: 0 | J192: -236303.1444 | K192: 0 | L192: 0 | M192: 0 | N192: 0
A193: 2022 | B193: =IF($C72="","",IF($C72<0,0,IF(AND($C72=1,start_time<1),-(SUM(B146)*output_kgyear*$E72*percnt_var*start_time+SUM(B146)*output_kgyear*$E72*(1-start_time)),IF($C72<=start_time,-SUM(B146)*output_kgyear*$E72*percnt_var,-SUM(B146)*output_kgyear*$E72)))) -> 0 | C193: 0 | D193: 0 | E193: 0 | F193: 0 | G193: 0 | H193: 0 | I193: 0 | J193: -248736.5016 | K193: 0 | L193: 0 | M193: 0 | N193: 0
A194: 2023 | B194: =IF($C73="","",IF($C73<0,0,IF(AND($C73=1,start_time<1),-(SUM(B147)*output_kgyear*$E73*percnt_var*start_time+SUM(B147)*output_kgyear*$E73*(1-start_time)),IF($C73<=start_time,-SUM(B147)*output_kgyear*$E73*percnt_var,-SUM(B147)*output_kgyear*$E73)))) -> 0 | C194: 0 | D194: 0 | E194: 0 | F194: 0 | G194: 0 | H194: 0 | I194: 0 | J194: -256060.227 | K194: 0 | L194: 0 | M194: 0 | N194: 0
A195: 2024 | B195: =IF($C74="","",IF($C74<0,0,IF(AND($C74=1,start_time<1),-(SUM(B148)*output_kgyear*$E74*percnt_var*start_time+SUM(B148)*output_kgyear*$E74*(1-start_time)),IF($C74<=start_time,-SUM(B148)*output_kgyear*$E74*percnt_var,-SUM(B148)*output_kgyear*$E74)))) -> 0 | C195: 0 | D195: 0 | E195: 0 | F195: 0 | G195: 0 | H195: 0 | I195: 0 | J195: -260407.9393 | K195: 0 | L195: 0 | M195: 0 | N195: 0
A196: 2025 | B196: =IF($C75="","",IF($C75<0,0,IF(AND($C75=1,start_time<1),-(SUM(B149)*output_kgyear*$E75*percnt_var*start_time+SUM(B149)*output_kgyear*$E75*(1-start_time)),IF($C75<=start_time,-SUM(B149)*output_kgyear*$E75*percnt_var,-SUM(B149)*output_kgyear*$E75)))) -> 0 | C196: 0 | D196: 0 | E196: 0 | F196: 0 | G196: 0 | H196: 0 | I196: 0 | J196: -269729.9196 | K196: 0 | L196: 0 | M196: 0 | N196: 0
A197: 2026 | B197: =IF($C76="","",IF($C76<0,0,IF(AND($C76=1,start_time<1),-(SUM(B150)*output_kgyear*$E76*percnt_var*start_time+SUM(B150)*output_kgyear*$E76*(1-start_time)),IF($C76<=start_time,-SUM(B150)*output_kgyear*$E76*percnt_var,-SUM(B150)*output_kgyear*$E76)))) -> 0 | C197: 0 | D197: 0 | E197: 0 | F197: 0 | G197: 0 | H197: 0 | I197: 0 | J197: -277748.7643 | K197: 0 | L197: 0 | M197: 0 | N197: 0
A198: 2027 | B198: =IF($C77="","",IF($C77<0,0,IF(AND($C77=1,start_time<1),-(SUM(B151)*output_kgyear*$E77*percnt_var*start_time+SUM(B151)*output_kgyear*$E77*(1-start_time)),IF($C77<=start_time,-SUM(B151)*output_kgyear*$E77*percnt_var,-SUM(B151)*output_kgyear*$E77)))) -> 0 | C198: 0 | D198: 0 | E198: 0 | F198: 0 | G198: 0 | H198: 0 | I198: 0 | J198: -283770.6773 | K198: 0 | L198: 0 | M198: 0 | N198: 0
A199: 2028 | B199: =IF($C78="","",IF($C78<0,0,IF(AND($C78=1,start_time<1),-(SUM(B152)*output_kgyear*$E78*percnt_var*start_time+SUM(B152)*output_kgyear*$E78*(1-start_time)),IF($C78<=start_time,-SUM(B152)*output_kgyear*$E78*percnt_var,-SUM(B152)*output_kgyear*$E78)))) -> 0 | C199: 0 | D199: 0 | E199: 0 | F199: 0 | G199: 0 | H199: 0 | I199: 0 | J199: -289810.88 | K199: 0 | L199: 0 | M199: 0 | N199: 0
A200: 2029 | B200: =IF($C79="","",IF($C79<0,0,IF(AND($C79=1,start_time<1),-(SUM(B153)*output_kgyear*$E79*percnt_var*start_time+SUM(B153)*output_kgyear*$E79*(1-start_time)),IF($C79<=start_time,-SUM(B153)*output_kgyear*$E79*percnt_var,-SUM(B153)*output_kgyear*$E79)))) -> 0 | C200: 0 | D200: 0 | E200: 0 | F200: 0 | G200: 0 | H200: 0 | I200: 0 | J200: -295784.9597 | K200: 0 | L200: 0 | M200: 0 | N200: 0
A201: 2030 | B201: =IF($C80="","",IF($C80<0,0,IF(AND($C80=1,start_time<1),-(SUM(B154)*output_kgyear*$E80*percnt_var*start_time+SUM(B154)*output_kgyear*$E80*(1-start_time)),IF($C80<=start_time,-SUM(B154)*output_kgyear*$E80*percnt_var,-SUM(B154)*output_kgyear*$E80)))) -> 0 | C201: 0 | D201: 0 | E201: 0 | F201: 0 | G201: 0 | H201: 0 | I201: 0 | J201: -302103.1084 | K201: 0 | L201: 0 | M201: 0 | N201: 0
A202: 2031 | B202: =IF($C81="","",IF($C81<0,0,IF(AND($C81=1,start_time<1),-(SUM(B155)*output_kgyear*$E81*percnt_var*start_time+SUM(B155)*output_kgyear*$E81*(1-start_time)),IF($C81<=start_time,-SUM(B155)*output_kgyear*$E81*percnt_var,-SUM(B155)*output_kgyear*$E81)))) -> 0 | C202: 0 | D202: 0 | E202: 0 | F202: 0 | G202: 0 | H202: 0 | I202: 0 | J202: -307380.0339 | K202: 0 | L202: 0 | M202: 0 | N202: 0
A203: 2032 | B203: =IF($C82="","",IF($C82<0,0,IF(AND($C82=1,start_time<1),-(SUM(B156)*output_kgyear*$E82*percnt_var*start_time+SUM(B156)*output_kgyear*$E82*(1-start_time)),IF($C82<=start_time,-SUM(B156)*output_kgyear*$E82*percnt_var,-SUM(B156)*output_kgyear*$E82)))) -> 0 | C203: 0 | D203: 0 | E203: 0 | F203: 0 | G203: 0 | H203: 0 | I203: 0 | J203: -312375.6864 | K203: 0 | L203: 0 | M203: 0 | N203: 0
A204: 2033 | B204: =IF($C83="","",IF($C83<0,0,IF(AND($C83=1,start_time<1),-(SUM(B157)*output_kgyear*$E83*percnt_var*start_time+SUM(B157)*output_kgyear*$E83*(1-start_time)),IF($C83<=start_time,-SUM(B157)*output_kgyear*$E83*percnt_var,-SUM(B157)*output_kgyear*$E83)))) -> 0 | C204: 0 | D204: 0 | E204: 0 | F204: 0 | G204: 0 | H204: 0 | I204: 0 | J204: -317095.4788 | K204: 0 | L204: 0 | M204: 0 | N204: 0
A205: 2034 | B205: =IF($C84="","",IF($C84<0,0,IF(AND($C84=1,start_time<1),-(SUM(B158)*output_kgyear*$E84*percnt_var*start_time+SUM(B158)*output_kgyear*$E84*(1-start_time)),IF($C84<=start_time,-SUM(B158)*output_kgyear*$E84*percnt_var,-SUM(B158)*output_kgyear*$E84)))) -> 0 | C205: 0 | D205: 0 | E205: 0 | F205: 0 | G205: 0 | H205: 0 | I205: 0 | J205: -322213.1127 | K205: 0 | L205: 0 | M205: 0 | N205: 0
B206: =IF($C85="","",IF($C85<0,0,IF(AND($C85=1,start_time<1),-(SUM(B159)*output_kgyear*$E85*percnt_var*start_time+SUM(B159)*output_kgyear*$E85*(1-start_time)),IF($C85<=start_time,-SUM(B159)*output_kgyear*$E85*percnt_var,-SUM(B159)*output_kgyear*$E85)))) -> 0 | C206: 0 | D206: 0 | E206: 0 | F206: 0 | G206: 0 | H206: 0 | I206: 0 | J206: 0 | K206: 0 | L206: 0 | M206: 0 | N206: 0
B207: =IF($C86="","",IF($C86<0,0,IF(AND($C86=1,start_time<1),-(SUM(B160)*output_kgyear*$E86*percnt_var*start_time+SUM(B160)*output_kgyear*$E86*(1-start_time)),IF($C86<=start_time,-SUM(B160)*output_kgyear*$E86*percnt_var,-SUM(B160)*output_kgyear*$E86)))) -> 
B208: =IF($C87="","",IF($C87<0,0,IF(AND($C87=1,start_time<1),-(SUM(B161)*output_kgyear*$E87*percnt_var*start_time+SUM(B161)*output_kgyear*$E87*(1-start_time)),IF($C87<=start_time,-SUM(B161)*output_kgyear*$E87*percnt_var,-SUM(B161)*output_kgyear*$E87)))) -> 
B209: =IF($C88="","",IF($C88<0,0,IF(AND($C88=1,start_time<1),-(SUM(B162)*output_kgyear*$E88*percnt_var*start_time+SUM(B162)*output_kgyear*$E88*(1-start_time)),IF($C88<=start_time,-SUM(B162)*output_kgyear*$E88*percnt_var,-SUM(B162)*output_kgyear*$E88)))) -> 
B210: =IF($C89="","",IF($C89<0,0,IF(AND($C89=1,start_time<1),-(SUM(B163)*output_kgyear*$E89*percnt_var*start_time+SUM(B163)*output_kgyear*$E89*(1-start_time)),IF($C89<=start_time,-SUM(B163)*output_kgyear*$E89*percnt_var,-SUM(B163)*output_kgyear*$E89)))) -> 
B211: =IF($C90="","",IF($C90<0,0,IF(AND($C90=1,start_time<1),-(SUM(B164)*output_kgyear*$E90*percnt_var*start_time+SUM(B164)*output_kgyear*$E90*(1-start_time)),IF($C90<=start_time,-SUM(B164)*output_kgyear*$E90*percnt_var,-SUM(B164)*output_kgyear*$E90)))) -> 
B212: =IF($C91="","",IF($C91<0,0,IF(AND($C91=1,start_time<1),-(SUM(B165)*output_kgyear*$E91*percnt_var*start_time+SUM(B165)*output_kgyear*$E91*(1-start_time)),IF($C91<=start_time,-SUM(B165)*output_kgyear*$E91*percnt_var,-SUM(B165)*output_kgyear*$E91)))) -> 
B213: =IF($C92="","",IF($C92<0,0,IF(AND($C92=1,start_time<1),-(SUM(B166)*output_kgyear*$E92*percnt_var*start_time+SUM(B166)*output_kgyear*$E92*(1-start_time)),IF($C92<=start_time,-SUM(B166)*output_kgyear*$E92*percnt_var,-SUM(B166)*output_kgyear*$E92)))) -> 
B214: =IF($C93="","",IF($C93<0,0,IF(AND($C93=1,start_time<1),-(SUM(B167)*output_kgyear*$E93*percnt_var*start_time+SUM(B167)*output_kgyear*$E93*(1-start_time)),IF($C93<=start_time,-SUM(B167)*output_kgyear*$E93*percnt_var,-SUM(B167)*output_kgyear*$E93)))) -> 
B215: =IF($C94="","",IF($C94<0,0,IF(AND($C94=1,start_time<1),-(SUM(B168)*output_kgyear*$E94*percnt_var*start_time+SUM(B168)*output_kgyear*$E94*(1-start_time)),IF($C94<=start_time,-SUM(B168)*output_kgyear*$E94*percnt_var,-SUM(B168)*output_kgyear*$E94)))) -> 
B216: =IF($C95="","",IF($C95<0,0,IF(AND($C95=1,start_time<1),-(SUM(B169)*output_kgyear*$E95*percnt_var*start_time+SUM(B169)*output_kgyear*$E95*(1-start_time)),IF($C95<=start_time,-SUM(B169)*output_kgyear*$E95*percnt_var,-SUM(B169)*output_kgyear*$E95)))) -> 
B217: =IF($C96="","",IF($C96<0,0,IF(AND($C96=1,start_time<1),-(SUM(B170)*output_kgyear*$E96*percnt_var*start_time+SUM(B170)*output_kgyear*$E96*(1-start_time)),IF($C96<=start_time,-SUM(B170)*output_kgyear*$E96*percnt_var,-SUM(B170)*output_kgyear*$E96)))) -> 
B218: =IF($C97="","",IF($C97<0,0,IF(AND($C97=1,start_time<1),-(SUM(B171)*output_kgyear*$E97*percnt_var*start_time+SUM(B171)*output_kgyear*$E97*(1-start_time)),IF($C97<=start_time,-SUM(B171)*output_kgyear*$E97*percnt_var,-SUM(B171)*output_kgyear*$E97)))) -> 
B219: =IF($C98="","",IF($C98<0,0,IF(AND($C98=1,start_time<1),-(SUM(B172)*output_kgyear*$E98*percnt_var*start_time+SUM(B172)*output_kgyear*$E98*(1-start_time)),IF($C98<=start_time,-SUM(B172)*output_kgyear*$E98*percnt_var,-SUM(B172)*output_kgyear*$E98)))) -> 
B220: =IF($C99="","",IF($C99<0,0,IF(AND($C99=1,start_time<1),-(SUM(B173)*output_kgyear*$E99*percnt_var*start_time+SUM(B173)*output_kgyear*$E99*(1-start_time)),IF($C99<=start_time,-SUM(B173)*output_kgyear*$E99*percnt_var,-SUM(B173)*output_kgyear*$E99)))) -> 
B221: =IF($C100="","",IF($C100<0,0,IF(AND($C100=1,start_time<1),-(SUM(B174)*output_kgyear*$E100*percnt_var*start_time+SUM(B174)*output_kgyear*$E100*(1-start_time)),IF($C100<=start_time,-SUM(B174)*output_kgyear*$E100*percnt_var,-SUM(B174)*output_kgyear*$E100)))) -> 
B222: =IF($C101="","",IF($C101<0,0,IF(AND($C101=1,start_time<1),-(SUM(B175)*output_kgyear*$E101*percnt_var*start_time+SUM(B175)*output_kgyear*$E101*(1-start_time)),IF($C101<=start_time,-SUM(B175)*output_kgyear*$E101*percnt_var,-SUM(B175)*output_kgyear*$E101)))) -> 
B223: =IF($C102="","",IF($C102<0,0,IF(AND($C102=1,start_time<1),-(SUM(B176)*output_kgyear*$E102*percnt_var*start_time+SUM(B176)*output_kgyear*$E102*(1-start_time)),IF($C102<=start_time,-SUM(B176)*output_kgyear*$E102*percnt_var,-SUM(B176)*output_kgyear*$E102)))) -> 
B224: =IF($C103="","",IF($C103<0,0,IF(AND($C103=1,start_time<1),-(SUM(B177)*output_kgyear*$E103*percnt_var*start_time+SUM(B177)*output_kgyear*$E103*(1-start_time)),IF($C103<=start_time,-SUM(B177)*output_kgyear*$E103*percnt_var,-SUM(B177)*output_kgyear*$E103)))) -> 
B225: =IF($C104="","",IF($C104<0,0,IF(AND($C104=1,start_time<1),-(SUM(B178)*output_kgyear*$E104*percnt_var*start_time+SUM(B178)*output_kgyear*$E104*(1-start_time)),IF($C104<=start_time,-SUM(B178)*output_kgyear*$E104*percnt_var,-SUM(B178)*output_kgyear*$E104)))) -> 
B226: =IF($C105="","",IF($C105<0,0,IF(AND($C105=1,start_time<1),-(SUM(B179)*output_kgyear*$E105*percnt_var*start_time+SUM(B179)*output_kgyear*$E105*(1-start_time)),IF($C105<=start_time,-SUM(B179)*output_kgyear*$E105*percnt_var,-SUM(B179)*output_kgyear*$E105)))) -> 
B227: =IF($C106="","",IF($C106<0,0,IF(AND($C106=1,start_time<1),-(SUM(B180)*output_kgyear*$E106*percnt_var*start_time+SUM(B180)*output_kgyear*$E106*(1-start_time)),IF($C106<=start_time,-SUM(B180)*output_kgyear*$E106*percnt_var,-SUM(B180)*output_kgyear*$E106)))) -> 
B228: =IF($C107="","",IF($C107<0,0,IF(AND($C107=1,start_time<1),-(SUM(B181)*output_kgyear*$E107*percnt_var*start_time+SUM(B181)*output_kgyear*$E107*(1-start_time)),IF($C107<=start_time,-SUM(B181)*output_kgyear*$E107*percnt_var,-SUM(B181)*output_kgyear*$E107)))) -> 
A229: 0 | B229: =IF($C108="","",IF($C108<0,0,IF(AND($C108=1,start_time<1),-(SUM(B182)*output_kgyear*$E108*percnt_var*start_time+SUM(B182)*output_kgyear*$E108*(1-start_time)),IF($C108<=start_time,-SUM(B182)*output_kgyear*$E108*percnt_var,-SUM(B182)*output_kgyear*$E108)))) -> 
A231: Discounted value | B231: =+B186+NPV($X$59,B187:B228) -> 0 | C231: =+C186+NPV($X$59,C187:C228) -> 0 | D231: 0 | E231: 0 | F231: 0 | G231: 0 | H231: 0 | I231: 0 | J231: -2020556.919 | K231: 0 | L231: 0 | M231: 0 | N231: 0
A232: Cost per kg H2 | B232: =-B231/$AE$116*(1+inflation_rate)^construct/INFLATION_FACTOR -> 0 | C232: 0 | D232: 0 | E232: 0 | F232: 0 | G232: 0 | H232: 0 | I232: 0 | J232: 0.4649824357 | K232: 0 | L232: 0 | M232: 0 | N232: 0
A233: Levelized and escalated cost in startup year | B233: =IF(B132>0,B232/B133*(1+inflation_rate)^construct,"") ->  | J233: 0.1102210552
A279: Lookup Electricity prices for distributed production and CCS
A280: Feed | B280: LHV | C280: Start Year Column | D280: Raw Price ($/GJ) | E280: Price in Usage Units
A281: ='HyARC Physical Property Data'!A76 -> Commercial Electricity | B281: =VLOOKUP(A281,MASTER_PROPERTY_TABLE,9,FALSE) -> 0.0036 | C281: =MATCH(startup_year,Feedstock_Year,0)+2 -> 21 | D281: =VLOOKUP(A281,FEEDPRICETABLE,C281,FALSE) -> 29.12823206 | E281: =B281*D281 -> 0.1048616354

Sheet Refueling Cash Flow Analysis
A2: TABLE OF CONTENTS
A3: DCF Calculations
A4: Yearly Cash Flow Calculations
A5: Specific Item Cost Calculation
A6: Feedstock, Utility, and Byproduct Cost Information
A15: DCF CALCULATION INPUTS: | D15: DCF CALCULATION OUTPUTS:
A16: Process | D16: ="Hydrogen Cost (Year "&TEXT(ref_year,"0")&" Real $/kg)" -> Hydrogen Cost (Year 2016 Real $/kg) | E16: =H2_price_nominal/INFLATION_FACTOR -> 1.790158465
A17: Actual Hydrogen Produced (kg/yr) | B17: =output_kgyear*sensitivity_01 -> 470668.6971 | D17: Hydrogen Cost (Start-up Year Nominal $/kg) | E17: =+SUM(X57:AB57)/AC57*(1+inflation_rate)^construct -> 1.756779651
A18: Actual Hydrogen Energy Produced (MMBtu(LHV)/yr) | B18: =B17*H2_LHV_MJ_p_kg/1000/mmBTU_to_GJ -> 53630.19447 | D18: After Tax Real IRR | E18: =((E20+1)/(1+B30))-1 -> 0.08
A19: Actual Hydrogen Energy Produced (MJ(LHV)/yr) | B19: =B17*H2_LHV_MJ_p_kg -> 56579855.17 | D19: Pre Tax Real IRR | E19: =((E21+1)/(1+B30))-1 -> 0.04080533033
A20: Design Capacity (kg/day) | B20: =design_cap -> 1500 | D20: After Tax Nominal IRR | E20: =IRR(AA65:AA113) -> 0.10052
A21: Design Capacity (kg/yr) | B21: =B20*365 -> 547500 | D21: Pre Tax Nominal IRR | E21: =IRR(AC65:AC113) -> 0.06058063161
A22: Capacity Factor | B22: =cap_factor -> 0.8596688531 | D22: After Tax Real Capital Recovery Factor | E22: =(real_irr*(1+real_irr)^anal_period)/(((1+real_irr)^anal_period)-1) -> 0.1018522088
D23: After Tax Nominal Capital Recovery Factor | E23: =(nominal_irr*(1+nominal_irr)^anal_period)/(((1+nominal_irr)^anal_period)-1) -> 0.1178767948
A24: Financial | D24: Total Real Fixed Charge Rate | E24: =(E22*(1-total_tax_rate*INDEX(Depreciation!B12:H37,MATCH("NPV - Real IRR",Depreciation!B12:B37,0),MATCH(depr_length,recovery_period,0))))/(1-total_tax_rate) -> 0.1101093766
A25: Start-up Year | B25: =startup_year -> 2015 | D25: Total Nominal Fixed Charge Rate | E25: =(E23*(1-total_tax_rate*INDEX(Depreciation!B12:H37,MATCH("NPV - Nominal IRR",Depreciation!B12:B37,0),MATCH(depr_length,recovery_period,0))))/(1-total_tax_rate) -> 0.1293030043
A26: After-Tax Real IRR | B26: =real_irr -> 0.08 | D26: NPV | E26: =NPV(nominal_irr,AA65:AA113) -> 2.115642093e-10
A27: After-Tax Nominal IRR | B27: =((1+B26)*(1+B30))-1 -> 0.10052
A28: Analysis Period (yrs) | B28: =anal_period -> 20
A29: Plant Life (yrs) | B29: =plant_life -> 20
A30: Inflation Rate | B30: =inflation_rate -> 0.019
A31: Debt Financing | B31: =100%-B32 -> 0.6
A32: Equity Financing | B32: =equity -> 0.4
A33: Total Tax Rate | B33: =total_tax_rate -> 0.2574
A35: Cost of Debt Financing
A36: Debt Financing Period (yrs) | B36: =debt_period -> 0
A37: Interest Rate on Debt | B37: =debt_interest -> 0.037
A39: Construction/Start Up Information
A40: Construction Period (yrs) | B40: =construct -> 1
A41: Start-up Period (yrs) | B41: =start_time -> 0.5
A42: % Revenue During Start-up | B42: =percnt_revs -> 0.5
A43: % Variable Costs During Start-up | B43: =percnt_var -> 0.5
A44: % Fixed Costs During Start-up | B44: =percnt_fixed -> 0.75
A46: Depreciation Parameters
A47: Depreciation Type | B47: =depr_type -> MACRS
A48: Depreciation Period (yrs) | B48: =depr_length -> 7
A50: Plant Costs (Inflated to Start-up Year $)
A51: Total Depreciable Capital Costs | B51: =('Refueling Station - GH2'!B345-'Refueling Station - GH2'!B330)*INFLATION_FACTOR*sensitivity_06 -> 5425919.788
A52: Total Non-Depreciable Capital Costs | B52: =+'Refueling Station - GH2'!B330*INFLATION_FACTOR -> 0 | C52: land
A53: Total Capital Investment | B53: =SUM(B51:B52) -> 5425919.788 | W53: Closed form formulas for calculating price of hydrogen.
A54: Decommissioning | B54: =decom_percent*depr_cap_infl -> 542591.9788 | X54: Capital Costs | Y54: Depr | Z54: Principal | AA54: Op costs | AB54: Tax incentives | AC54: H2 sales (kg)
A55: Salvage Value | B55: =salvage_perct*B53 -> 542591.9788 | W55: Discounted values | X55: =-SUM(H116:K116) -> 2470646.969 | Y55: =-U116 -> 4062576.396 | Z55: =-Z116 -> 470426.3564 | AA55: =-SUM(L116:S116) -> 5226702.279 | AB55: =+AF116 -> 0 | AC55: =+AE116 -> 4512143.561
A56: Fixed Operating Costs ($/year) | B56: ='Refueling Station - GH2'!B381*INFLATION_FACTOR*sensitivity_07 -> 214820.5083 | W56: Tax coefficient | X56: 1 | Y56: =-total_tax_rate -> -0.2574 | Z56: 1 | AA56: =1-total_tax_rate -> 0.7426 | AB56: -1 | AC56: =1-total_tax_rate -> 0.7426
A57: Other Raw Material ($/year) | B57: =0*INFLATION_FACTOR -> 0 | C57: N/A | W57: LCOE cost contribution factors | X57: =+X55*X56 -> 2470646.969 | Y57: -1045707.164 | Z57: 470426.3564 | AA57: =+AA55*AA56 -> 3881349.112 | AB57: =+AB55*AB56 -> 0 | AC57: =+AC55*AC56 -> 3350717.808
A58: Other Variable O&M Costs (not including tax credits and incentives) | B58: =(0)*INFLATION_FACTOR -> 0 | C58: N/A
W59: Target after-tax nominal IRR | X59: =+(1+real_irr)*(1+inflation_rate)-1 -> 0.10052
W60: =+D16 -> Hydrogen Cost (Year 2016 Real $/kg) | X60: =+SUM(X57:AB57)/AC57*(1+inflation_rate)^construct/INFLATION_FACTOR -> 1.790158465
A63: CASH FLOW ANALYSIS
A64: Actual Year | B64: Analysis Year | C64: Operation Year | D64: Plant Life | E64: Inflation Price Increase Factor | F64: Revenue | G64: Portion of Initial Depreciable Capital Investment Financed with Debt (value ONLY used in debt financing calculations) | H64: Initial Equity Depreciable Capital | I64: Yearly Replacement Costs | J64: Cash from Working Capital Reserve | K64: Other Non-Depreciable Capital Costs | L64: Salvage Value | M64: Decommissioning Costs | N64: Fixed Operating Cost | O64: Feed Cost | P64: Other Raw Material Cost | Q64: Byproduct Credit | R64: Other Variable Operating Costs | S64: Debt Interest | T64: Pre-Depreciation Income | U64: Depreciation Charge | V64: Taxable Income | W64: Tax Rate | X64: Total Taxes | Y64: After-Tax Income | Z64: Principal Payment | AA64: After-Tax Post-Depreciation Cash Flow | AB64: Cumulative Cash Flow | AC64: Pre-Tax Cash Flow | AE64: H2 sales (kg/year)
A65: =startup_year-construct -> 2014 | B65: 1 | C65: =IF(construct=0,1,-construct) -> -1 | D65: =IF(C65="","",IF(C65<=plant_life,C65,IF(D64=plant_life,1,D64+1))) -> -1 | E65: =IF(C65="","",(1+inflation_rate)^(A65-$B$25)) -> 0.9813542689 | F65: =IF(C65="","",IF(C65<0,0,IF(AND(C65=1,start_time<1),E65*(H2_price_nominal*output_kgyear*sensitivity_01*start_time*percnt_revs+H2_price_nominal*output_kgyear*sensitivity_01*(1-start_time)),IF(C65<=start_time,H2_price_nominal*E65*output_kgyear*sensitivity_01*percnt_revs,H2_price_nominal*output_kgyear*sensitivity_01*E65)))) -> 0 | G65: =-$B$31*depr_cap_infl*E65 -> -3194849.728 | H65: =IF(C65<0,-E65*equity*depr_cap_infl*percent_cap1,IF(C65=1,-E65*equity*depr_cap_infl,0)) -> -2129899.819 | I65: =IF(OR(C65<0,C65=""),"",-E65*SUM(OFFSET('Refueling Station - GH2'!$I$388:$K$388,MATCH(C65,'Refueling Station - GH2'!$E$389:$E$429,0),0))) ->  | J65: =IF(AND(C65>=1,C65<anal_period),WorkingCap*SUM(N65:R65)-WorkingCap*SUM(N64:R64),0) -> 0 | K65: =IF(C65=-construct,-E65*non_dep_infl,"") -> 0 | L65: =IF(C65=anal_period,salvage*E65,"") ->  | M65: =IF(D65=plant_life,-E65*decom,"") ->  | N65: =IF(C65="","",IF(C65<0,0,IF(AND(C65=1,start_time<1),-(inflated_fixed*percnt_fixed*start_time+(inflated_fixed*(1-start_time))),IF(C65<=start_time,-inflated_fixed*percnt_fixed*E65,-inflated_fixed*E65)))) -> 0 | O65: =IF(C65="","",IF(C65<0,0,IF(AND(C65=1,start_time<1),-(SUM(B138:E138)*output_kgyear*E65*percnt_var*start_time+SUM(B138:E138)*output_kgyear*E65*(1-start_time)),IF(C65<=start_time,-SUM(B138:E138)*output_kgyear*E65*percnt_var,-SUM(B138:E138)*output_kgyear*E65)))) -> 0 | P65: =IF(C65="","",IF(C65<0,0,IF(AND(C65=1,start_time<1),-(inflated_otherraw*E65*percnt_var*start_time+inflated_otherraw*E65*(1-start_time)),IF(C65<=start_time,-inflated_otherraw*E65*percnt_var,-(inflated_otherraw*E65))))) -> 0 | Q65: =IF(C65="","",IF(C65<0,0,IF(AND(C65=1,start_time<1),SUM(K138:N138,T138:V138)*output_kgyear*E65*percnt_revs*start_time+SUM(K138:N138,T138:V138)*output_kgyear*E65*(1-start_time),IF(C65<=start_time,SUM(K138:N138,T138:V138)*output_kgyear*E65*percnt_revs,SUM(K138:N138,T138:V138)*output_kgyear*E65)))) -> 0 | R65: =IF(C65="","",IF(C65<0,0,IF(AND(C65=1,start_time<1),-((SUM(J138,P138:R138)*output_kgyear+inflated_othervar)*E65*percnt_var*start_time+(SUM(J138,P138:R138)*output_kgyear+inflated_othervar)*E65*(1-start_time)),IF(C65<=start_time,-(SUM(J138,P138:R138)*output_kgyear+inflated_othervar)*E65*percnt_var,-E65*(SUM(J138,P138:R138)*output_kgyear+inflated_othervar))))) -> 0 | S65: =IF(B65="","",IF($B$31=0,"",-'Debt Financing Calculations'!E69)) -> -118209.4399 | T65: =IF(C65="","",F65+SUM(L65:S65)) -> -118209.4399 | U65: =IF(C65="","",IF(C65<-1,0,IF(C65=anal_period,-LOOKUP(C65,depr_yr2,depr_cost2)-Depreciation!$C$279-Depreciation!$B$304,-LOOKUP(C65,depr_yr2,depr_cost2)))) -> 0 | V65: =IF(C65="","",SUM(T65:U65)) -> -118209.4399 | W65: =IF(C65="","",$B$33) -> 0.2574 | X65: =IF(C65="","",-V65*W65 + tax_credit) -> 30427.10984 | Y65: =IF(C65="","",SUM(T65,X65)) -> -87782.3301 | Z65: =IF(C65="","",IF($B$31=0,"",-'Debt Financing Calculations'!F69)) -> 0 | AA65: =IF(C65="","",SUM(H65,I65,J65,K65,T65,X65,Z65)) -> -2217682.149 | AB65: =AA65 -> -2217682.149 | AC65: =IF(C65="","",SUM(H65,I65,J65,K65,T65,Z65)) -> -2248109.259 | AE65: =IF(C65="","",IF(C65<0,0,IF(AND(C65=1,start_time<1),(output_kgyear*sensitivity_01*start_time*percnt_revs+output_kgyear*sensitivity_01*(1-start_time)),IF(C65<=start_time,output_kgyear*sensitivity_01*percnt_revs,output_kgyear*sensitivity_01)))) -> 0
A66: =IF(B66<>"",A65+1,"") -> 2015 | B66: =IF(MAX($B$65:B65)<(construct+anal_period),B65+1,"") -> 2 | C66: =IF(B66="","",IF(C65=-1,1,C65+1)) -> 1 | D66: 1 | E66: 1 | F66: 620145.8922 | H66: =IF(C66<0,-E66*equity*depr_cap_infl*percent_cap2,0) -> 0 | I66: =IF(OR(C66<0,C66=""),"",-E66*SUM(OFFSET('Refueling Station - GH2'!$I$388:$K$388,MATCH(C66,'Refueling Station - GH2'!$E$389:$E$429,0),0))) -> 0 | J66: =IF(AND(C66>=1,C66<anal_period),WorkingCap*SUM(N66:R66)-WorkingCap*SUM(N65:R65),IF(C66<0,0,IF(B66="","",-SUM(J$65:J65)))) -> -52265.47125 | N66: -187967.9447 | O66: 0 | P66: 0 | Q66: 0 | R66: -160468.5302 | S66: =IF(B66="","",IF($B$31=0,"",-'Debt Financing Calculations'!E70)) -> -118209.4399 | T66: 153499.9773 | U66: =IF(C66="","",IF(C66<-1,0,IF(C66=anal_period,-LOOKUP(C66,depr_yr2,depr_cost2)-Depreciation!$C$279-Depreciation!$B$304,-LOOKUP(C66,depr_yr2,depr_cost2)))) -> -760906.7102 | V66: -607406.733 | W66: 0.2574 | X66: =IF(C66="","",-V66*W66+tax_credit) -> 156346.4931 | Y66: 309846.4703 | Z66: =IF(C66="","",IF($B$31=0,"",-'Debt Financing Calculations'!F70)) -> 0 | AA66: 257580.9991 | AB66: =IF(C66="","",AB65+AA66) -> -1960101.15 | AC66: 101234.506 | AE66: 353001.5228
A67: 2016 | B67: =IF(MAX($B$65:B66)<(construct+anal_period),B66+1,"") -> 3 | C67: 2 | D67: 2 | E67: 1.019 | F67: 842571.5522 | H67: =IF(C67="","",0) -> 0 | I67: =IF(OR(C67<0,C67=""),"",-E67*SUM(OFFSET('Refueling Station - GH2'!$I$388:$K$388,MATCH(C67,'Refueling Station - GH2'!$E$389:$E$429,0),0))) -> 0 | J67: =IF(AND(C67>=1,C67<anal_period),WorkingCap*SUM(N67:R67)-WorkingCap*SUM(N66:R66),IF(C67<0,0,IF(B67="","",-SUM(J$65:J66)))) -> -12224.45067 | N67: -218902.0979 | O67: 0 | P67: 0 | Q67: 0 | R67: -211030.7149 | S67: =IF(B67="","",IF($B$31=0,"",-'Debt Financing Calculations'!E71)) -> -118209.4399 | T67: 294429.2994 | U67: =IF(C67="","",IF(C67<-1,0,IF(C67=anal_period,-LOOKUP(C67,depr_yr2,depr_cost2)-Depreciation!$C$279-Depreciation!$B$304,-LOOKUP(C67,depr_yr2,depr_cost2)))) -> -1304031.164 | V67: -1009601.865 | W67: 0.2574 | X67: 259871.5199 | Y67: 554300.8194 | Z67: =IF(C67="","",IF($B$31=0,"",-'Debt Financing Calculations'!F71)) -> 0 | AA67: 542076.3687 | AB67: -1418024.781 | AC67: 282204.8488 | AE67: 470668.6971
A68: 2017 | B68: =IF(MAX($B$65:B67)<(construct+anal_period),B67+1,"") -> 4 | C68: 3 | D68: 3 | E68: 1.038361 | F68: 858580.4117 | H68: 0 | I68: =IF(OR(C68<0,C68=""),"",-E68*SUM(OFFSET('Refueling Station - GH2'!$I$388:$K$388,MATCH(C68,'Refueling Station - GH2'!$E$389:$E$429,0),0))) -> 0 | J68: =IF(AND(C68>=1,C68<anal_period),WorkingCap*SUM(N68:R68)-WorkingCap*SUM(N67:R67),IF(C68<0,0,IF(B68="","",-SUM(J$65:J67)))) -> -1399.010182 | N68: -223061.2378 | O68: 0 | P68: 0 | Q68: 0 | R68: -216198.3096 | S68: =IF(B68="","",IF($B$31=0,"",-'Debt Financing Calculations'!E72)) -> -118209.4399 | T68: 301111.4244 | U68: =IF(C68="","",IF(C68<-1,0,IF(C68=anal_period,-LOOKUP(C68,depr_yr2,depr_cost2)-Depreciation!$C$279-Depreciation!$B$304,-LOOKUP(C68,depr_yr2,depr_cost2)))) -> -931298.6957 | V68: -630187.2714 | W68: 0.2574 | X68: 162210.2036 | Y68: 463321.628 | Z68: =IF(C68="","",IF($B$31=0,"",-'Debt Financing Calculations'!F72)) -> 0 | AA68: 461922.6179 | AB68: -956102.1632 | AC68: 299712.4142 | AE68: 470668.6971
A69: 2018 | B69: =IF(MAX($B$65:B68)<(construct+anal_period),B68+1,"") -> 5 | C69: 4 | D69: 4 | E69: 1.058089859 | F69: 874893.4395 | H69: 0 | I69: =IF(OR(C69<0,C69=""),"",-E69*SUM(OFFSET('Refueling Station - GH2'!$I$388:$K$388,MATCH(C69,'Refueling Station - GH2'!$E$389:$E$429,0),0))) -> 0 | J69: =IF(AND(C69>=1,C69<anal_period),WorkingCap*SUM(N69:R69)-WorkingCap*SUM(N68:R68),IF(C69<0,0,IF(B69="","",-SUM(J$65:J68)))) -> -1101.519218 | N69: -227299.4013 | O69: 0 | P69: 0 | Q69: 0 | R69: -219303.6075 | S69: =IF(B69="","",IF($B$31=0,"",-'Debt Financing Calculations'!E73)) -> -118209.4399 | T69: 310080.9908 | U69: =IF(C69="","",IF(C69<-1,0,IF(C69=anal_period,-LOOKUP(C69,depr_yr2,depr_cost2)-Depreciation!$C$279-Depreciation!$B$304,-LOOKUP(C69,depr_yr2,depr_cost2)))) -> -665061.2184 | V69: -354980.2276 | W69: 0.2574 | X69: 91371.9106 | Y69: 401452.9014 | Z69: =IF(C69="","",IF($B$31=0,"",-'Debt Financing Calculations'!F73)) -> 0 | AA69: 400351.3821 | AB69: -555750.7811 | AC69: 308979.4715 | AE69: 470668.6971
A70: 2019 | B70: =IF(MAX($B$65:B69)<(construct+anal_period),B69+1,"") -> 6 | C70: 5 | D70: 5 | E70: 1.078193566 | F70: 891516.4149 | H70: 0 | I70: =IF(OR(C70<0,C70=""),"",-E70*SUM(OFFSET('Refueling Station - GH2'!$I$388:$K$388,MATCH(C70,'Refueling Station - GH2'!$E$389:$E$429,0),0))) -> 0 | J70: =IF(AND(C70>=1,C70<anal_period),WorkingCap*SUM(N70:R70)-WorkingCap*SUM(N69:R69),IF(C70<0,0,IF(B70="","",-SUM(J$65:J69)))) -> -1734.156812 | N70: -231618.0899 | O70: 0 | P70: 0 | Q70: 0 | R70: -226545.9643 | S70: =IF(B70="","",IF($B$31=0,"",-'Debt Financing Calculations'!E74)) -> -118209.4399 | T70: 315142.9207 | U70: =IF(C70="","",IF(C70<-1,0,IF(C70=anal_period,-LOOKUP(C70,depr_yr2,depr_cost2)-Depreciation!$C$279-Depreciation!$B$304,-LOOKUP(C70,depr_yr2,depr_cost2)))) -> -475500.1345 | V70: -160357.2138 | W70: 0.2574 | X70: 41275.94684 | Y70: 356418.8675 | Z70: =IF(C70="","",IF($B$31=0,"",-'Debt Financing Calculations'!F74)) -> 0 | AA70: 354684.7107 | AB70: -201066.0703 | AC70: 313408.7639 | AE70: 470668.6971
A71: 2020 | B71: =IF(MAX($B$65:B70)<(construct+anal_period),B70+1,"") -> 7 | C71: 6 | D71: 6 | E71: 1.098679244 | F71: 908455.2267 | H71: 0 | I71: =IF(OR(C71<0,C71=""),"",-E71*SUM(OFFSET('Refueling Station - GH2'!$I$388:$K$388,MATCH(C71,'Refueling Station - GH2'!$E$389:$E$429,0),0))) -> 0 | J71: =IF(AND(C71>=1,C71<anal_period),WorkingCap*SUM(N71:R71)-WorkingCap*SUM(N70:R70),IF(C71<0,0,IF(B71="","",-SUM(J$65:J70)))) -> -1884.425132 | N71: -236018.8336 | O71: 0 | P71: 0 | Q71: 0 | R71: -234708.0548 | S71: =IF(B71="","",IF($B$31=0,"",-'Debt Financing Calculations'!E75)) -> -118209.4399 | T71: 319518.8984 | U71: =IF(C71="","",IF(C71<-1,0,IF(C71=anal_period,-LOOKUP(C71,depr_yr2,depr_cost2)-Depreciation!$C$279-Depreciation!$B$304,-LOOKUP(C71,depr_yr2,depr_cost2)))) -> -474967.6596 | V71: -155448.7612 | W71: 0.2574 | X71: 40012.51114 | Y71: 359531.4095 | Z71: =IF(C71="","",IF($B$31=0,"",-'Debt Financing Calculations'!F75)) -> 0 | AA71: 357646.9844 | AB71: 156580.914 | AC71: 317634.4732 | AE71: 470668.6971
A72: 2021 | B72: =IF(MAX($B$65:B71)<(construct+anal_period),B71+1,"") -> 8 | C72: 7 | D72: 7 | E72: 1.11955415 | F72: 925715.876 | H72: 0 | I72: =IF(OR(C72<0,C72=""),"",-E72*SUM(OFFSET('Refueling Station - GH2'!$I$388:$K$388,MATCH(C72,'Refueling Station - GH2'!$E$389:$E$429,0),0))) -> 0 | J72: =IF(AND(C72>=1,C72<anal_period),WorkingCap*SUM(N72:R72)-WorkingCap*SUM(N71:R71),IF(C72<0,0,IF(B72="","",-SUM(J$65:J71)))) -> -1585.381079 | N72: -240503.1915 | O72: 0 | P72: 0 | Q72: 0 | R72: -240792.9041 | S72: =IF(B72="","",IF($B$31=0,"",-'Debt Financing Calculations'!E76)) -> -118209.4399 | T72: 326210.3405 | U72: =IF(C72="","",IF(C72<-1,0,IF(C72=anal_period,-LOOKUP(C72,depr_yr2,depr_cost2)-Depreciation!$C$279-Depreciation!$B$304,-LOOKUP(C72,depr_yr2,depr_cost2)))) -> -475500.1345 | V72: -149289.7941 | W72: 0.2574 | X72: 38427.19299 | Y72: 364637.5335 | Z72: =IF(C72="","",IF($B$31=0,"",-'Debt Financing Calculations'!F76)) -> 0 | AA72: 363052.1524 | AB72: 519633.0664 | AC72: 324624.9594 | AE72: 470668.6971
A73: 2022 | B73: =IF(MAX($B$65:B72)<(construct+anal_period),B72+1,"") -> 9 | C73: 8 | D73: 8 | E73: 1.140825679 | F73: 943304.4777 | H73: 0 | I73: =IF(OR(C73<0,C73=""),"",-E73*SUM(OFFSET('Refueling Station - GH2'!$I$388:$K$388,MATCH(C73,'Refueling Station - GH2'!$E$389:$E$429,0),0))) -> 0 | J73: =IF(AND(C73>=1,C73<anal_period),WorkingCap*SUM(N73:R73)-WorkingCap*SUM(N72:R72),IF(C73<0,0,IF(B73="","",-SUM(J$65:J72)))) -> -2585.872738 | N73: -245072.7521 | O73: 0 | P73: 0 | Q73: 0 | R73: -253462.4951 | S73: =IF(B73="","",IF($B$31=0,"",-'Debt Financing Calculations'!E77)) -> -118209.4399 | T73: 326559.7905 | U73: =IF(C73="","",IF(C73<-1,0,IF(C73=anal_period,-LOOKUP(C73,depr_yr2,depr_cost2)-Depreciation!$C$279-Depreciation!$B$304,-LOOKUP(C73,depr_yr2,depr_cost2)))) -> -237483.8298 | V73: 89075.96074 | W73: 0.2574 | X73: -22928.1523 | Y73: 303631.6382 | Z73: =IF(C73="","",IF($B$31=0,"",-'Debt Financing Calculations'!F77)) -> 0 | AA73: 301045.7655 | AB73: 820678.8319 | AC73: 323973.9178 | AE73: 470668.6971
A74: 2023 | B74: =IF(MAX($B$65:B73)<(construct+anal_period),B73+1,"") -> 10 | C74: 9 | D74: 9 | E74: 1.162501366 | F74: 961227.2628 | H74: 0 | I74: =IF(OR(C74<0,C74=""),"",-E74*SUM(OFFSET('Refueling Station - GH2'!$I$388:$K$388,MATCH(C74,'Refueling Station - GH2'!$E$389:$E$429,0),0))) -> 0 | J74: =IF(AND(C74>=1,C74<anal_period),WorkingCap*SUM(N74:R74)-WorkingCap*SUM(N73:R73),IF(C74<0,0,IF(B74="","",-SUM(J$65:J73)))) -> -1817.888783 | N74: -249729.1344 | O74: 0 | P74: 0 | Q74: 0 | R74: -260925.3714 | S74: =IF(B74="","",IF($B$31=0,"",-'Debt Financing Calculations'!E78)) -> -118209.4399 | T74: 332363.3171 | U74: =IF(C74="","",IF(C74<-1,0,IF(C74=anal_period,-LOOKUP(C74,depr_yr2,depr_cost2)-Depreciation!$C$279-Depreciation!$B$304,-LOOKUP(C74,depr_yr2,depr_cost2)))) -> 0 | V74: 332363.3171 | W74: 0.2574 | X74: -85550.31781 | Y74: 246812.9992 | Z74: =IF(C74="","",IF($B$31=0,"",-'Debt Financing Calculations'!F78)) -> 0 | AA74: 244995.1105 | AB74: 1065673.942 | AC74: 330545.4283 | AE74: 470668.6971
A75: 2024 | B75: =IF(MAX($B$65:B74)<(construct+anal_period),B74+1,"") -> 11 | C75: 10 | D75: 10 | E75: 1.184588892 | F75: 979490.5808 | H75: 0 | I75: =IF(OR(C75<0,C75=""),"",-E75*SUM(OFFSET('Refueling Station - GH2'!$I$388:$K$388,MATCH(C75,'Refueling Station - GH2'!$E$389:$E$429,0),0))) -> 0 | J75: =IF(AND(C75>=1,C75<anal_period),WorkingCap*SUM(N75:R75)-WorkingCap*SUM(N74:R74),IF(C75<0,0,IF(B75="","",-SUM(J$65:J74)))) -> -1376.275857 | N75: -254473.988 | O75: 0 | P75: 0 | Q75: 0 | R75: -265355.6902 | S75: =IF(B75="","",IF($B$31=0,"",-'Debt Financing Calculations'!E79)) -> -118209.4399 | T75: 341451.4627 | U75: =IF(C75="","",IF(C75<-1,0,IF(C75=anal_period,-LOOKUP(C75,depr_yr2,depr_cost2)-Depreciation!$C$279-Depreciation!$B$304,-LOOKUP(C75,depr_yr2,depr_cost2)))) -> 0 | V75: 341451.4627 | W75: 0.2574 | X75: -87889.60649 | Y75: 253561.8562 | Z75: =IF(C75="","",IF($B$31=0,"",-'Debt Financing Calculations'!F79)) -> 0 | AA75: 252185.5803 | AB75: 1317859.523 | AC75: 340075.1868 | AE75: 470668.6971
A76: 2025 | B76: =IF(MAX($B$65:B75)<(construct+anal_period),B75+1,"") -> 12 | C76: 11 | D76: 11 | E76: 1.207096081 | F76: 998100.9018 | H76: 0 | I76: =IF(OR(C76<0,C76=""),"",-E76*SUM(OFFSET('Refueling Station - GH2'!$I$388:$K$388,MATCH(C76,'Refueling Station - GH2'!$E$389:$E$429,0),0))) -> -776231.6284 | J76: =IF(AND(C76>=1,C76<anal_period),WorkingCap*SUM(N76:R76)-WorkingCap*SUM(N75:R75),IF(C76<0,0,IF(B76="","",-SUM(J$65:J75)))) -> -2150.115547 | N76: -259308.9937 | O76: 0 | P76: 0 | Q76: 0 | R76: -274854.7881 | S76: =IF(B76="","",IF($B$31=0,"",-'Debt Financing Calculations'!E80)) -> -118209.4399 | T76: 345727.6801 | U76: =IF(C76="","",IF(C76<-1,0,IF(C76=anal_period,-LOOKUP(C76,depr_yr2,depr_cost2)-Depreciation!$C$279-Depreciation!$B$304,-LOOKUP(C76,depr_yr2,depr_cost2)))) -> -110923.4997 | V76: 234804.1804 | W76: 0.2574 | X76: -60438.59602 | Y76: 285289.084 | Z76: =IF(C76="","",IF($B$31=0,"",-'Debt Financing Calculations'!F80)) -> 0 | AA76: -493092.66 | AB76: 824766.8628 | AC76: -432654.0639 | AE76: 470668.6971
A77: 2026 | B77: =IF(MAX($B$65:B76)<(construct+anal_period),B76+1,"") -> 13 | C77: 12 | D77: 12 | E77: 1.230030907 | F77: 1017064.819 | H77: 0 | I77: =IF(OR(C77<0,C77=""),"",-E77*SUM(OFFSET('Refueling Station - GH2'!$I$388:$K$388,MATCH(C77,'Refueling Station - GH2'!$E$389:$E$429,0),0))) -> 0 | J77: =IF(AND(C77>=1,C77<anal_period),WorkingCap*SUM(N77:R77)-WorkingCap*SUM(N76:R76),IF(C77<0,0,IF(B77="","",-SUM(J$65:J76)))) -> -1964.711051 | N77: -264235.8646 | O77: 0 | P77: 0 | Q77: 0 | R77: -283025.9909 | S77: =IF(B77="","",IF($B$31=0,"",-'Debt Financing Calculations'!E81)) -> -118209.4399 | T77: 351593.5235 | U77: =IF(C77="","",IF(C77<-1,0,IF(C77=anal_period,-LOOKUP(C77,depr_yr2,depr_cost2)-Depreciation!$C$279-Depreciation!$B$304,-LOOKUP(C77,depr_yr2,depr_cost2)))) -> -190099.1258 | V77: 161494.3977 | W77: 0.2574 | X77: -41568.65797 | Y77: 310024.8655 | Z77: =IF(C77="","",IF($B$31=0,"",-'Debt Financing Calculations'!F81)) -> 0 | AA77: 308060.1545 | AB77: 1132827.017 | AC77: 349628.8125 | AE77: 470668.6971
A78: 2027 | B78: =IF(MAX($B$65:B77)<(construct+anal_period),B77+1,"") -> 14 | C78: 13 | D78: 13 | E78: 1.253401494 | F78: 1036389.05 | H78: 0 | I78: =IF(OR(C78<0,C78=""),"",-E78*SUM(OFFSET('Refueling Station - GH2'!$I$388:$K$388,MATCH(C78,'Refueling Station - GH2'!$E$389:$E$429,0),0))) -> 0 | J78: =IF(AND(C78>=1,C78<anal_period),WorkingCap*SUM(N78:R78)-WorkingCap*SUM(N77:R77),IF(C78<0,0,IF(B78="","",-SUM(J$65:J77)))) -> -1673.521617 | N78: -269256.346 | O78: 0 | P78: 0 | Q78: 0 | R78: -289162.3202 | S78: =IF(B78="","",IF($B$31=0,"",-'Debt Financing Calculations'!E82)) -> -118209.4399 | T78: 359760.9443 | U78: =IF(C78="","",IF(C78<-1,0,IF(C78=anal_period,-LOOKUP(C78,depr_yr2,depr_cost2)-Depreciation!$C$279-Depreciation!$B$304,-LOOKUP(C78,depr_yr2,depr_cost2)))) -> -135762.9118 | V78: 223998.0325 | W78: 0.2574 | X78: -57657.09356 | Y78: 302103.8507 | Z78: =IF(C78="","",IF($B$31=0,"",-'Debt Financing Calculations'!F82)) -> 0 | AA78: 300430.3291 | AB78: 1433257.346 | AC78: 358087.4227 | AE78: 470668.6971
A79: 2028 | B79: =IF(MAX($B$65:B78)<(construct+anal_period),B78+1,"") -> 15 | C79: 14 | D79: 14 | E79: 1.277216123 | F79: 1056080.442 | H79: 0 | I79: =IF(OR(C79<0,C79=""),"",-E79*SUM(OFFSET('Refueling Station - GH2'!$I$388:$K$388,MATCH(C79,'Refueling Station - GH2'!$E$389:$E$429,0),0))) -> 0 | J79: =IF(AND(C79>=1,C79<anal_period),WorkingCap*SUM(N79:R79)-WorkingCap*SUM(N78:R78),IF(C79<0,0,IF(B79="","",-SUM(J$65:J78)))) -> -1690.625566 | N79: -274372.2166 | O79: 0 | P79: 0 | Q79: 0 | R79: -295317.2867 | S79: =IF(B79="","",IF($B$31=0,"",-'Debt Financing Calculations'!E83)) -> -118209.4399 | T79: 368181.4991 | U79: =IF(C79="","",IF(C79<-1,0,IF(C79=anal_period,-LOOKUP(C79,depr_yr2,depr_cost2)-Depreciation!$C$279-Depreciation!$B$304,-LOOKUP(C79,depr_yr2,depr_cost2)))) -> -96951.33039 | V79: 271230.1688 | W79: 0.2574 | X79: -69814.64544 | Y79: 298366.8537 | Z79: =IF(C79="","",IF($B$31=0,"",-'Debt Financing Calculations'!F83)) -> 0 | AA79: 296676.2281 | AB79: 1729933.575 | AC79: 366490.8736 | AE79: 470668.6971
A80: 2029 | B80: =IF(MAX($B$65:B79)<(construct+anal_period),B79+1,"") -> 16 | C80: 15 | D80: 15 | E80: 1.301483229 | F80: 1076145.971 | H80: 0 | I80: =IF(OR(C80<0,C80=""),"",-E80*SUM(OFFSET('Refueling Station - GH2'!$I$388:$K$388,MATCH(C80,'Refueling Station - GH2'!$E$389:$E$429,0),0))) -> 0 | J80: =IF(AND(C80>=1,C80<anal_period),WorkingCap*SUM(N80:R80)-WorkingCap*SUM(N79:R79),IF(C80<0,0,IF(B80="","",-SUM(J$65:J79)))) -> -1695.098893 | N80: -279585.2887 | O80: 0 | P80: 0 | Q80: 0 | R80: -301404.8739 | S80: =IF(B80="","",IF($B$31=0,"",-'Debt Financing Calculations'!E84)) -> -118209.4399 | T80: 376946.3683 | U80: =IF(C80="","",IF(C80<-1,0,IF(C80=anal_period,-LOOKUP(C80,depr_yr2,depr_cost2)-Depreciation!$C$279-Depreciation!$B$304,-LOOKUP(C80,depr_yr2,depr_cost2)))) -> -69317.48442 | V80: 307628.8838 | W80: 0.2574 | X80: -79183.6747 | Y80: 297762.6936 | Z80: =IF(C80="","",IF($B$31=0,"",-'Debt Financing Calculations'!F84)) -> 0 | AA80: 296067.5947 | AB80: 2026001.169 | AC80: 375251.2694 | AE80: 470668.6971
A81: 2030 | B81: =IF(MAX($B$65:B80)<(construct+anal_period),B80+1,"") -> 17 | C81: 16 | D81: 16 | E81: 1.32621141 | F81: 1096592.744 | H81: 0 | I81: =IF(OR(C81<0,C81=""),"",-E81*SUM(OFFSET('Refueling Station - GH2'!$I$388:$K$388,MATCH(C81,'Refueling Station - GH2'!$E$389:$E$429,0),0))) -> -70024.34043 | J81: =IF(AND(C81>=1,C81<anal_period),WorkingCap*SUM(N81:R81)-WorkingCap*SUM(N80:R80),IF(C81<0,0,IF(B81="","",-SUM(J$65:J80)))) -> -1762.547099 | N81: -284897.4092 | O81: 0 | P81: 0 | Q81: 0 | R81: -307843.0674 | S81: =IF(B81="","",IF($B$31=0,"",-'Debt Financing Calculations'!E85)) -> -118209.4399 | T81: 385642.8277 | U81: =IF(C81="","",IF(C81<-1,0,IF(C81=anal_period,-LOOKUP(C81,depr_yr2,depr_cost2)-Depreciation!$C$279-Depreciation!$B$304,-LOOKUP(C81,depr_yr2,depr_cost2)))) -> -79246.3395 | V81: 306396.4882 | W81: 0.2574 | X81: -78866.45607 | Y81: 306776.3717 | Z81: =IF(C81="","",IF($B$31=0,"",-'Debt Financing Calculations'!F85)) -> 0 | AA81: 234989.4841 | AB81: 2260990.653 | AC81: 313855.9402 | AE81: 470668.6971
A82: 2031 | B82: =IF(MAX($B$65:B81)<(construct+anal_period),B81+1,"") -> 18 | C82: 17 | D82: 17 | E82: 1.351409427 | F82: 1117428.006 | H82: 0 | I82: =IF(OR(C82<0,C82=""),"",-E82*SUM(OFFSET('Refueling Station - GH2'!$I$388:$K$388,MATCH(C82,'Refueling Station - GH2'!$E$389:$E$429,0),0))) -> 0 | J82: =IF(AND(C82>=1,C82<anal_period),WorkingCap*SUM(N82:R82)-WorkingCap*SUM(N81:R81),IF(C82<0,0,IF(B82="","",-SUM(J$65:J81)))) -> -1618.535678 | N82: -290310.46 | O82: 0 | P82: 0 | Q82: 0 | R82: -313220.2545 | S82: =IF(B82="","",IF($B$31=0,"",-'Debt Financing Calculations'!E86)) -> -118209.4399 | T82: 395687.852 | U82: =IF(C82="","",IF(C82<-1,0,IF(C82=anal_period,-LOOKUP(C82,depr_yr2,depr_cost2)-Depreciation!$C$279-Depreciation!$B$304,-LOOKUP(C82,depr_yr2,depr_cost2)))) -> -86466.44539 | V82: 309221.4066 | W82: 0.2574 | X82: -79593.59006 | Y82: 316094.2619 | Z82: =IF(C82="","",IF($B$31=0,"",-'Debt Financing Calculations'!F86)) -> 0 | AA82: 314475.7263 | AB82: 2575466.38 | AC82: 394069.3163 | AE82: 470668.6971
A83: 2032 | B83: =IF(MAX($B$65:B82)<(construct+anal_period),B82+1,"") -> 19 | C83: 18 | D83: 18 | E83: 1.377086206 | F83: 1138659.139 | H83: 0 | I83: =IF(OR(C83<0,C83=""),"",-E83*SUM(OFFSET('Refueling Station - GH2'!$I$388:$K$388,MATCH(C83,'Refueling Station - GH2'!$E$389:$E$429,0),0))) -> 0 | J83: =IF(AND(C83>=1,C83<anal_period),WorkingCap*SUM(N83:R83)-WorkingCap*SUM(N82:R82),IF(C83<0,0,IF(B83="","",-SUM(J$65:J82)))) -> -1590.970309 | N83: -295826.3587 | O83: 0 | P83: 0 | Q83: 0 | R83: -318310.8245 | S83: =IF(B83="","",IF($B$31=0,"",-'Debt Financing Calculations'!E87)) -> -118209.4399 | T83: 406312.5154 | U83: =IF(C83="","",IF(C83<-1,0,IF(C83=anal_period,-LOOKUP(C83,depr_yr2,depr_cost2)-Depreciation!$C$279-Depreciation!$B$304,-LOOKUP(C83,depr_yr2,depr_cost2)))) -> -46867.18777 | V83: 359445.3276 | W83: 0.2574 | X83: -92521.22733 | Y83: 313791.2881 | Z83: =IF(C83="","",IF($B$31=0,"",-'Debt Financing Calculations'!F87)) -> 0 | AA83: 312200.3178 | AB83: 2887666.697 | AC83: 404721.5451 | AE83: 470668.6971
A84: 2033 | B84: =IF(MAX($B$65:B83)<(construct+anal_period),B83+1,"") -> 20 | C84: 19 | D84: 19 | E84: 1.403250844 | F84: 1160293.662 | H84: 0 | I84: =IF(OR(C84<0,C84=""),"",-E84*SUM(OFFSET('Refueling Station - GH2'!$I$388:$K$388,MATCH(C84,'Refueling Station - GH2'!$E$389:$E$429,0),0))) -> 0 | J84: =IF(AND(C84>=1,C84<anal_period),WorkingCap*SUM(N84:R84)-WorkingCap*SUM(N83:R83),IF(C84<0,0,IF(B84="","",-SUM(J$65:J83)))) -> -1564.525383 | N84: -301447.0596 | O84: 0 | P84: 0 | Q84: 0 | R84: -323120.2929 | S84: =IF(B84="","",IF($B$31=0,"",-'Debt Financing Calculations'!E88)) -> -118209.4399 | T84: 417516.8698 | U84: =IF(C84="","",IF(C84<-1,0,IF(C84=anal_period,-LOOKUP(C84,depr_yr2,depr_cost2)-Depreciation!$C$279-Depreciation!$B$304,-LOOKUP(C84,depr_yr2,depr_cost2)))) -> -8746.040119 | V84: 408770.8297 | W84: 0.2574 | X84: -105217.6116 | Y84: 312299.2583 | Z84: =IF(C84="","",IF($B$31=0,"",-'Debt Financing Calculations'!F88)) -> 0 | AA84: 310734.7329 | AB84: 3198401.43 | AC84: 415952.3444 | AE84: 470668.6971
A85: 2034 | B85: =IF(MAX($B$65:B84)<(construct+anal_period),B84+1,"") -> 21 | C85: 20 | D85: 20 | E85: 1.42991261 | F85: 1182339.242 | H85: 0 | I85: =IF(OR(C85<0,C85=""),"",-E85*SUM(OFFSET('Refueling Station - GH2'!$I$388:$K$388,MATCH(C85,'Refueling Station - GH2'!$E$389:$E$429,0),0))) -> 0 | J85: =IF(AND(C85>=1,C85<anal_period),WorkingCap*SUM(N85:R85)-WorkingCap*SUM(N84:R84),IF(C85<0,0,IF(B85="","",-SUM(J$65:J84)))) -> 93685.10287 | L85: 775859.1126 | M85: -775859.1126 | N85: -307174.5537 | O85: 0 | P85: 0 | Q85: 0 | R85: -328335.1618 | S85: =IF(B85="","",IF($B$31=0,"",-'Debt Financing Calculations'!E89)) -> -118209.4399 | T85: 428620.0863 | U85: =IF(C85="","",IF(C85<-1,0,IF(C85=anal_period,-LOOKUP(C85,depr_yr2,depr_cost2)-Depreciation!$C$279-Depreciation!$B$304,-LOOKUP(C85,depr_yr2,depr_cost2)))) -> -21875.60395 | V85: 406744.4824 | W85: 0.2574 | X85: -104696.0298 | Y85: 323924.0566 | Z85: =IF(C85="","",IF($B$31=0,"",-'Debt Financing Calculations'!F89)) -> -3194849.728 | AA85: -2777240.569 | AB85: 421160.8615 | AC85: -2672544.539 | AE85: 470668.6971
B86: =IF(MAX($B$65:B85)<(construct+anal_period),B85+1,"") ->  | I86: =IF(OR(C86<0,C86=""),"",-E86*SUM(OFFSET('Refueling Station - GH2'!$I$388:$K$388,MATCH(C86,'Refueling Station - GH2'!$E$389:$E$429,0),0))) ->  | J86: =IF(AND(C86>=1,C86<anal_period),WorkingCap*SUM(N86:R86)-WorkingCap*SUM(N85:R85),IF(C86<0,0,IF(B86="","",-SUM(J$65:J85)))) ->  | S86: =IF(B86="","",IF($B$31=0,"",-'Debt Financing Calculations'!E90)) ->  | U86: =IF(C86="","",IF(C86<-1,0,IF(C86=anal_period,-LOOKUP(C86,depr_yr2,depr_cost2)-Depreciation!$C$279-Depreciation!$B$304,-LOOKUP(C86,depr_yr2,depr_cost2)))) ->  | Z86: =IF(C86="","",IF($B$31=0,"",-'Debt Financing Calculations'!F90)) -> 
B87: =IF(MAX($B$65:B86)<(construct+anal_period),B86+1,"") ->  | I87: =IF(OR(C87<0,C87=""),"",-E87*SUM(OFFSET('Refueling Station - GH2'!$I$388:$K$388,MATCH(C87,'Refueling Station - GH2'!$E$389:$E$429,0),0))) ->  | J87: =IF(AND(C87>=1,C87<anal_period),WorkingCap*SUM(N87:R87)-WorkingCap*SUM(N86:R86),IF(C87<0,0,IF(B87="","",-SUM(J$65:J86)))) ->  | S87: =IF(B87="","",IF($B$31=0,"",-'Debt Financing Calculations'!E91)) ->  | U87: =IF(C87="","",IF(C87<-1,0,IF(C87=anal_period,-LOOKUP(C87,depr_yr2,depr_cost2)-Depreciation!$C$279-Depreciation!$B$304,-LOOKUP(C87,depr_yr2,depr_cost2)))) ->  | Z87: =IF(C87="","",IF($B$31=0,"",-'Debt Financing Calculations'!F91)) -> 
B88: =IF(MAX($B$65:B87)<(construct+anal_period),B87+1,"") ->  | I88: =IF(OR(C88<0,C88=""),"",-E88*SUM(OFFSET('Refueling Station - GH2'!$I$388:$K$388,MATCH(C88,'Refueling Station - GH2'!$E$389:$E$429,0),0))) ->  | J88: =IF(AND(C88>=1,C88<anal_period),WorkingCap*SUM(N88:R88)-WorkingCap*SUM(N87:R87),IF(C88<0,0,IF(B88="","",-SUM(J$65:J87)))) ->  | S88: =IF(B88="","",IF($B$31=0,"",-'Debt Financing Calculations'!E92)) ->  | U88: =IF(C88="","",IF(C88<-1,0,IF(C88=anal_period,-LOOKUP(C88,depr_yr2,depr_cost2)-Depreciation!$C$279-Depreciation!$B$304,-LOOKUP(C88,depr_yr2,depr_cost2)))) ->  | Z88: =IF(C88="","",IF($B$31=0,"",-'Debt Financing Calculations'!F92)) -> 
B89: =IF(MAX($B$65:B88)<(construct+anal_period),B88+1,"") ->  | I89: =IF(OR(C89<0,C89=""),"",-E89*SUM(OFFSET('Refueling Station - GH2'!$I$388:$K$388,MATCH(C89,'Refueling Station - GH2'!$E$389:$E$429,0),0))) ->  | J89: =IF(AND(C89>=1,C89<anal_period),WorkingCap*SUM(N89:R89)-WorkingCap*SUM(N88:R88),IF(C89<0,0,IF(B89="","",-SUM(J$65:J88)))) ->  | S89: =IF(B89="","",IF($B$31=0,"",-'Debt Financing Calculations'!E93)) ->  | U89: =IF(C89="","",IF(C89<-1,0,IF(C89=anal_period,-LOOKUP(C89,depr_yr2,depr_cost2)-Depreciation!$C$279-Depreciation!$B$304,-LOOKUP(C89,depr_yr2,depr_cost2)))) ->  | Z89: =IF(C89="","",IF($B$31=0,"",-'Debt Financing Calculations'!F93)) -> 
B90: =IF(MAX($B$65:B89)<(construct+anal_period),B89+1,"") ->  | I90: =IF(OR(C90<0,C90=""),"",-E90*SUM(OFFSET('Refueling Station - GH2'!$I$388:$K$388,MATCH(C90,'Refueling Station - GH2'!$E$389:$E$429,0),0))) ->  | J90: =IF(AND(C90>=1,C90<anal_period),WorkingCap*SUM(N90:R90)-WorkingCap*SUM(N89:R89),IF(C90<0,0,IF(B90="","",-SUM(J$65:J89)))) ->  | S90: =IF(B90="","",IF($B$31=0,"",-'Debt Financing Calculations'!E94)) ->  | U90: =IF(C90="","",IF(C90<-1,0,IF(C90=anal_period,-LOOKUP(C90,depr_yr2,depr_cost2)-Depreciation!$C$279-Depreciation!$B$304,-LOOKUP(C90,depr_yr2,depr_cost2)))) ->  | Z90: =IF(C90="","",IF($B$31=0,"",-'Debt Financing Calculations'!F94)) -> 
B91: =IF(MAX($B$65:B90)<(construct+anal_period),B90+1,"") ->  | I91: =IF(OR(C91<0,C91=""),"",-E91*SUM(OFFSET('Refueling Station - GH2'!$I$388:$K$388,MATCH(C91,'Refueling Station - GH2'!$E$389:$E$429,0),0))) ->  | J91: =IF(AND(C91>=1,C91<anal_period),WorkingCap*SUM(N91:R91)-WorkingCap*SUM(N90:R90),IF(C91<0,0,IF(B91="","",-SUM(J$65:J90)))) ->  | S91: =IF(B91="","",IF($B$31=0,"",-'Debt Financing Calculations'!E95)) ->  | U91: =IF(C91="","",IF(C91<-1,0,IF(C91=anal_period,-LOOKUP(C91,depr_yr2,depr_cost2)-Depreciation!$C$279-Depreciation!$B$304,-LOOKUP(C91,depr_yr2,depr_cost2)))) ->  | Z91: =IF(C91="","",IF($B$31=0,"",-'Debt Financing Calculations'!F95)) -> 
B92: =IF(MAX($B$65:B91)<(construct+anal_period),B91+1,"") ->  | I92: =IF(OR(C92<0,C92=""),"",-E92*SUM(OFFSET('Refueling Station - GH2'!$I$388:$K$388,MATCH(C92,'Refueling Station - GH2'!$E$389:$E$429,0),0))) ->  | J92: =IF(AND(C92>=1,C92<anal_period),WorkingCap*SUM(N92:R92)-WorkingCap*SUM(N91:R91),IF(C92<0,0,IF(B92="","",-SUM(J$65:J91)))) ->  | S92: =IF(B92="","",IF($B$31=0,"",-'Debt Financing Calculations'!E96)) ->  | U92: =IF(C92="","",IF(C92<-1,0,IF(C92=anal_period,-LOOKUP(C92,depr_yr2,depr_cost2)-Depreciation!$C$279-Depreciation!$B$304,-LOOKUP(C92,depr_yr2,depr_cost2)))) ->  | Z92: =IF(C92="","",IF($B$31=0,"",-'Debt Financing Calculations'!F96)) -> 
B93: =IF(MAX($B$65:B92)<(construct+anal_period),B92+1,"") ->  | I93: =IF(OR(C93<0,C93=""),"",-E93*SUM(OFFSET('Refueling Station - GH2'!$I$388:$K$388,MATCH(C93,'Refueling Station - GH2'!$E$389:$E$429,0),0))) ->  | J93: =IF(AND(C93>=1,C93<anal_period),WorkingCap*SUM(N93:R93)-WorkingCap*SUM(N92:R92),IF(C93<0,0,IF(B93="","",-SUM(J$65:J92)))) ->  | S93: =IF(B93="","",IF($B$31=0,"",-'Debt Financing Calculations'!E97)) ->  | U93: =IF(C93="","",IF(C93<-1,0,IF(C93=anal_period,-LOOKUP(C93,depr_yr2,depr_cost2)-Depreciation!$C$279-Depreciation!$B$304,-LOOKUP(C93,depr_yr2,depr_cost2)))) ->  | Z93: =IF(C93="","",IF($B$31=0,"",-'Debt Financing Calculations'!F97)) -> 
B94: =IF(MAX($B$65:B93)<(construct+anal_period),B93+1,"") ->  | I94: =IF(OR(C94<0,C94=""),"",-E94*SUM(OFFSET('Refueling Station - GH2'!$I$388:$K$388,MATCH(C94,'Refueling Station - GH2'!$E$389:$E$429,0),0))) ->  | J94: =IF(AND(C94>=1,C94<anal_period),WorkingCap*SUM(N94:R94)-WorkingCap*SUM(N93:R93),IF(C94<0,0,IF(B94="","",-SUM(J$65:J93)))) ->  | S94: =IF(B94="","",IF($B$31=0,"",-'Debt Financing Calculations'!E98)) ->  | U94: =IF(C94="","",IF(C94<-1,0,IF(C94=anal_period,-LOOKUP(C94,depr_yr2,depr_cost2)-Depreciation!$C$279-Depreciation!$B$304,-LOOKUP(C94,depr_yr2,depr_cost2)))) ->  | Z94: =IF(C94="","",IF($B$31=0,"",-'Debt Financing Calculations'!F98)) -> 
B95: =IF(MAX($B$65:B94)<(construct+anal_period),B94+1,"") ->  | I95: =IF(OR(C95<0,C95=""),"",-E95*SUM(OFFSET('Refueling Station - GH2'!$I$388:$K$388,MATCH(C95,'Refueling Station - GH2'!$E$389:$E$429,0),0))) ->  | J95: =IF(AND(C95>=1,C95<anal_period),WorkingCap*SUM(N95:R95)-WorkingCap*SUM(N94:R94),IF(C95<0,0,IF(B95="","",-SUM(J$65:J94)))) ->  | S95: =IF(B95="","",IF($B$31=0,"",-'Debt Financing Calculations'!E99)) ->  | U95: =IF(C95="","",IF(C95<-1,0,IF(C95=anal_period,-LOOKUP(C95,depr_yr2,depr_cost2)-Depreciation!$C$279-Depreciation!$B$304,-LOOKUP(C95,depr_yr2,depr_cost2)))) ->  | Z95: =IF(C95="","",IF($B$31=0,"",-'Debt Financing Calculations'!F99)) -> 
B96: =IF(MAX($B$65:B95)<(construct+anal_period),B95+1,"") ->  | I96: =IF(OR(C96<0,C96=""),"",-E96*SUM(OFFSET('Refueling Station - GH2'!$I$388:$K$388,MATCH(C96,'Refueling Station - GH2'!$E$389:$E$429,0),0))) ->  | J96: =IF(AND(C96>=1,C96<anal_period),WorkingCap*SUM(N96:R96)-WorkingCap*SUM(N95:R95),IF(C96<0,0,IF(B96="","",-SUM(J$65:J95)))) ->  | S96: =IF(B96="","",IF($B$31=0,"",-'Debt Financing Calculations'!E100)) ->  | U96: =IF(C96="","",IF(C96<-1,0,IF(C96=anal_period,-LOOKUP(C96,depr_yr2,depr_cost2)-Depreciation!$C$279-Depreciation!$B$304,-LOOKUP(C96,depr_yr2,depr_cost2)))) ->  | Z96: =IF(C96="","",IF($B$31=0,"",-'Debt Financing Calculations'!F100)) -> 
B97: =IF(MAX($B$65:B96)<(construct+anal_period),B96+1,"") ->  | F97: =IF(C97="","",IF(C97<0,0,IF(AND(C97=1,start_time<1),E97*(H2_price_nominal*output_kgyear*sensitivity_01*start_time*percnt_revs+H2_price_nominal*output_kgyear*sensitivity_01*(1-start_time)),IF(C97<=start_time,H2_price_nominal*E97*output_kgyear*sensitivity_01*percnt_revs,H2_price_nominal*output_kgyear*sensitivity_01*E97)))) ->  | I97: =IF(OR(C97<0,C97=""),"",-E97*SUM(OFFSET('Refueling Station - GH2'!$I$388:$K$388,MATCH(C97,'Refueling Station - GH2'!$E$389:$E$429,0),0))) ->  | J97: =IF(AND(C97>=1,C97<anal_period),WorkingCap*SUM(N97:R97)-WorkingCap*SUM(N96:R96),IF(C97<0,0,IF(B97="","",-SUM(J$65:J96)))) ->  | K97: =IF(C97=-construct,-E97*non_dep_infl,"") ->  | L97: =IF(C97=anal_period,salvage*E97,"") ->  | M97: =IF(D97=plant_life,-E97*decom,"") ->  | N97: =IF(C97="","",IF(C97<0,0,IF(AND(C97=1,start_time<1),-(inflated_fixed*percnt_fixed*start_time+(inflated_fixed*(1-start_time))),IF(C97<=start_time,-inflated_fixed*percnt_fixed*E97,-inflated_fixed*E97)))) ->  | P97: =IF(C97="","",IF(C97<0,0,IF(AND(C97=1,start_time<1),-(inflated_otherraw*E97*percnt_var*start_time+inflated_otherraw*E97*(1-start_time)),IF(C97<=start_time,-inflated_otherraw*E97*percnt_var,-(inflated_otherraw*E97))))) ->  | R97: =IF(C97="","",IF(C97<0,0,IF(AND(C97=1,start_time<1),-((SUM(J170,P170:R170)*output_kgyear+inflated_othervar)*E97*percnt_var*start_time+(SUM(J170,P170:R170)*output_kgyear+inflated_othervar)*E97*(1-start_time)),IF(C97<=start_time,-(SUM(J170,P170:R170)*output_kgyear+inflated_othervar)*E97*percnt_var,-E97*(SUM(J170,P170:R170)*output_kgyear+inflated_othervar))))) ->  | S97: =IF(B97="","",IF($B$31=0,"",-'Debt Financing Calculations'!E101)) ->  | U97: =IF(C97="","",IF(C97<-1,0,IF(C97=anal_period,-LOOKUP(C97,depr_yr2,depr_cost2)-Depreciation!$C$279-Depreciation!$B$304,-LOOKUP(C97,depr_yr2,depr_cost2)))) ->  | Z97: =IF(C97="","",IF($B$31=0,"",-'Debt Financing Calculations'!F101)) -> 
B98: =IF(MAX($B$65:B97)<(construct+anal_period),B97+1,"") ->  | I98: =IF(OR(C98<0,C98=""),"",-E98*SUM(OFFSET('Refueling Station - GH2'!$I$388:$K$388,MATCH(C98,'Refueling Station - GH2'!$E$389:$E$429,0),0))) ->  | J98: =IF(AND(C98>=1,C98<anal_period),WorkingCap*SUM(N98:R98)-WorkingCap*SUM(N97:R97),IF(C98<0,0,IF(B98="","",-SUM(J$65:J97)))) ->  | S98: =IF(B98="","",IF($B$31=0,"",-'Debt Financing Calculations'!E102)) ->  | U98: =IF(C98="","",IF(C98<-1,0,IF(C98=anal_period,-LOOKUP(C98,depr_yr2,depr_cost2)-Depreciation!$C$279-Depreciation!$B$304,-LOOKUP(C98,depr_yr2,depr_cost2)))) ->  | Z98: =IF(C98="","",IF($B$31=0,"",-'Debt Financing Calculations'!F102)) -> 
B99: =IF(MAX($B$65:B98)<(construct+anal_period),B98+1,"") ->  | I99: =IF(OR(C99<0,C99=""),"",-E99*SUM(OFFSET('Refueling Station - GH2'!$I$388:$K$388,MATCH(C99,'Refueling Station - GH2'!$E$389:$E$429,0),0))) ->  | J99: =IF(AND(C99>=1,C99<anal_period),WorkingCap*SUM(N99:R99)-WorkingCap*SUM(N98:R98),IF(C99<0,0,IF(B99="","",-SUM(J$65:J98)))) ->  | S99: =IF(B99="","",IF($B$31=0,"",-'Debt Financing Calculations'!E103)) ->  | U99: =IF(C99="","",IF(C99<-1,0,IF(C99=anal_period,-LOOKUP(C99,depr_yr2,depr_cost2)-Depreciation!$C$279-Depreciation!$B$304,-LOOKUP(C99,depr_yr2,depr_cost2)))) ->  | Z99: =IF(C99="","",IF($B$31=0,"",-'Debt Financing Calculations'!F103)) -> 
B100: =IF(MAX($B$65:B99)<(construct+anal_period),B99+1,"") ->  | I100: =IF(OR(C100<0,C100=""),"",-E100*SUM(OFFSET('Refueling Station - GH2'!$I$388:$K$388,MATCH(C100,'Refueling Station - GH2'!$E$389:$E$429,0),0))) ->  | J100: =IF(AND(C100>=1,C100<anal_period),WorkingCap*SUM(N100:R100)-WorkingCap*SUM(N99:R99),IF(C100<0,0,IF(B100="","",-SUM(J$65:J99)))) ->  | S100: =IF(B100="","",IF($B$31=0,"",-'Debt Financing Calculations'!E104)) ->  | U100: =IF(C100="","",IF(C100<-1,0,IF(C100=anal_period,-LOOKUP(C100,depr_yr2,depr_cost2)-Depreciation!$C$279-Depreciation!$B$304,-LOOKUP(C100,depr_yr2,depr_cost2)))) ->  | Z100: =IF(C100="","",IF($B$31=0,"",-'Debt Financing Calculations'!F104)) -> 
B101: =IF(MAX($B$65:B100)<(construct+anal_period),B100+1,"") ->  | I101: =IF(OR(C101<0,C101=""),"",-E101*SUM(OFFSET('Refueling Station - GH2'!$I$388:$K$388,MATCH(C101,'Refueling Station - GH2'!$E$389:$E$429,0),0))) ->  | J101: =IF(AND(C101>=1,C101<anal_period),WorkingCap*SUM(N101:R101)-WorkingCap*SUM(N100:R100),IF(C101<0,0,IF(B101="","",-SUM(J$65:J100)))) ->  | S101: =IF(B101="","",IF($B$31=0,"",-'Debt Financing Calculations'!E105)) ->  | U101: =IF(C101="","",IF(C101<-1,0,IF(C101=anal_period,-LOOKUP(C101,depr_yr2,depr_cost2)-Depreciation!$C$279-Depreciation!$B$304,-LOOKUP(C101,depr_yr2,depr_cost2)))) ->  | Z101: =IF(C101="","",IF($B$31=0,"",-'Debt Financing Calculations'!F105)) -> 
B102: =IF(MAX($B$65:B101)<(construct+anal_period),B101+1,"") ->  | I102: =IF(OR(C102<0,C102=""),"",-E102*SUM(OFFSET('Refueling Station - GH2'!$I$388:$K$388,MATCH(C102,'Refueling Station - GH2'!$E$389:$E$429,0),0))) ->  | J102: =IF(AND(C102>=1,C102<anal_period),WorkingCap*SUM(N102:R102)-WorkingCap*SUM(N101:R101),IF(C102<0,0,IF(B102="","",-SUM(J$65:J101)))) ->  | S102: =IF(B102="","",IF($B$31=0,"",-'Debt Financing Calculations'!E106)) ->  | U102: =IF(C102="","",IF(C102<-1,0,IF(C102=anal_period,-LOOKUP(C102,depr_yr2,depr_cost2)-Depreciation!$C$279-Depreciation!$B$304,-LOOKUP(C102,depr_yr2,depr_cost2)))) ->  | Z102: =IF(C102="","",IF($B$31=0,"",-'Debt Financing Calculations'!F106)) -> 
B103: =IF(MAX($B$65:B102)<(construct+anal_period),B102+1,"") ->  | I103: =IF(OR(C103<0,C103=""),"",-E103*SUM(OFFSET('Refueling Station - GH2'!$I$388:$K$388,MATCH(C103,'Refueling Station - GH2'!$E$389:$E$429,0),0))) ->  | J103: =IF(AND(C103>=1,C103<anal_period),WorkingCap*SUM(N103:R103)-WorkingCap*SUM(N102:R102),IF(C103<0,0,IF(B103="","",-SUM(J$65:J102)))) ->  | S103: =IF(B103="","",IF($B$31=0,"",-'Debt Financing Calculations'!E107)) ->  | U103: =IF(C103="","",IF(C103<-1,0,IF(C103=anal_period,-LOOKUP(C103,depr_yr2,depr_cost2)-Depreciation!$C$279-Depreciation!$B$304,-LOOKUP(C103,depr_yr2,depr_cost2)))) ->  | Z103: =IF(C103="","",IF($B$31=0,"",-'Debt Financing Calculations'!F107)) -> 
B104: =IF(MAX($B$65:B103)<(construct+anal_period),B103+1,"") ->  | I104: =IF(OR(C104<0,C104=""),"",-E104*SUM(OFFSET('Refueling Station - GH2'!$I$388:$K$388,MATCH(C104,'Refueling Station - GH2'!$E$389:$E$429,0),0))) ->  | J104: =IF(AND(C104>=1,C104<anal_period),WorkingCap*SUM(N104:R104)-WorkingCap*SUM(N103:R103),IF(C104<0,0,IF(B104="","",-SUM(J$65:J103)))) ->  | S104: =IF(B104="","",IF($B$31=0,"",-'Debt Financing Calculations'!E108)) ->  | U104: =IF(C104="","",IF(C104<-1,0,IF(C104=anal_period,-LOOKUP(C104,depr_yr2,depr_cost2)-Depreciation!$C$279-Depreciation!$B$304,-LOOKUP(C104,depr_yr2,depr_cost2)))) ->  | Z104: =IF(C104="","",IF($B$31=0,"",-'Debt Financing Calculations'!F108)) -> 
B105: =IF(MAX($B$65:B104)<(construct+anal_period),B104+1,"") ->  | I105: =IF(OR(C105<0,C105=""),"",-E105*SUM(OFFSET('Refueling Station - GH2'!$I$388:$K$388,MATCH(C105,'Refueling Station - GH2'!$E$389:$E$429,0),0))) ->  | J105: =IF(AND(C105>=1,C105<anal_period),WorkingCap*SUM(N105:R105)-WorkingCap*SUM(N104:R104),IF(C105<0,0,IF(B105="","",-SUM(J$65:J104)))) ->  | S105: =IF(B105="","",IF($B$31=0,"",-'Debt Financing Calculations'!E109)) ->  | U105: =IF(C105="","",IF(C105<-1,0,IF(C105=anal_period,-LOOKUP(C105,depr_yr2,depr_cost2)-Depreciation!$C$279-Depreciation!$B$304,-LOOKUP(C105,depr_yr2,depr_cost2)))) ->  | Z105: =IF(C105="","",IF($B$31=0,"",-'Debt Financing Calculations'!F109)) -> 
B106: =IF(MAX($B$65:B105)<(construct+anal_period),B105+1,"") ->  | I106: =IF(OR(C106<0,C106=""),"",-E106*SUM(OFFSET('Refueling Station - GH2'!$I$388:$K$388,MATCH(C106,'Refueling Station - GH2'!$E$389:$E$429,0),0))) ->  | J106: =IF(AND(C106>=1,C106<anal_period),WorkingCap*SUM(N106:R106)-WorkingCap*SUM(N105:R105),IF(C106<0,0,IF(B106="","",-SUM(J$65:J105)))) ->  | S106: =IF(B106="","",IF($B$31=0,"",-'Debt Financing Calculations'!E110)) ->  | U106: =IF(C106="","",IF(C106<-1,0,IF(C106=anal_period,-LOOKUP(C106,depr_yr2,depr_cost2)-Depreciation!$C$279-Depreciation!$B$304,-LOOKUP(C106,depr_yr2,depr_cost2)))) ->  | Z106: =IF(C106="","",IF($B$31=0,"",-'Debt Financing Calculations'!F110)) -> 
B107: =IF(MAX($B$65:B106)<(construct+anal_period),B106+1,"") ->  | I107: =IF(OR(C107<0,C107=""),"",-E107*SUM(OFFSET('Refueling Station - GH2'!$I$388:$K$388,MATCH(C107,'Refueling Station - GH2'!$E$389:$E$429,0),0))) ->  | J107: =IF(AND(C107>=1,C107<anal_period),WorkingCap*SUM(N107:R107)-WorkingCap*SUM(N106:R106),IF(C107<0,0,IF(B107="","",-SUM(J$65:J106)))) ->  | S107: =IF(B107="","",IF($B$31=0,"",-'Debt Financing Calculations'!E111)) ->  | U107: =IF(C107="","",IF(C107<-1,0,IF(C107=anal_period,-LOOKUP(C107,depr_yr2,depr_cost2)-Depreciation!$C$279-Depreciation!$B$304,-LOOKUP(C107,depr_yr2,depr_cost2)))) ->  | Z107: =IF(C107="","",IF($B$31=0,"",-'Debt Financing Calculations'!F111)) -> 
B108: =IF(MAX($B$65:B107)<(construct+anal_period),B107+1,"") ->  | I108: =IF(OR(C108<0,C108=""),"",-E108*SUM(OFFSET('Refueling Station - GH2'!$I$388:$K$388,MATCH(C108,'Refueling Station - GH2'!$E$389:$E$429,0),0))) ->  | J108: =IF(AND(C108>=1,C108<anal_period),WorkingCap*SUM(N108:R108)-WorkingCap*SUM(N107:R107),IF(C108<0,0,IF(B108="","",-SUM(J$65:J107)))) ->  | S108: =IF(B108="","",IF($B$31=0,"",-'Debt Financing Calculations'!E112)) ->  | U108: =IF(C108="","",IF(C108<-1,0,IF(C108=anal_period,-LOOKUP(C108,depr_yr2,depr_cost2)-Depreciation!$C$279-Depreciation!$B$304,-LOOKUP(C108,depr_yr2,depr_cost2)))) ->  | Z108: =IF(C108="","",IF($B$31=0,"",-'Debt Financing Calculations'!F112)) -> 
B109: =IF(MAX($B$65:B108)<(construct+anal_period),B108+1,"") ->  | I109: =IF(OR(C109<0,C109=""),"",-E109*SUM(OFFSET('Refueling Station - GH2'!$I$388:$K$388,MATCH(C109,'Refueling Station - GH2'!$E$389:$E$429,0),0))) ->  | J109: =IF(AND(C109>=1,C109<anal_period),WorkingCap*SUM(N109:R109)-WorkingCap*SUM(N108:R108),IF(C109<0,0,IF(B109="","",-SUM(J$65:J108)))) ->  | S109: =IF(B109="","",IF($B$31=0,"",-'Debt Financing Calculations'!E113)) ->  | U109: =IF(C109="","",IF(C109<-1,0,IF(C109=anal_period,-LOOKUP(C109,depr_yr2,depr_cost2)-Depreciation!$C$279-Depreciation!$B$304,-LOOKUP(C109,depr_yr2,depr_cost2)))) ->  | Z109: =IF(C109="","",IF($B$31=0,"",-'Debt Financing Calculations'!F113)) -> 
B110: =IF(MAX($B$65:B109)<(construct+anal_period),B109+1,"") ->  | I110: =IF(OR(C110<0,C110=""),"",-E110*SUM(OFFSET('Refueling Station - GH2'!$I$388:$K$388,MATCH(C110,'Refueling Station - GH2'!$E$389:$E$429,0),0))) ->  | J110: =IF(AND(C110>=1,C110<anal_period),WorkingCap*SUM(N110:R110)-WorkingCap*SUM(N109:R109),IF(C110<0,0,IF(B110="","",-SUM(J$65:J109)))) ->  | S110: =IF(B110="","",IF($B$31=0,"",-'Debt Financing Calculations'!E114)) ->  | U110: =IF(C110="","",IF(C110<-1,0,IF(C110=anal_period,-LOOKUP(C110,depr_yr2,depr_cost2)-Depreciation!$C$279-Depreciation!$B$304,-LOOKUP(C110,depr_yr2,depr_cost2)))) ->  | Z110: =IF(C110="","",IF($B$31=0,"",-'Debt Financing Calculations'!F114)) -> 
B111: =IF(MAX($B$65:B110)<(construct+anal_period),B110+1,"") ->  | I111: =IF(OR(C111<0,C111=""),"",-E111*SUM(OFFSET('Refueling Station - GH2'!$I$388:$K$388,MATCH(C111,'Refueling Station - GH2'!$E$389:$E$429,0),0))) ->  | J111: =IF(AND(C111>=1,C111<anal_period),WorkingCap*SUM(N111:R111)-WorkingCap*SUM(N110:R110),IF(C111<0,0,IF(B111="","",-SUM(J$65:J110)))) ->  | S111: =IF(B111="","",IF($B$31=0,"",-'Debt Financing Calculations'!E115)) ->  | U111: =IF(C111="","",IF(C111<-1,0,IF(C111=anal_period,-LOOKUP(C111,depr_yr2,depr_cost2)-Depreciation!$C$279-Depreciation!$B$304,-LOOKUP(C111,depr_yr2,depr_cost2)))) ->  | Z111: =IF(C111="","",IF($B$31=0,"",-'Debt Financing Calculations'!F115)) -> 
B112: =IF(MAX($B$65:B111)<(construct+anal_period),B111+1,"") ->  | I112: =IF(OR(C112<0,C112=""),"",-E112*SUM(OFFSET('Refueling Station - GH2'!$I$388:$K$388,MATCH(C112,'Refueling Station - GH2'!$E$389:$E$429,0),0))) ->  | J112: =IF(AND(C112>=1,C112<anal_period),WorkingCap*SUM(N112:R112)-WorkingCap*SUM(N111:R111),IF(C112<0,0,IF(B112="","",-SUM(J$65:J111)))) ->  | O112: =IF(C112="","",IF(C112<0,0,IF(AND(C112=1,start_time<1),-(SUM(B279:E279)*output_kgyear*E112*percnt_var*start_time+SUM(B279:E279)*output_kgyear*E112*(1-start_time)),IF(C112<=start_time,-SUM(B279:E279)*output_kgyear*E112*percnt_var,-SUM(B279:E279)*output_kgyear*E112)))) ->  | Q112: =IF(C112="","",IF(C112<0,0,IF(AND(C112=1,start_time<1),SUM(K279:N279,T279:V279)*output_kgyear*E112*percnt_revs*start_time+SUM(K279:N279,T279:V279)*output_kgyear*E112*(1-start_time),IF(C112<=start_time,SUM(K279:N279,T279:V279)*output_kgyear*E112*percnt_revs,SUM(K279:N279,T279:V279)*output_kgyear*E112)))) ->  | R112: =IF(C112="","",IF(C112<0,0,IF(AND(C112=1,start_time<1),-((SUM(J279,P279:R279)*output_kgyear+inflated_othervar)*E112*percnt_var*start_time+(SUM(J279,P279:R279)*output_kgyear+inflated_othervar)*E112*(1-start_time)),IF(C112<=start_time,-(SUM(J279,P279:R279)*output_kgyear+inflated_othervar)*E112*percnt_var,-E112*(SUM(J279,P279:R279)*output_kgyear+inflated_othervar))))) ->  | S112: =IF(B112="","",IF($B$31=0,"",-'Debt Financing Calculations'!E116)) ->  | U112: =IF(C112="","",IF(C112<-1,0,IF(C112=anal_period,-LOOKUP(C112,depr_yr2,depr_cost2)-Depreciation!$C$279-Depreciation!$B$304,-LOOKUP(C112,depr_yr2,depr_cost2)))) ->  | Z112: =IF(C112="","",IF($B$31=0,"",-'Debt Financing Calculations'!F116)) -> 
B113: =IF(MAX($B$65:B112)<(construct+anal_period),B112+1,"") ->  | I113: =IF(OR(C113<0,C113=""),"",-E113*SUM(OFFSET('Refueling Station - GH2'!$I$388:$K$388,MATCH(C113,'Refueling Station - GH2'!$E$389:$E$429,0),0))) ->  | J113: =IF(AND(C113>=1,C113<anal_period),WorkingCap*SUM(N113:R113)-WorkingCap*SUM(N112:R112),IF(C113<0,0,IF(B113="","",-SUM(J$65:J112)))) ->  | O113: =IF(C113="","",IF(C113<0,0,IF(AND(C113=1,start_time<1),-(SUM(B280:D280)*output_kgyear*E113*percnt_var*start_time+SUM(B280:D280)*output_kgyear*E113*(1-start_time)),IF(C113<=start_time,-SUM(B280:D280)*output_kgyear*E113*percnt_var,-SUM(B280:D280)*output_kgyear*E113)))) ->  | Q113: =IF(C113="","",IF(C113<0,0,IF(AND(C113=1,start_time<1),SUM(J280:M280,S280:U280)*output_kgyear*E113*percnt_revs*start_time+SUM(J280:M280,S280:U280)*output_kgyear*E113*(1-start_time),IF(C113<=start_time,SUM(J280:M280,S280:U280)*output_kgyear*E113*percnt_revs,SUM(J280:M280,S280:U280)*output_kgyear*E113)))) ->  | R113: =IF(C113="","",IF(C113<0,0,IF(AND(C113=1,start_time<1),-((SUM(J280,P280:R280)*output_kgyear+inflated_othervar)*E113*percnt_var*start_time+(SUM(J280,P280:R280)*output_kgyear+inflated_othervar)*E113*(1-start_time)),IF(C113<=start_time,-(SUM(J280,P280:R280)*output_kgyear+inflated_othervar)*E113*percnt_var,-E113*(SUM(J280,P280:R280)*output_kgyear+inflated_othervar))))) ->  | S113: =IF(B113="","",IF($B$31=0,"",-'Debt Financing Calculations'!E117)) ->  | U113: =IF(C113="","",IF(C113<-1,0,IF(C113=anal_period,-LOOKUP(C113,depr_yr2,depr_cost2)-Depreciation!$C$279-Depreciation!$B$304,-LOOKUP(C113,depr_yr2,depr_cost2)))) ->  | Z113: =IF(C113="","",IF($B$31=0,"",-'Debt Financing Calculations'!F117)) ->  | AE113: =IF(C113="","",IF(C113<0,0,IF(AND(C113=1,start_time<1),(output_kgyear*start_time*percnt_revs+output_kgyear*(1-start_time)),IF(C113<=start_time,output_kgyear*percnt_revs,output_kgyear)))) -> 
E114: Cumulative Total | F114: =SUM(F65:F113) -> 19684995.11 | G114: -3194849.728 | H114: -2129899.819 | I114: -846255.9689 | J114: 0 | K114: 0 | L114: 775859.1126 | M114: -775859.1126 | N114: -5141061.222 | O114: 0 | P114: 0 | Q114: 0 | R114: -5323386.503 | S114: -2482398.239 | T114: 6738149.148 | U114: -6171005.516 | V114: 567143.6326 | W114: 5.4054 | X114: -145982.771 | Y114: 6592166.377 | Z114: -3194849.728 | AA114: 421160.8615 | AB114: 15062171.18 | AC114: 567143.6326
E115: PV of Cash Flow | F115: =NPV(nominal_irr,F65:F113) -> 7068513.273 | G115: -2903036.499 | H115: -1935357.666 | I115: -259675.6565 | J115: -49948.11217 | K115: 0 | L115: 103806.8795 | M115: -103806.8795 | N115: -1858587.834 | O115: =NPV(nominal_irr,$O$65:$O$113) -> 0 | P115: 0 | Q115: 0 | R115: -1872076.639 | S115: -1018637.929 | T115: 2319210.872 | U115: -3691506.193 | V115: -1372295.321 | W115: 2.218074994 | X115: 353228.8157 | Y115: 2672439.688 | Z115: -427458.2528 | AA115: 2.115642093e-10 | AB115: -560581.5449 | AC115: -353228.8157
E116: Discounted Values | F116: =+F65+NPV($X$59,F66:F113) -> 7779040.227 | G116: -3194849.728 | H116: -2129899.819 | I116: -285778.2534 | J116: -54968.8964 | K116: 0 | L116: 114241.547 | M116: -114241.547 | N116: -2045413.083 | O116: 0 | P116: 0 | Q116: 0 | R116: -2060257.783 | S116: -1121031.413 | T116: 2552337.949 | U116: -4062576.396 | V116: -1510238.447 | W116: 2.441035893 | X116: 388735.3763 | Y116: 2941073.325 | Z116: -470426.3564 | AA116: 0 | AB116: -616931.2018 | AC116: -388735.3763 | AE116: =+AE65+NPV(real_irr,AE66:AE113) -> 4512143.561
A117: Specific Item Cost Calculation | E117: Expenses $/kg H2 | H117: =-H116/$AE$116*(1+inflation_rate)^construct/INFLATION_FACTOR -> 0.4901450665 | I117: =-I116/$AE$116*(1+inflation_rate)^construct/INFLATION_FACTOR -> 0.06576497158 | J117: =-J116/$AE$116*(1+inflation_rate)^construct/INFLATION_FACTOR -> 0.01264976556 | K117: =-K116/$AE$116*(1+inflation_rate)^construct/INFLATION_FACTOR -> 0 | M117: =-M116/$AE$116*(1+inflation_rate)^construct/INFLATION_FACTOR -> 0.02628993635 | N117: =-N116/$AE$116*(1+inflation_rate)^construct/INFLATION_FACTOR -> 0.4707024823 | O117: =-O116/$AE$116*(1+inflation_rate)^construct/INFLATION_FACTOR -> 0 | P117: =-P116/$AE$116*(1+inflation_rate)^construct/INFLATION_FACTOR -> 0 | R117: =-R116/$AE$116*(1+inflation_rate)^construct/INFLATION_FACTOR -> 0.4741186318 | S117: =-S116/$AE$116*(1+inflation_rate)^construct/INFLATION_FACTOR -> 0.2579783386 | X117: =-X116/$AE$116*(1+inflation_rate)^construct/INFLATION_FACTOR -> -0.08945806991 | Z117: =-Z116/$AE$116*(1+inflation_rate)^construct/INFLATION_FACTOR -> 0.1082572784 | AG117: =+SUM(F117:AC117) -> 1.816448401
A118: Cost Component | B118: After Tax Present Value | C118: % of Total | D118: $/kg of H2 | E118: Revenues $/kg H2 | F118: =F116/$AE$116*(1+inflation_rate)^construct/INFLATION_FACTOR -> 1.790158465 | L118: =L116/$AE$116*(1+inflation_rate)^construct/INFLATION_FACTOR -> 0.02628993635 | Q118: =Q116/$AE$116*(1+inflation_rate)^construct/INFLATION_FACTOR -> 0 | AG118: =+SUM(F118:AC118) -> 1.816448401
A119: Capital-Related Costs | B119: =(SUM(H115:K115)+L115*(1-total_tax_rate)+S115*(1-total_tax_rate)+U115*(-total_tax_rate)+Z115)/(1-total_tax_rate) -> -3234041.921 | C119: =B119/SUM($B$118:$B$125) -> 0.457527884 | D119: =H2_price_real*C119 -> 0.8190474145
A120: Decommissioning Costs | B120: =M115 -> -103806.8795 | C120: 0.01468581517 | D120: 0.02628993635
A121: Fixed O&M | B121: =N115 -> -1858587.834 | C121: 0.2629390032 | D121: 0.4707024823
A122: Feedstock Costs | B122: =O115 -> 0 | C122: 0 | D122: 0
A123: Other Raw Material Costs | B123: =P115 -> 0 | C123: 0 | D123: 0
A124: Byproduct Credits | B124: =Q115 -> 0 | C124: 0 | D124: 0
A125: Other Variable Costs (including utilities) | B125: =R115 -> -1872076.639 | C125: 0.2648472976 | D125: 0.4741186318
A128: INFLATION FACTOR (1 + inflation rate)^(startup year - reference year) = | B128: =(1+inflation_rate)^(startup_year-ref_year) -> 0.9813542689
A129: Feedstock, Utility and Byproduct Cost Information (Start-Up Year $)
B130: Energy Feedstocks | F130: Energy Utilities | J130: Distributed Production Station Electricity Usage | K130: Energy Byproducts | O130: Other Material Inputs | S130: Other Material Byproducts
A131: Feedstock Name | J131: =IF(FC_CashFlow_euse>0,"Commercial Electricity","") -> Commercial Electricity | O131: Type | S131: Type
A132: Conversion to $/GJ | J132: =IF(J131="",0,VLOOKUP(J131,MASTER_PROPERTY_TABLE,9,FALSE)) -> 0.0036 | O132: Usage (/kg H2) | S132: Usage (/kg H2)
A133: Usage (/kg H2) | J133: =FC_eUse_kWhpkg*sensitivity_05*sensitivity_01 -> 4.298789385 | O133: Cost (/usage unit) | S133: Price (/usage unit)
A134: Price ($/ usage unit) | J134: =IF(J131="",0,StartYr_comm_electricity) -> 0.1048616354 | O134: Lookup Price? | S134: Lookup Price?
A135: Lookup Price? | J135: =IF(J131="","","yes") -> yes
A136: CO2 Emissions (kg CO2/kg H2) | B136: =IF(B131="",0,VLOOKUP(B131,MASTER_PROPERTY_TABLE,11,FALSE)*B132*B133) -> 0 | C136: =IF(C131="",0,VLOOKUP(C131,MASTER_PROPERTY_TABLE,11,FALSE)*C132*C133) -> 0 | D136: =IF(D131="",0,VLOOKUP(D131,MASTER_PROPERTY_TABLE,11,FALSE)*D132*D133) -> 0 | E136: =IF(E131="",0,VLOOKUP(E131,MASTER_PROPERTY_TABLE,11,FALSE)*E132*E133) -> 0 | F136: =IF(F131="",,VLOOKUP(F131,MASTER_PROPERTY_TABLE,11,FALSE)*F132*F133) -> 0 | G136: =IF(G131="",,VLOOKUP(G131,MASTER_PROPERTY_TABLE,11,FALSE)*G132*G133) -> 0 | H136: =IF(H131="",,VLOOKUP(H131,MASTER_PROPERTY_TABLE,11,FALSE)*H132*H133) -> 0 | I136: =IF(I131="",,VLOOKUP(I131,MASTER_PROPERTY_TABLE,11,FALSE)*I132*I133) -> 0 | J136: =IF($J$131="",0,VLOOKUP($J$131,MASTER_PROPERTY_TABLE,12,FALSE)*$J$132*$J$133) -> 0
A137: Actual Year | B137: =IF(B$131="","",B$131&" ($/kg of H2)") ->  | P137: =IF(P$131="","",P$131&" ($/kg of H2)") ->  | Q137: =IF(Q$131="","",Q$131&" ($/kg of H2)") ->  | R137: =IF(R$131="","",R$131&" ($/kg of H2)") ->  | T137: =IF(T$131="","",T$131&" ($/kg of H2)") ->  | U137: =IF(U$131="","",U$131&" ($/kg of H2)") ->  | V137: =IF(V$131="","",V$131&" ($/kg of H2)") -> 
A138: =IF(A65="","",A65) -> 2014 | B138: =IF($A138="","",IF($B$131="","",IF($B$135="no",INFLATION_FACTOR*$B$133*$B$134,INFLATION_FACTOR*$B$133*$B$132*INDEX(FEEDPRICETABLE,MATCH($B$131,List_Energy_Feedstocks,0),MATCH($A138,Feedstock_Year,0))))) ->  | C138: =IF($A138="","",IF($C$131="","",IF($C$135="no",INFLATION_FACTOR*$C$133*$C$134,INFLATION_FACTOR*$C$133*$C$132*INDEX(FEEDPRICETABLE,MATCH($C$131,List_Energy_Feedstocks,0),MATCH($A138,Feedstock_Year,0))))) ->  | D138: =IF($A138="","",IF($D$131="","",IF($D$135="no",INFLATION_FACTOR*$D$133*$D$134,INFLATION_FACTOR*$D$133*$D$132*INDEX(FEEDPRICETABLE,MATCH($D$131,List_Energy_Feedstocks,0),MATCH($A138,Feedstock_Year,0))))) ->  | E138: =IF($A138="","",IF($E$131="","",IF($E$135="no",INFLATION_FACTOR*$E$133*$E$134,INFLATION_FACTOR*$E$133*$E$132*INDEX(FEEDPRICETABLE,MATCH($E$131,List_Energy_Feedstocks,0),MATCH($A138,Feedstock_Year,0))))) ->  | F138: =IF($A138="","",IF($F$131="","",IF($F$135="no",INFLATION_FACTOR*$F$133*$F$134,INFLATION_FACTOR*$F$133*$F$132*INDEX(FEEDPRICETABLE,MATCH($F$131,List_Energy_Feedstocks,0),MATCH($A138,Feedstock_Year,0))))) ->  | G138: =IF($A138="","",IF($G$131="","",IF($G$135="no",INFLATION_FACTOR*$G$133*$G$134,INFLATION_FACTOR*$G$133*$G$132*INDEX(FEEDPRICETABLE,MATCH($G$131,List_Energy_Feedstocks,0),MATCH($A138,Feedstock_Year,0))))) ->  | H138: =IF($A138="","",IF($H$131="","",IF($H$135="no",INFLATION_FACTOR*$H$133*$H$134,INFLATION_FACTOR*$H$133*$H$132*INDEX(FEEDPRICETABLE,MATCH(H$131,List_Energy_Feedstocks,0),MATCH($A138,Feedstock_Year,0))))) ->  | I138: =IF($A138="","",IF($I$131="","",IF($I$135="no",INFLATION_FACTOR*$I$133*$I$134,INFLATION_FACTOR*$I$133*$I$132*INDEX(FEEDPRICETABLE,MATCH($I$131,List_Energy_Feedstocks,0),MATCH($A138,Feedstock_Year,0))))) ->  | J138: =IF($A138="","",IF($J$131="","",IF($J$135="no",INFLATION_FACTOR*$J$133*$J$134,INFLATION_FACTOR*$J$133*$J$132*INDEX(FEEDPRICETABLE,MATCH($J$131,List_Energy_Feedstocks,0),MATCH($A138,Feedstock_Year,0))))) -> 0.4638434805 | K138: =IF($A138="","",IF($K$131="","",IF($K$135="no",INFLATION_FACTOR*$K$133*$K$134,INFLATION_FACTOR*$K$133*$K$132*INDEX(FEEDPRICETABLE,MATCH($K$131,List_Energy_Feedstocks,0),MATCH($A138,Feedstock_Year,0))))) ->  | L138: =IF($A138="","",IF($L$131="","",IF($L$135="no",INFLATION_FACTOR*$L$133*$L$134,INFLATION_FACTOR*$L$133*$L$132*INDEX(FEEDPRICETABLE,MATCH($L$131,List_Energy_Feedstocks,0),MATCH($A138,Feedstock_Year,0))))) ->  | M138: =IF($A138="","",IF(M$131="","",IF($M$135="no",INFLATION_FACTOR*$M$133*$M$134,INFLATION_FACTOR*$M$133*$M$132*INDEX(FEEDPRICETABLE,MATCH($M$131,List_Energy_Feedstocks,0),MATCH($A138,Feedstock_Year,0))))) ->  | N138: =IF($A138="","",IF($N$131="","",IF($N$135="no",INFLATION_FACTOR*$N$133*$N$134,INFLATION_FACTOR*$N$133*$N$132*INDEX(FEEDPRICETABLE,MATCH($N$131,List_Energy_Feedstocks,0),MATCH($A138,Feedstock_Year,0))))) ->  | P138: =IF(OR($A138="",$P$131=""),"",IF($P$134="No",INFLATION_FACTOR*$P$132*$P$133,INFLATION_FACTOR*$P$132*INDEX(Tbl_Other_Inputs_and_Byproducts,MATCH($P$131,Other_Inputs_List,0),MATCH($A138,Other_Inputs_years,0)))) ->  | Q138: =IF(OR($A138="",$Q$131=""),"",IF($Q$134="No",INFLATION_FACTOR*$Q$132*$Q$133,INFLATION_FACTOR*$Q$132*INDEX(Tbl_Other_Inputs_and_Byproducts,MATCH($Q$131,Other_Inputs_List,0),MATCH($A138,Other_Inputs_years,0)))) ->  | R138: =IF(OR($A138="",$R$131=""),"",IF($R$134="No",INFLATION_FACTOR*$R$132*$R$133,INFLATION_FACTOR*$R$132*INDEX(Tbl_Other_Inputs_and_Byproducts,MATCH($R$131,Other_Inputs_List,0),MATCH($A138,Other_Inputs_years,0)))) ->  | T138: =IF(OR($A138="",$T$131=""),"",IF($T$134="No",INFLATION_FACTOR*$T$132*$T$133,INFLATION_FACTOR*$T$132*INDEX(Tbl_Other_Inputs_and_Byproducts,MATCH($T$131,Other_Inputs_List,0),MATCH($A138,Other_Inputs_years,0)))) ->  | U138: =IF(OR($A138="",$U$131=""),"",IF($U$134="No",INFLATION_FACTOR*$U$132*$U$133,INFLATION_FACTOR*$U$132*INDEX(Tbl_Other_Inputs_and_Byproducts,MATCH($U$131,Other_Inputs_List,0),MATCH($A138,Other_Inputs_years,0)))) ->  | V138: =IF(OR($A138="",$V$131=""),"",IF($V$134="No",INFLATION_FACTOR*$V$132*$V$133,INFLATION_FACTOR*$V$132*INDEX(Tbl_Other_Inputs_and_Byproducts,MATCH($V$131,Other_Inputs_List,0),MATCH($A138,Other_Inputs_years,0)))) -> 
A139: 2015 | B139: =IF($A139="","",IF($B$131="","",IF($B$135="no",INFLATION_FACTOR*$B$133*$B$134,INFLATION_FACTOR*$B$133*$B$132*INDEX(FEEDPRICETABLE,MATCH($B$131,List_Energy_Feedstocks,0),MATCH($A139,Feedstock_Year,0))))) ->  | F139: =IF($A139="","",IF($F$131="","",IF($F$135="no",INFLATION_FACTOR*$F$133*$F$134,INFLATION_FACTOR*$F$133*$F$132*INDEX(FEEDPRICETABLE,MATCH($F$131,List_Energy_Feedstocks,0),MATCH($A139,Feedstock_Year,0))))) ->  | J139: 0.4545831105
A140: 2016 | J140: 0.4400035401
A141: 2017 | J141: 0.4423729982
A142: 2018 | B142: =IF($A142="","",IF($B$131="","",IF($B$135="no",INFLATION_FACTOR*$B$133*$B$134,INFLATION_FACTOR*$B$133*$B$132*INDEX(FEEDPRICETABLE,MATCH($B$131,List_Energy_Feedstocks,0),MATCH($A142,Feedstock_Year,0))))) ->  | J142: 0.4403600459
A143: 2019 | J143: 0.4464206531
A144: 2020 | J144: 0.4538807445
A145: 2021 | J145: 0.4569653445
A146: 2022 | J146: 0.4720403267
A147: 2023 | J147: 0.4768782584
A148: 2024 | J148: 0.4759325777
A149: 2025 | J149: 0.4837780408
A150: 2026 | J150: 0.4888717929
A151: 2027 | J151: 0.4901580925
A152: 2028 | J152: 0.4912574641
A153: 2029 | J153: 0.4920354336
A154: 2030 | J154: 0.4931752827
A155: 2031 | J155: 0.4924334869
A156: 2032 | J156: 0.4911056877
A157: 2033 | J157: 0.4892305922
A158: 2034 | J158: 0.4878570471
A184: Tables to calculate equivalent price in startup year
A185: Actual Year | B185: =IF(B$131="","",B$131&" ($/year)") ->  | C185: =IF(C$131="","",C$131&" ($/year)") ->  | J185: Commercial Electricity ($/year)
A186: =+A139 -> 2015 | B186: =IF($C65="","",IF($C65<0,0,IF(AND($C65=1,start_time<1),-(SUM(B139)*output_kgyear*$E65*percnt_var*start_time+SUM(B139)*output_kgyear*$E65*(1-start_time)),IF($C65<=start_time,-SUM(B139)*output_kgyear*$E65*percnt_var,-SUM(B139)*output_kgyear*$E65)))) -> 0 | C186: 0 | D186: 0 | E186: 0 | F186: 0 | G186: 0 | H186: 0 | I186: 0 | J186: 0 | K186: 0 | L186: 0 | M186: 0 | N186: 0
A187: =+A140 -> 2016 | B187: =IF($C66="","",IF($C66<0,0,IF(AND($C66=1,start_time<1),-(SUM(B140)*output_kgyear*$E66*percnt_var*start_time+SUM(B140)*output_kgyear*$E66*(1-start_time)),IF($C66<=start_time,-SUM(B140)*output_kgyear*$E66*percnt_var,-SUM(B140)*output_kgyear*$E66)))) -> 0 | C187: 0 | D187: 0 | E187: 0 | F187: 0 | G187: 0 | H187: 0 | I187: 0 | J187: -155321.9197 | K187: 0 | L187: 0 | M187: 0 | N187: 0
A188: 2017 | B188: 0 | C188: 0 | D188: 0 | E188: 0 | F188: 0 | G188: 0 | H188: 0 | I188: 0 | J188: -212167.134 | K188: 0 | L188: 0 | M188: 0 | N188: 0
A189: 2018 | B189: 0 | C189: 0 | D189: 0 | E189: 0 | F189: 0 | G189: 0 | H189: 0 | I189: 0 | J189: -215214.5314 | K189: 0 | L189: 0 | M189: 0 | N189: 0
A190: 2019 | B190: 0 | C190: 0 | D190: 0 | E190: 0 | F190: 0 | G190: 0 | H190: 0 | I190: 0 | J190: -222321.8492 | K190: 0 | L190: 0 | M190: 0 | N190: 0
A191: 2020 | B191: 0 | C191: 0 | D191: 0 | E191: 0 | F191: 0 | G191: 0 | H191: 0 | I191: 0 | J191: -230331.7515 | K191: 0 | L191: 0 | M191: 0 | N191: 0
A192: 2021 | B192: 0 | C192: 0 | D192: 0 | E192: 0 | F192: 0 | G192: 0 | H192: 0 | I192: 0 | J192: -236303.1444 | K192: 0 | L192: 0 | M192: 0 | N192: 0
A193: 2022 | B193: 0 | C193: 0 | D193: 0 | E193: 0 | F193: 0 | G193: 0 | H193: 0 | I193: 0 | J193: -248736.5016 | K193: 0 | L193: 0 | M193: 0 | N193: 0
A194: 2023 | B194: 0 | C194: 0 | D194: 0 | E194: 0 | F194: 0 | G194: 0 | H194: 0 | I194: 0 | J194: -256060.227 | K194: 0 | L194: 0 | M194: 0 | N194: 0
A195: 2024 | B195: 0 | C195: 0 | D195: 0 | E195: 0 | F195: 0 | G195: 0 | H195: 0 | I195: 0 | J195: -260407.9393 | K195: 0 | L195: 0 | M195: 0 | N195: 0
A196: 2025 | B196: 0 | C196: 0 | D196: 0 | E196: 0 | F196: 0 | G196: 0 | H196: 0 | I196: 0 | J196: -269729.9196 | K196: 0 | L196: 0 | M196: 0 | N196: 0
A197: 2026 | B197: 0 | C197: 0 | D197: 0 | E197: 0 | F197: 0 | G197: 0 | H197: 0 | I197: 0 | J197: -277748.7643 | K197: 0 | L197: 0 | M197: 0 | N197: 0
A198: 2027 | B198: 0 | C198: 0 | D198: 0 | E198: 0 | F198: 0 | G198: 0 | H198: 0 | I198: 0 | J198: -283770.6773 | K198: 0 | L198: 0 | M198: 0 | N198: 0
A199: 2028 | B199: 0 | C199: 0 | D199: 0 | E199: 0 | F199: 0 | G199: 0 | H199: 0 | I199: 0 | J199: -289810.88 | K199: 0 | L199: 0 | M199: 0 | N199: 0
A200: 2029 | B200: 0 | C200: 0 | D200: 0 | E200: 0 | F200: 0 | G200: 0 | H200: 0 | I200: 0 | J200: -295784.9597 | K200: 0 | L200: 0 | M200: 0 | N200: 0
A201: 2030 | B201: 0 | C201: 0 | D201: 0 | E201: 0 | F201: 0 | G201: 0 | H201: 0 | I201: 0 | J201: -302103.1084 | K201: 0 | L201: 0 | M201: 0 | N201: 0
A202: 2031 | B202: 0 | C202: 0 | D202: 0 | E202: 0 | F202: 0 | G202: 0 | H202: 0 | I202: 0 | J202: -307380.0339 | K202: 0 | L202: 0 | M202: 0 | N202: 0
A203: 2032 | B203: =IF($C82="","",IF($C82<0,0,IF(AND($C82=1,start_time<1),-(SUM(B156)*output_kgyear*$E82*percnt_var*start_time+SUM(B156)*output_kgyear*$E82*(1-start_time)),IF($C82<=start_time,-SUM(B156)*output_kgyear*$E82*percnt_var,-SUM(B156)*output_kgyear*$E82)))) -> 0 | C203: 0 | D203: 0 | E203: 0 | F203: 0 | G203: 0 | H203: 0 | I203: 0 | J203: -312375.6864 | K203: 0 | L203: 0 | M203: 0 | N203: 0
A204: 2033 | B204: 0 | C204: 0 | D204: 0 | E204: 0 | F204: 0 | G204: 0 | H204: 0 | I204: 0 | J204: -317095.4788 | K204: 0 | L204: 0 | M204: 0 | N204: 0
A205: 2034 | B205: 0 | C205: 0 | D205: 0 | E205: 0 | F205: 0 | G205: 0 | H205: 0 | I205: 0 | J205: -322213.1127 | K205: 0 | L205: 0 | M205: 0 | N205: 0
B206: 0 | C206: 0 | D206: 0 | E206: 0 | F206: 0 | G206: 0 | H206: 0 | I206: 0 | J206: 0 | K206: 0 | L206: 0 | M206: 0 | N206: 0
B219: =IF($C98="","",IF($C98<0,0,IF(AND($C98=1,start_time<1),-(SUM(B172)*output_kgyear*$E98*percnt_var*start_time+SUM(B172)*output_kgyear*$E98*(1-start_time)),IF($C98<=start_time,-SUM(B172)*output_kgyear*$E98*percnt_var,-SUM(B172)*output_kgyear*$E98)))) -> 
A229: 0
A231: Discounted value | B231: =+B186+NPV($X$59,B187:B228) -> 0 | C231: =+C186+NPV($X$59,C187:C228) -> 0 | D231: 0 | E231: 0 | F231: 0 | G231: 0 | H231: 0 | I231: 0 | J231: -2020556.919 | K231: 0 | L231: 0 | M231: 0 | N231: 0
A232: Cost per kg H2 | B232: =-B231/$AE$116*(1+inflation_rate)^construct/INFLATION_FACTOR -> 0 | C232: 0 | D232: 0 | E232: 0 | F232: 0 | G232: 0 | H232: 0 | I232: 0 | J232: 0.4649824357 | K232: 0 | L232: 0 | M232: 0 | N232: 0
A233: Levelized and escalated cost in startup year | B233: =IF(B132>0,B232/B133*(1+inflation_rate)^construct,"") ->  | J233: 0.1102210552
A279: Lookup Electricity prices for distributed production and CCS
A280: Feed | B280: LHV | C280: Start Year Column | D280: Raw Price ($/GJ) | E280: Price in Usage Units
A281: ='HyARC Physical Property Data'!A76 -> Commercial Electricity | B281: =VLOOKUP(A281,MASTER_PROPERTY_TABLE,9,FALSE) -> 0.0036 | C281: =MATCH(startup_year,Feedstock_Year,0)+2 -> 21 | D281: =VLOOKUP(A281,FEEDPRICETABLE,C281,FALSE) -> 29.12823206 | E281: =B281*D281 -> 0.1048616354

Sheet Energy Feed & Utility Prices
BW3: Further extrapolated to allow 2040 comission year using GCAM
A4: AEO_2009_Reference_Case | B4: ="Prices are in $(" & ref_year&")/GJ LHV" -> Prices are in $(2016)/GJ LHV | AH4: Except as noted,values are extrapolated based on PNNL mini-CAM model (see AEO Data tab)
A5: Year | B5: Source Data Year | C5: Reference year Conversion | D5: Display Units | E5: Use Category | F5: LHV (MJ/kg) | G5: HHV (MJ/kg) | H5: 2004 | I5: 2005 | J5: 2006 | K5: 2007 | L5: 2008 | M5: 2009 | N5: 2010 | O5: 2011 | P5: 2012 | Q5: 2013 | R5: 2014 | S5: 2015 | T5: 2016 | U5: 2017 | V5: 2018 | W5: 2019 | X5: 2020 | Y5: 2021 | Z5: 2022 | AA5: 2023 | AB5: 2024 | AC5: 2025 | AD5: 2026 | AE5: 2027 | AF5: 2028 | AG5: 2029 | AH5: 2030 | AI5: 2031 | AJ5: 2032 | AK5: 2033 | AL5: 2034 | AM5: 2035 | AN5: 2036 | AO5: 2037 | AP5: 2038 | AQ5: 2039 | AR5: 2040 | AS5: 2041 | AT5: 2042 | AU5: 2043 | AV5: 2044 | AW5: 2045 | AX5: 2046 | AY5: 2047 | AZ5: 2048 | BA5: 2049 | BB5: 2050 | BC5: 2051 | BD5: 2052 | BE5: 2053 | BF5: 2054 | BG5: 2055 | BH5: 2056 | BI5: 2057 | BJ5: 2058 | BK5: 2059 | BL5: 2060 | BM5: 2061 | BN5: 2062 | BO5: 2063 | BP5: 2064 | BQ5: 2065 | BR5: 2066 | BS5: 2067 | BT5: 2068 | BU5: 2069 | BV5: 2070 | BW5: =+BV5+1 -> 2071 | BX5: 2072 | BY5: 2073 | BZ5: 2074 | CA5: 2075 | CB5: 2076 | CC5: 2077 | CD5: 2078 | CE5: 2079 | CF5: 2080 | CG5: 2081 | CH5: 2082 | CI5: 2083 | CJ5: 2084 | CK5: 2085 | CL5: 2086 | CM5: 2087 | CN5: 2088 | CO5: 2089 | CP5: 2090 | CQ5: 2091 | CR5: 2092 | CS5: 2093 | CT5: 2094 | CU5: 2095 | CV5: 2096 | CW5: 2097 | CX5: 2098 | CY5: 2099 | CZ5: 2100
A6: Feedstock Type
